Workbook

Sheet Mode Op (hidden)
A1: MODE OPERATOIRE FEUILLE DE CLASSEMENT
A4: - Améliorations : La moyenne des ex-æquo se calcule automatiquement. Les temps des coureurs figurent sur les feuilles de résultats avec les écarts. Les en-têtes des feuillets « Engagements sur place », « Etats de résultats », « Rapport du Prés. du Jury » se complètent automatiquement. Sur le verso de l’état de résultats, en portant le n° de dossard du coureur pénalisé, son nom, son club, et son n° de licence sont inscrits (dans le cas où le Commissaire est équipé d’une imprimante sur le lieu de la course).
A5: ----------
A6: - Feuillet « INSCRIPTION ». Remplir le feuillet inscription . Pour la distance, remplir la case « circuit de » et « à parcourir ». Dans le cas d’une course en ligne, distance totale x 1. Ajouter les engagés sur place en respectant l’appellation du club si celui-ci est au Prix d’équipe.
A7: - Feuillet « PRIX D EQUIPE » : Pour le nom des clubs, faire un « copier-coller » entre le nom entré au premier coureur de l’équipe et les autres coureurs du même club, puis avec le feuillet « prix d’équipe », si le club est inscrit. Attention, le nom du club doit être strictement le même que celui du feuillet prix d’équipe. Si un coureur est ajouté (engagement sur place) et que d’autres coureurs du même club sont déjà engagés : copier-coller le nom du club. Si un club se rajoute au prix d’équipe, même chose (copier-coller avec feuillet prix d’équipe). Le prix d’équipe ne peut se calculer que si cette procédure est respectée.
A8: - Feuillet « Eng. Sur place » : Porter simplement le numéro du dossard qui correspond à la feuille « inscription », le reste se remplit automatiquement.
A9: - Sur le feuillet « INSCRIPTION », mettre d’office « X » dans la colonne des présents, il suffira de les enlever si les coureurs sont non - partants. Il est possible de mettre EXC. Si les coureurs sont excusés (le nombre de partants n’est comptabilisé qu’à partir des « X ».
A10: - Pour éditer les feuilles, définir la zone d’impression pour éviter d’imprimer les 5 pages.
A11: - Feuillet « Emargement » : définir la zone d’impression en s’arrêtant à un bas de page.
A12: - Une fois la course terminée et le classement fait, aller sur le feuillet « classement », saisir seulement les numéros des dossards et le temps du 1er et des autres s’il y a lieu (çà permet de calculer la moyenne de la course). S’il y a des ex-æquo, remplacer, pour tous les coureurs ex-æquo, les places de la colonne B par la place du 1er ex-æquo. La moyenne du « trou » se calcule automatiquement. Si un coureur est déjà classé, son numéro apparaît dans la colonne K surligné en jaune. Cliquer sur le rectangle «prix d’équipe 2 hommes» ou « prix d’équipe 3 hommes » (au temps ou à la place) selon la catégorie de course.
A13: - Il n’y a plus qu’à éditer la feuille de résultats (format A4). Celle-ci est protégée car il n’y a rien à modifier. Dans le cas contraire, il suffit d’ôter la protection.
A14: - Le dernier feuillet (Internet), sert à envoyer les résultats pour mise en ligne sur le site FSGT 29. On peut enlever des lignes, ou en ajouter en insérant des lignes entre la dernière actuelle et le prix d’équipe, puis en faisant une recopie vers le bas de la dernière ligne (qui contient la formule en liaison avec la feuille de classement).
A15: En résumé : bien remplir la liste des engagés, le feuillet prix d’équipe par un copier-coller, et le feuillet classement (colonnes surlignées en vert).
A17: Pour réutiliser le programme, il vaut mieux utiliser un programme vierge (ne pas oublier de l’enregistrer sous un autre nom).
A19: ATTENTION : beaucoup de cellules contiennent des formules. Ne pas supprimer de lignes ou de colonnes, et ne pas modifier les cellules contenant les formules (sauf expert). Toujours faire des essais avec une version du programme enregistrée sous un autre nom.

Sheet Inscription (hidden)
D1: CYCLO CROSS
D2: HENANSAL
A4: DATE : | D4: 2023-10-01
A6: 1 | B6: x | C6: LEVEQUE | D6: Nathan | E6: district loudéac | F6: poussin | H6: 2017-07-20 | I6: m
A7: 2 | B7: x | C7: BARS | D7: Gabin | E7: begard vtt gwerun | F7: poussin | G7: 407364 | H7: 2017-01-11 | I7: m
A8: 3 | B8: x | C8: BASSET | D8: Evan | E8: vc evron | F8: poussin | H8: 2016-02-09 | I8: m
A9: 4 | B9: x | C9: BANNER | D9: Livia | E9: vtt du lié | F9: poussin | H9: 2016-03-22 | I9: f
A10: 5 | B10: x | C10: MACE | D10: Loukas | E10: vc evron | F10: poussin | G10: 996776 | H10: 2017-07-10 | I10: m
A11: 6 | B11: x | C11: BARS | D11: Yvann | E11: begard vtt gwerun | F11: pupille | G11: 310008 | H11: 2014-07-13 | I11: m
A12: 7 | B12: x | C12: COLAS | D12: Thibaut | E12: begard vtt gwerun | F12: pupille | G12: 330206 | H12: 2014-01-11 | I12: m
A13: 8 | B13: x | C13: LEPERCQ | D13: Batiste | E13: uc plaudren | F13: pupille | G13: 391433 | H13: 2015-11-18 | I13: m
A14: 9 | B14: x | C14: CLERET MARECHAL | D14: Loeiz | E14: vtt cotes d'armor hillion | F14: pupille | H14: 2014-07-09 | I14: m
A15: 10 | B15: x | C15: POILVET | D15: Paul | E15: vc evron | F15: benjamin | G15: 382428 | H15: 2013-05-07 | I15: m
A16: 11 | B16: x | C16: POILVET | D16: Jules | E16: vc evron | F16: benjamin | G16: 382431 | H16: 2013-05-07 | I16: m
A17: 12 | B17: x | C17: LEPERCQ | D17: Clara | E17: uc plaudren | F17: benjamin | G17: 467480 | H17: 2013-08-02 | I17: f
A18: 13 | B18: x | C18: BOLORE | D18: Loevan | E18: team bikers | F18: benjamin | G18: 376265 | H18: 2013-05-26 | I18: m
A19: 14 | B19: x | C19: BANNER | D19: Rafael | E19: vtt du lié | F19: benjamin | H19: 2013-01-15 | I19: m
A20: 15 | B20: x | C20: BRIAND | D20: Axel | E20: team bikers | F20: benjamin | G20: 429219 | H20: 2013-09-21 | I20: m
A21: 16 | B21: x | C21: BOUGEARD HORNAIS | D21: Aymeris | E21: team bikers | F21: benjamin | G21: 431285 | I21: m
A22: 17
A23: 18
A24: 19
A25: 20 | B25: x | C25: BRIEND | D25: Ilhan | E25: accro cycles cotes d'émeraude | F25: minimes | G25: 919871 | H25: 2010-08-18 | I25: m
A26: 21 | B26: x | C26: LE BIHAN | D26: Clément | E26: uc plaudren | F26: minimes | G26: 968158 | H26: 2011-07-30 | I26: m
A27: 22 | B27: x | C27: BOLORE | D27: Ewen | E27: team bikers | F27: minimes | G27: 376263 | H27: 2010-10-13 | I27: m
A28: 23 | B28: x | C28: ROUILLE | D28: Robin | E28: team bikers | F28: minimes | G28: 390947 | H28: 2010-07-09 | I28: m
A29: 24 | B29: x | C29: BASSET | D29: Loris | E29: vc evron | F29: minimes | H29: 2011-06-06 | I29: m
A30: 25 | B30: x | C30: BRIAND | D30: Mathis | E30: team bikers | F30: minimes | G30: 431995 | H30: 2011-04-20 | I30: m
A31: 26 | B31: x | C31: BOUGEARD | D31: Margot | E31: team bikers | F31: minimes | G31: 431290 | H31: 2010-05-18 | I31: f
A32: 27 | B32: x | C32: GUILMIN | D32: Léo | E32: vc evron | F32: minimes | G32: 344464 | H32: 2010-10-07 | I32: m
A33: 28
A34: 29
A35: 30 | B35: x | C35: FERTE | D35: Brandon | E35: distric loudéac | F35: cadet | G35: 297227 | H35: 39839
A36: 31 | B36: x | C36: LEPERCQ | D36: Nathan | E36: uc plaudren | F36: cadet | G36: 389000 | H36: 39962
A37: 32
A38: 33
A39: 34
A40: 35 | B40: x | C40: HALLET | D40: Baptiste | E40: vc plurien | F40: espoir | G40: 136613 | H40: 2005 | I40: m
A41: 36
A42: 37
A43: 38
A44: 39
A45: 40 | B45: x | C45: KEURMEUR | D45: Romain | E45: team mégrit | F45: 1ère cat | G45: 363251 | H45: 2004-03-16 | I45: m
A46: 41 | B46: x | C46: BANNER | D46: Mickael | E46: vtt du lié | F46: 1ère cat | G46: 950036 | H46: 1982-01-15 | I46: m
A47: 42 | B47: x | C47: BOUGEARD | D47: Pierre-Yves | E47: team bickers | F47: 1ère cat | G47: 376257 | H47: 1984-03-20 | I47: m
A48: 43 | B48: x | C48: BASSET | D48: Emerick | E48: vc evron | F48: 1ère cat | G48: 371872 | H48: 1980-01-18 | I48: m
A49: 44
A50: 45 | B50: x | C50: JEUNEU | D50: Gilles | E50: accro cycles cotes d'émeraude | F50: 2ème cat | G50: 137390 | H50: 1967-06-28 | I50: m
A51: 46 | B51: x | C51: LESNE | D51: Régis | E51: district loudéac | F51: 2ème cat | G51: 227933 | H51: 1989 | I51: m
A52: 47 | B52: x | C52: BEDEL | D52: Bapiste | E52: district loudéac | F52: 2ème cat | G52: 13637 | H52: 2002 | I52: m
A53: 48 | B53: x | C53: COLAS | D53: Emmanuel | E53: begard vtt gwerun | F53: 2ème cat | G53: 386450 | H53: 1982-04-28 | I53: m
A54: 49 | B54: x | C54: COLLEU | D54: Pascal | E54: ccvb | F54: 2ème cat | G54: 511956 | H54: 1967 | I54: m
A55: 50 | B55: x | C55: MACE | D55: Jérome | E55: vc evron | F55: 2ème cat | G55: 434904 | H55: 1986-10-14 | I55: m
A56: 51 | B56: x | C56: BRIAND | D56: Régis | E56: team bickers | F56: 2ème cat | G56: 429231 | H56: 1983-06-19 | I56: m
A57: 52 | B57: x | C57: MOUTTE | D57: Alexis | E57: team du pays de dinan guinefort | F57: 2ème cat | H57: 2002-05-08 | I57: m
A58: 53 | B58: x | C58: MARIVINT | D58: Alexis | E58: vc evron | F58: 2ème cat | G58: 294510 | H58: 1988-05-12 | I58: m
A59: 54 | B59: x | C59: LECOMTE | D59: Guillaume | E59: team xc du léguer | F59: 2ème cat | G59: 998834 | H59: 1981-09-04 | I59: m
A60: 55
A61: 56
A62: 57
A63: 58
A64: 59
A65: 60 | B65: x | C65: GOUYA | D65: Noel | E65: team du pays de dinan guinefort | F65: 3ème cat | G65: 226768 | H65: 1962 | I65: m
A66: 61 | B66: x | C66: GUILLOT | D66: Denis | E66: team du pays de dinan guinefort | F66: 3ème cat | G66: 844159 | H66: 1962 | I66: m
A67: 62 | B67: x | C67: DURAND | D67: Jacques | E67: team du pays de dinan guinefort | F67: 3ème cat | G67: 144227 | H67: 1957 | I67: m
A68: 63 | B68: x | C68: COUALAN | D68: Dominique | E68: cc pleven | F68: 3ème cat | G68: 153631 | H68: 1970 | I68: m
A69: 64 | B69: x | C69: LEMAITRE | D69: Alain | E69: ac vildé guingalan | F69: 3ème cat | G69: 225454 | H69: 1954 | I69: m
A70: 65 | B70: x | C70: NICOLAS | D70: Jean Charles | E70: ac vildé guingalan | F70: 3ème cat | G70: 514101 | H70: 1951 | I70: m
A71: 66 | B71: x | C71: GEORGET | D71: Charles | E71: district loudéac | F71: 3ème cat | G71: 227931 | H71: 1978-02-28 | I71: m
A72: 67 | B72: x | C72: BEDEL | D72: Michel | E72: district loudéac | F72: 3ème cat | G72: 267277 | H72: 1965-10-25 | I72: m
A73: 68 | B73: x | C73: GOUYA | D73: Alain | E73: district loudéac | F73: 3ème cat | G73: 136125 | I73: m
A74: 69 | B74: x | C74: GAILLARD | D74: Marcel | E74: cos kerentrech | F74: 3ème cat | G74: 57243 | H74: 1950-04-02 | I74: m
A75: 70 | B75: x | C75: COLAS | D75: Roger | E75: vc crehen | F75: 3ème cat | G75: 227437 | H75: 1955 | I75: m
A76: 71 | B76: x | C76: GOUPIL | D76: Michel | E76: team mégrit | F76: 3ème cat | G76: 55779611 | H76: 1959 | I76: m
A77: 72 | B77: x | C77: LECELLIER | D77: Raymond | E77: team mégrit | F77: 3ème cat | G77: 55656150 | H77: 1954 | I77: m
A78: 73 | B78: x | C78: ROPERCH | D78: Bruno | E78: uc plaudren | F78: 3ème cat | G78: 875266 | H78: 1962 | I78: m
A79: 74
A80: 75
A81: 76
A82: 77
A83: 78
A84: 79
A85: 80
A86: 81
A87: 82
A88: 83
A89: 84
A90: 85
A91: 86
A92: 87
A93: 88
A94: 89
A95: 90
A96: 91
A97: 92
A98: 93
A99: 94
A100: 95
A101: 96
A102: 97
A103: 98
A104: 99
A105: 100
A106: 101
A107: 102
A108: 103
A109: 104
A110: 105
A111: 106
A112: 107
A113: 108
A114: 109
A115: 110
A116: 111
A117: 112
A118: 113
A119: 114
A120: 115
A121: 116
A122: 117
A123: 118
A124: 119
A125: 120
A126: 121
A127: 122
A128: 123
A129: 124
A130: 125
A131: 126
A132: 127
A133: 128
A134: 129
A135: 130
A136: 131
A137: 132
A138: 133
A139: 134
A140: 135
A141: 136
A142: 137
A143: 138
A144: 139
A145: 140
A146: 141
A147: 142
A148: 143
A149: 144
A150: 145
A151: 146
A152: 147
A153: 148
A154: 149
A155: 150
A156: 151
A157: 152
A158: 153
A159: 154
A160: 155
A161: 156
A162: 157
A163: 158
A164: 159
A165: 160
A166: 161
A167: 162
A168: 163
A169: 164
A170: 165
A171: 166
A172: 167
A173: 168
A174: 169
A175: 170
A176: 171
A177: 172
A178: 173
A179: 174
A180: 175
A181: 176
A182: 177
A183: 178
A184: 179
A185: 180
A186: 181
A187: 182
A188: 183
A189: 184
A190: 185
A191: 186
A192: 187
A193: 188
A194: 189
A195: 190
A196: 191
A197: 192
A198: 193
A199: 194
A200: 195
A201: 196
A202: 197
... 3 more rows

Sheet PRIX D EQUIPE (hidden)
A2: PRIX D EQUIPE
A5: 1
A6: 2
A7: 3
A8: 4
A9: 5
A10: 6
A11: 7
A12: 8
A13: 9
A14: 10
A15: 11
A16: 12
A17: 13
A18: 14
A19: 15
A20: 16
A21: 17
A22: 18
A23: 19
A24: 20
A25: 21
A26: 22
A27: 23
A28: 24
A29: 25
A30: 26
A31: 27
A32: 28
A33: 29
A34: 30
A35: 31
A36: 32
A37: 33
A38: 34
A39: 35

Sheet ENG Dep (hidden)
A1: Fédération Sportive et Gymnique du Travail
A2: ENGAGEMENTS SUR LA LIGNE
A4: ORGANISATEUR : | D4: =IF(Inscription!D3="","",Inscription!D3) -> 
A5: EPREUVE : | C5: =IF(Inscription!D1="","",Inscription!D1) -> CYCLO CROSS
A6: CAT.: | B6: =IF(Inscription!#REF!="","",Inscription!#REF!) ->  | F6: DATE : | G6: =IF(Inscription!D4="","",Inscription!D4) -> 2023-10-01
A7: NOMBRE D ENGAGES AU DEPART : | E7: =COUNTA(A12:A39) -> 0
A9: DOSS | C9: NOM / PRENOM | E9: ASSOCIATION | F9: CAT | G9: N° licence
C12: =IF(A12>0,CONCATENATE((VLOOKUP($A12,Inscription!$A$6:$G$205,3,FALSE))," ",(VLOOKUP($A12,Inscription!$A$6:$G$205,4,FALSE)))," ") ->  | E12: =IF($A12>0,(VLOOKUP($A12,Inscription!$A$6:$G$205,5,FALSE))," ") ->  | F12: =IF($A12>0,(VLOOKUP($A12,Inscription!$A$6:$G$205,6,FALSE))," ") ->  | G12: =IF($A12>0,(VLOOKUP($A12,Inscription!$A$6:$G$205,7,FALSE))," ") -> 
C13: =IF(A13>0,CONCATENATE((VLOOKUP($A13,Inscription!$A$6:$G$205,3,FALSE))," ",(VLOOKUP($A13,Inscription!$A$6:$G$205,4,FALSE)))," ") ->  | E13: =IF($A13>0,(VLOOKUP($A13,Inscription!$A$6:$G$205,5,FALSE))," ") ->  | F13: =IF($A13>0,(VLOOKUP($A13,Inscription!$A$6:$G$205,6,FALSE))," ") ->  | G13: =IF($A13>0,(VLOOKUP($A13,Inscription!$A$6:$G$205,7,FALSE))," ") -> 
C14: =IF(A14>0,CONCATENATE((VLOOKUP($A14,Inscription!$A$6:$G$205,3,FALSE))," ",(VLOOKUP($A14,Inscription!$A$6:$G$205,4,FALSE)))," ") ->  | E14: =IF($A14>0,(VLOOKUP($A14,Inscription!$A$6:$G$205,5,FALSE))," ") ->  | F14: =IF($A14>0,(VLOOKUP($A14,Inscription!$A$6:$G$205,6,FALSE))," ") ->  | G14: =IF($A14>0,(VLOOKUP($A14,Inscription!$A$6:$G$205,7,FALSE))," ") -> 
C15: =IF(A15>0,CONCATENATE((VLOOKUP($A15,Inscription!$A$6:$G$205,3,FALSE))," ",(VLOOKUP($A15,Inscription!$A$6:$G$205,4,FALSE)))," ") ->  | E15: =IF($A15>0,(VLOOKUP($A15,Inscription!$A$6:$G$205,5,FALSE))," ") ->  | F15: =IF($A15>0,(VLOOKUP($A15,Inscription!$A$6:$G$205,6,FALSE))," ") ->  | G15: =IF($A15>0,(VLOOKUP($A15,Inscription!$A$6:$G$205,7,FALSE))," ") -> 
C16: =IF(A16>0,CONCATENATE((VLOOKUP($A16,Inscription!$A$6:$G$205,3,FALSE))," ",(VLOOKUP($A16,Inscription!$A$6:$G$205,4,FALSE)))," ") ->  | E16: =IF($A16>0,(VLOOKUP($A16,Inscription!$A$6:$G$205,5,FALSE))," ") ->  | F16: =IF($A16>0,(VLOOKUP($A16,Inscription!$A$6:$G$205,6,FALSE))," ") ->  | G16: =IF($A16>0,(VLOOKUP($A16,Inscription!$A$6:$G$205,7,FALSE))," ") -> 
C17: =IF(A17>0,CONCATENATE((VLOOKUP($A17,Inscription!$A$6:$G$205,3,FALSE))," ",(VLOOKUP($A17,Inscription!$A$6:$G$205,4,FALSE)))," ") ->  | E17: =IF($A17>0,(VLOOKUP($A17,Inscription!$A$6:$G$205,5,FALSE))," ") ->  | F17: =IF($A17>0,(VLOOKUP($A17,Inscription!$A$6:$G$205,6,FALSE))," ") ->  | G17: =IF($A17>0,(VLOOKUP($A17,Inscription!$A$6:$G$205,7,FALSE))," ") -> 
C18: =IF(A18>0,CONCATENATE((VLOOKUP($A18,Inscription!$A$6:$G$205,3,FALSE))," ",(VLOOKUP($A18,Inscription!$A$6:$G$205,4,FALSE)))," ") ->  | E18: =IF($A18>0,(VLOOKUP($A18,Inscription!$A$6:$G$205,5,FALSE))," ") ->  | F18: =IF($A18>0,(VLOOKUP($A18,Inscription!$A$6:$G$205,6,FALSE))," ") ->  | G18: =IF($A18>0,(VLOOKUP($A18,Inscription!$A$6:$G$205,7,FALSE))," ") -> 
C19: =IF(A19>0,CONCATENATE((VLOOKUP($A19,Inscription!$A$6:$G$205,3,FALSE))," ",(VLOOKUP($A19,Inscription!$A$6:$G$205,4,FALSE)))," ") ->  | E19: =IF($A19>0,(VLOOKUP($A19,Inscription!$A$6:$G$205,5,FALSE))," ") ->  | F19: =IF($A19>0,(VLOOKUP($A19,Inscription!$A$6:$G$205,6,FALSE))," ") ->  | G19: =IF($A19>0,(VLOOKUP($A19,Inscription!$A$6:$G$205,7,FALSE))," ") -> 
C20: =IF(A20>0,CONCATENATE((VLOOKUP($A20,Inscription!$A$6:$G$205,3,FALSE))," ",(VLOOKUP($A20,Inscription!$A$6:$G$205,4,FALSE)))," ") ->  | E20: =IF($A20>0,(VLOOKUP($A20,Inscription!$A$6:$G$205,5,FALSE))," ") ->  | F20: =IF($A20>0,(VLOOKUP($A20,Inscription!$A$6:$G$205,6,FALSE))," ") ->  | G20: =IF($A20>0,(VLOOKUP($A20,Inscription!$A$6:$G$205,7,FALSE))," ") -> 
C21: =IF(A21>0,CONCATENATE((VLOOKUP($A21,Inscription!$A$6:$G$205,3,FALSE))," ",(VLOOKUP($A21,Inscription!$A$6:$G$205,4,FALSE)))," ") ->  | E21: =IF($A21>0,(VLOOKUP($A21,Inscription!$A$6:$G$205,5,FALSE))," ") ->  | F21: =IF($A21>0,(VLOOKUP($A21,Inscription!$A$6:$G$205,6,FALSE))," ") ->  | G21: =IF($A21>0,(VLOOKUP($A21,Inscription!$A$6:$G$205,7,FALSE))," ") -> 
C22: =IF(A22>0,CONCATENATE((VLOOKUP($A22,Inscription!$A$6:$G$205,3,FALSE))," ",(VLOOKUP($A22,Inscription!$A$6:$G$205,4,FALSE)))," ") ->  | E22: =IF($A22>0,(VLOOKUP($A22,Inscription!$A$6:$G$205,5,FALSE))," ") ->  | F22: =IF($A22>0,(VLOOKUP($A22,Inscription!$A$6:$G$205,6,FALSE))," ") ->  | G22: =IF($A22>0,(VLOOKUP($A22,Inscription!$A$6:$G$205,7,FALSE))," ") -> 
C23: =IF(A23>0,CONCATENATE((VLOOKUP($A23,Inscription!$A$6:$G$205,3,FALSE))," ",(VLOOKUP($A23,Inscription!$A$6:$G$205,4,FALSE)))," ") ->  | E23: =IF($A23>0,(VLOOKUP($A23,Inscription!$A$6:$G$205,5,FALSE))," ") ->  | F23: =IF($A23>0,(VLOOKUP($A23,Inscription!$A$6:$G$205,6,FALSE))," ") ->  | G23: =IF($A23>0,(VLOOKUP($A23,Inscription!$A$6:$G$205,7,FALSE))," ") -> 
C24: =IF(A24>0,CONCATENATE((VLOOKUP($A24,Inscription!$A$6:$G$205,3,FALSE))," ",(VLOOKUP($A24,Inscription!$A$6:$G$205,4,FALSE)))," ") ->  | E24: =IF($A24>0,(VLOOKUP($A24,Inscription!$A$6:$G$205,5,FALSE))," ") ->  | F24: =IF($A24>0,(VLOOKUP($A24,Inscription!$A$6:$G$205,6,FALSE))," ") ->  | G24: =IF($A24>0,(VLOOKUP($A24,Inscription!$A$6:$G$205,7,FALSE))," ") -> 
C25: =IF(A25>0,CONCATENATE((VLOOKUP($A25,Inscription!$A$6:$G$205,3,FALSE))," ",(VLOOKUP($A25,Inscription!$A$6:$G$205,4,FALSE)))," ") ->  | E25: =IF($A25>0,(VLOOKUP($A25,Inscription!$A$6:$G$205,5,FALSE))," ") ->  | F25: =IF($A25>0,(VLOOKUP($A25,Inscription!$A$6:$G$205,6,FALSE))," ") ->  | G25: =IF($A25>0,(VLOOKUP($A25,Inscription!$A$6:$G$205,7,FALSE))," ") -> 
C26: =IF(A26>0,CONCATENATE((VLOOKUP($A26,Inscription!$A$6:$G$205,3,FALSE))," ",(VLOOKUP($A26,Inscription!$A$6:$G$205,4,FALSE)))," ") ->  | E26: =IF($A26>0,(VLOOKUP($A26,Inscription!$A$6:$G$205,5,FALSE))," ") ->  | F26: =IF($A26>0,(VLOOKUP($A26,Inscription!$A$6:$G$205,6,FALSE))," ") ->  | G26: =IF($A26>0,(VLOOKUP($A26,Inscription!$A$6:$G$205,7,FALSE))," ") -> 
C27: =IF(A27>0,CONCATENATE((VLOOKUP($A27,Inscription!$A$6:$G$205,3,FALSE))," ",(VLOOKUP($A27,Inscription!$A$6:$G$205,4,FALSE)))," ") ->  | E27: =IF($A27>0,(VLOOKUP($A27,Inscription!$A$6:$G$205,5,FALSE))," ") ->  | F27: =IF($A27>0,(VLOOKUP($A27,Inscription!$A$6:$G$205,6,FALSE))," ") ->  | G27: =IF($A27>0,(VLOOKUP($A27,Inscription!$A$6:$G$205,7,FALSE))," ") -> 
C28: =IF(A28>0,CONCATENATE((VLOOKUP($A28,Inscription!$A$6:$G$205,3,FALSE))," ",(VLOOKUP($A28,Inscription!$A$6:$G$205,4,FALSE)))," ") ->  | E28: =IF($A28>0,(VLOOKUP($A28,Inscription!$A$6:$G$205,5,FALSE))," ") ->  | F28: =IF($A28>0,(VLOOKUP($A28,Inscription!$A$6:$G$205,6,FALSE))," ") ->  | G28: =IF($A28>0,(VLOOKUP($A28,Inscription!$A$6:$G$205,7,FALSE))," ") -> 
C29: =IF(A29>0,CONCATENATE((VLOOKUP($A29,Inscription!$A$6:$G$205,3,FALSE))," ",(VLOOKUP($A29,Inscription!$A$6:$G$205,4,FALSE)))," ") ->  | E29: =IF($A29>0,(VLOOKUP($A29,Inscription!$A$6:$G$205,5,FALSE))," ") ->  | F29: =IF($A29>0,(VLOOKUP($A29,Inscription!$A$6:$G$205,6,FALSE))," ") ->  | G29: =IF($A29>0,(VLOOKUP($A29,Inscription!$A$6:$G$205,7,FALSE))," ") -> 
C30: =IF(A30>0,CONCATENATE((VLOOKUP($A30,Inscription!$A$6:$G$205,3,FALSE))," ",(VLOOKUP($A30,Inscription!$A$6:$G$205,4,FALSE)))," ") ->  | E30: =IF($A30>0,(VLOOKUP($A30,Inscription!$A$6:$G$205,5,FALSE))," ") ->  | F30: =IF($A30>0,(VLOOKUP($A30,Inscription!$A$6:$G$205,6,FALSE))," ") ->  | G30: =IF($A30>0,(VLOOKUP($A30,Inscription!$A$6:$G$205,7,FALSE))," ") -> 
C31: =IF(A31>0,CONCATENATE((VLOOKUP($A31,Inscription!$A$6:$G$205,3,FALSE))," ",(VLOOKUP($A31,Inscription!$A$6:$G$205,4,FALSE)))," ") ->  | E31: =IF($A31>0,(VLOOKUP($A31,Inscription!$A$6:$G$205,5,FALSE))," ") ->  | F31: =IF($A31>0,(VLOOKUP($A31,Inscription!$A$6:$G$205,6,FALSE))," ") ->  | G31: =IF($A31>0,(VLOOKUP($A31,Inscription!$A$6:$G$205,7,FALSE))," ") -> 
C32: =IF(A32>0,CONCATENATE((VLOOKUP($A32,Inscription!$A$6:$G$205,3,FALSE))," ",(VLOOKUP($A32,Inscription!$A$6:$G$205,4,FALSE)))," ") ->  | E32: =IF($A32>0,(VLOOKUP($A32,Inscription!$A$6:$G$205,5,FALSE))," ") ->  | F32: =IF($A32>0,(VLOOKUP($A32,Inscription!$A$6:$G$205,6,FALSE))," ") ->  | G32: =IF($A32>0,(VLOOKUP($A32,Inscription!$A$6:$G$205,7,FALSE))," ") -> 
C33: =IF(A33>0,CONCATENATE((VLOOKUP($A33,Inscription!$A$6:$G$205,3,FALSE))," ",(VLOOKUP($A33,Inscription!$A$6:$G$205,4,FALSE)))," ") ->  | E33: =IF($A33>0,(VLOOKUP($A33,Inscription!$A$6:$G$205,5,FALSE))," ") ->  | F33: =IF($A33>0,(VLOOKUP($A33,Inscription!$A$6:$G$205,6,FALSE))," ") ->  | G33: =IF($A33>0,(VLOOKUP($A33,Inscription!$A$6:$G$205,7,FALSE))," ") -> 
C34: =IF(A34>0,CONCATENATE((VLOOKUP($A34,Inscription!$A$6:$G$205,3,FALSE))," ",(VLOOKUP($A34,Inscription!$A$6:$G$205,4,FALSE)))," ") ->  | E34: =IF($A34>0,(VLOOKUP($A34,Inscription!$A$6:$G$205,5,FALSE))," ") ->  | F34: =IF($A34>0,(VLOOKUP($A34,Inscription!$A$6:$G$205,6,FALSE))," ") ->  | G34: =IF($A34>0,(VLOOKUP($A34,Inscription!$A$6:$G$205,7,FALSE))," ") -> 
C35: =IF(A35>0,CONCATENATE((VLOOKUP($A35,Inscription!$A$6:$G$205,3,FALSE))," ",(VLOOKUP($A35,Inscription!$A$6:$G$205,4,FALSE)))," ") ->  | E35: =IF($A35>0,(VLOOKUP($A35,Inscription!$A$6:$G$205,5,FALSE))," ") ->  | F35: =IF($A35>0,(VLOOKUP($A35,Inscription!$A$6:$G$205,6,FALSE))," ") ->  | G35: =IF($A35>0,(VLOOKUP($A35,Inscription!$A$6:$G$205,7,FALSE))," ") -> 
C36: =IF(A36>0,CONCATENATE((VLOOKUP($A36,Inscription!$A$6:$G$205,3,FALSE))," ",(VLOOKUP($A36,Inscription!$A$6:$G$205,4,FALSE)))," ") ->  | E36: =IF($A36>0,(VLOOKUP($A36,Inscription!$A$6:$G$205,5,FALSE))," ") ->  | F36: =IF($A36>0,(VLOOKUP($A36,Inscription!$A$6:$G$205,6,FALSE))," ") ->  | G36: =IF($A36>0,(VLOOKUP($A36,Inscription!$A$6:$G$205,7,FALSE))," ") -> 
C37: =IF(A37>0,CONCATENATE((VLOOKUP($A37,Inscription!$A$6:$G$205,3,FALSE))," ",(VLOOKUP($A37,Inscription!$A$6:$G$205,4,FALSE)))," ") ->  | E37: =IF($A37>0,(VLOOKUP($A37,Inscription!$A$6:$G$205,5,FALSE))," ") ->  | F37: =IF($A37>0,(VLOOKUP($A37,Inscription!$A$6:$G$205,6,FALSE))," ") ->  | G37: =IF($A37>0,(VLOOKUP($A37,Inscription!$A$6:$G$205,7,FALSE))," ") -> 
C38: =IF(A38>0,CONCATENATE((VLOOKUP($A38,Inscription!$A$6:$G$205,3,FALSE))," ",(VLOOKUP($A38,Inscription!$A$6:$G$205,4,FALSE)))," ") ->  | E38: =IF($A38>0,(VLOOKUP($A38,Inscription!$A$6:$G$205,5,FALSE))," ") ->  | F38: =IF($A38>0,(VLOOKUP($A38,Inscription!$A$6:$G$205,6,FALSE))," ") ->  | G38: =IF($A38>0,(VLOOKUP($A38,Inscription!$A$6:$G$205,7,FALSE))," ") -> 
C39: =IF(A39>0,CONCATENATE((VLOOKUP($A39,Inscription!$A$6:$G$205,3,FALSE))," ",(VLOOKUP($A39,Inscription!$A$6:$G$205,4,FALSE)))," ") ->  | E39: =IF($A39>0,(VLOOKUP($A39,Inscription!$A$6:$G$205,5,FALSE))," ") ->  | F39: =IF($A39>0,(VLOOKUP($A39,Inscription!$A$6:$G$205,6,FALSE))," ") ->  | G39: =IF($A39>0,(VLOOKUP($A39,Inscription!$A$6:$G$205,7,FALSE))," ") -> 
A40: ENGAGEMENTS SUR PLACE AU PRIX D EQUIPE (Nom de l'association)
E46: =COUNTA(E40:G43) -> 0
E47: =$E$7 -> 0
B49: Le Commissaire : NOM : SIGNATURE : | E49: LE CLUB ORGANISATEUR : NOM : SIGNATURE : | G49: VISA COMPTABILITE : DATE :
A50: IMPRIME A JOINDRE AVEC L'ETAT DE RESULTAT.

Sheet EMARGEMENT (hidden)
A1: FEUILLE D EMARGEMENT
A2: DOSS. | B2: NOM PRENOM | C2: CLUB | D2: CATEGORIE | E2: LICENCE N° | F2: SIGNATURE
A3: =Inscription!A6 -> 1 | B3: =CONCATENATE(Inscription!C6," ",Inscription!D6) -> LEVEQUE Nathan | C3: =Inscription!E6 -> district loudéac | D3: =Inscription!F6 -> poussin | E3: =Inscription!G6 -> 0
A4: =Inscription!A7 -> 2 | B4: =CONCATENATE(Inscription!C7," ",Inscription!D7) -> BARS Gabin | C4: =Inscription!E7 -> begard vtt gwerun | D4: =Inscription!F7 -> poussin | E4: =Inscription!G7 -> 407364
A5: =Inscription!A8 -> 3 | B5: =CONCATENATE(Inscription!C8," ",Inscription!D8) -> BASSET Evan | C5: =Inscription!E8 -> vc evron | D5: =Inscription!F8 -> poussin | E5: =Inscription!G8 -> 0
A6: =Inscription!A9 -> 4 | B6: =CONCATENATE(Inscription!C9," ",Inscription!D9) -> BANNER Livia | C6: =Inscription!E9 -> vtt du lié | D6: =Inscription!F9 -> poussin | E6: =Inscription!G9 -> 0
A7: =Inscription!A10 -> 5 | B7: =CONCATENATE(Inscription!C10," ",Inscription!D10) -> MACE Loukas | C7: =Inscription!E10 -> vc evron | D7: =Inscription!F10 -> poussin | E7: =Inscription!G10 -> 996776
A8: =Inscription!A11 -> 6 | B8: =CONCATENATE(Inscription!C11," ",Inscription!D11) -> BARS Yvann | C8: =Inscription!E11 -> begard vtt gwerun | D8: =Inscription!F11 -> pupille | E8: =Inscription!G11 -> 310008
A9: =Inscription!A12 -> 7 | B9: =CONCATENATE(Inscription!C12," ",Inscription!D12) -> COLAS Thibaut | C9: =Inscription!E12 -> begard vtt gwerun | D9: =Inscription!F12 -> pupille | E9: =Inscription!G12 -> 330206
A10: =Inscription!A13 -> 8 | B10: =CONCATENATE(Inscription!C13," ",Inscription!D13) -> LEPERCQ Batiste | C10: =Inscription!E13 -> uc plaudren | D10: =Inscription!F13 -> pupille | E10: =Inscription!G13 -> 391433
A11: =Inscription!A14 -> 9 | B11: =CONCATENATE(Inscription!C14," ",Inscription!D14) -> CLERET MARECHAL Loeiz | C11: =Inscription!E14 -> vtt cotes d'armor hillion | D11: =Inscription!F14 -> pupille | E11: =Inscription!G14 -> 0
A12: =Inscription!A15 -> 10 | B12: =CONCATENATE(Inscription!C15," ",Inscription!D15) -> POILVET Paul | C12: =Inscription!E15 -> vc evron | D12: =Inscription!F15 -> benjamin | E12: =Inscription!G15 -> 382428
A13: =Inscription!A16 -> 11 | B13: =CONCATENATE(Inscription!C16," ",Inscription!D16) -> POILVET Jules | C13: =Inscription!E16 -> vc evron | D13: =Inscription!F16 -> benjamin | E13: =Inscription!G16 -> 382431
A14: =Inscription!A17 -> 12 | B14: =CONCATENATE(Inscription!C17," ",Inscription!D17) -> LEPERCQ Clara | C14: =Inscription!E17 -> uc plaudren | D14: =Inscription!F17 -> benjamin | E14: =Inscription!G17 -> 467480
A15: =Inscription!A18 -> 13 | B15: =CONCATENATE(Inscription!C18," ",Inscription!D18) -> BOLORE Loevan | C15: =Inscription!E18 -> team bikers | D15: =Inscription!F18 -> benjamin | E15: =Inscription!G18 -> 376265
A16: =Inscription!A19 -> 14 | B16: =CONCATENATE(Inscription!C19," ",Inscription!D19) -> BANNER Rafael | C16: =Inscription!E19 -> vtt du lié | D16: =Inscription!F19 -> benjamin | E16: =Inscription!G19 -> 0
A17: =Inscription!A20 -> 15 | B17: =CONCATENATE(Inscription!C20," ",Inscription!D20) -> BRIAND Axel | C17: =Inscription!E20 -> team bikers | D17: =Inscription!F20 -> benjamin | E17: =Inscription!G20 -> 429219
A18: =Inscription!A21 -> 16 | B18: =CONCATENATE(Inscription!C21," ",Inscription!D21) -> BOUGEARD HORNAIS Aymeris | C18: =Inscription!E21 -> team bikers | D18: =Inscription!F21 -> benjamin | E18: =Inscription!G21 -> 431285
A19: =Inscription!A22 -> 17 | B19: =CONCATENATE(Inscription!C22," ",Inscription!D22) ->  | C19: =Inscription!E22 -> 0 | D19: =Inscription!F22 -> 0 | E19: =Inscription!G22 -> 0
A20: =Inscription!A23 -> 18 | B20: =CONCATENATE(Inscription!C23," ",Inscription!D23) ->  | C20: =Inscription!E23 -> 0 | D20: =Inscription!F23 -> 0 | E20: =Inscription!G23 -> 0
A21: =Inscription!A24 -> 19 | B21: =CONCATENATE(Inscription!C24," ",Inscription!D24) ->  | C21: =Inscription!E24 -> 0 | D21: =Inscription!F24 -> 0 | E21: =Inscription!G24 -> 0
A22: =Inscription!A25 -> 20 | B22: =CONCATENATE(Inscription!C25," ",Inscription!D25) -> BRIEND Ilhan | C22: =Inscription!E25 -> accro cycles cotes d'émeraude | D22: =Inscription!F25 -> minimes | E22: =Inscription!G25 -> 919871
A23: =Inscription!A26 -> 21 | B23: =CONCATENATE(Inscription!C26," ",Inscription!D26) -> LE BIHAN Clément | C23: =Inscription!E26 -> uc plaudren | D23: =Inscription!F26 -> minimes | E23: =Inscription!G26 -> 968158
A24: =Inscription!A27 -> 22 | B24: =CONCATENATE(Inscription!C27," ",Inscription!D27) -> BOLORE Ewen | C24: =Inscription!E27 -> team bikers | D24: =Inscription!F27 -> minimes | E24: =Inscription!G27 -> 376263
A25: =Inscription!A28 -> 23 | B25: =CONCATENATE(Inscription!C28," ",Inscription!D28) -> ROUILLE Robin | C25: =Inscription!E28 -> team bikers | D25: =Inscription!F28 -> minimes | E25: =Inscription!G28 -> 390947
A26: =Inscription!A29 -> 24 | B26: =CONCATENATE(Inscription!C29," ",Inscription!D29) -> BASSET Loris | C26: =Inscription!E29 -> vc evron | D26: =Inscription!F29 -> minimes | E26: =Inscription!G29 -> 0
A27: =Inscription!A30 -> 25 | B27: =CONCATENATE(Inscription!C30," ",Inscription!D30) -> BRIAND Mathis | C27: =Inscription!E30 -> team bikers | D27: =Inscription!F30 -> minimes | E27: =Inscription!G30 -> 431995
A28: =Inscription!A31 -> 26 | B28: =CONCATENATE(Inscription!C31," ",Inscription!D31) -> BOUGEARD Margot | C28: =Inscription!E31 -> team bikers | D28: =Inscription!F31 -> minimes | E28: =Inscription!G31 -> 431290
A29: =Inscription!A32 -> 27 | B29: =CONCATENATE(Inscription!C32," ",Inscription!D32) -> GUILMIN Léo | C29: =Inscription!E32 -> vc evron | D29: =Inscription!F32 -> minimes | E29: =Inscription!G32 -> 344464
A30: =Inscription!A33 -> 28 | B30: =CONCATENATE(Inscription!C33," ",Inscription!D33) ->  | C30: =Inscription!E33 -> 0 | D30: =Inscription!F33 -> 0 | E30: =Inscription!G33 -> 0
A31: =Inscription!A34 -> 29 | B31: =CONCATENATE(Inscription!C34," ",Inscription!D34) ->  | C31: =Inscription!E34 -> 0 | D31: =Inscription!F34 -> 0 | E31: =Inscription!G34 -> 0
A32: =Inscription!A35 -> 30 | B32: =CONCATENATE(Inscription!C35," ",Inscription!D35) -> FERTE Brandon | C32: =Inscription!E35 -> distric loudéac | D32: =Inscription!F35 -> cadet | E32: =Inscription!G35 -> 297227
A33: =Inscription!A36 -> 31 | B33: =CONCATENATE(Inscription!C36," ",Inscription!D36) -> LEPERCQ Nathan | C33: =Inscription!E36 -> uc plaudren | D33: =Inscription!F36 -> cadet | E33: =Inscription!G36 -> 389000
A34: =Inscription!A37 -> 32 | B34: =CONCATENATE(Inscription!C37," ",Inscription!D37) ->  | C34: =Inscription!E37 -> 0 | D34: =Inscription!F37 -> 0 | E34: =Inscription!G37 -> 0
A35: =Inscription!A38 -> 33 | B35: =CONCATENATE(Inscription!C38," ",Inscription!D38) ->  | C35: =Inscription!E38 -> 0 | D35: =Inscription!#REF! ->  | E35: =Inscription!#REF! -> 
A36: =Inscription!A39 -> 34 | B36: =CONCATENATE(Inscription!C39," ",Inscription!D39) ->  | C36: =Inscription!E39 -> 0 | D36: =Inscription!F39 -> 0 | E36: =Inscription!G39 -> 0
A37: =Inscription!A40 -> 35 | B37: =CONCATENATE(Inscription!C40," ",Inscription!D40) -> HALLET Baptiste | C37: =Inscription!E40 -> vc plurien | D37: =Inscription!F40 -> espoir | E37: =Inscription!G40 -> 136613
A38: =Inscription!A41 -> 36 | B38: =CONCATENATE(Inscription!C41," ",Inscription!D41) ->  | C38: =Inscription!E41 -> 0 | D38: =Inscription!F41 -> 0 | E38: =Inscription!G41 -> 0
A39: =Inscription!A42 -> 37 | B39: =CONCATENATE(Inscription!C42," ",Inscription!D42) ->  | C39: =Inscription!E42 -> 0 | D39: =Inscription!F42 -> 0 | E39: =Inscription!G42 -> 0
A40: =Inscription!A43 -> 38 | B40: =CONCATENATE(Inscription!C43," ",Inscription!D43) ->  | C40: =Inscription!E43 -> 0 | D40: =Inscription!F43 -> 0 | E40: =Inscription!G43 -> 0
A41: =Inscription!A44 -> 39 | B41: =CONCATENATE(Inscription!C44," ",Inscription!D44) ->  | C41: =Inscription!E44 -> 0 | D41: =Inscription!F44 -> 0 | E41: =Inscription!G44 -> 0
A42: =Inscription!A45 -> 40 | B42: =CONCATENATE(Inscription!C45," ",Inscription!D45) -> KEURMEUR Romain | C42: =Inscription!E45 -> team mégrit | D42: =Inscription!F45 -> 1ère cat | E42: =Inscription!G45 -> 363251
A43: =Inscription!A46 -> 41 | B43: =CONCATENATE(Inscription!C46," ",Inscription!D46) -> BANNER Mickael | C43: =Inscription!E46 -> vtt du lié | D43: vtt du lié | E43: 1ère cat
A44: =Inscription!A47 -> 42 | B44: =CONCATENATE(Inscription!C47," ",Inscription!D47) -> BOUGEARD Pierre-Yves | C44: =Inscription!E47 -> team bickers | D44: =Inscription!F47 -> 1ère cat | E44: =Inscription!G47 -> 376257
A45: =Inscription!A48 -> 43 | B45: =CONCATENATE(Inscription!C48," ",Inscription!D48) -> BASSET Emerick | C45: =Inscription!E48 -> vc evron | D45: =Inscription!F48 -> 1ère cat | E45: =Inscription!G48 -> 371872
A46: =Inscription!A49 -> 44 | B46: =CONCATENATE(Inscription!C49," ",Inscription!D49) ->  | C46: =Inscription!E49 -> 0 | D46: =Inscription!F49 -> 0 | E46: =Inscription!G49 -> 0
A47: =Inscription!A50 -> 45 | B47: =CONCATENATE(Inscription!C50," ",Inscription!D50) -> JEUNEU Gilles | C47: =Inscription!E50 -> accro cycles cotes d'émeraude | D47: =Inscription!F50 -> 2ème cat | E47: =Inscription!G50 -> 137390
A48: =Inscription!A51 -> 46 | B48: =CONCATENATE(Inscription!C51," ",Inscription!D51) -> LESNE Régis | C48: =Inscription!E51 -> district loudéac | D48: =Inscription!F51 -> 2ème cat | E48: =Inscription!G51 -> 227933
A49: =Inscription!A52 -> 47 | B49: =CONCATENATE(Inscription!C52," ",Inscription!D52) -> BEDEL Bapiste | C49: =Inscription!E52 -> district loudéac | D49: =Inscription!F52 -> 2ème cat | E49: =Inscription!G52 -> 13637
A50: =Inscription!A53 -> 48 | B50: =CONCATENATE(Inscription!C53," ",Inscription!D53) -> COLAS Emmanuel | C50: =Inscription!E53 -> begard vtt gwerun | D50: =Inscription!F53 -> 2ème cat | E50: =Inscription!G53 -> 386450
A51: =Inscription!A54 -> 49 | B51: =CONCATENATE(Inscription!C54," ",Inscription!D54) -> COLLEU Pascal | C51: =Inscription!E54 -> ccvb | D51: =Inscription!F54 -> 2ème cat | E51: =Inscription!G54 -> 511956
A52: =Inscription!A55 -> 50 | B52: =CONCATENATE(Inscription!C55," ",Inscription!D55) -> MACE Jérome | C52: =Inscription!E55 -> vc evron | D52: =Inscription!F55 -> 2ème cat | E52: =Inscription!G55 -> 434904
A53: =Inscription!A56 -> 51 | B53: =CONCATENATE(Inscription!C56," ",Inscription!D56) -> BRIAND Régis | C53: =Inscription!E56 -> team bickers | D53: =Inscription!F56 -> 2ème cat | E53: =Inscription!G56 -> 429231
A54: =Inscription!A57 -> 52 | B54: =CONCATENATE(Inscription!C57," ",Inscription!D57) -> MOUTTE Alexis | C54: =Inscription!E57 -> team du pays de dinan guinefort | D54: =Inscription!F57 -> 2ème cat | E54: =Inscription!G57 -> 0
A55: =Inscription!A58 -> 53 | B55: =CONCATENATE(Inscription!C58," ",Inscription!D58) -> MARIVINT Alexis | C55: =Inscription!E58 -> vc evron | D55: =Inscription!F58 -> 2ème cat | E55: =Inscription!G58 -> 294510
A56: =Inscription!A59 -> 54 | B56: =CONCATENATE(Inscription!C59," ",Inscription!D59) -> LECOMTE Guillaume | C56: =Inscription!E59 -> team xc du léguer | D56: =Inscription!F59 -> 2ème cat | E56: =Inscription!G59 -> 998834
A57: =Inscription!A60 -> 55 | B57: =CONCATENATE(Inscription!C60," ",Inscription!D60) ->  | C57: =Inscription!E60 -> 0 | D57: =Inscription!F60 -> 0 | E57: =Inscription!G60 -> 0
A58: =Inscription!A61 -> 56 | B58: =CONCATENATE(Inscription!C61," ",Inscription!D61) ->  | C58: =Inscription!E61 -> 0 | D58: =Inscription!F61 -> 0 | E58: =Inscription!G61 -> 0
A59: =Inscription!A62 -> 57 | B59: =CONCATENATE(Inscription!C62," ",Inscription!D62) ->  | C59: =Inscription!E62 -> 0 | D59: =Inscription!F62 -> 0 | E59: =Inscription!G62 -> 0
A60: =Inscription!A63 -> 58 | B60: =CONCATENATE(Inscription!C63," ",Inscription!D63) ->  | C60: =Inscription!E63 -> 0 | D60: =Inscription!F63 -> 0 | E60: =Inscription!G63 -> 0
A61: =Inscription!A64 -> 59 | B61: =CONCATENATE(Inscription!C64," ",Inscription!D64) ->  | C61: =Inscription!E64 -> 0 | D61: =Inscription!F64 -> 0 | E61: =Inscription!G64 -> 0
A62: =Inscription!A65 -> 60 | B62: =CONCATENATE(Inscription!C65," ",Inscription!D65) -> GOUYA Noel | C62: =Inscription!E65 -> team du pays de dinan guinefort | D62: =Inscription!F65 -> 3ème cat | E62: =Inscription!G65 -> 226768
A63: =Inscription!A66 -> 61 | B63: =CONCATENATE(Inscription!C66," ",Inscription!D66) -> GUILLOT Denis | C63: =Inscription!E66 -> team du pays de dinan guinefort | D63: =Inscription!F66 -> 3ème cat | E63: =Inscription!G66 -> 844159
A64: =Inscription!A67 -> 62 | B64: =CONCATENATE(Inscription!C67," ",Inscription!D67) -> DURAND Jacques | C64: =Inscription!E67 -> team du pays de dinan guinefort | D64: =Inscription!F67 -> 3ème cat | E64: =Inscription!G67 -> 144227
A65: =Inscription!A68 -> 63 | B65: =CONCATENATE(Inscription!C68," ",Inscription!D68) -> COUALAN Dominique | C65: =Inscription!E68 -> cc pleven | D65: =Inscription!F68 -> 3ème cat | E65: =Inscription!G68 -> 153631
A66: =Inscription!A69 -> 64 | B66: =CONCATENATE(Inscription!C69," ",Inscription!D69) -> LEMAITRE Alain | C66: =Inscription!E69 -> ac vildé guingalan | D66: =Inscription!F69 -> 3ème cat | E66: =Inscription!G69 -> 225454
A67: =Inscription!A70 -> 65 | B67: =CONCATENATE(Inscription!C70," ",Inscription!D70) -> NICOLAS Jean Charles | C67: =Inscription!E70 -> ac vildé guingalan | D67: =Inscription!F70 -> 3ème cat | E67: =Inscription!G70 -> 514101
A68: =Inscription!A71 -> 66 | B68: =CONCATENATE(Inscription!C71," ",Inscription!D71) -> GEORGET Charles | C68: =Inscription!E71 -> district loudéac | D68: =Inscription!F71 -> 3ème cat | E68: =Inscription!G71 -> 227931
A69: =Inscription!A72 -> 67 | B69: =CONCATENATE(Inscription!C72," ",Inscription!D72) -> BEDEL Michel | C69: =Inscription!E72 -> district loudéac | D69: =Inscription!F72 -> 3ème cat | E69: =Inscription!G72 -> 267277
A70: =Inscription!A73 -> 68 | B70: =CONCATENATE(Inscription!C73," ",Inscription!D73) -> GOUYA Alain | C70: =Inscription!E73 -> district loudéac | D70: =Inscription!F73 -> 3ème cat | E70: =Inscription!G73 -> 136125
A71: =Inscription!A74 -> 69 | B71: =CONCATENATE(Inscription!C74," ",Inscription!D74) -> GAILLARD Marcel | C71: =Inscription!E74 -> cos kerentrech | D71: =Inscription!F74 -> 3ème cat | E71: =Inscription!G74 -> 57243
A72: =Inscription!A75 -> 70 | B72: =CONCATENATE(Inscription!C75," ",Inscription!D75) -> COLAS Roger | C72: =Inscription!E75 -> vc crehen | D72: =Inscription!F75 -> 3ème cat | E72: =Inscription!G75 -> 227437
A73: =Inscription!A76 -> 71 | B73: =CONCATENATE(Inscription!C76," ",Inscription!D76) -> GOUPIL Michel | C73: =Inscription!E76 -> team mégrit | D73: =Inscription!F76 -> 3ème cat | E73: =Inscription!G76 -> 55779611
A74: =Inscription!A77 -> 72 | B74: =CONCATENATE(Inscription!C77," ",Inscription!D77) -> LECELLIER Raymond | C74: =Inscription!E77 -> team mégrit | D74: =Inscription!F77 -> 3ème cat | E74: =Inscription!G77 -> 55656150
A75: =Inscription!A78 -> 73 | B75: =CONCATENATE(Inscription!C78," ",Inscription!D78) -> ROPERCH Bruno | C75: =Inscription!E78 -> uc plaudren | D75: =Inscription!F78 -> 3ème cat | E75: =Inscription!G78 -> 875266
A76: =Inscription!A79 -> 74 | B76: =CONCATENATE(Inscription!C79," ",Inscription!D79) ->  | C76: =Inscription!E79 -> 0 | D76: =Inscription!F79 -> 0 | E76: =Inscription!G79 -> 0
A77: =Inscription!A80 -> 75 | B77: =CONCATENATE(Inscription!C80," ",Inscription!D80) ->  | C77: =Inscription!E80 -> 0 | D77: =Inscription!F80 -> 0 | E77: =Inscription!G80 -> 0
A78: =Inscription!A81 -> 76 | B78: =CONCATENATE(Inscription!C81," ",Inscription!D81) ->  | C78: =Inscription!E81 -> 0 | D78: =Inscription!F81 -> 0 | E78: =Inscription!G81 -> 0
A79: =Inscription!A82 -> 77 | B79: =CONCATENATE(Inscription!C82," ",Inscription!D82) ->  | C79: =Inscription!E82 -> 0 | D79: =Inscription!F82 -> 0 | E79: =Inscription!G82 -> 0
A80: =Inscription!A83 -> 78 | B80: =CONCATENATE(Inscription!C83," ",Inscription!D83) ->  | C80: =Inscription!E83 -> 0 | D80: =Inscription!F83 -> 0 | E80: =Inscription!G83 -> 0
A81: =Inscription!A84 -> 79 | B81: =CONCATENATE(Inscription!C84," ",Inscription!D84) ->  | C81: =Inscription!E84 -> 0 | D81: =Inscription!F84 -> 0 | E81: =Inscription!G84 -> 0
A82: =Inscription!A85 -> 80 | B82: =CONCATENATE(Inscription!C85," ",Inscription!D85) ->  | C82: =Inscription!E85 -> 0 | D82: =Inscription!F85 -> 0 | E82: =Inscription!G85 -> 0
A83: =Inscription!A86 -> 81 | B83: =CONCATENATE(Inscription!C86," ",Inscription!D86) ->  | C83: =Inscription!E86 -> 0 | D83: =Inscription!F86 -> 0 | E83: =Inscription!G86 -> 0
A84: =Inscription!A87 -> 82 | B84: =CONCATENATE(Inscription!C87," ",Inscription!D87) ->  | C84: =Inscription!E87 -> 0 | D84: =Inscription!F87 -> 0 | E84: =Inscription!G87 -> 0
A85: =Inscription!A88 -> 83 | B85: =CONCATENATE(Inscription!C88," ",Inscription!D88) ->  | C85: =Inscription!E88 -> 0 | D85: =Inscription!F88 -> 0 | E85: =Inscription!G88 -> 0
A86: =Inscription!A89 -> 84 | B86: =CONCATENATE(Inscription!C89," ",Inscription!D89) ->  | C86: =Inscription!E89 -> 0 | D86: =Inscription!F89 -> 0 | E86: =Inscription!G89 -> 0
A87: =Inscription!A90 -> 85 | B87: =CONCATENATE(Inscription!C90," ",Inscription!D90) ->  | C87: =Inscription!E90 -> 0 | D87: =Inscription!F90 -> 0 | E87: =Inscription!G90 -> 0
A88: =Inscription!A91 -> 86 | B88: =CONCATENATE(Inscription!C91," ",Inscription!D91) ->  | C88: =Inscription!E91 -> 0 | D88: =Inscription!F91 -> 0 | E88: =Inscription!G91 -> 0
A89: =Inscription!A92 -> 87 | B89: =CONCATENATE(Inscription!C92," ",Inscription!D92) ->  | C89: =Inscription!E92 -> 0 | D89: =Inscription!F92 -> 0 | E89: =Inscription!G92 -> 0
A90: =Inscription!A93 -> 88 | B90: =CONCATENATE(Inscription!C93," ",Inscription!D93) ->  | C90: =Inscription!E93 -> 0 | D90: =Inscription!F93 -> 0 | E90: =Inscription!G93 -> 0
A91: =Inscription!A94 -> 89 | B91: =CONCATENATE(Inscription!C94," ",Inscription!D94) ->  | C91: =Inscription!E94 -> 0 | D91: =Inscription!F94 -> 0 | E91: =Inscription!G94 -> 0
A92: =Inscription!A95 -> 90 | B92: =CONCATENATE(Inscription!C95," ",Inscription!D95) ->  | C92: =Inscription!E95 -> 0 | D92: =Inscription!F95 -> 0 | E92: =Inscription!G95 -> 0
A93: =Inscription!A96 -> 91 | B93: =CONCATENATE(Inscription!C96," ",Inscription!D96) ->  | C93: =Inscription!E96 -> 0 | D93: =Inscription!F96 -> 0 | E93: =Inscription!G96 -> 0
A94: =Inscription!A97 -> 92 | B94: =CONCATENATE(Inscription!C97," ",Inscription!D97) ->  | C94: =Inscription!E97 -> 0 | D94: =Inscription!F97 -> 0 | E94: =Inscription!G97 -> 0
A95: =Inscription!A98 -> 93 | B95: =CONCATENATE(Inscription!C98," ",Inscription!D98) ->  | C95: =Inscription!E98 -> 0 | D95: =Inscription!F98 -> 0 | E95: =Inscription!G98 -> 0
A96: =Inscription!A99 -> 94 | B96: =CONCATENATE(Inscription!C99," ",Inscription!D99) ->  | C96: =Inscription!E99 -> 0 | D96: =Inscription!F99 -> 0 | E96: =Inscription!G99 -> 0
A97: =Inscription!A100 -> 95 | B97: =CONCATENATE(Inscription!C100," ",Inscription!D100) ->  | C97: =Inscription!E100 -> 0 | D97: =Inscription!F100 -> 0 | E97: =Inscription!G100 -> 0
A98: =Inscription!A101 -> 96 | B98: =CONCATENATE(Inscription!C101," ",Inscription!D101) ->  | C98: =Inscription!E101 -> 0 | D98: =Inscription!F101 -> 0 | E98: =Inscription!G101 -> 0
A99: =Inscription!A102 -> 97 | B99: =CONCATENATE(Inscription!C102," ",Inscription!D102) ->  | C99: =Inscription!E102 -> 0 | D99: =Inscription!F102 -> 0 | E99: =Inscription!G102 -> 0
A100: =Inscription!A103 -> 98 | B100: =CONCATENATE(Inscription!C103," ",Inscription!D103) ->  | C100: =Inscription!E103 -> 0 | D100: =Inscription!F103 -> 0 | E100: =Inscription!G103 -> 0
A101: =Inscription!A104 -> 99 | B101: =CONCATENATE(Inscription!C104," ",Inscription!D104) ->  | C101: =Inscription!E104 -> 0 | D101: =Inscription!F104 -> 0 | E101: =Inscription!G104 -> 0
A102: =Inscription!A105 -> 100 | B102: =CONCATENATE(Inscription!C105," ",Inscription!D105) ->  | C102: =Inscription!E105 -> 0 | D102: =Inscription!F105 -> 0 | E102: =Inscription!G105 -> 0
A103: =Inscription!A106 -> 101 | B103: =CONCATENATE(Inscription!C106," ",Inscription!D106) ->  | C103: =Inscription!E106 -> 0 | D103: =Inscription!F106 -> 0 | E103: =Inscription!G106 -> 0
A104: =Inscription!A107 -> 102 | B104: =CONCATENATE(Inscription!C107," ",Inscription!D107) ->  | C104: =Inscription!E107 -> 0 | D104: =Inscription!F107 -> 0 | E104: =Inscription!G107 -> 0
A105: =Inscription!A108 -> 103 | B105: =CONCATENATE(Inscription!C108," ",Inscription!D108) ->  | C105: =Inscription!E108 -> 0 | D105: =Inscription!F108 -> 0 | E105: =Inscription!G108 -> 0
A106: =Inscription!A109 -> 104 | B106: =CONCATENATE(Inscription!C109," ",Inscription!D109) ->  | C106: =Inscription!E109 -> 0 | D106: =Inscription!F109 -> 0 | E106: =Inscription!G109 -> 0
A107: =Inscription!A110 -> 105 | B107: =CONCATENATE(Inscription!C110," ",Inscription!D110) ->  | C107: =Inscription!E110 -> 0 | D107: =Inscription!F110 -> 0 | E107: =Inscription!G110 -> 0
A108: =Inscription!A111 -> 106 | B108: =CONCATENATE(Inscription!C111," ",Inscription!D111) ->  | C108: =Inscription!E111 -> 0 | D108: =Inscription!F111 -> 0 | E108: =Inscription!G111 -> 0
A109: =Inscription!A112 -> 107 | B109: =CONCATENATE(Inscription!C112," ",Inscription!D112) ->  | C109: =Inscription!E112 -> 0 | D109: =Inscription!F112 -> 0 | E109: =Inscription!G112 -> 0
A110: =Inscription!A113 -> 108 | B110: =CONCATENATE(Inscription!C113," ",Inscription!D113) ->  | C110: =Inscription!E113 -> 0 | D110: =Inscription!F113 -> 0 | E110: =Inscription!G113 -> 0
A111: =Inscription!A114 -> 109 | B111: =CONCATENATE(Inscription!C114," ",Inscription!D114) ->  | C111: =Inscription!E114 -> 0 | D111: =Inscription!F114 -> 0 | E111: =Inscription!G114 -> 0
A112: =Inscription!A115 -> 110 | B112: =CONCATENATE(Inscription!C115," ",Inscription!D115) ->  | C112: =Inscription!E115 -> 0 | D112: =Inscription!F115 -> 0 | E112: =Inscription!G115 -> 0
A113: =Inscription!A116 -> 111 | B113: =CONCATENATE(Inscription!C116," ",Inscription!D116) ->  | C113: =Inscription!E116 -> 0 | D113: =Inscription!F116 -> 0 | E113: =Inscription!G116 -> 0
A114: =Inscription!A117 -> 112 | B114: =CONCATENATE(Inscription!C117," ",Inscription!D117) ->  | C114: =Inscription!E117 -> 0 | D114: =Inscription!F117 -> 0 | E114: =Inscription!G117 -> 0
A115: =Inscription!A118 -> 113 | B115: =CONCATENATE(Inscription!C118," ",Inscription!D118) ->  | C115: =Inscription!E118 -> 0 | D115: =Inscription!F118 -> 0 | E115: =Inscription!G118 -> 0
A116: =Inscription!A119 -> 114 | B116: =CONCATENATE(Inscription!C119," ",Inscription!D119) ->  | C116: =Inscription!E119 -> 0 | D116: =Inscription!F119 -> 0 | E116: =Inscription!G119 -> 0
A117: =Inscription!A120 -> 115 | B117: =CONCATENATE(Inscription!C120," ",Inscription!D120) ->  | C117: =Inscription!E120 -> 0 | D117: =Inscription!F120 -> 0 | E117: =Inscription!G120 -> 0
A118: =Inscription!A121 -> 116 | B118: =CONCATENATE(Inscription!C121," ",Inscription!D121) ->  | C118: =Inscription!E121 -> 0 | D118: =Inscription!F121 -> 0 | E118: =Inscription!G121 -> 0
A119: =Inscription!A122 -> 117 | B119: =CONCATENATE(Inscription!C122," ",Inscription!D122) ->  | C119: =Inscription!E122 -> 0 | D119: =Inscription!F122 -> 0 | E119: =Inscription!G122 -> 0
A120: =Inscription!A123 -> 118 | B120: =CONCATENATE(Inscription!C123," ",Inscription!D123) ->  | C120: =Inscription!E123 -> 0 | D120: =Inscription!F123 -> 0 | E120: =Inscription!G123 -> 0
A121: =Inscription!A124 -> 119 | B121: =CONCATENATE(Inscription!C124," ",Inscription!D124) ->  | C121: =Inscription!E124 -> 0 | D121: =Inscription!F124 -> 0 | E121: =Inscription!G124 -> 0
A122: =Inscription!A125 -> 120 | B122: =CONCATENATE(Inscription!C125," ",Inscription!D125) ->  | C122: =Inscription!E125 -> 0 | D122: =Inscription!F125 -> 0 | E122: =Inscription!G125 -> 0
A123: =Inscription!A126 -> 121 | B123: =CONCATENATE(Inscription!C126," ",Inscription!D126) ->  | C123: =Inscription!E126 -> 0 | D123: =Inscription!F126 -> 0 | E123: =Inscription!G126 -> 0
A124: =Inscription!A127 -> 122 | B124: =CONCATENATE(Inscription!C127," ",Inscription!D127) ->  | C124: =Inscription!E127 -> 0 | D124: =Inscription!F127 -> 0 | E124: =Inscription!G127 -> 0
A125: =Inscription!A128 -> 123 | B125: =CONCATENATE(Inscription!C128," ",Inscription!D128) ->  | C125: =Inscription!E128 -> 0 | D125: =Inscription!F128 -> 0 | E125: =Inscription!G128 -> 0
A126: =Inscription!A129 -> 124 | B126: =CONCATENATE(Inscription!C129," ",Inscription!D129) ->  | C126: =Inscription!E129 -> 0 | D126: =Inscription!F129 -> 0 | E126: =Inscription!G129 -> 0
A127: =Inscription!A130 -> 125 | B127: =CONCATENATE(Inscription!C130," ",Inscription!D130) ->  | C127: =Inscription!E130 -> 0 | D127: =Inscription!F130 -> 0 | E127: =Inscription!G130 -> 0
A128: =Inscription!A131 -> 126 | B128: =CONCATENATE(Inscription!C131," ",Inscription!D131) ->  | C128: =Inscription!E131 -> 0 | D128: =Inscription!F131 -> 0 | E128: =Inscription!G131 -> 0
A129: =Inscription!A132 -> 127 | B129: =CONCATENATE(Inscription!C132," ",Inscription!D132) ->  | C129: =Inscription!E132 -> 0 | D129: =Inscription!F132 -> 0 | E129: =Inscription!G132 -> 0
A130: =Inscription!A133 -> 128 | B130: =CONCATENATE(Inscription!C133," ",Inscription!D133) ->  | C130: =Inscription!E133 -> 0 | D130: =Inscription!F133 -> 0 | E130: =Inscription!G133 -> 0
A131: =Inscription!A134 -> 129 | B131: =CONCATENATE(Inscription!C134," ",Inscription!D134) ->  | C131: =Inscription!E134 -> 0 | D131: =Inscription!F134 -> 0 | E131: =Inscription!G134 -> 0
A132: =Inscription!A135 -> 130 | B132: =CONCATENATE(Inscription!C135," ",Inscription!D135) ->  | C132: =Inscription!E135 -> 0 | D132: =Inscription!F135 -> 0 | E132: =Inscription!G135 -> 0
A133: =Inscription!A136 -> 131 | B133: =CONCATENATE(Inscription!C136," ",Inscription!D136) ->  | C133: =Inscription!E136 -> 0 | D133: =Inscription!F136 -> 0 | E133: =Inscription!G136 -> 0
A134: =Inscription!A137 -> 132 | B134: =CONCATENATE(Inscription!C137," ",Inscription!D137) ->  | C134: =Inscription!E137 -> 0 | D134: =Inscription!F137 -> 0 | E134: =Inscription!G137 -> 0
A135: =Inscription!A138 -> 133 | B135: =CONCATENATE(Inscription!C138," ",Inscription!D138) ->  | C135: =Inscription!E138 -> 0 | D135: =Inscription!F138 -> 0 | E135: =Inscription!G138 -> 0
A136: =Inscription!A139 -> 134 | B136: =CONCATENATE(Inscription!C139," ",Inscription!D139) ->  | C136: =Inscription!E139 -> 0 | D136: =Inscription!F139 -> 0 | E136: =Inscription!G139 -> 0
A137: =Inscription!A140 -> 135 | B137: =CONCATENATE(Inscription!C140," ",Inscription!D140) ->  | C137: =Inscription!E140 -> 0 | D137: =Inscription!F140 -> 0 | E137: =Inscription!G140 -> 0
A138: =Inscription!A141 -> 136 | B138: =CONCATENATE(Inscription!C141," ",Inscription!D141) ->  | C138: =Inscription!E141 -> 0 | D138: =Inscription!F141 -> 0 | E138: =Inscription!G141 -> 0
A139: =Inscription!A142 -> 137 | B139: =CONCATENATE(Inscription!C142," ",Inscription!D142) ->  | C139: =Inscription!E142 -> 0 | D139: =Inscription!F142 -> 0 | E139: =Inscription!G142 -> 0
A140: =Inscription!A143 -> 138 | B140: =CONCATENATE(Inscription!C143," ",Inscription!D143) ->  | C140: =Inscription!E143 -> 0 | D140: =Inscription!F143 -> 0 | E140: =Inscription!G143 -> 0
A141: =Inscription!A144 -> 139 | B141: =CONCATENATE(Inscription!C144," ",Inscription!D144) ->  | C141: =Inscription!E144 -> 0 | D141: =Inscription!F144 -> 0 | E141: =Inscription!G144 -> 0
A142: =Inscription!A145 -> 140 | B142: =CONCATENATE(Inscription!C145," ",Inscription!D145) ->  | C142: =Inscription!E145 -> 0 | D142: =Inscription!F145 -> 0 | E142: =Inscription!G145 -> 0
A143: =Inscription!A146 -> 141 | B143: =CONCATENATE(Inscription!C146," ",Inscription!D146) ->  | C143: =Inscription!E146 -> 0 | D143: =Inscription!F146 -> 0 | E143: =Inscription!G146 -> 0
A144: =Inscription!A147 -> 142 | B144: =CONCATENATE(Inscription!C147," ",Inscription!D147) ->  | C144: =Inscription!E147 -> 0 | D144: =Inscription!F147 -> 0 | E144: =Inscription!G147 -> 0
A145: =Inscription!A148 -> 143 | B145: =CONCATENATE(Inscription!C148," ",Inscription!D148) ->  | C145: =Inscription!E148 -> 0 | D145: =Inscription!F148 -> 0 | E145: =Inscription!G148 -> 0
A146: =Inscription!A149 -> 144 | B146: =CONCATENATE(Inscription!C149," ",Inscription!D149) ->  | C146: =Inscription!E149 -> 0 | D146: =Inscription!F149 -> 0 | E146: =Inscription!G149 -> 0
A147: =Inscription!A150 -> 145 | B147: =CONCATENATE(Inscription!C150," ",Inscription!D150) ->  | C147: =Inscription!E150 -> 0 | D147: =Inscription!F150 -> 0 | E147: =Inscription!G150 -> 0
A148: =Inscription!A151 -> 146 | B148: =CONCATENATE(Inscription!C151," ",Inscription!D151) ->  | C148: =Inscription!E151 -> 0 | D148: =Inscription!F151 -> 0 | E148: =Inscription!G151 -> 0
A149: =Inscription!A152 -> 147 | B149: =CONCATENATE(Inscription!C152," ",Inscription!D152) ->  | C149: =Inscription!E152 -> 0 | D149: =Inscription!F152 -> 0 | E149: =Inscription!G152 -> 0
A150: =Inscription!A153 -> 148 | B150: =CONCATENATE(Inscription!C153," ",Inscription!D153) ->  | C150: =Inscription!E153 -> 0 | D150: =Inscription!F153 -> 0 | E150: =Inscription!G153 -> 0
A151: =Inscription!A154 -> 149 | B151: =CONCATENATE(Inscription!C154," ",Inscription!D154) ->  | C151: =Inscription!E154 -> 0 | D151: =Inscription!F154 -> 0 | E151: =Inscription!G154 -> 0
A152: =Inscription!A155 -> 150 | B152: =CONCATENATE(Inscription!C155," ",Inscription!D155) ->  | C152: =Inscription!E155 -> 0 | D152: =Inscription!F155 -> 0 | E152: =Inscription!G155 -> 0
A153: =Inscription!A156 -> 151 | B153: =CONCATENATE(Inscription!C156," ",Inscription!D156) ->  | C153: =Inscription!E156 -> 0 | D153: =Inscription!F156 -> 0 | E153: =Inscription!G156 -> 0
A154: =Inscription!A157 -> 152 | B154: =CONCATENATE(Inscription!C157," ",Inscription!D157) ->  | C154: =Inscription!E157 -> 0 | D154: =Inscription!F157 -> 0 | E154: =Inscription!G157 -> 0
A155: =Inscription!A158 -> 153 | B155: =CONCATENATE(Inscription!C158," ",Inscription!D158) ->  | C155: =Inscription!E158 -> 0 | D155: =Inscription!F158 -> 0 | E155: =Inscription!G158 -> 0
A156: =Inscription!A159 -> 154 | B156: =CONCATENATE(Inscription!C159," ",Inscription!D159) ->  | C156: =Inscription!E159 -> 0 | D156: =Inscription!F159 -> 0 | E156: =Inscription!G159 -> 0
A157: =Inscription!A160 -> 155 | B157: =CONCATENATE(Inscription!C160," ",Inscription!D160) ->  | C157: =Inscription!E160 -> 0 | D157: =Inscription!F160 -> 0 | E157: =Inscription!G160 -> 0
A158: =Inscription!A161 -> 156 | B158: =CONCATENATE(Inscription!C161," ",Inscription!D161) ->  | C158: =Inscription!E161 -> 0 | D158: =Inscription!F161 -> 0 | E158: =Inscription!G161 -> 0
A159: =Inscription!A162 -> 157 | B159: =CONCATENATE(Inscription!C162," ",Inscription!D162) ->  | C159: =Inscription!E162 -> 0 | D159: =Inscription!F162 -> 0 | E159: =Inscription!G162 -> 0
A160: =Inscription!A163 -> 158 | B160: =CONCATENATE(Inscription!C163," ",Inscription!D163) ->  | C160: =Inscription!E163 -> 0 | D160: =Inscription!F163 -> 0 | E160: =Inscription!G163 -> 0
A161: =Inscription!A164 -> 159 | B161: =CONCATENATE(Inscription!C164," ",Inscription!D164) ->  | C161: =Inscription!E164 -> 0 | D161: =Inscription!F164 -> 0 | E161: =Inscription!G164 -> 0
A162: =Inscription!A165 -> 160 | B162: =CONCATENATE(Inscription!C165," ",Inscription!D165) ->  | C162: =Inscription!E165 -> 0 | D162: =Inscription!F165 -> 0 | E162: =Inscription!G165 -> 0
A163: =Inscription!A166 -> 161 | B163: =CONCATENATE(Inscription!C166," ",Inscription!D166) ->  | C163: =Inscription!E166 -> 0 | D163: =Inscription!F166 -> 0 | E163: =Inscription!G166 -> 0
A164: =Inscription!A167 -> 162 | B164: =CONCATENATE(Inscription!C167," ",Inscription!D167) ->  | C164: =Inscription!E167 -> 0 | D164: =Inscription!F167 -> 0 | E164: =Inscription!G167 -> 0
A165: =Inscription!A168 -> 163 | B165: =CONCATENATE(Inscription!C168," ",Inscription!D168) ->  | C165: =Inscription!E168 -> 0 | D165: =Inscription!F168 -> 0 | E165: =Inscription!G168 -> 0
A166: =Inscription!A169 -> 164 | B166: =CONCATENATE(Inscription!C169," ",Inscription!D169) ->  | C166: =Inscription!E169 -> 0 | D166: =Inscription!F169 -> 0 | E166: =Inscription!G169 -> 0
A167: =Inscription!A170 -> 165 | B167: =CONCATENATE(Inscription!C170," ",Inscription!D170) ->  | C167: =Inscription!E170 -> 0 | D167: =Inscription!F170 -> 0 | E167: =Inscription!G170 -> 0
A168: =Inscription!A171 -> 166 | B168: =CONCATENATE(Inscription!C171," ",Inscription!D171) ->  | C168: =Inscription!E171 -> 0 | D168: =Inscription!F171 -> 0 | E168: =Inscription!G171 -> 0
A169: =Inscription!A172 -> 167 | B169: =CONCATENATE(Inscription!C172," ",Inscription!D172) ->  | C169: =Inscription!E172 -> 0 | D169: =Inscription!F172 -> 0 | E169: =Inscription!G172 -> 0
A170: =Inscription!A173 -> 168 | B170: =CONCATENATE(Inscription!C173," ",Inscription!D173) ->  | C170: =Inscription!E173 -> 0 | D170: =Inscription!F173 -> 0 | E170: =Inscription!G173 -> 0
A171: =Inscription!A174 -> 169 | B171: =CONCATENATE(Inscription!C174," ",Inscription!D174) ->  | C171: =Inscription!E174 -> 0 | D171: =Inscription!F174 -> 0 | E171: =Inscription!G174 -> 0
A172: =Inscription!A175 -> 170 | B172: =CONCATENATE(Inscription!C175," ",Inscription!D175) ->  | C172: =Inscription!E175 -> 0 | D172: =Inscription!F175 -> 0 | E172: =Inscription!G175 -> 0
A173: =Inscription!A176 -> 171 | B173: =CONCATENATE(Inscription!C176," ",Inscription!D176) ->  | C173: =Inscription!E176 -> 0 | D173: =Inscription!F176 -> 0 | E173: =Inscription!G176 -> 0
A174: =Inscription!A177 -> 172 | B174: =CONCATENATE(Inscription!C177," ",Inscription!D177) ->  | C174: =Inscription!E177 -> 0 | D174: =Inscription!F177 -> 0 | E174: =Inscription!G177 -> 0
A175: =Inscription!A178 -> 173 | B175: =CONCATENATE(Inscription!C178," ",Inscription!D178) ->  | C175: =Inscription!E178 -> 0 | D175: =Inscription!F178 -> 0 | E175: =Inscription!G178 -> 0
A176: =Inscription!A179 -> 174 | B176: =CONCATENATE(Inscription!C179," ",Inscription!D179) ->  | C176: =Inscription!E179 -> 0 | D176: =Inscription!F179 -> 0 | E176: =Inscription!G179 -> 0
A177: =Inscription!A180 -> 175 | B177: =CONCATENATE(Inscription!C180," ",Inscription!D180) ->  | C177: =Inscription!E180 -> 0 | D177: =Inscription!F180 -> 0 | E177: =Inscription!G180 -> 0
A178: =Inscription!A181 -> 176 | B178: =CONCATENATE(Inscription!C181," ",Inscription!D181) ->  | C178: =Inscription!E181 -> 0 | D178: =Inscription!F181 -> 0 | E178: =Inscription!G181 -> 0
A179: =Inscription!A182 -> 177 | B179: =CONCATENATE(Inscription!C182," ",Inscription!D182) ->  | C179: =Inscription!E182 -> 0 | D179: =Inscription!F182 -> 0 | E179: =Inscription!G182 -> 0
A180: =Inscription!A183 -> 178 | B180: =CONCATENATE(Inscription!C183," ",Inscription!D183) ->  | C180: =Inscription!E183 -> 0 | D180: =Inscription!F183 -> 0 | E180: =Inscription!G183 -> 0
A181: =Inscription!A184 -> 179 | B181: =CONCATENATE(Inscription!C184," ",Inscription!D184) ->  | C181: =Inscription!E184 -> 0 | D181: =Inscription!F184 -> 0 | E181: =Inscription!G184 -> 0
A182: =Inscription!A185 -> 180 | B182: =CONCATENATE(Inscription!C185," ",Inscription!D185) ->  | C182: =Inscription!E185 -> 0 | D182: =Inscription!F185 -> 0 | E182: =Inscription!G185 -> 0
A183: =Inscription!A186 -> 181 | B183: =CONCATENATE(Inscription!C186," ",Inscription!D186) ->  | C183: =Inscription!E186 -> 0 | D183: =Inscription!F186 -> 0 | E183: =Inscription!G186 -> 0
A184: =Inscription!A187 -> 182 | B184: =CONCATENATE(Inscription!C187," ",Inscription!D187) ->  | C184: =Inscription!E187 -> 0 | D184: =Inscription!F187 -> 0 | E184: =Inscription!G187 -> 0
A185: =Inscription!A188 -> 183 | B185: =CONCATENATE(Inscription!C188," ",Inscription!D188) ->  | C185: =Inscription!E188 -> 0 | D185: =Inscription!F188 -> 0 | E185: =Inscription!G188 -> 0
A186: =Inscription!A189 -> 184 | B186: =CONCATENATE(Inscription!C189," ",Inscription!D189) ->  | C186: =Inscription!E189 -> 0 | D186: =Inscription!F189 -> 0 | E186: =Inscription!G189 -> 0
A187: =Inscription!A190 -> 185 | B187: =CONCATENATE(Inscription!C190," ",Inscription!D190) ->  | C187: =Inscription!E190 -> 0 | D187: =Inscription!F190 -> 0 | E187: =Inscription!G190 -> 0
A188: =Inscription!A191 -> 186 | B188: =CONCATENATE(Inscription!C191," ",Inscription!D191) ->  | C188: =Inscription!E191 -> 0 | D188: =Inscription!F191 -> 0 | E188: =Inscription!G191 -> 0
A189: =Inscription!A192 -> 187 | B189: =CONCATENATE(Inscription!C192," ",Inscription!D192) ->  | C189: =Inscription!E192 -> 0 | D189: =Inscription!F192 -> 0 | E189: =Inscription!G192 -> 0
A190: =Inscription!A193 -> 188 | B190: =CONCATENATE(Inscription!C193," ",Inscription!D193) ->  | C190: =Inscription!E193 -> 0 | D190: =Inscription!F193 -> 0 | E190: =Inscription!G193 -> 0
A191: =Inscription!A194 -> 189 | B191: =CONCATENATE(Inscription!C194," ",Inscription!D194) ->  | C191: =Inscription!E194 -> 0 | D191: =Inscription!F194 -> 0 | E191: =Inscription!G194 -> 0
A192: =Inscription!A195 -> 190 | B192: =CONCATENATE(Inscription!C195," ",Inscription!D195) ->  | C192: =Inscription!E195 -> 0 | D192: =Inscription!F195 -> 0 | E192: =Inscription!G195 -> 0
A193: =Inscription!A196 -> 191 | B193: =CONCATENATE(Inscription!C196," ",Inscription!D196) ->  | C193: =Inscription!E196 -> 0 | D193: =Inscription!F196 -> 0 | E193: =Inscription!G196 -> 0
A194: =Inscription!A197 -> 192 | B194: =CONCATENATE(Inscription!C197," ",Inscription!D197) ->  | C194: =Inscription!E197 -> 0 | D194: =Inscription!F197 -> 0 | E194: =Inscription!G197 -> 0
A195: =Inscription!A198 -> 193 | B195: =CONCATENATE(Inscription!C198," ",Inscription!D198) ->  | C195: =Inscription!E198 -> 0 | D195: =Inscription!F198 -> 0 | E195: =Inscription!G198 -> 0
A196: =Inscription!A199 -> 194 | B196: =CONCATENATE(Inscription!C199," ",Inscription!D199) ->  | C196: =Inscription!E199 -> 0 | D196: =Inscription!F199 -> 0 | E196: =Inscription!G199 -> 0
A197: =Inscription!A200 -> 195 | B197: =CONCATENATE(Inscription!C200," ",Inscription!D200) ->  | C197: =Inscription!E200 -> 0 | D197: =Inscription!F200 -> 0 | E197: =Inscription!G200 -> 0
A198: =Inscription!A201 -> 196 | B198: =CONCATENATE(Inscription!C201," ",Inscription!D201) ->  | C198: =Inscription!E201 -> 0 | D198: =Inscription!F201 -> 0 | E198: =Inscription!G201 -> 0
A199: =Inscription!A202 -> 197 | B199: =CONCATENATE(Inscription!C202," ",Inscription!D202) ->  | C199: =Inscription!E202 -> 0 | D199: =Inscription!F202 -> 0 | E199: =Inscription!G202 -> 0
A200: =Inscription!A203 -> 198 | B200: =CONCATENATE(Inscription!C203," ",Inscription!D203) ->  | C200: =Inscription!E203 -> 0 | D200: =Inscription!F203 -> 0 | E200: =Inscription!G203 -> 0
... 2 more rows

Sheet CLASSEMENT (hidden)
C1: =CONCATENATE(Inscription!D2," ",Inscription!G2) -> HENANSAL | G1: =IF(Inscription!$D$4>0,"DATE : "&TEXT(Inscription!D$4,"jj mmmm aaaa"),"") -> DATE : 01 octobre 2023
A2: CATEGORIE | C2: =Inscription!#REF! ->  | F2: PARTANTS | G2: =Inscription!#REF! ->  | H2: CLASSES | I2: =COUNTA(C4:C203) -> 55
A3: Pts PE | B3: Place | C3: Doss | D3: NOM et PRENOM | F3: ASSOCIATION | G3: N° LICENCE | H3: CAT. | I3: TEMPS | K3: PLACE | L3: TPS
A4: =IF(B4<1,1000,(IF(AA4=B4,B4,(20100-SUM($AA$4:$AA$203))/(COUNTIF($AA$4:$AA$203,"T"))))) -> 59.50980392 | B4: 1 | C4: 3 | D4: =IF(C4>0,CONCATENATE((VLOOKUP($C4,Inscription!$A$6:$G$205,3,FALSE))," ",(VLOOKUP($C4,Inscription!$A$6:$G$205,4,FALSE)))," ") -> BASSET Evan | F4: =IF(C4>0,(VLOOKUP($C4,Inscription!$A$6:$G$205,5,FALSE))," ") -> vc evron | G4: =IF(C4>0,(VLOOKUP($C4,Inscription!$A$6:$G$205,7,FALSE))," ") -> 0 | H4: =LEFT(IF(C4>0,(VLOOKUP($C4,Inscription!$A$6:$G$205,6,FALSE))," "),8) -> poussin | J4: =IF(COUNTIF($F4:$F$4,$F4)<2,$F4," ") -> vc evron | K4: =IF(J4=F4,A4,"") -> 59.50980392 | L4: =IF(J4=F4,I4,"") -> 0 | M4: =IF(COUNTIF($F4:$F$4,$F4)<3,$F4," ") -> vc evron | N4: =IF(M4=$F4,$A4,"") -> 59.50980392 | O4: =IF(M4=$F4,$I4,"") -> 0 | P4: =IF(M4=J4,"",M4) ->  | Q4: =IF(P4=$F4,$A4,1000) -> 1000 | R4: =IF(P4=$F4,$I4,1000) -> 1000 | S4: =IF(COUNTIF($F4:$F$4,J4)<4,$F4," ") -> vc evron | T4: =IF(S4=$F4,$A4,"") -> 59.50980392 | U4: =IF(S4=$F4,$I4,"") -> 0 | V4: =IF(S4=J4,"",S4) ->  | W4: =IF(V4=P4,"",S4) ->  | X4: =IF(W4=$F4,$A4,"") ->  | Y4: =IF(W4=$F4,$I4,"") ->  | Z4: =IF(COUNTIF($C$4:$C$203,C4)>1,"X"," ") ->  | AA4: =IF(COUNTIF($B$4:$B$203,B4)>1,"T",B4) -> T
A5: 59.50980392 | B5: 2 | C5: 4 | D5: =IF(C5>0,CONCATENATE((VLOOKUP($C5,Inscription!$A$6:$G$205,3,FALSE))," ",(VLOOKUP($C5,Inscription!$A$6:$G$205,4,FALSE)))," ") -> BANNER Livia | F5: =IF(C5>0,(VLOOKUP($C5,Inscription!$A$6:$G$205,5,FALSE))," ") -> vtt du lié | G5: =IF(C5>0,(VLOOKUP($C5,Inscription!$A$6:$G$205,7,FALSE))," ") -> 0 | H5: =LEFT(IF(C5>0,(VLOOKUP($C5,Inscription!$A$6:$G$205,6,FALSE))," "),8) -> poussin | I5: =I4 -> 0 | J5: =IF(COUNTIF($F$4:$F5,$F5)<2,$F5," ") -> vtt du lié | K5: =IF(J5=F5,A5,"") -> 59.50980392 | L5: =IF(J5=F5,I5,"") -> 0 | M5: =IF(COUNTIF($F$4:$F5,$F5)<3,$F5," ") -> vtt du lié | N5: =IF(M5=$F5,$A5,"") -> 59.50980392 | O5: =IF(M5=$F5,$I5,"") -> 0 | P5: =IF(M5=J5,"",M5) ->  | Q5: =IF(P5=$F5,$A5,1000) -> 1000 | R5: =IF(P5=$F5,$I5,1000) -> 1000 | S5: =IF(COUNTIF($F$4:$F5,J5)<4,$F5," ") -> vtt du lié | T5: =IF(S5=$F5,$A5,"") -> 59.50980392 | U5: =IF(S5=$F5,$I5,"") -> 0 | V5: =IF(S5=J5,"",S5) ->  | W5: =IF(V5=P5,"",S5) ->  | X5: =IF(W5=$F5,$A5,"") ->  | Y5: =IF(W5=$F5,$I5,"") ->  | AA5: T | AB5: 1 | AC5: ='PRIX D EQUIPE'!B5 -> 0 | AD5: =IF($AC5="",1000,(IF(ISNA(VLOOKUP($AC5,$J$4:$M$203,2,FALSE)),1000,VLOOKUP($AC5,$J$4:$M$203,2,FALSE)))) -> 1000 | AE5: =IF($AC5="",1000,(IF(ISNA(VLOOKUP($AC5,$J$4:$M$203,3,FALSE)),1000,VLOOKUP($AC5,$J$4:$M$203,3,FALSE)))) -> 1000 | AF5: =IF($AC5="",1000,(IF(ISNA(VLOOKUP($AC5,$P$4:$R$203,2,FALSE)),1000,VLOOKUP($AC5,$P$4:$R$203,2,FALSE)))) -> 1000 | AG5: =IF($AC5="",1000,(IF(ISNA(VLOOKUP($AC5,$P$4:$R$203,3,FALSE)),1000,VLOOKUP($AC5,$P$4:$R$203,3,FALSE)))) -> 1000 | AH5: =IF($AC5="",1000,(IF(ISNA(VLOOKUP($AC5,$W$4:$Y$203,2,FALSE)),1000,VLOOKUP($AC5,$W$4:$Y$203,2,FALSE)))) -> 1000 | AI5: =IF($AC5="",1000,(IF(ISNA(VLOOKUP($AC5,$W$4:$Y$203,3,FALSE)),1000,VLOOKUP($AC5,$W$4:$Y$203,3,FALSE)))) -> 1000 | AJ5: =IF(AC5=" "," ",IF($AC5>0,SUM(AD5+AF5+AH5)," ")) ->  | AK5: =IF(AC5=" "," ",IF($AC5>0,SUM(AE5+AG5+AI5)," ")) -> 
A6: 59.50980392 | B6: 3 | C6: 2 | D6: =IF(C6>0,CONCATENATE((VLOOKUP($C6,Inscription!$A$6:$G$205,3,FALSE))," ",(VLOOKUP($C6,Inscription!$A$6:$G$205,4,FALSE)))," ") -> BARS Gabin | F6: =IF(C6>0,(VLOOKUP($C6,Inscription!$A$6:$G$205,5,FALSE))," ") -> begard vtt gwerun | G6: =IF(C6>0,(VLOOKUP($C6,Inscription!$A$6:$G$205,7,FALSE))," ") -> 407364 | H6: =LEFT(IF(C6>0,(VLOOKUP($C6,Inscription!$A$6:$G$205,6,FALSE))," "),8) -> poussin | I6: 0 | J6: =IF(COUNTIF($F$4:$F6,$F6)<2,$F6," ") -> begard vtt gwerun | K6: 59.50980392 | L6: 0 | M6: =IF(COUNTIF($F$4:$F6,$F6)<3,$F6," ") -> begard vtt gwerun | N6: 59.50980392 | O6: 0 | Q6: 1000 | R6: 1000 | S6: =IF(COUNTIF($F$4:$F6,J6)<4,$F6," ") -> begard vtt gwerun | T6: 59.50980392 | U6: 0 | AA6: T | AB6: 2 | AC6: ='PRIX D EQUIPE'!B6 -> 0 | AD6: 1000 | AE6: 1000 | AF6: 1000 | AG6: 1000 | AH6: 1000 | AI6: 1000
A7: 59.50980392 | B7: 4 | C7: 5 | D7: =IF(C7>0,CONCATENATE((VLOOKUP($C7,Inscription!$A$6:$G$205,3,FALSE))," ",(VLOOKUP($C7,Inscription!$A$6:$G$205,4,FALSE)))," ") -> MACE Loukas | F7: =IF(C7>0,(VLOOKUP($C7,Inscription!$A$6:$G$205,5,FALSE))," ") -> vc evron | G7: =IF(C7>0,(VLOOKUP($C7,Inscription!$A$6:$G$205,7,FALSE))," ") -> 996776 | H7: =LEFT(IF(C7>0,(VLOOKUP($C7,Inscription!$A$6:$G$205,6,FALSE))," "),8) -> poussin | I7: 0 | J7: =IF(COUNTIF($F$4:$F7,$F7)<2,$F7," ") ->  | M7: =IF(COUNTIF($F$4:$F7,$F7)<3,$F7," ") -> vc evron | N7: 59.50980392 | O7: 0 | P7: vc evron | Q7: 59.50980392 | R7: 0 | S7: =IF(COUNTIF($F$4:$F7,J7)<4,$F7," ") -> vc evron | T7: 59.50980392 | U7: 0 | V7: vc evron | AA7: T | AB7: 3 | AC7: ='PRIX D EQUIPE'!B7 -> 0 | AD7: 1000 | AE7: 1000 | AF7: 1000 | AG7: 1000 | AH7: 1000 | AI7: 1000
A8: 59.50980392 | B8: 5 | C8: 1 | D8: =IF(C8>0,CONCATENATE((VLOOKUP($C8,Inscription!$A$6:$G$205,3,FALSE))," ",(VLOOKUP($C8,Inscription!$A$6:$G$205,4,FALSE)))," ") -> LEVEQUE Nathan | F8: =IF(C8>0,(VLOOKUP($C8,Inscription!$A$6:$G$205,5,FALSE))," ") -> district loudéac | G8: =IF(C8>0,(VLOOKUP($C8,Inscription!$A$6:$G$205,7,FALSE))," ") -> 0 | H8: =LEFT(IF(C8>0,(VLOOKUP($C8,Inscription!$A$6:$G$205,6,FALSE))," "),8) -> poussin | I8: 0 | J8: =IF(COUNTIF($F$4:$F8,$F8)<2,$F8," ") -> district loudéac | K8: 59.50980392 | L8: 0 | M8: =IF(COUNTIF($F$4:$F8,$F8)<3,$F8," ") -> district loudéac | N8: 59.50980392 | O8: 0 | Q8: 1000 | R8: 1000 | S8: =IF(COUNTIF($F$4:$F8,J8)<4,$F8," ") -> district loudéac | T8: 59.50980392 | U8: 0 | AA8: T | AB8: 4 | AC8: ='PRIX D EQUIPE'!B8 -> 0 | AD8: 1000 | AE8: 1000 | AF8: 1000 | AG8: 1000 | AH8: 1000 | AI8: 1000
A9: 1000 | D9: =IF(C9>0,CONCATENATE((VLOOKUP($C9,Inscription!$A$6:$G$205,3,FALSE))," ",(VLOOKUP($C9,Inscription!$A$6:$G$205,4,FALSE)))," ") ->  | F9: =IF(C9>0,(VLOOKUP($C9,Inscription!$A$6:$G$205,5,FALSE))," ") ->  | G9: =IF(C9>0,(VLOOKUP($C9,Inscription!$A$6:$G$205,7,FALSE))," ") ->  | H9: =LEFT(IF(C9>0,(VLOOKUP($C9,Inscription!$A$6:$G$205,6,FALSE))," "),8) ->  | I9: 0 | J9: =IF(COUNTIF($F$4:$F9,$F9)<2,$F9," ") ->  | K9: 1000 | L9: 0 | M9: =IF(COUNTIF($F$4:$F9,$F9)<3,$F9," ") ->  | N9: 1000 | O9: 0 | Q9: 1000 | R9: 1000 | S9: =IF(COUNTIF($F$4:$F9,J9)<4,$F9," ") ->  | T9: 1000 | U9: 0 | AA9: 0 | AB9: 5 | AC9: ='PRIX D EQUIPE'!B9 -> 0 | AD9: 1000 | AE9: 1000 | AF9: 1000 | AG9: 1000 | AH9: 1000 | AI9: 1000
A10: 59.50980392 | B10: 1 | C10: 6 | D10: =IF(C10>0,CONCATENATE((VLOOKUP($C10,Inscription!$A$6:$G$205,3,FALSE))," ",(VLOOKUP($C10,Inscription!$A$6:$G$205,4,FALSE)))," ") -> BARS Yvann | E10: Yvann | F10: =IF(C10>0,(VLOOKUP($C10,Inscription!$A$6:$G$205,5,FALSE))," ") -> begard vtt gwerun | G10: =IF(C10>0,(VLOOKUP($C10,Inscription!$A$6:$G$205,7,FALSE))," ") -> 310008 | H10: =LEFT(IF(C10>0,(VLOOKUP($C10,Inscription!$A$6:$G$205,6,FALSE))," "),8) -> pupille | J10: m | M10: =IF(COUNTIF($F$4:$F10,$F10)<3,$F10," ") -> begard vtt gwerun | N10: 59.50980392 | O10: 0 | P10: begard vtt gwerun | Q10: 59.50980392 | R10: 0 | S10: =IF(COUNTIF($F$4:$F10,J10)<4,$F10," ") -> begard vtt gwerun | T10: 59.50980392 | U10: 0 | V10: begard vtt gwerun | AA10: T | AB10: 6 | AC10: ='PRIX D EQUIPE'!B10 -> 0 | AD10: 1000 | AE10: 1000 | AF10: 1000 | AG10: 1000 | AH10: 1000 | AI10: 1000
A11: 59.50980392 | B11: 2 | C11: 8 | D11: =IF(C11>0,CONCATENATE((VLOOKUP($C11,Inscription!$A$6:$G$205,3,FALSE))," ",(VLOOKUP($C11,Inscription!$A$6:$G$205,4,FALSE)))," ") -> LEPERCQ Batiste | E11: Thibaut | F11: =IF(C11>0,(VLOOKUP($C11,Inscription!$A$6:$G$205,5,FALSE))," ") -> uc plaudren | G11: =IF(C11>0,(VLOOKUP($C11,Inscription!$A$6:$G$205,7,FALSE))," ") -> 391433 | H11: =LEFT(IF(C11>0,(VLOOKUP($C11,Inscription!$A$6:$G$205,6,FALSE))," "),8) -> pupille | J11: m | M11: =IF(COUNTIF($F$4:$F11,$F11)<3,$F11," ") -> uc plaudren | N11: 59.50980392 | O11: 0 | P11: uc plaudren | Q11: 59.50980392 | R11: 0 | S11: =IF(COUNTIF($F$4:$F11,J11)<4,$F11," ") -> uc plaudren | T11: 59.50980392 | U11: 0 | V11: uc plaudren | AA11: T | AB11: 7 | AC11: ='PRIX D EQUIPE'!B11 -> 0 | AD11: 1000 | AE11: 1000 | AF11: 1000 | AG11: 1000 | AH11: 1000 | AI11: 1000
A12: 59.50980392 | B12: 3 | C12: 7 | D12: =IF(C12>0,CONCATENATE((VLOOKUP($C12,Inscription!$A$6:$G$205,3,FALSE))," ",(VLOOKUP($C12,Inscription!$A$6:$G$205,4,FALSE)))," ") -> COLAS Thibaut | E12: Batiste | F12: =IF(C12>0,(VLOOKUP($C12,Inscription!$A$6:$G$205,5,FALSE))," ") -> begard vtt gwerun | G12: =IF(C12>0,(VLOOKUP($C12,Inscription!$A$6:$G$205,7,FALSE))," ") -> 330206 | H12: =LEFT(IF(C12>0,(VLOOKUP($C12,Inscription!$A$6:$G$205,6,FALSE))," "),8) -> pupille | J12: m | M12: =IF(COUNTIF($F$4:$F12,$F12)<3,$F12," ") ->  | Q12: 1000 | R12: 1000 | S12: =IF(COUNTIF($F$4:$F12,J12)<4,$F12," ") -> begard vtt gwerun | T12: 59.50980392 | U12: 0 | V12: begard vtt gwerun | W12: begard vtt gwerun | X12: 59.50980392 | Y12: 0 | AA12: T | AB12: 8 | AC12: ='PRIX D EQUIPE'!B12 -> 0 | AD12: 1000 | AE12: 1000 | AF12: 1000 | AG12: 1000 | AH12: 1000 | AI12: 1000
A13: 59.50980392 | B13: 4 | C13: 9 | D13: =IF(C13>0,CONCATENATE((VLOOKUP($C13,Inscription!$A$6:$G$205,3,FALSE))," ",(VLOOKUP($C13,Inscription!$A$6:$G$205,4,FALSE)))," ") -> CLERET MARECHAL Loeiz | E13: Loeiz | F13: =IF(C13>0,(VLOOKUP($C13,Inscription!$A$6:$G$205,5,FALSE))," ") -> vtt cotes d'armor hillion | G13: =IF(C13>0,(VLOOKUP($C13,Inscription!$A$6:$G$205,7,FALSE))," ") -> 0 | H13: =LEFT(IF(C13>0,(VLOOKUP($C13,Inscription!$A$6:$G$205,6,FALSE))," "),8) -> pupille | J13: m | M13: =IF(COUNTIF($F$4:$F13,$F13)<3,$F13," ") -> vtt cotes d'armor hillion | N13: 59.50980392 | O13: 0 | P13: vtt cotes d'armor hillion | Q13: 59.50980392 | R13: 0 | S13: =IF(COUNTIF($F$4:$F13,J13)<4,$F13," ") -> vtt cotes d'armor hillion | T13: 59.50980392 | U13: 0 | V13: vtt cotes d'armor hillion | AA13: T | AB13: 9 | AC13: ='PRIX D EQUIPE'!B13 -> 0 | AD13: 1000 | AE13: 1000 | AF13: 1000 | AG13: 1000 | AH13: 1000 | AI13: 1000
A14: 1000 | D14: =IF(C14>0,CONCATENATE((VLOOKUP($C14,Inscription!$A$6:$G$205,3,FALSE))," ",(VLOOKUP($C14,Inscription!$A$6:$G$205,4,FALSE)))," ") ->  | F14: =IF(C14>0,(VLOOKUP($C14,Inscription!$A$6:$G$205,5,FALSE))," ") ->  | G14: =IF(C14>0,(VLOOKUP($C14,Inscription!$A$6:$G$205,7,FALSE))," ") ->  | H14: =LEFT(IF(C14>0,(VLOOKUP($C14,Inscription!$A$6:$G$205,6,FALSE))," "),8) ->  | I14: 0 | J14: =IF(COUNTIF($F$4:$F14,$F14)<2,$F14," ") ->  | K14: 1000 | L14: 0 | M14: =IF(COUNTIF($F$4:$F14,$F14)<3,$F14," ") ->  | N14: 1000 | O14: 0 | Q14: 1000 | R14: 1000 | S14: =IF(COUNTIF($F$4:$F14,J14)<4,$F14," ") ->  | T14: 1000 | U14: 0 | AA14: 0 | AB14: 10 | AC14: ='PRIX D EQUIPE'!B14 -> 0 | AD14: 1000 | AE14: 1000 | AF14: 1000 | AG14: 1000 | AH14: 1000 | AI14: 1000
A15: 59.50980392 | B15: 1 | C15: 11 | D15: =IF(C15>0,CONCATENATE((VLOOKUP($C15,Inscription!$A$6:$G$205,3,FALSE))," ",(VLOOKUP($C15,Inscription!$A$6:$G$205,4,FALSE)))," ") -> POILVET Jules | F15: =IF(C15>0,(VLOOKUP($C15,Inscription!$A$6:$G$205,5,FALSE))," ") -> vc evron | G15: =IF(C15>0,(VLOOKUP($C15,Inscription!$A$6:$G$205,7,FALSE))," ") -> 382431 | H15: =LEFT(IF(C15>0,(VLOOKUP($C15,Inscription!$A$6:$G$205,6,FALSE))," "),8) -> benjamin | I15: 0 | J15: =IF(COUNTIF($F$4:$F15,$F15)<2,$F15," ") ->  | M15: =IF(COUNTIF($F$4:$F15,$F15)<3,$F15," ") ->  | Q15: 1000 | R15: 1000 | S15: =IF(COUNTIF($F$4:$F15,J15)<4,$F15," ") -> vc evron | T15: 59.50980392 | U15: 0 | V15: vc evron | W15: vc evron | X15: 59.50980392 | Y15: 0 | AA15: T | AB15: 11 | AC15: ='PRIX D EQUIPE'!B15 -> 0 | AD15: 1000 | AE15: 1000 | AF15: 1000 | AG15: 1000 | AH15: 1000 | AI15: 1000
A16: 59.50980392 | B16: 2 | C16: 14 | D16: =IF(C16>0,CONCATENATE((VLOOKUP($C16,Inscription!$A$6:$G$205,3,FALSE))," ",(VLOOKUP($C16,Inscription!$A$6:$G$205,4,FALSE)))," ") -> BANNER Rafael | F16: =IF(C16>0,(VLOOKUP($C16,Inscription!$A$6:$G$205,5,FALSE))," ") -> vtt du lié | G16: =IF(C16>0,(VLOOKUP($C16,Inscription!$A$6:$G$205,7,FALSE))," ") -> 0 | H16: =LEFT(IF(C16>0,(VLOOKUP($C16,Inscription!$A$6:$G$205,6,FALSE))," "),8) -> benjamin | I16: 0 | J16: =IF(COUNTIF($F$4:$F16,$F16)<2,$F16," ") ->  | M16: =IF(COUNTIF($F$4:$F16,$F16)<3,$F16," ") -> vtt du lié | N16: 59.50980392 | O16: 0 | P16: vtt du lié | Q16: 59.50980392 | R16: 0 | S16: =IF(COUNTIF($F$4:$F16,J16)<4,$F16," ") -> vtt du lié | T16: 59.50980392 | U16: 0 | V16: vtt du lié | AA16: T | AB16: 12 | AC16: ='PRIX D EQUIPE'!B16 -> 0 | AD16: 1000 | AE16: 1000 | AF16: 1000 | AG16: 1000 | AH16: 1000 | AI16: 1000
A17: 59.50980392 | B17: 3 | C17: 16 | D17: =IF(C17>0,CONCATENATE((VLOOKUP($C17,Inscription!$A$6:$G$205,3,FALSE))," ",(VLOOKUP($C17,Inscription!$A$6:$G$205,4,FALSE)))," ") -> BOUGEARD HORNAIS Aymeris | F17: =IF(C17>0,(VLOOKUP($C17,Inscription!$A$6:$G$205,5,FALSE))," ") -> team bikers | G17: =IF(C17>0,(VLOOKUP($C17,Inscription!$A$6:$G$205,7,FALSE))," ") -> 431285 | H17: =LEFT(IF(C17>0,(VLOOKUP($C17,Inscription!$A$6:$G$205,6,FALSE))," "),8) -> benjamin | I17: 0 | J17: =IF(COUNTIF($F$4:$F17,$F17)<2,$F17," ") -> team bikers | K17: 59.50980392 | L17: 0 | M17: =IF(COUNTIF($F$4:$F17,$F17)<3,$F17," ") -> team bikers | N17: 59.50980392 | O17: 0 | Q17: 1000 | R17: 1000 | S17: =IF(COUNTIF($F$4:$F17,J17)<4,$F17," ") -> team bikers | T17: 59.50980392 | U17: 0 | AA17: T | AB17: 13 | AC17: ='PRIX D EQUIPE'!B17 -> 0 | AD17: 1000 | AE17: 1000 | AF17: 1000 | AG17: 1000 | AH17: 1000 | AI17: 1000
A18: 59.50980392 | B18: 4 | C18: 15 | D18: =IF(C18>0,CONCATENATE((VLOOKUP($C18,Inscription!$A$6:$G$205,3,FALSE))," ",(VLOOKUP($C18,Inscription!$A$6:$G$205,4,FALSE)))," ") -> BRIAND Axel | F18: =IF(C18>0,(VLOOKUP($C18,Inscription!$A$6:$G$205,5,FALSE))," ") -> team bikers | G18: =IF(C18>0,(VLOOKUP($C18,Inscription!$A$6:$G$205,7,FALSE))," ") -> 429219 | H18: =LEFT(IF(C18>0,(VLOOKUP($C18,Inscription!$A$6:$G$205,6,FALSE))," "),8) -> benjamin | I18: 0 | J18: =IF(COUNTIF($F$4:$F18,$F18)<2,$F18," ") ->  | M18: =IF(COUNTIF($F$4:$F18,$F18)<3,$F18," ") -> team bikers | N18: 59.50980392 | O18: 0 | P18: team bikers | Q18: 59.50980392 | R18: 0 | S18: =IF(COUNTIF($F$4:$F18,J18)<4,$F18," ") -> team bikers | T18: 59.50980392 | U18: 0 | V18: team bikers | AA18: T | AB18: 14 | AC18: ='PRIX D EQUIPE'!B18 -> 0 | AD18: 1000 | AE18: 1000 | AF18: 1000 | AG18: 1000 | AH18: 1000 | AI18: 1000
A19: 59.50980392 | B19: 5 | C19: 10 | D19: =IF(C19>0,CONCATENATE((VLOOKUP($C19,Inscription!$A$6:$G$205,3,FALSE))," ",(VLOOKUP($C19,Inscription!$A$6:$G$205,4,FALSE)))," ") -> POILVET Paul | F19: =IF(C19>0,(VLOOKUP($C19,Inscription!$A$6:$G$205,5,FALSE))," ") -> vc evron | G19: =IF(C19>0,(VLOOKUP($C19,Inscription!$A$6:$G$205,7,FALSE))," ") -> 382428 | H19: =LEFT(IF(C19>0,(VLOOKUP($C19,Inscription!$A$6:$G$205,6,FALSE))," "),8) -> benjamin | I19: 0 | J19: =IF(COUNTIF($F$4:$F19,$F19)<2,$F19," ") ->  | M19: =IF(COUNTIF($F$4:$F19,$F19)<3,$F19," ") ->  | Q19: 1000 | R19: 1000 | S19: =IF(COUNTIF($F$4:$F19,J19)<4,$F19," ") -> vc evron | T19: 59.50980392 | U19: 0 | V19: vc evron | W19: vc evron | X19: 59.50980392 | Y19: 0 | AA19: T | AB19: 15 | AC19: ='PRIX D EQUIPE'!B19 -> 0 | AD19: 1000 | AE19: 1000 | AF19: 1000 | AG19: 1000 | AH19: 1000 | AI19: 1000
A20: 59.50980392 | B20: 6 | C20: 13 | D20: =IF(C20>0,CONCATENATE((VLOOKUP($C20,Inscription!$A$6:$G$205,3,FALSE))," ",(VLOOKUP($C20,Inscription!$A$6:$G$205,4,FALSE)))," ") -> BOLORE Loevan | F20: =IF(C20>0,(VLOOKUP($C20,Inscription!$A$6:$G$205,5,FALSE))," ") -> team bikers | G20: =IF(C20>0,(VLOOKUP($C20,Inscription!$A$6:$G$205,7,FALSE))," ") -> 376265 | H20: =LEFT(IF(C20>0,(VLOOKUP($C20,Inscription!$A$6:$G$205,6,FALSE))," "),8) -> benjamin | I20: 0 | J20: =IF(COUNTIF($F$4:$F20,$F20)<2,$F20," ") ->  | M20: =IF(COUNTIF($F$4:$F20,$F20)<3,$F20," ") ->  | Q20: 1000 | R20: 1000 | S20: =IF(COUNTIF($F$4:$F20,J20)<4,$F20," ") -> team bikers | T20: 59.50980392 | U20: 0 | V20: team bikers | W20: team bikers | X20: 59.50980392 | Y20: 0 | AA20: T | AB20: 16 | AC20: ='PRIX D EQUIPE'!B20 -> 0 | AD20: 1000 | AE20: 1000 | AF20: 1000 | AG20: 1000 | AH20: 1000 | AI20: 1000
A21: 59.50980392 | B21: 7 | C21: 12 | D21: =IF(C21>0,CONCATENATE((VLOOKUP($C21,Inscription!$A$6:$G$205,3,FALSE))," ",(VLOOKUP($C21,Inscription!$A$6:$G$205,4,FALSE)))," ") -> LEPERCQ Clara | F21: =IF(C21>0,(VLOOKUP($C21,Inscription!$A$6:$G$205,5,FALSE))," ") -> uc plaudren | G21: =IF(C21>0,(VLOOKUP($C21,Inscription!$A$6:$G$205,7,FALSE))," ") -> 467480 | H21: =LEFT(IF(C21>0,(VLOOKUP($C21,Inscription!$A$6:$G$205,6,FALSE))," "),8) -> benjamin | I21: 0 | J21: =IF(COUNTIF($F$4:$F21,$F21)<2,$F21," ") ->  | M21: =IF(COUNTIF($F$4:$F21,$F21)<3,$F21," ") -> uc plaudren | N21: 59.50980392 | O21: 0 | P21: uc plaudren | Q21: 59.50980392 | R21: 0 | S21: =IF(COUNTIF($F$4:$F21,J21)<4,$F21," ") -> uc plaudren | T21: 59.50980392 | U21: 0 | V21: uc plaudren | AA21: T | AB21: 17 | AC21: ='PRIX D EQUIPE'!B21 -> 0 | AD21: 1000 | AE21: 1000 | AF21: 1000 | AG21: 1000 | AH21: 1000 | AI21: 1000
A22: 1000 | D22: =IF(C22>0,CONCATENATE((VLOOKUP($C22,Inscription!$A$6:$G$205,3,FALSE))," ",(VLOOKUP($C22,Inscription!$A$6:$G$205,4,FALSE)))," ") ->  | F22: =IF(C22>0,(VLOOKUP($C22,Inscription!$A$6:$G$205,5,FALSE))," ") ->  | G22: =IF(C22>0,(VLOOKUP($C22,Inscription!$A$6:$G$205,7,FALSE))," ") ->  | H22: =LEFT(IF(C22>0,(VLOOKUP($C22,Inscription!$A$6:$G$205,6,FALSE))," "),8) ->  | I22: 0 | J22: =IF(COUNTIF($F$4:$F22,$F22)<2,$F22," ") ->  | K22: 1000 | L22: 0 | M22: =IF(COUNTIF($F$4:$F22,$F22)<3,$F22," ") ->  | N22: 1000 | O22: 0 | Q22: 1000 | R22: 1000 | S22: =IF(COUNTIF($F$4:$F22,J22)<4,$F22," ") ->  | T22: 1000 | U22: 0 | AA22: 0 | AB22: 18 | AC22: ='PRIX D EQUIPE'!B22 -> 0 | AD22: 1000 | AE22: 1000 | AF22: 1000 | AG22: 1000 | AH22: 1000 | AI22: 1000
A23: 59.50980392 | B23: 1 | C23: 27 | D23: =IF(C23>0,CONCATENATE((VLOOKUP($C23,Inscription!$A$6:$G$205,3,FALSE))," ",(VLOOKUP($C23,Inscription!$A$6:$G$205,4,FALSE)))," ") -> GUILMIN Léo | F23: =IF(C23>0,(VLOOKUP($C23,Inscription!$A$6:$G$205,5,FALSE))," ") -> vc evron | G23: =IF(C23>0,(VLOOKUP($C23,Inscription!$A$6:$G$205,7,FALSE))," ") -> 344464 | H23: =LEFT(IF(C23>0,(VLOOKUP($C23,Inscription!$A$6:$G$205,6,FALSE))," "),8) -> minimes | I23: 0 | J23: =IF(COUNTIF($F$4:$F23,$F23)<2,$F23," ") ->  | M23: =IF(COUNTIF($F$4:$F23,$F23)<3,$F23," ") ->  | Q23: 1000 | R23: 1000 | S23: =IF(COUNTIF($F$4:$F23,J23)<4,$F23," ") -> vc evron | T23: 59.50980392 | U23: 0 | V23: vc evron | W23: vc evron | X23: 59.50980392 | Y23: 0 | AA23: T | AB23: 19 | AC23: ='PRIX D EQUIPE'!B23 -> 0 | AD23: 1000 | AE23: 1000 | AF23: 1000 | AG23: 1000 | AH23: 1000 | AI23: 1000
A24: 59.50980392 | B24: 2 | C24: 24 | D24: =IF(C24>0,CONCATENATE((VLOOKUP($C24,Inscription!$A$6:$G$205,3,FALSE))," ",(VLOOKUP($C24,Inscription!$A$6:$G$205,4,FALSE)))," ") -> BASSET Loris | F24: =IF(C24>0,(VLOOKUP($C24,Inscription!$A$6:$G$205,5,FALSE))," ") -> vc evron | G24: =IF(C24>0,(VLOOKUP($C24,Inscription!$A$6:$G$205,7,FALSE))," ") -> 0 | H24: =LEFT(IF(C24>0,(VLOOKUP($C24,Inscription!$A$6:$G$205,6,FALSE))," "),8) -> minimes | I24: 0 | J24: =IF(COUNTIF($F$4:$F24,$F24)<2,$F24," ") ->  | M24: =IF(COUNTIF($F$4:$F24,$F24)<3,$F24," ") ->  | Q24: 1000 | R24: 1000 | S24: =IF(COUNTIF($F$4:$F24,J24)<4,$F24," ") -> vc evron | T24: 59.50980392 | U24: 0 | V24: vc evron | W24: vc evron | X24: 59.50980392 | Y24: 0 | AA24: T | AB24: 20 | AC24: ='PRIX D EQUIPE'!B24 -> 0 | AD24: 1000 | AE24: 1000 | AF24: 1000 | AG24: 1000 | AH24: 1000 | AI24: 1000
A25: 59.50980392 | B25: 3 | C25: 20 | D25: =IF(C25>0,CONCATENATE((VLOOKUP($C25,Inscription!$A$6:$G$205,3,FALSE))," ",(VLOOKUP($C25,Inscription!$A$6:$G$205,4,FALSE)))," ") -> BRIEND Ilhan | F25: =IF(C25>0,(VLOOKUP($C25,Inscription!$A$6:$G$205,5,FALSE))," ") -> accro cycles cotes d'émeraude | G25: =IF(C25>0,(VLOOKUP($C25,Inscription!$A$6:$G$205,7,FALSE))," ") -> 919871 | H25: =LEFT(IF(C25>0,(VLOOKUP($C25,Inscription!$A$6:$G$205,6,FALSE))," "),8) -> minimes | I25: 0 | J25: =IF(COUNTIF($F$4:$F25,$F25)<2,$F25," ") -> accro cycles cotes d'émeraude | K25: 59.50980392 | L25: 0 | M25: =IF(COUNTIF($F$4:$F25,$F25)<3,$F25," ") -> accro cycles cotes d'émeraude | N25: 59.50980392 | O25: 0 | Q25: 1000 | R25: 1000 | S25: =IF(COUNTIF($F$4:$F25,J25)<4,$F25," ") -> accro cycles cotes d'émeraude | T25: 59.50980392 | U25: 0 | AA25: T | AB25: 21 | AC25: ='PRIX D EQUIPE'!B25 -> 0 | AD25: 1000 | AE25: 1000 | AF25: 1000 | AG25: 1000 | AH25: 1000 | AI25: 1000
A26: 59.50980392 | B26: 4 | C26: 21 | D26: =IF(C26>0,CONCATENATE((VLOOKUP($C26,Inscription!$A$6:$G$205,3,FALSE))," ",(VLOOKUP($C26,Inscription!$A$6:$G$205,4,FALSE)))," ") -> LE BIHAN Clément | F26: =IF(C26>0,(VLOOKUP($C26,Inscription!$A$6:$G$205,5,FALSE))," ") -> uc plaudren | G26: =IF(C26>0,(VLOOKUP($C26,Inscription!$A$6:$G$205,7,FALSE))," ") -> 968158 | H26: =LEFT(IF(C26>0,(VLOOKUP($C26,Inscription!$A$6:$G$205,6,FALSE))," "),8) -> minimes | I26: 0 | J26: =IF(COUNTIF($F$4:$F26,$F26)<2,$F26," ") ->  | M26: =IF(COUNTIF($F$4:$F26,$F26)<3,$F26," ") ->  | Q26: 1000 | R26: 1000 | S26: =IF(COUNTIF($F$4:$F26,J26)<4,$F26," ") -> uc plaudren | T26: 59.50980392 | U26: 0 | V26: uc plaudren | W26: uc plaudren | X26: 59.50980392 | Y26: 0 | AA26: T | AB26: 22 | AC26: ='PRIX D EQUIPE'!B26 -> 0 | AD26: 1000 | AE26: 1000 | AF26: 1000 | AG26: 1000 | AH26: 1000 | AI26: 1000
A27: 59.50980392 | B27: 5 | C27: 26 | D27: =IF(C27>0,CONCATENATE((VLOOKUP($C27,Inscription!$A$6:$G$205,3,FALSE))," ",(VLOOKUP($C27,Inscription!$A$6:$G$205,4,FALSE)))," ") -> BOUGEARD Margot | F27: =IF(C27>0,(VLOOKUP($C27,Inscription!$A$6:$G$205,5,FALSE))," ") -> team bikers | G27: =IF(C27>0,(VLOOKUP($C27,Inscription!$A$6:$G$205,7,FALSE))," ") -> 431290 | H27: =LEFT(IF(C27>0,(VLOOKUP($C27,Inscription!$A$6:$G$205,6,FALSE))," "),8) -> minimes | I27: 0 | J27: =IF(COUNTIF($F$4:$F27,$F27)<2,$F27," ") ->  | M27: =IF(COUNTIF($F$4:$F27,$F27)<3,$F27," ") ->  | Q27: 1000 | R27: 1000 | S27: =IF(COUNTIF($F$4:$F27,J27)<4,$F27," ") -> team bikers | T27: 59.50980392 | U27: 0 | V27: team bikers | W27: team bikers | X27: 59.50980392 | Y27: 0 | AA27: T | AB27: 23 | AC27: ='PRIX D EQUIPE'!B27 -> 0 | AD27: 1000 | AE27: 1000 | AF27: 1000 | AG27: 1000 | AH27: 1000 | AI27: 1000
A28: 59.50980392 | B28: 6 | C28: 23 | D28: =IF(C28>0,CONCATENATE((VLOOKUP($C28,Inscription!$A$6:$G$205,3,FALSE))," ",(VLOOKUP($C28,Inscription!$A$6:$G$205,4,FALSE)))," ") -> ROUILLE Robin | F28: =IF(C28>0,(VLOOKUP($C28,Inscription!$A$6:$G$205,5,FALSE))," ") -> team bikers | G28: =IF(C28>0,(VLOOKUP($C28,Inscription!$A$6:$G$205,7,FALSE))," ") -> 390947 | H28: =LEFT(IF(C28>0,(VLOOKUP($C28,Inscription!$A$6:$G$205,6,FALSE))," "),8) -> minimes | I28: 0 | J28: =IF(COUNTIF($F$4:$F28,$F28)<2,$F28," ") ->  | M28: =IF(COUNTIF($F$4:$F28,$F28)<3,$F28," ") ->  | Q28: 1000 | R28: 1000 | S28: =IF(COUNTIF($F$4:$F28,J28)<4,$F28," ") -> team bikers | T28: 59.50980392 | U28: 0 | V28: team bikers | W28: team bikers | X28: 59.50980392 | Y28: 0 | AA28: T | AB28: 24 | AC28: ='PRIX D EQUIPE'!B28 -> 0 | AD28: 1000 | AE28: 1000 | AF28: 1000 | AG28: 1000 | AH28: 1000 | AI28: 1000
A29: 59.50980392 | B29: 7 | C29: 25 | D29: =IF(C29>0,CONCATENATE((VLOOKUP($C29,Inscription!$A$6:$G$205,3,FALSE))," ",(VLOOKUP($C29,Inscription!$A$6:$G$205,4,FALSE)))," ") -> BRIAND Mathis | F29: =IF(C29>0,(VLOOKUP($C29,Inscription!$A$6:$G$205,5,FALSE))," ") -> team bikers | G29: =IF(C29>0,(VLOOKUP($C29,Inscription!$A$6:$G$205,7,FALSE))," ") -> 431995 | H29: =LEFT(IF(C29>0,(VLOOKUP($C29,Inscription!$A$6:$G$205,6,FALSE))," "),8) -> minimes | I29: 0 | J29: =IF(COUNTIF($F$4:$F29,$F29)<2,$F29," ") ->  | M29: =IF(COUNTIF($F$4:$F29,$F29)<3,$F29," ") ->  | Q29: 1000 | R29: 1000 | S29: =IF(COUNTIF($F$4:$F29,J29)<4,$F29," ") -> team bikers | T29: 59.50980392 | U29: 0 | V29: team bikers | W29: team bikers | X29: 59.50980392 | Y29: 0 | AA29: T | AB29: 25 | AC29: ='PRIX D EQUIPE'!B29 -> 0 | AD29: 1000 | AE29: 1000 | AF29: 1000 | AG29: 1000 | AH29: 1000 | AI29: 1000
A30: 59.50980392 | B30: 8 | C30: 22 | D30: =IF(C30>0,CONCATENATE((VLOOKUP($C30,Inscription!$A$6:$G$205,3,FALSE))," ",(VLOOKUP($C30,Inscription!$A$6:$G$205,4,FALSE)))," ") -> BOLORE Ewen | F30: =IF(C30>0,(VLOOKUP($C30,Inscription!$A$6:$G$205,5,FALSE))," ") -> team bikers | G30: =IF(C30>0,(VLOOKUP($C30,Inscription!$A$6:$G$205,7,FALSE))," ") -> 376263 | H30: =LEFT(IF(C30>0,(VLOOKUP($C30,Inscription!$A$6:$G$205,6,FALSE))," "),8) -> minimes | I30: 0 | J30: =IF(COUNTIF($F$4:$F30,$F30)<2,$F30," ") ->  | M30: =IF(COUNTIF($F$4:$F30,$F30)<3,$F30," ") ->  | Q30: 1000 | R30: 1000 | S30: =IF(COUNTIF($F$4:$F30,J30)<4,$F30," ") -> team bikers | T30: 59.50980392 | U30: 0 | V30: team bikers | W30: team bikers | X30: 59.50980392 | Y30: 0 | AA30: T | AB30: 26 | AC30: ='PRIX D EQUIPE'!B30 -> 0 | AD30: 1000 | AE30: 1000 | AF30: 1000 | AG30: 1000 | AH30: 1000 | AI30: 1000 | AJ30: =IF(AC30=" "," ",IF($AC30>0,SUM(AD30+AF30+AH30)," ")) ->  | AK30: =IF(AC30=" "," ",IF($AC30>0,SUM(AE30+AG30+AI30)," ")) -> 
A31: 1000 | D31: =IF(C31>0,CONCATENATE((VLOOKUP($C31,Inscription!$A$6:$G$205,3,FALSE))," ",(VLOOKUP($C31,Inscription!$A$6:$G$205,4,FALSE)))," ") ->  | F31: =IF(C31>0,(VLOOKUP($C31,Inscription!$A$6:$G$205,5,FALSE))," ") ->  | G31: =IF(C31>0,(VLOOKUP($C31,Inscription!$A$6:$G$205,7,FALSE))," ") ->  | H31: =LEFT(IF(C31>0,(VLOOKUP($C31,Inscription!$A$6:$G$205,6,FALSE))," "),8) ->  | I31: 0 | J31: =IF(COUNTIF($F$4:$F31,$F31)<2,$F31," ") ->  | K31: 1000 | L31: 0 | M31: =IF(COUNTIF($F$4:$F31,$F31)<3,$F31," ") ->  | N31: 1000 | O31: 0 | Q31: 1000 | R31: 1000 | S31: =IF(COUNTIF($F$4:$F31,J31)<4,$F31," ") ->  | T31: 1000 | U31: 0 | AA31: 0 | AB31: 27 | AC31: ='PRIX D EQUIPE'!B31 -> 0 | AD31: 1000 | AE31: 1000 | AF31: 1000 | AG31: 1000 | AH31: 1000 | AI31: 1000 | AM31: 5
A32: 59.50980392 | B32: 1 | C32: 30 | D32: =IF(C32>0,CONCATENATE((VLOOKUP($C32,Inscription!$A$6:$G$205,3,FALSE))," ",(VLOOKUP($C32,Inscription!$A$6:$G$205,4,FALSE)))," ") -> FERTE Brandon | F32: =IF(C32>0,(VLOOKUP($C32,Inscription!$A$6:$G$205,5,FALSE))," ") -> distric loudéac | G32: =IF(C32>0,(VLOOKUP($C32,Inscription!$A$6:$G$205,7,FALSE))," ") -> 297227 | H32: =LEFT(IF(C32>0,(VLOOKUP($C32,Inscription!$A$6:$G$205,6,FALSE))," "),8) -> cadet | I32: 0 | J32: =IF(COUNTIF($F$4:$F32,$F32)<2,$F32," ") -> distric loudéac | K32: 59.50980392 | L32: 0 | M32: =IF(COUNTIF($F$4:$F32,$F32)<3,$F32," ") -> distric loudéac | N32: 59.50980392 | O32: 0 | Q32: 1000 | R32: 1000 | S32: =IF(COUNTIF($F$4:$F32,J32)<4,$F32," ") -> distric loudéac | T32: 59.50980392 | U32: 0 | AA32: T | AB32: 28 | AC32: ='PRIX D EQUIPE'!B32 -> 0 | AD32: 1000 | AE32: 1000 | AF32: 1000 | AG32: 1000 | AH32: 1000 | AI32: 1000
A33: 59.50980392 | B33: 2 | C33: 31 | D33: =IF(C33>0,CONCATENATE((VLOOKUP($C33,Inscription!$A$6:$G$205,3,FALSE))," ",(VLOOKUP($C33,Inscription!$A$6:$G$205,4,FALSE)))," ") -> LEPERCQ Nathan | F33: =IF(C33>0,(VLOOKUP($C33,Inscription!$A$6:$G$205,5,FALSE))," ") -> uc plaudren | G33: =IF(C33>0,(VLOOKUP($C33,Inscription!$A$6:$G$205,7,FALSE))," ") -> 389000 | H33: =LEFT(IF(C33>0,(VLOOKUP($C33,Inscription!$A$6:$G$205,6,FALSE))," "),8) -> cadet | I33: 0 | J33: =IF(COUNTIF($F$4:$F33,$F33)<2,$F33," ") ->  | M33: =IF(COUNTIF($F$4:$F33,$F33)<3,$F33," ") ->  | Q33: 1000 | R33: 1000 | S33: =IF(COUNTIF($F$4:$F33,J33)<4,$F33," ") ->  | AA33: T | AB33: 29 | AC33: ='PRIX D EQUIPE'!B33 -> 0 | AD33: 1000 | AE33: 1000 | AF33: 1000 | AG33: 1000 | AH33: 1000 | AI33: 1000
A34: 1000 | D34: =IF(C34>0,CONCATENATE((VLOOKUP($C34,Inscription!$A$6:$G$205,3,FALSE))," ",(VLOOKUP($C34,Inscription!$A$6:$G$205,4,FALSE)))," ") ->  | F34: =IF(C34>0,(VLOOKUP($C34,Inscription!$A$6:$G$205,5,FALSE))," ") ->  | G34: =IF(C34>0,(VLOOKUP($C34,Inscription!$A$6:$G$205,7,FALSE))," ") ->  | H34: =LEFT(IF(C34>0,(VLOOKUP($C34,Inscription!$A$6:$G$205,6,FALSE))," "),8) ->  | I34: 0 | J34: =IF(COUNTIF($F$4:$F34,$F34)<2,$F34," ") ->  | K34: 1000 | L34: 0 | M34: =IF(COUNTIF($F$4:$F34,$F34)<3,$F34," ") ->  | N34: 1000 | O34: 0 | Q34: 1000 | R34: 1000 | S34: =IF(COUNTIF($F$4:$F34,J34)<4,$F34," ") ->  | T34: 1000 | U34: 0 | AA34: 0 | AB34: 30 | AC34: ='PRIX D EQUIPE'!B34 -> 0 | AD34: 1000 | AE34: 1000 | AF34: 1000 | AG34: 1000 | AH34: 1000 | AI34: 1000
A35: 59.50980392 | B35: 1 | C35: 35 | D35: =IF(C35>0,CONCATENATE((VLOOKUP($C35,Inscription!$A$6:$G$205,3,FALSE))," ",(VLOOKUP($C35,Inscription!$A$6:$G$205,4,FALSE)))," ") -> HALLET Baptiste | F35: =IF(C35>0,(VLOOKUP($C35,Inscription!$A$6:$G$205,5,FALSE))," ") -> vc plurien | G35: =IF(C35>0,(VLOOKUP($C35,Inscription!$A$6:$G$205,7,FALSE))," ") -> 136613 | H35: =LEFT(IF(C35>0,(VLOOKUP($C35,Inscription!$A$6:$G$205,6,FALSE))," "),8) -> espoir | I35: 0 | J35: =IF(COUNTIF($F$4:$F35,$F35)<2,$F35," ") -> vc plurien | K35: 59.50980392 | L35: 0 | M35: =IF(COUNTIF($F$4:$F35,$F35)<3,$F35," ") -> vc plurien | N35: 59.50980392 | O35: 0 | Q35: 1000 | R35: 1000 | S35: =IF(COUNTIF($F$4:$F35,J35)<4,$F35," ") -> vc plurien | T35: 59.50980392 | U35: 0 | AA35: T | AB35: 31 | AC35: ='PRIX D EQUIPE'!B35 -> 0 | AD35: 1000 | AE35: 1000 | AF35: 1000 | AG35: 1000 | AH35: 1000 | AI35: 1000
A36: 1000 | D36: =IF(C36>0,CONCATENATE((VLOOKUP($C36,Inscription!$A$6:$G$205,3,FALSE))," ",(VLOOKUP($C36,Inscription!$A$6:$G$205,4,FALSE)))," ") ->  | F36: =IF(C36>0,(VLOOKUP($C36,Inscription!$A$6:$G$205,5,FALSE))," ") ->  | G36: =IF(C36>0,(VLOOKUP($C36,Inscription!$A$6:$G$205,7,FALSE))," ") ->  | H36: =LEFT(IF(C36>0,(VLOOKUP($C36,Inscription!$A$6:$G$205,6,FALSE))," "),8) ->  | I36: 0 | J36: =IF(COUNTIF($F$4:$F36,$F36)<2,$F36," ") ->  | K36: 1000 | L36: 0 | M36: =IF(COUNTIF($F$4:$F36,$F36)<3,$F36," ") ->  | N36: 1000 | O36: 0 | Q36: 1000 | R36: 1000 | S36: =IF(COUNTIF($F$4:$F36,J36)<4,$F36," ") ->  | T36: 1000 | U36: 0 | Z36: =IF(COUNTIF($C$4:$C$203,C36)>1,"X"," ") ->  | AA36: =IF(COUNTIF($B$4:$B$203,B36)>1,"T",B36) -> 0 | AB36: 32 | AC36: ='PRIX D EQUIPE'!B36 -> 0 | AD36: 1000 | AE36: 1000 | AF36: 1000 | AG36: 1000 | AH36: 1000 | AI36: 1000
A37: 59.50980392 | B37: 1 | C37: 42 | D37: =IF(C37>0,CONCATENATE((VLOOKUP($C37,Inscription!$A$6:$G$205,3,FALSE))," ",(VLOOKUP($C37,Inscription!$A$6:$G$205,4,FALSE)))," ") -> BOUGEARD Pierre-Yves | F37: =IF(C37>0,(VLOOKUP($C37,Inscription!$A$6:$G$205,5,FALSE))," ") -> team bickers | G37: =IF(C37>0,(VLOOKUP($C37,Inscription!$A$6:$G$205,7,FALSE))," ") -> 376257 | H37: =LEFT(IF(C37>0,(VLOOKUP($C37,Inscription!$A$6:$G$205,6,FALSE))," "),8) -> 1ère cat | I37: 0 | J37: =IF(COUNTIF($F$4:$F37,$F37)<2,$F37," ") -> team bickers | K37: 59.50980392 | L37: 0 | M37: =IF(COUNTIF($F$4:$F37,$F37)<3,$F37," ") -> team bickers | N37: 59.50980392 | O37: 0 | Q37: 1000 | R37: 1000 | S37: =IF(COUNTIF($F$4:$F37,J37)<4,$F37," ") -> team bickers | T37: 59.50980392 | U37: 0 | AA37: T | AB37: 33 | AC37: ='PRIX D EQUIPE'!B37 -> 0 | AD37: 1000 | AE37: 1000 | AF37: 1000 | AG37: 1000 | AH37: 1000 | AI37: 1000
A38: 59.50980392 | B38: 2 | C38: 43 | D38: =IF(C38>0,CONCATENATE((VLOOKUP($C38,Inscription!$A$6:$G$205,3,FALSE))," ",(VLOOKUP($C38,Inscription!$A$6:$G$205,4,FALSE)))," ") -> BASSET Emerick | F38: =IF(C38>0,(VLOOKUP($C38,Inscription!$A$6:$G$205,5,FALSE))," ") -> vc evron | G38: =IF(C38>0,(VLOOKUP($C38,Inscription!$A$6:$G$205,7,FALSE))," ") -> 371872 | H38: =LEFT(IF(C38>0,(VLOOKUP($C38,Inscription!$A$6:$G$205,6,FALSE))," "),8) -> 1ère cat | I38: 0 | J38: =IF(COUNTIF($F$4:$F38,$F38)<2,$F38," ") ->  | M38: =IF(COUNTIF($F$4:$F38,$F38)<3,$F38," ") ->  | Q38: 1000 | R38: 1000 | S38: =IF(COUNTIF($F$4:$F38,J38)<4,$F38," ") ->  | AA38: T | AB38: 34 | AC38: ='PRIX D EQUIPE'!B38 -> 0 | AD38: 1000 | AE38: 1000 | AF38: 1000 | AG38: 1000 | AH38: 1000 | AI38: 1000
A39: 59.50980392 | B39: 3 | C39: 40 | D39: =IF(C39>0,CONCATENATE((VLOOKUP($C39,Inscription!$A$6:$G$205,3,FALSE))," ",(VLOOKUP($C39,Inscription!$A$6:$G$205,4,FALSE)))," ") -> KEURMEUR Romain | F39: =IF(C39>0,(VLOOKUP($C39,Inscription!$A$6:$G$205,5,FALSE))," ") -> team mégrit | G39: =IF(C39>0,(VLOOKUP($C39,Inscription!$A$6:$G$205,7,FALSE))," ") -> 363251 | H39: =LEFT(IF(C39>0,(VLOOKUP($C39,Inscription!$A$6:$G$205,6,FALSE))," "),8) -> 1ère cat | I39: 0 | J39: =IF(COUNTIF($F$4:$F39,$F39)<2,$F39," ") -> team mégrit | K39: 59.50980392 | L39: 0 | M39: =IF(COUNTIF($F$4:$F39,$F39)<3,$F39," ") -> team mégrit | N39: 59.50980392 | O39: 0 | Q39: 1000 | R39: 1000 | S39: =IF(COUNTIF($F$4:$F39,J39)<4,$F39," ") -> team mégrit | T39: 59.50980392 | U39: 0 | AA39: T | AB39: 35 | AC39: ='PRIX D EQUIPE'!B39 -> 0 | AD39: 1000 | AE39: 1000 | AF39: 1000 | AG39: 1000 | AH39: 1000 | AI39: 1000
A40: 59.50980392 | B40: 4 | C40: 41 | D40: =IF(C40>0,CONCATENATE((VLOOKUP($C40,Inscription!$A$6:$G$205,3,FALSE))," ",(VLOOKUP($C40,Inscription!$A$6:$G$205,4,FALSE)))," ") -> BANNER Mickael | F40: =IF(C40>0,(VLOOKUP($C40,Inscription!$A$6:$G$205,5,FALSE))," ") -> vtt du lié | G40: =IF(C40>0,(VLOOKUP($C40,Inscription!$A$6:$G$205,7,FALSE))," ") -> 950036 | H40: =LEFT(IF(C40>0,(VLOOKUP($C40,Inscription!$A$6:$G$205,6,FALSE))," "),8) -> 1ère cat | I40: 0 | J40: =IF(COUNTIF($F$4:$F40,$F40)<2,$F40," ") ->  | M40: =IF(COUNTIF($F$4:$F40,$F40)<3,$F40," ") ->  | Q40: 1000 | R40: 1000 | S40: =IF(COUNTIF($F$4:$F40,J40)<4,$F40," ") ->  | AA40: T
A41: 1000 | D41: =IF(C41>0,CONCATENATE((VLOOKUP($C41,Inscription!$A$6:$G$205,3,FALSE))," ",(VLOOKUP($C41,Inscription!$A$6:$G$205,4,FALSE)))," ") ->  | F41: =IF(C41>0,(VLOOKUP($C41,Inscription!$A$6:$G$205,5,FALSE))," ") ->  | G41: =IF(C41>0,(VLOOKUP($C41,Inscription!$A$6:$G$205,7,FALSE))," ") ->  | H41: =LEFT(IF(C41>0,(VLOOKUP($C41,Inscription!$A$6:$G$205,6,FALSE))," "),8) ->  | I41: 0 | J41: =IF(COUNTIF($F$4:$F41,$F41)<2,$F41," ") ->  | K41: 1000 | L41: 0 | M41: =IF(COUNTIF($F$4:$F41,$F41)<3,$F41," ") ->  | N41: 1000 | O41: 0 | Q41: 1000 | R41: 1000 | S41: =IF(COUNTIF($F$4:$F41,J41)<4,$F41," ") ->  | T41: 1000 | U41: 0 | AA41: 0
A42: 59.50980392 | B42: 1 | C42: 48 | D42: =IF(C42>0,CONCATENATE((VLOOKUP($C42,Inscription!$A$6:$G$205,3,FALSE))," ",(VLOOKUP($C42,Inscription!$A$6:$G$205,4,FALSE)))," ") -> COLAS Emmanuel | F42: =IF(C42>0,(VLOOKUP($C42,Inscription!$A$6:$G$205,5,FALSE))," ") -> begard vtt gwerun | G42: =IF(C42>0,(VLOOKUP($C42,Inscription!$A$6:$G$205,7,FALSE))," ") -> 386450 | H42: =LEFT(IF(C42>0,(VLOOKUP($C42,Inscription!$A$6:$G$205,6,FALSE))," "),8) -> 2ème cat | I42: 0 | J42: =IF(COUNTIF($F$4:$F42,$F42)<2,$F42," ") ->  | M42: =IF(COUNTIF($F$4:$F42,$F42)<3,$F42," ") ->  | Q42: 1000 | R42: 1000 | S42: =IF(COUNTIF($F$4:$F42,J42)<4,$F42," ") ->  | AA42: T | AD42: PRIX D EQUIPE
A43: 59.50980392 | B43: 2 | C43: 54 | D43: =IF(C43>0,CONCATENATE((VLOOKUP($C43,Inscription!$A$6:$G$205,3,FALSE))," ",(VLOOKUP($C43,Inscription!$A$6:$G$205,4,FALSE)))," ") -> LECOMTE Guillaume | F43: =IF(C43>0,(VLOOKUP($C43,Inscription!$A$6:$G$205,5,FALSE))," ") -> team xc du léguer | G43: =IF(C43>0,(VLOOKUP($C43,Inscription!$A$6:$G$205,7,FALSE))," ") -> 998834 | H43: =LEFT(IF(C43>0,(VLOOKUP($C43,Inscription!$A$6:$G$205,6,FALSE))," "),8) -> 2ème cat | I43: 0 | J43: =IF(COUNTIF($F$4:$F43,$F43)<2,$F43," ") -> team xc du léguer | K43: 59.50980392 | L43: 0 | M43: =IF(COUNTIF($F$4:$F43,$F43)<3,$F43," ") -> team xc du léguer | N43: 59.50980392 | O43: 0 | Q43: 1000 | R43: 1000 | S43: =IF(COUNTIF($F$4:$F43,J43)<4,$F43," ") -> team xc du léguer | T43: 59.50980392 | U43: 0 | AA43: T
A44: 59.50980392 | B44: 3 | C44: 53 | D44: =IF(C44>0,CONCATENATE((VLOOKUP($C44,Inscription!$A$6:$G$205,3,FALSE))," ",(VLOOKUP($C44,Inscription!$A$6:$G$205,4,FALSE)))," ") -> MARIVINT Alexis | F44: =IF(C44>0,(VLOOKUP($C44,Inscription!$A$6:$G$205,5,FALSE))," ") -> vc evron | G44: =IF(C44>0,(VLOOKUP($C44,Inscription!$A$6:$G$205,7,FALSE))," ") -> 294510 | H44: =LEFT(IF(C44>0,(VLOOKUP($C44,Inscription!$A$6:$G$205,6,FALSE))," "),8) -> 2ème cat | I44: 0 | J44: =IF(COUNTIF($F$4:$F44,$F44)<2,$F44," ") ->  | M44: =IF(COUNTIF($F$4:$F44,$F44)<3,$F44," ") ->  | Q44: 1000 | R44: 1000 | S44: =IF(COUNTIF($F$4:$F44,J44)<4,$F44," ") ->  | AA44: T
A45: 59.50980392 | B45: 4 | C45: 50 | D45: =IF(C45>0,CONCATENATE((VLOOKUP($C45,Inscription!$A$6:$G$205,3,FALSE))," ",(VLOOKUP($C45,Inscription!$A$6:$G$205,4,FALSE)))," ") -> MACE Jérome | F45: =IF(C45>0,(VLOOKUP($C45,Inscription!$A$6:$G$205,5,FALSE))," ") -> vc evron | G45: =IF(C45>0,(VLOOKUP($C45,Inscription!$A$6:$G$205,7,FALSE))," ") -> 434904 | H45: =LEFT(IF(C45>0,(VLOOKUP($C45,Inscription!$A$6:$G$205,6,FALSE))," "),8) -> 2ème cat | I45: 0 | J45: =IF(COUNTIF($F$4:$F45,$F45)<2,$F45," ") ->  | M45: =IF(COUNTIF($F$4:$F45,$F45)<3,$F45," ") ->  | Q45: 1000 | R45: 1000 | S45: =IF(COUNTIF($F$4:$F45,J45)<4,$F45," ") ->  | AA45: T | AB45: 1 | AC45: 0 | AD45: 1000 | AE45: 1000 | AF45: 1000 | AG45: 1000 | AH45: 1000 | AI45: 1000 | AJ45: =IF(AC45=" "," ",IF($AC45>0,SUM(AD45+AF45+AH45)," ")) ->  | AK45: =IF(AC45=" "," ",IF($AC45>0,SUM(AE45+AG45+AI45)," ")) -> 
A46: 59.50980392 | B46: 5 | C46: 49 | D46: =IF(C46>0,CONCATENATE((VLOOKUP($C46,Inscription!$A$6:$G$205,3,FALSE))," ",(VLOOKUP($C46,Inscription!$A$6:$G$205,4,FALSE)))," ") -> COLLEU Pascal | F46: =IF(C46>0,(VLOOKUP($C46,Inscription!$A$6:$G$205,5,FALSE))," ") -> ccvb | G46: =IF(C46>0,(VLOOKUP($C46,Inscription!$A$6:$G$205,7,FALSE))," ") -> 511956 | H46: =LEFT(IF(C46>0,(VLOOKUP($C46,Inscription!$A$6:$G$205,6,FALSE))," "),8) -> 2ème cat | I46: 0 | J46: =IF(COUNTIF($F$4:$F46,$F46)<2,$F46," ") -> ccvb | K46: 59.50980392 | L46: 0 | M46: =IF(COUNTIF($F$4:$F46,$F46)<3,$F46," ") -> ccvb | N46: 59.50980392 | O46: 0 | Q46: 1000 | R46: 1000 | S46: =IF(COUNTIF($F$4:$F46,J46)<4,$F46," ") -> ccvb | T46: 59.50980392 | U46: 0 | AA46: T | AB46: 2 | AC46: 0 | AD46: 1000 | AE46: 1000 | AF46: 1000 | AG46: 1000 | AH46: 1000 | AI46: 1000
A47: 59.50980392 | B47: 6 | C47: 51 | D47: =IF(C47>0,CONCATENATE((VLOOKUP($C47,Inscription!$A$6:$G$205,3,FALSE))," ",(VLOOKUP($C47,Inscription!$A$6:$G$205,4,FALSE)))," ") -> BRIAND Régis | F47: =IF(C47>0,(VLOOKUP($C47,Inscription!$A$6:$G$205,5,FALSE))," ") -> team bickers | G47: =IF(C47>0,(VLOOKUP($C47,Inscription!$A$6:$G$205,7,FALSE))," ") -> 429231 | H47: =LEFT(IF(C47>0,(VLOOKUP($C47,Inscription!$A$6:$G$205,6,FALSE))," "),8) -> 2ème cat | I47: 0 | J47: =IF(COUNTIF($F$4:$F47,$F47)<2,$F47," ") ->  | M47: =IF(COUNTIF($F$4:$F47,$F47)<3,$F47," ") -> team bickers | N47: 59.50980392 | O47: 0 | P47: team bickers | Q47: 59.50980392 | R47: 0 | S47: =IF(COUNTIF($F$4:$F47,J47)<4,$F47," ") ->  | AA47: T | AB47: 3 | AC47: 0 | AD47: 1000 | AE47: 1000 | AF47: 1000 | AG47: 1000 | AH47: 1000 | AI47: 1000
A48: 59.50980392 | B48: 7 | C48: 45 | D48: =IF(C48>0,CONCATENATE((VLOOKUP($C48,Inscription!$A$6:$G$205,3,FALSE))," ",(VLOOKUP($C48,Inscription!$A$6:$G$205,4,FALSE)))," ") -> JEUNEU Gilles | F48: =IF(C48>0,(VLOOKUP($C48,Inscription!$A$6:$G$205,5,FALSE))," ") -> accro cycles cotes d'émeraude | G48: =IF(C48>0,(VLOOKUP($C48,Inscription!$A$6:$G$205,7,FALSE))," ") -> 137390 | H48: =LEFT(IF(C48>0,(VLOOKUP($C48,Inscription!$A$6:$G$205,6,FALSE))," "),8) -> 2ème cat | I48: 0 | J48: =IF(COUNTIF($F$4:$F48,$F48)<2,$F48," ") ->  | M48: =IF(COUNTIF($F$4:$F48,$F48)<3,$F48," ") -> accro cycles cotes d'émeraude | N48: 59.50980392 | O48: 0 | P48: accro cycles cotes d'émeraude | Q48: 59.50980392 | R48: 0 | S48: =IF(COUNTIF($F$4:$F48,J48)<4,$F48," ") ->  | AA48: T | AB48: 4 | AC48: 0 | AD48: 1000 | AE48: 1000 | AF48: 1000 | AG48: 1000 | AH48: 1000 | AI48: 1000
A49: 59.50980392 | B49: 8 | C49: 46 | D49: =IF(C49>0,CONCATENATE((VLOOKUP($C49,Inscription!$A$6:$G$205,3,FALSE))," ",(VLOOKUP($C49,Inscription!$A$6:$G$205,4,FALSE)))," ") -> LESNE Régis | F49: =IF(C49>0,(VLOOKUP($C49,Inscription!$A$6:$G$205,5,FALSE))," ") -> district loudéac | G49: =IF(C49>0,(VLOOKUP($C49,Inscription!$A$6:$G$205,7,FALSE))," ") -> 227933 | H49: =LEFT(IF(C49>0,(VLOOKUP($C49,Inscription!$A$6:$G$205,6,FALSE))," "),8) -> 2ème cat | I49: 0 | J49: =IF(COUNTIF($F$4:$F49,$F49)<2,$F49," ") ->  | M49: =IF(COUNTIF($F$4:$F49,$F49)<3,$F49," ") -> district loudéac | N49: 59.50980392 | O49: 0 | P49: district loudéac | Q49: 59.50980392 | R49: 0 | S49: =IF(COUNTIF($F$4:$F49,J49)<4,$F49," ") ->  | AA49: T | AB49: 5 | AC49: 0 | AD49: 1000 | AE49: 1000 | AF49: 1000 | AG49: 1000 | AH49: 1000 | AI49: 1000
A50: 59.50980392 | B50: 9 | C50: 47 | D50: =IF(C50>0,CONCATENATE((VLOOKUP($C50,Inscription!$A$6:$G$205,3,FALSE))," ",(VLOOKUP($C50,Inscription!$A$6:$G$205,4,FALSE)))," ") -> BEDEL Bapiste | F50: =IF(C50>0,(VLOOKUP($C50,Inscription!$A$6:$G$205,5,FALSE))," ") -> district loudéac | G50: =IF(C50>0,(VLOOKUP($C50,Inscription!$A$6:$G$205,7,FALSE))," ") -> 13637 | H50: =LEFT(IF(C50>0,(VLOOKUP($C50,Inscription!$A$6:$G$205,6,FALSE))," "),8) -> 2ème cat | I50: 0 | J50: =IF(COUNTIF($F$4:$F50,$F50)<2,$F50," ") ->  | M50: =IF(COUNTIF($F$4:$F50,$F50)<3,$F50," ") ->  | Q50: 1000 | R50: 1000 | S50: =IF(COUNTIF($F$4:$F50,J50)<4,$F50," ") ->  | AA50: T | AB50: 6 | AC50: 0 | AD50: 1000 | AE50: 1000 | AF50: 1000 | AG50: 1000 | AH50: 1000 | AI50: 1000
A51: 59.50980392 | B51: DNF | C51: 52 | D51: =IF(C51>0,CONCATENATE((VLOOKUP($C51,Inscription!$A$6:$G$205,3,FALSE))," ",(VLOOKUP($C51,Inscription!$A$6:$G$205,4,FALSE)))," ") -> MOUTTE Alexis | F51: =IF(C51>0,(VLOOKUP($C51,Inscription!$A$6:$G$205,5,FALSE))," ") -> team du pays de dinan guinefort | G51: =IF(C51>0,(VLOOKUP($C51,Inscription!$A$6:$G$205,7,FALSE))," ") -> 0 | H51: =LEFT(IF(C51>0,(VLOOKUP($C51,Inscription!$A$6:$G$205,6,FALSE))," "),8) -> 2ème cat | I51: 0 | J51: =IF(COUNTIF($F$4:$F51,$F51)<2,$F51," ") -> team du pays de dinan guinefort | K51: 59.50980392 | L51: 0 | M51: =IF(COUNTIF($F$4:$F51,$F51)<3,$F51," ") -> team du pays de dinan guinefort | N51: 59.50980392 | O51: 0 | Q51: 1000 | R51: 1000 | S51: =IF(COUNTIF($F$4:$F51,J51)<4,$F51," ") -> team du pays de dinan guinefort | T51: 59.50980392 | U51: 0 | AA51: T | AB51: 7 | AC51: 0 | AD51: 1000 | AE51: 1000 | AF51: 1000 | AG51: 1000 | AH51: 1000 | AI51: 1000
A52: 1000 | D52: =IF(C52>0,CONCATENATE((VLOOKUP($C52,Inscription!$A$6:$G$205,3,FALSE))," ",(VLOOKUP($C52,Inscription!$A$6:$G$205,4,FALSE)))," ") ->  | F52: =IF(C52>0,(VLOOKUP($C52,Inscription!$A$6:$G$205,5,FALSE))," ") ->  | G52: =IF(C52>0,(VLOOKUP($C52,Inscription!$A$6:$G$205,7,FALSE))," ") ->  | H52: =LEFT(IF(C52>0,(VLOOKUP($C52,Inscription!$A$6:$G$205,6,FALSE))," "),8) ->  | I52: 0 | J52: =IF(COUNTIF($F$4:$F52,$F52)<2,$F52," ") ->  | K52: 1000 | L52: 0 | M52: =IF(COUNTIF($F$4:$F52,$F52)<3,$F52," ") ->  | N52: 1000 | O52: 0 | Q52: 1000 | R52: 1000 | S52: =IF(COUNTIF($F$4:$F52,J52)<4,$F52," ") ->  | T52: 1000 | U52: 0 | AA52: 0 | AB52: 8 | AC52: 0 | AD52: 1000 | AE52: 1000 | AF52: 1000 | AG52: 1000 | AH52: 1000 | AI52: 1000
A53: 59.50980392 | B53: 1 | C53: 72 | D53: =IF(C53>0,CONCATENATE((VLOOKUP($C53,Inscription!$A$6:$G$205,3,FALSE))," ",(VLOOKUP($C53,Inscription!$A$6:$G$205,4,FALSE)))," ") -> LECELLIER Raymond | F53: =IF(C53>0,(VLOOKUP($C53,Inscription!$A$6:$G$205,5,FALSE))," ") -> team mégrit | G53: =IF(C53>0,(VLOOKUP($C53,Inscription!$A$6:$G$205,7,FALSE))," ") -> 55656150 | H53: =LEFT(IF(C53>0,(VLOOKUP($C53,Inscription!$A$6:$G$205,6,FALSE))," "),8) -> 3ème cat | I53: 0 | J53: =IF(COUNTIF($F$4:$F53,$F53)<2,$F53," ") ->  | M53: =IF(COUNTIF($F$4:$F53,$F53)<3,$F53," ") -> team mégrit | N53: 59.50980392 | O53: 0 | P53: team mégrit | Q53: 59.50980392 | R53: 0 | S53: =IF(COUNTIF($F$4:$F53,J53)<4,$F53," ") ->  | AA53: T | AB53: 9 | AC53: 0 | AD53: 1000 | AE53: 1000 | AF53: 1000 | AG53: 1000 | AH53: 1000 | AI53: 1000
A54: 59.50980392 | B54: 2 | C54: 65 | D54: =IF(C54>0,CONCATENATE((VLOOKUP($C54,Inscription!$A$6:$G$205,3,FALSE))," ",(VLOOKUP($C54,Inscription!$A$6:$G$205,4,FALSE)))," ") -> NICOLAS Jean Charles | F54: =IF(C54>0,(VLOOKUP($C54,Inscription!$A$6:$G$205,5,FALSE))," ") -> ac vildé guingalan | G54: =IF(C54>0,(VLOOKUP($C54,Inscription!$A$6:$G$205,7,FALSE))," ") -> 514101 | H54: =LEFT(IF(C54>0,(VLOOKUP($C54,Inscription!$A$6:$G$205,6,FALSE))," "),8) -> 3ème cat | I54: 0 | J54: =IF(COUNTIF($F$4:$F54,$F54)<2,$F54," ") -> ac vildé guingalan | K54: 59.50980392 | L54: 0 | M54: =IF(COUNTIF($F$4:$F54,$F54)<3,$F54," ") -> ac vildé guingalan | N54: 59.50980392 | O54: 0 | Q54: 1000 | R54: 1000 | S54: =IF(COUNTIF($F$4:$F54,J54)<4,$F54," ") -> ac vildé guingalan | T54: 59.50980392 | U54: 0 | AA54: T | AB54: 10 | AC54: 0 | AD54: 1000 | AE54: 1000 | AF54: 1000 | AG54: 1000 | AH54: 1000 | AI54: 1000
A55: 59.50980392 | B55: 3 | C55: 64 | D55: =IF(C55>0,CONCATENATE((VLOOKUP($C55,Inscription!$A$6:$G$205,3,FALSE))," ",(VLOOKUP($C55,Inscription!$A$6:$G$205,4,FALSE)))," ") -> LEMAITRE Alain | F55: =IF(C55>0,(VLOOKUP($C55,Inscription!$A$6:$G$205,5,FALSE))," ") -> ac vildé guingalan | G55: =IF(C55>0,(VLOOKUP($C55,Inscription!$A$6:$G$205,7,FALSE))," ") -> 225454 | H55: =LEFT(IF(C55>0,(VLOOKUP($C55,Inscription!$A$6:$G$205,6,FALSE))," "),8) -> 3ème cat | I55: 0 | J55: =IF(COUNTIF($F$4:$F55,$F55)<2,$F55," ") ->  | M55: =IF(COUNTIF($F$4:$F55,$F55)<3,$F55," ") -> ac vildé guingalan | N55: 59.50980392 | O55: 0 | P55: ac vildé guingalan | Q55: 59.50980392 | R55: 0 | S55: =IF(COUNTIF($F$4:$F55,J55)<4,$F55," ") ->  | AA55: T | AB55: 11 | AC55: 0 | AD55: 1000 | AE55: 1000 | AF55: 1000 | AG55: 1000 | AH55: 1000 | AI55: 1000
A56: 59.50980392 | B56: 4 | C56: 73 | D56: =IF(C56>0,CONCATENATE((VLOOKUP($C56,Inscription!$A$6:$G$205,3,FALSE))," ",(VLOOKUP($C56,Inscription!$A$6:$G$205,4,FALSE)))," ") -> ROPERCH Bruno | F56: =IF(C56>0,(VLOOKUP($C56,Inscription!$A$6:$G$205,5,FALSE))," ") -> uc plaudren | G56: =IF(C56>0,(VLOOKUP($C56,Inscription!$A$6:$G$205,7,FALSE))," ") -> 875266 | H56: =LEFT(IF(C56>0,(VLOOKUP($C56,Inscription!$A$6:$G$205,6,FALSE))," "),8) -> 3ème cat | I56: 0 | J56: =IF(COUNTIF($F$4:$F56,$F56)<2,$F56," ") ->  | M56: =IF(COUNTIF($F$4:$F56,$F56)<3,$F56," ") ->  | Q56: 1000 | R56: 1000 | S56: =IF(COUNTIF($F$4:$F56,J56)<4,$F56," ") ->  | AA56: T | AB56: 12 | AC56: 0 | AD56: 1000 | AE56: 1000 | AF56: 1000 | AG56: 1000 | AH56: 1000 | AI56: 1000
A57: 59.50980392 | B57: 5 | C57: 68 | D57: =IF(C57>0,CONCATENATE((VLOOKUP($C57,Inscription!$A$6:$G$205,3,FALSE))," ",(VLOOKUP($C57,Inscription!$A$6:$G$205,4,FALSE)))," ") -> GOUYA Alain | F57: =IF(C57>0,(VLOOKUP($C57,Inscription!$A$6:$G$205,5,FALSE))," ") -> district loudéac | G57: =IF(C57>0,(VLOOKUP($C57,Inscription!$A$6:$G$205,7,FALSE))," ") -> 136125 | H57: =LEFT(IF(C57>0,(VLOOKUP($C57,Inscription!$A$6:$G$205,6,FALSE))," "),8) -> 3ème cat | I57: 0 | J57: =IF(COUNTIF($F$4:$F57,$F57)<2,$F57," ") ->  | M57: =IF(COUNTIF($F$4:$F57,$F57)<3,$F57," ") ->  | Q57: 1000 | R57: 1000 | S57: =IF(COUNTIF($F$4:$F57,J57)<4,$F57," ") ->  | AA57: T | AB57: 13 | AC57: 0 | AD57: 1000 | AE57: 1000 | AF57: 1000 | AG57: 1000 | AH57: 1000 | AI57: 1000
A58: 59.50980392 | B58: 6 | C58: 61 | D58: =IF(C58>0,CONCATENATE((VLOOKUP($C58,Inscription!$A$6:$G$205,3,FALSE))," ",(VLOOKUP($C58,Inscription!$A$6:$G$205,4,FALSE)))," ") -> GUILLOT Denis | F58: =IF(C58>0,(VLOOKUP($C58,Inscription!$A$6:$G$205,5,FALSE))," ") -> team du pays de dinan guinefort | G58: =IF(C58>0,(VLOOKUP($C58,Inscription!$A$6:$G$205,7,FALSE))," ") -> 844159 | H58: =LEFT(IF(C58>0,(VLOOKUP($C58,Inscription!$A$6:$G$205,6,FALSE))," "),8) -> 3ème cat | I58: 0 | J58: =IF(COUNTIF($F$4:$F58,$F58)<2,$F58," ") ->  | M58: =IF(COUNTIF($F$4:$F58,$F58)<3,$F58," ") -> team du pays de dinan guinefort | N58: 59.50980392 | O58: 0 | P58: team du pays de dinan guinefort | Q58: 59.50980392 | R58: 0 | S58: =IF(COUNTIF($F$4:$F58,J58)<4,$F58," ") ->  | AA58: T | AB58: 14 | AC58: 0 | AD58: 1000 | AE58: 1000 | AF58: 1000 | AG58: 1000 | AH58: 1000 | AI58: 1000
A59: 59.50980392 | B59: 7 | C59: 60 | D59: =IF(C59>0,CONCATENATE((VLOOKUP($C59,Inscription!$A$6:$G$205,3,FALSE))," ",(VLOOKUP($C59,Inscription!$A$6:$G$205,4,FALSE)))," ") -> GOUYA Noel | F59: =IF(C59>0,(VLOOKUP($C59,Inscription!$A$6:$G$205,5,FALSE))," ") -> team du pays de dinan guinefort | G59: =IF(C59>0,(VLOOKUP($C59,Inscription!$A$6:$G$205,7,FALSE))," ") -> 226768 | H59: =LEFT(IF(C59>0,(VLOOKUP($C59,Inscription!$A$6:$G$205,6,FALSE))," "),8) -> 3ème cat | I59: 0 | J59: =IF(COUNTIF($F$4:$F59,$F59)<2,$F59," ") ->  | M59: =IF(COUNTIF($F$4:$F59,$F59)<3,$F59," ") ->  | Q59: 1000 | R59: 1000 | S59: =IF(COUNTIF($F$4:$F59,J59)<4,$F59," ") ->  | AA59: T | AB59: 15 | AC59: 0 | AD59: 1000 | AE59: 1000 | AF59: 1000 | AG59: 1000 | AH59: 1000 | AI59: 1000
A60: 59.50980392 | B60: 8 | C60: 63 | D60: =IF(C60>0,CONCATENATE((VLOOKUP($C60,Inscription!$A$6:$G$205,3,FALSE))," ",(VLOOKUP($C60,Inscription!$A$6:$G$205,4,FALSE)))," ") -> COUALAN Dominique | F60: =IF(C60>0,(VLOOKUP($C60,Inscription!$A$6:$G$205,5,FALSE))," ") -> cc pleven | G60: =IF(C60>0,(VLOOKUP($C60,Inscription!$A$6:$G$205,7,FALSE))," ") -> 153631 | H60: =LEFT(IF(C60>0,(VLOOKUP($C60,Inscription!$A$6:$G$205,6,FALSE))," "),8) -> 3ème cat | I60: 0 | J60: =IF(COUNTIF($F$4:$F60,$F60)<2,$F60," ") -> cc pleven | K60: 59.50980392 | L60: 0 | M60: =IF(COUNTIF($F$4:$F60,$F60)<3,$F60," ") -> cc pleven | N60: 59.50980392 | O60: 0 | Q60: 1000 | R60: 1000 | S60: =IF(COUNTIF($F$4:$F60,J60)<4,$F60," ") -> cc pleven | T60: 59.50980392 | U60: 0 | AA60: T | AB60: 16 | AC60: 0 | AD60: 1000 | AE60: 1000 | AF60: 1000 | AG60: 1000 | AH60: 1000 | AI60: 1000
A61: 59.50980392 | B61: 9 | C61: 71 | D61: =IF(C61>0,CONCATENATE((VLOOKUP($C61,Inscription!$A$6:$G$205,3,FALSE))," ",(VLOOKUP($C61,Inscription!$A$6:$G$205,4,FALSE)))," ") -> GOUPIL Michel | F61: =IF(C61>0,(VLOOKUP($C61,Inscription!$A$6:$G$205,5,FALSE))," ") -> team mégrit | G61: =IF(C61>0,(VLOOKUP($C61,Inscription!$A$6:$G$205,7,FALSE))," ") -> 55779611 | H61: =LEFT(IF(C61>0,(VLOOKUP($C61,Inscription!$A$6:$G$205,6,FALSE))," "),8) -> 3ème cat | I61: 0 | J61: =IF(COUNTIF($F$4:$F61,$F61)<2,$F61," ") ->  | M61: =IF(COUNTIF($F$4:$F61,$F61)<3,$F61," ") ->  | Q61: 1000 | R61: 1000 | S61: =IF(COUNTIF($F$4:$F61,J61)<4,$F61," ") ->  | AA61: T | AB61: 17 | AC61: 0 | AD61: 1000 | AE61: 1000 | AF61: 1000 | AG61: 1000 | AH61: 1000 | AI61: 1000
A62: 10 | B62: 10 | C62: 70 | D62: =IF(C62>0,CONCATENATE((VLOOKUP($C62,Inscription!$A$6:$G$205,3,FALSE))," ",(VLOOKUP($C62,Inscription!$A$6:$G$205,4,FALSE)))," ") -> COLAS Roger | F62: =IF(C62>0,(VLOOKUP($C62,Inscription!$A$6:$G$205,5,FALSE))," ") -> vc crehen | G62: =IF(C62>0,(VLOOKUP($C62,Inscription!$A$6:$G$205,7,FALSE))," ") -> 227437 | H62: =LEFT(IF(C62>0,(VLOOKUP($C62,Inscription!$A$6:$G$205,6,FALSE))," "),8) -> 3ème cat | I62: 0 | J62: =IF(COUNTIF($F$4:$F62,$F62)<2,$F62," ") -> vc crehen | K62: 10 | L62: 0 | M62: =IF(COUNTIF($F$4:$F62,$F62)<3,$F62," ") -> vc crehen | N62: 10 | O62: 0 | Q62: 1000 | R62: 1000 | S62: =IF(COUNTIF($F$4:$F62,J62)<4,$F62," ") -> vc crehen | T62: 10 | U62: 0 | AA62: 10 | AB62: 18 | AC62: 0 | AD62: 1000 | AE62: 1000 | AF62: 1000 | AG62: 1000 | AH62: 1000 | AI62: 1000
A63: 11 | B63: 11 | C63: 66 | D63: =IF(C63>0,CONCATENATE((VLOOKUP($C63,Inscription!$A$6:$G$205,3,FALSE))," ",(VLOOKUP($C63,Inscription!$A$6:$G$205,4,FALSE)))," ") -> GEORGET Charles | F63: =IF(C63>0,(VLOOKUP($C63,Inscription!$A$6:$G$205,5,FALSE))," ") -> district loudéac | G63: =IF(C63>0,(VLOOKUP($C63,Inscription!$A$6:$G$205,7,FALSE))," ") -> 227931 | H63: =LEFT(IF(C63>0,(VLOOKUP($C63,Inscription!$A$6:$G$205,6,FALSE))," "),8) -> 3ème cat | I63: 0 | J63: =IF(COUNTIF($F$4:$F63,$F63)<2,$F63," ") ->  | M63: =IF(COUNTIF($F$4:$F63,$F63)<3,$F63," ") ->  | Q63: 1000 | R63: 1000 | S63: =IF(COUNTIF($F$4:$F63,J63)<4,$F63," ") ->  | AA63: 11 | AB63: 19 | AC63: 0 | AD63: 1000 | AE63: 1000 | AF63: 1000 | AG63: 1000 | AH63: 1000 | AI63: 1000
A64: 12 | B64: 12 | C64: 67 | D64: =IF(C64>0,CONCATENATE((VLOOKUP($C64,Inscription!$A$6:$G$205,3,FALSE))," ",(VLOOKUP($C64,Inscription!$A$6:$G$205,4,FALSE)))," ") -> BEDEL Michel | F64: =IF(C64>0,(VLOOKUP($C64,Inscription!$A$6:$G$205,5,FALSE))," ") -> district loudéac | G64: =IF(C64>0,(VLOOKUP($C64,Inscription!$A$6:$G$205,7,FALSE))," ") -> 267277 | H64: =LEFT(IF(C64>0,(VLOOKUP($C64,Inscription!$A$6:$G$205,6,FALSE))," "),8) -> 3ème cat | I64: 0 | J64: =IF(COUNTIF($F$4:$F64,$F64)<2,$F64," ") ->  | M64: =IF(COUNTIF($F$4:$F64,$F64)<3,$F64," ") ->  | Q64: 1000 | R64: 1000 | S64: =IF(COUNTIF($F$4:$F64,J64)<4,$F64," ") ->  | AA64: 12 | AB64: 20 | AC64: 0 | AD64: 1000 | AE64: 1000 | AF64: 1000 | AG64: 1000 | AH64: 1000 | AI64: 1000
A65: 13 | B65: 13 | C65: 69 | D65: =IF(C65>0,CONCATENATE((VLOOKUP($C65,Inscription!$A$6:$G$205,3,FALSE))," ",(VLOOKUP($C65,Inscription!$A$6:$G$205,4,FALSE)))," ") -> GAILLARD Marcel | F65: =IF(C65>0,(VLOOKUP($C65,Inscription!$A$6:$G$205,5,FALSE))," ") -> cos kerentrech | G65: =IF(C65>0,(VLOOKUP($C65,Inscription!$A$6:$G$205,7,FALSE))," ") -> 57243 | H65: =LEFT(IF(C65>0,(VLOOKUP($C65,Inscription!$A$6:$G$205,6,FALSE))," "),8) -> 3ème cat | I65: 0 | J65: =IF(COUNTIF($F$4:$F65,$F65)<2,$F65," ") -> cos kerentrech | K65: 13 | L65: 0 | M65: =IF(COUNTIF($F$4:$F65,$F65)<3,$F65," ") -> cos kerentrech | N65: 13 | O65: 0 | Q65: 1000 | R65: 1000 | S65: =IF(COUNTIF($F$4:$F65,J65)<4,$F65," ") -> cos kerentrech | T65: 13 | U65: 0 | AA65: 13 | AB65: 21 | AC65: 0 | AD65: 1000 | AE65: 1000 | AF65: 1000 | AG65: 1000 | AH65: 1000 | AI65: 1000
A66: 59.50980392 | B66: DNF | C66: 62 | D66: =IF(C66>0,CONCATENATE((VLOOKUP($C66,Inscription!$A$6:$G$205,3,FALSE))," ",(VLOOKUP($C66,Inscription!$A$6:$G$205,4,FALSE)))," ") -> DURAND Jacques | F66: =IF(C66>0,(VLOOKUP($C66,Inscription!$A$6:$G$205,5,FALSE))," ") -> team du pays de dinan guinefort | G66: =IF(C66>0,(VLOOKUP($C66,Inscription!$A$6:$G$205,7,FALSE))," ") -> 144227 | H66: =LEFT(IF(C66>0,(VLOOKUP($C66,Inscription!$A$6:$G$205,6,FALSE))," "),8) -> 3ème cat | I66: 0 | J66: =IF(COUNTIF($F$4:$F66,$F66)<2,$F66," ") ->  | M66: =IF(COUNTIF($F$4:$F66,$F66)<3,$F66," ") ->  | Q66: 1000 | R66: 1000 | S66: =IF(COUNTIF($F$4:$F66,J66)<4,$F66," ") ->  | AA66: T | AB66: 22 | AC66: 0 | AD66: 1000 | AE66: 1000 | AF66: 1000 | AG66: 1000 | AH66: 1000 | AI66: 1000
A67: 1000 | D67: =IF(C67>0,CONCATENATE((VLOOKUP($C67,Inscription!$A$6:$G$205,3,FALSE))," ",(VLOOKUP($C67,Inscription!$A$6:$G$205,4,FALSE)))," ") ->  | F67: =IF(C67>0,(VLOOKUP($C67,Inscription!$A$6:$G$205,5,FALSE))," ") ->  | G67: =IF(C67>0,(VLOOKUP($C67,Inscription!$A$6:$G$205,7,FALSE))," ") ->  | H67: =LEFT(IF(C67>0,(VLOOKUP($C67,Inscription!$A$6:$G$205,6,FALSE))," "),8) ->  | I67: 0 | J67: =IF(COUNTIF($F$4:$F67,$F67)<2,$F67," ") ->  | K67: 1000 | L67: 0 | M67: =IF(COUNTIF($F$4:$F67,$F67)<3,$F67," ") ->  | N67: 1000 | O67: 0 | Q67: 1000 | R67: 1000 | S67: =IF(COUNTIF($F$4:$F67,J67)<4,$F67," ") ->  | T67: 1000 | U67: 0 | AA67: 0 | AB67: 23 | AC67: 0 | AD67: 1000 | AE67: 1000 | AF67: 1000 | AG67: 1000 | AH67: 1000 | AI67: 1000
A68: =IF(B68<1,1000,(IF(AA68=B68,B68,(20100-SUM($AA$4:$AA$203))/(COUNTIF($AA$4:$AA$203,"T"))))) -> 1000 | D68: =IF(C68>0,CONCATENATE((VLOOKUP($C68,Inscription!$A$6:$G$205,3,FALSE))," ",(VLOOKUP($C68,Inscription!$A$6:$G$205,4,FALSE)))," ") ->  | F68: =IF(C68>0,(VLOOKUP($C68,Inscription!$A$6:$G$205,5,FALSE))," ") ->  | G68: =IF(C68>0,(VLOOKUP($C68,Inscription!$A$6:$G$205,7,FALSE))," ") ->  | H68: =LEFT(IF(C68>0,(VLOOKUP($C68,Inscription!$A$6:$G$205,6,FALSE))," "),8) ->  | I68: 0 | J68: =IF(COUNTIF($F$4:$F68,$F68)<2,$F68," ") ->  | K68: 1000 | L68: 0 | M68: =IF(COUNTIF($F$4:$F68,$F68)<3,$F68," ") ->  | N68: 1000 | O68: 0 | Q68: 1000 | R68: 1000 | S68: =IF(COUNTIF($F$4:$F68,J68)<4,$F68," ") ->  | T68: 1000 | U68: 0 | Z68: =IF(COUNTIF($C$4:$C$203,C68)>1,"X"," ") ->  | AA68: =IF(COUNTIF($B$4:$B$203,B68)>1,"T",B68) -> 0 | AB68: 24 | AC68: 0 | AD68: 1000 | AE68: 1000 | AF68: 1000 | AG68: 1000 | AH68: 1000 | AI68: 1000
A69: 1000 | D69: =IF(C69>0,CONCATENATE((VLOOKUP($C69,Inscription!$A$6:$G$205,3,FALSE))," ",(VLOOKUP($C69,Inscription!$A$6:$G$205,4,FALSE)))," ") ->  | F69: =IF(C69>0,(VLOOKUP($C69,Inscription!$A$6:$G$205,5,FALSE))," ") ->  | G69: =IF(C69>0,(VLOOKUP($C69,Inscription!$A$6:$G$205,7,FALSE))," ") ->  | H69: =LEFT(IF(C69>0,(VLOOKUP($C69,Inscription!$A$6:$G$205,6,FALSE))," "),8) ->  | I69: 0 | J69: =IF(COUNTIF($F$4:$F69,$F69)<2,$F69," ") ->  | K69: =IF(J69=F69,A69,"") -> 1000 | L69: =IF(J69=F69,I69,"") -> 0 | M69: =IF(COUNTIF($F$4:$F69,$F69)<3,$F69," ") ->  | N69: =IF(M69=$F69,$A69,"") -> 1000 | O69: =IF(M69=$F69,$I69,"") -> 0 | P69: =IF(M69=J69,"",M69) ->  | Q69: =IF(P69=$F69,$A69,1000) -> 1000 | R69: =IF(P69=$F69,$I69,1000) -> 1000 | S69: =IF(COUNTIF($F$4:$F69,J69)<4,$F69," ") ->  | T69: =IF(S69=$F69,$A69,"") -> 1000 | U69: =IF(S69=$F69,$I69,"") -> 0 | V69: =IF(S69=J69,"",S69) ->  | W69: =IF(V69=P69,"",S69) ->  | X69: =IF(W69=$F69,$A69,"") ->  | Y69: =IF(W69=$F69,$I69,"") ->  | AA69: 0 | AB69: 25 | AC69: 0 | AD69: 1000 | AE69: 1000 | AF69: 1000 | AG69: 1000 | AH69: 1000 | AI69: 1000
A70: 1000 | D70: =IF(C70>0,CONCATENATE((VLOOKUP($C70,Inscription!$A$6:$G$205,3,FALSE))," ",(VLOOKUP($C70,Inscription!$A$6:$G$205,4,FALSE)))," ") ->  | F70: =IF(C70>0,(VLOOKUP($C70,Inscription!$A$6:$G$205,5,FALSE))," ") ->  | G70: =IF(C70>0,(VLOOKUP($C70,Inscription!$A$6:$G$205,7,FALSE))," ") ->  | H70: =LEFT(IF(C70>0,(VLOOKUP($C70,Inscription!$A$6:$G$205,6,FALSE))," "),8) ->  | I70: =I69 -> 0 | J70: =IF(COUNTIF($F$4:$F70,$F70)<2,$F70," ") ->  | K70: 1000 | L70: 0 | M70: =IF(COUNTIF($F$4:$F70,$F70)<3,$F70," ") ->  | N70: 1000 | O70: 0 | Q70: 1000 | R70: 1000 | S70: =IF(COUNTIF($F$4:$F70,J70)<4,$F70," ") ->  | T70: 1000 | U70: 0 | AA70: 0 | AB70: 26 | AC70: 0 | AD70: 1000 | AE70: 1000 | AF70: 1000 | AG70: 1000 | AH70: 1000 | AI70: 1000
A71: 1000 | D71: =IF(C71>0,CONCATENATE((VLOOKUP($C71,Inscription!$A$6:$G$205,3,FALSE))," ",(VLOOKUP($C71,Inscription!$A$6:$G$205,4,FALSE)))," ") ->  | F71: =IF(C71>0,(VLOOKUP($C71,Inscription!$A$6:$G$205,5,FALSE))," ") ->  | G71: =IF(C71>0,(VLOOKUP($C71,Inscription!$A$6:$G$205,7,FALSE))," ") ->  | H71: =LEFT(IF(C71>0,(VLOOKUP($C71,Inscription!$A$6:$G$205,6,FALSE))," "),8) ->  | I71: 0 | J71: =IF(COUNTIF($F$4:$F71,$F71)<2,$F71," ") ->  | K71: 1000 | L71: 0 | M71: =IF(COUNTIF($F$4:$F71,$F71)<3,$F71," ") ->  | N71: 1000 | O71: 0 | Q71: 1000 | R71: 1000 | S71: =IF(COUNTIF($F$4:$F71,J71)<4,$F71," ") ->  | T71: 1000 | U71: 0 | AA71: 0 | AB71: 27 | AC71: 0 | AD71: 1000 | AE71: 1000 | AF71: 1000 | AG71: 1000 | AH71: 1000 | AI71: 1000
A72: 1000 | D72: =IF(C72>0,CONCATENATE((VLOOKUP($C72,Inscription!$A$6:$G$205,3,FALSE))," ",(VLOOKUP($C72,Inscription!$A$6:$G$205,4,FALSE)))," ") ->  | F72: =IF(C72>0,(VLOOKUP($C72,Inscription!$A$6:$G$205,5,FALSE))," ") ->  | G72: =IF(C72>0,(VLOOKUP($C72,Inscription!$A$6:$G$205,7,FALSE))," ") ->  | H72: =LEFT(IF(C72>0,(VLOOKUP($C72,Inscription!$A$6:$G$205,6,FALSE))," "),8) ->  | I72: 0 | J72: =IF(COUNTIF($F$4:$F72,$F72)<2,$F72," ") ->  | K72: 1000 | L72: 0 | M72: =IF(COUNTIF($F$4:$F72,$F72)<3,$F72," ") ->  | N72: 1000 | O72: 0 | Q72: 1000 | R72: 1000 | S72: =IF(COUNTIF($F$4:$F72,J72)<4,$F72," ") ->  | T72: 1000 | U72: 0 | AA72: 0 | AB72: 28 | AC72: 0 | AD72: 1000 | AE72: 1000 | AF72: 1000 | AG72: 1000 | AH72: 1000 | AI72: 1000
A73: 1000 | D73: =IF(C73>0,CONCATENATE((VLOOKUP($C73,Inscription!$A$6:$G$205,3,FALSE))," ",(VLOOKUP($C73,Inscription!$A$6:$G$205,4,FALSE)))," ") ->  | F73: =IF(C73>0,(VLOOKUP($C73,Inscription!$A$6:$G$205,5,FALSE))," ") ->  | G73: =IF(C73>0,(VLOOKUP($C73,Inscription!$A$6:$G$205,7,FALSE))," ") ->  | H73: =LEFT(IF(C73>0,(VLOOKUP($C73,Inscription!$A$6:$G$205,6,FALSE))," "),8) ->  | I73: 0 | J73: =IF(COUNTIF($F$4:$F73,$F73)<2,$F73," ") ->  | K73: 1000 | L73: 0 | M73: =IF(COUNTIF($F$4:$F73,$F73)<3,$F73," ") ->  | N73: 1000 | O73: 0 | Q73: 1000 | R73: 1000 | S73: =IF(COUNTIF($F$4:$F73,J73)<4,$F73," ") ->  | T73: 1000 | U73: 0 | AA73: 0 | AB73: 29 | AC73: 0 | AD73: 1000 | AE73: 1000 | AF73: 1000 | AG73: 1000 | AH73: 1000 | AI73: 1000
A74: 1000 | D74: =IF(C74>0,CONCATENATE((VLOOKUP($C74,Inscription!$A$6:$G$205,3,FALSE))," ",(VLOOKUP($C74,Inscription!$A$6:$G$205,4,FALSE)))," ") ->  | F74: =IF(C74>0,(VLOOKUP($C74,Inscription!$A$6:$G$205,5,FALSE))," ") ->  | G74: =IF(C74>0,(VLOOKUP($C74,Inscription!$A$6:$G$205,7,FALSE))," ") ->  | H74: =LEFT(IF(C74>0,(VLOOKUP($C74,Inscription!$A$6:$G$205,6,FALSE))," "),8) ->  | I74: 0 | J74: =IF(COUNTIF($F$4:$F74,$F74)<2,$F74," ") ->  | K74: 1000 | L74: 0 | M74: =IF(COUNTIF($F$4:$F74,$F74)<3,$F74," ") ->  | N74: 1000 | O74: 0 | Q74: 1000 | R74: 1000 | S74: =IF(COUNTIF($F$4:$F74,J74)<4,$F74," ") ->  | T74: 1000 | U74: 0 | AA74: 0 | AB74: 30 | AC74: 0 | AD74: 1000 | AE74: 1000 | AF74: 1000 | AG74: 1000 | AH74: 1000 | AI74: 1000
A75: 1000 | D75: =IF(C75>0,CONCATENATE((VLOOKUP($C75,Inscription!$A$6:$G$205,3,FALSE))," ",(VLOOKUP($C75,Inscription!$A$6:$G$205,4,FALSE)))," ") ->  | F75: =IF(C75>0,(VLOOKUP($C75,Inscription!$A$6:$G$205,5,FALSE))," ") ->  | G75: =IF(C75>0,(VLOOKUP($C75,Inscription!$A$6:$G$205,7,FALSE))," ") ->  | H75: =LEFT(IF(C75>0,(VLOOKUP($C75,Inscription!$A$6:$G$205,6,FALSE))," "),8) ->  | I75: 0 | J75: =IF(COUNTIF($F$4:$F75,$F75)<2,$F75," ") ->  | K75: 1000 | L75: 0 | M75: =IF(COUNTIF($F$4:$F75,$F75)<3,$F75," ") ->  | N75: 1000 | O75: 0 | Q75: 1000 | R75: 1000 | S75: =IF(COUNTIF($F$4:$F75,J75)<4,$F75," ") ->  | T75: 1000 | U75: 0 | AA75: 0 | AB75: 31 | AC75: 0 | AD75: 1000 | AE75: 1000 | AF75: 1000 | AG75: 1000 | AH75: 1000 | AI75: 1000
A76: 1000 | D76: =IF(C76>0,CONCATENATE((VLOOKUP($C76,Inscription!$A$6:$G$205,3,FALSE))," ",(VLOOKUP($C76,Inscription!$A$6:$G$205,4,FALSE)))," ") ->  | F76: =IF(C76>0,(VLOOKUP($C76,Inscription!$A$6:$G$205,5,FALSE))," ") ->  | G76: =IF(C76>0,(VLOOKUP($C76,Inscription!$A$6:$G$205,7,FALSE))," ") ->  | H76: =LEFT(IF(C76>0,(VLOOKUP($C76,Inscription!$A$6:$G$205,6,FALSE))," "),8) ->  | I76: 0 | J76: =IF(COUNTIF($F$4:$F76,$F76)<2,$F76," ") ->  | K76: 1000 | L76: 0 | M76: =IF(COUNTIF($F$4:$F76,$F76)<3,$F76," ") ->  | N76: 1000 | O76: 0 | Q76: 1000 | R76: 1000 | S76: =IF(COUNTIF($F$4:$F76,J76)<4,$F76," ") ->  | T76: 1000 | U76: 0 | AA76: 0 | AB76: 32 | AC76: 0 | AD76: 1000 | AE76: 1000 | AF76: 1000 | AG76: 1000 | AH76: 1000 | AI76: 1000
A77: 1000 | D77: =IF(C77>0,CONCATENATE((VLOOKUP($C77,Inscription!$A$6:$G$205,3,FALSE))," ",(VLOOKUP($C77,Inscription!$A$6:$G$205,4,FALSE)))," ") ->  | F77: =IF(C77>0,(VLOOKUP($C77,Inscription!$A$6:$G$205,5,FALSE))," ") ->  | G77: =IF(C77>0,(VLOOKUP($C77,Inscription!$A$6:$G$205,7,FALSE))," ") ->  | H77: =LEFT(IF(C77>0,(VLOOKUP($C77,Inscription!$A$6:$G$205,6,FALSE))," "),8) ->  | I77: 0 | J77: =IF(COUNTIF($F$4:$F77,$F77)<2,$F77," ") ->  | K77: 1000 | L77: 0 | M77: =IF(COUNTIF($F$4:$F77,$F77)<3,$F77," ") ->  | N77: 1000 | O77: 0 | Q77: 1000 | R77: 1000 | S77: =IF(COUNTIF($F$4:$F77,J77)<4,$F77," ") ->  | T77: 1000 | U77: 0 | AA77: 0 | AB77: 33 | AC77: 0 | AD77: 1000 | AE77: 1000 | AF77: 1000 | AG77: 1000 | AH77: 1000 | AI77: 1000
A78: 1000 | D78: =IF(C78>0,CONCATENATE((VLOOKUP($C78,Inscription!$A$6:$G$205,3,FALSE))," ",(VLOOKUP($C78,Inscription!$A$6:$G$205,4,FALSE)))," ") ->  | F78: =IF(C78>0,(VLOOKUP($C78,Inscription!$A$6:$G$205,5,FALSE))," ") ->  | G78: =IF(C78>0,(VLOOKUP($C78,Inscription!$A$6:$G$205,7,FALSE))," ") ->  | H78: =LEFT(IF(C78>0,(VLOOKUP($C78,Inscription!$A$6:$G$205,6,FALSE))," "),8) ->  | I78: 0 | J78: =IF(COUNTIF($F$4:$F78,$F78)<2,$F78," ") ->  | K78: 1000 | L78: 0 | M78: =IF(COUNTIF($F$4:$F78,$F78)<3,$F78," ") ->  | N78: 1000 | O78: 0 | Q78: 1000 | R78: 1000 | S78: =IF(COUNTIF($F$4:$F78,J78)<4,$F78," ") ->  | T78: 1000 | U78: 0 | AA78: 0 | AB78: 34 | AC78: 0 | AD78: 1000 | AE78: 1000 | AF78: 1000 | AG78: 1000 | AH78: 1000 | AI78: 1000
A79: 1000 | D79: =IF(C79>0,CONCATENATE((VLOOKUP($C79,Inscription!$A$6:$G$205,3,FALSE))," ",(VLOOKUP($C79,Inscription!$A$6:$G$205,4,FALSE)))," ") ->  | F79: =IF(C79>0,(VLOOKUP($C79,Inscription!$A$6:$G$205,5,FALSE))," ") ->  | G79: =IF(C79>0,(VLOOKUP($C79,Inscription!$A$6:$G$205,7,FALSE))," ") ->  | H79: =LEFT(IF(C79>0,(VLOOKUP($C79,Inscription!$A$6:$G$205,6,FALSE))," "),8) ->  | I79: 0 | J79: =IF(COUNTIF($F$4:$F79,$F79)<2,$F79," ") ->  | K79: 1000 | L79: 0 | M79: =IF(COUNTIF($F$4:$F79,$F79)<3,$F79," ") ->  | N79: 1000 | O79: 0 | Q79: 1000 | R79: 1000 | S79: =IF(COUNTIF($F$4:$F79,J79)<4,$F79," ") ->  | T79: 1000 | U79: 0 | AA79: 0 | AB79: 35 | AC79: 0 | AD79: 1000 | AE79: 1000 | AF79: 1000 | AG79: 1000 | AH79: 1000 | AI79: 1000
A80: 1000 | D80: =IF(C80>0,CONCATENATE((VLOOKUP($C80,Inscription!$A$6:$G$205,3,FALSE))," ",(VLOOKUP($C80,Inscription!$A$6:$G$205,4,FALSE)))," ") ->  | F80: =IF(C80>0,(VLOOKUP($C80,Inscription!$A$6:$G$205,5,FALSE))," ") ->  | G80: =IF(C80>0,(VLOOKUP($C80,Inscription!$A$6:$G$205,7,FALSE))," ") ->  | H80: =LEFT(IF(C80>0,(VLOOKUP($C80,Inscription!$A$6:$G$205,6,FALSE))," "),8) ->  | I80: 0 | J80: =IF(COUNTIF($F$4:$F80,$F80)<2,$F80," ") ->  | K80: 1000 | L80: 0 | M80: =IF(COUNTIF($F$4:$F80,$F80)<3,$F80," ") ->  | N80: 1000 | O80: 0 | Q80: 1000 | R80: 1000 | S80: =IF(COUNTIF($F$4:$F80,J80)<4,$F80," ") ->  | T80: 1000 | U80: 0 | Z80: =IF(COUNTIF($C$4:$C$203,C80)>1,"X"," ") ->  | AA80: =IF(COUNTIF($B$4:$B$203,B80)>1,"T",B80) -> 0
A81: 1000 | D81: =IF(C81>0,CONCATENATE((VLOOKUP($C81,Inscription!$A$6:$G$205,3,FALSE))," ",(VLOOKUP($C81,Inscription!$A$6:$G$205,4,FALSE)))," ") ->  | F81: =IF(C81>0,(VLOOKUP($C81,Inscription!$A$6:$G$205,5,FALSE))," ") ->  | G81: =IF(C81>0,(VLOOKUP($C81,Inscription!$A$6:$G$205,7,FALSE))," ") ->  | H81: =LEFT(IF(C81>0,(VLOOKUP($C81,Inscription!$A$6:$G$205,6,FALSE))," "),8) ->  | I81: 0 | J81: =IF(COUNTIF($F$4:$F81,$F81)<2,$F81," ") ->  | K81: 1000 | L81: 0 | M81: =IF(COUNTIF($F$4:$F81,$F81)<3,$F81," ") ->  | N81: 1000 | O81: 0 | Q81: 1000 | R81: 1000 | S81: =IF(COUNTIF($F$4:$F81,J81)<4,$F81," ") ->  | T81: 1000 | U81: 0 | AA81: 0
A82: 79 | B82: 79 | D82: =IF(C82>0,CONCATENATE((VLOOKUP($C82,Inscription!$A$6:$G$205,3,FALSE))," ",(VLOOKUP($C82,Inscription!$A$6:$G$205,4,FALSE)))," ") ->  | F82: =IF(C82>0,(VLOOKUP($C82,Inscription!$A$6:$G$205,5,FALSE))," ") ->  | G82: =IF(C82>0,(VLOOKUP($C82,Inscription!$A$6:$G$205,7,FALSE))," ") ->  | H82: =LEFT(IF(C82>0,(VLOOKUP($C82,Inscription!$A$6:$G$205,6,FALSE))," "),8) ->  | I82: 0 | J82: =IF(COUNTIF($F$4:$F82,$F82)<2,$F82," ") ->  | K82: 79 | L82: 0 | M82: =IF(COUNTIF($F$4:$F82,$F82)<3,$F82," ") ->  | N82: 79 | O82: 0 | Q82: 1000 | R82: 1000 | S82: =IF(COUNTIF($F$4:$F82,J82)<4,$F82," ") ->  | T82: 79 | U82: 0 | AA82: 79
A83: 80 | B83: 80 | D83: =IF(C83>0,CONCATENATE((VLOOKUP($C83,Inscription!$A$6:$G$205,3,FALSE))," ",(VLOOKUP($C83,Inscription!$A$6:$G$205,4,FALSE)))," ") ->  | F83: =IF(C83>0,(VLOOKUP($C83,Inscription!$A$6:$G$205,5,FALSE))," ") ->  | G83: =IF(C83>0,(VLOOKUP($C83,Inscription!$A$6:$G$205,7,FALSE))," ") ->  | H83: =LEFT(IF(C83>0,(VLOOKUP($C83,Inscription!$A$6:$G$205,6,FALSE))," "),8) ->  | I83: 0 | J83: =IF(COUNTIF($F$4:$F83,$F83)<2,$F83," ") ->  | K83: 80 | L83: 0 | M83: =IF(COUNTIF($F$4:$F83,$F83)<3,$F83," ") ->  | N83: 80 | O83: 0 | Q83: 1000 | R83: 1000 | S83: =IF(COUNTIF($F$4:$F83,J83)<4,$F83," ") ->  | T83: 80 | U83: 0 | AA83: 80
A84: 81 | B84: 81 | D84: =IF(C84>0,CONCATENATE((VLOOKUP($C84,Inscription!$A$6:$G$205,3,FALSE))," ",(VLOOKUP($C84,Inscription!$A$6:$G$205,4,FALSE)))," ") ->  | F84: =IF(C84>0,(VLOOKUP($C84,Inscription!$A$6:$G$205,5,FALSE))," ") ->  | G84: =IF(C84>0,(VLOOKUP($C84,Inscription!$A$6:$G$205,7,FALSE))," ") ->  | H84: =LEFT(IF(C84>0,(VLOOKUP($C84,Inscription!$A$6:$G$205,6,FALSE))," "),8) ->  | I84: 0 | J84: =IF(COUNTIF($F$4:$F84,$F84)<2,$F84," ") ->  | K84: 81 | L84: 0 | M84: =IF(COUNTIF($F$4:$F84,$F84)<3,$F84," ") ->  | N84: 81 | O84: 0 | Q84: 1000 | R84: 1000 | S84: =IF(COUNTIF($F$4:$F84,J84)<4,$F84," ") ->  | T84: 81 | U84: 0 | AA84: 81
A85: 82 | B85: 82 | D85: =IF(C85>0,CONCATENATE((VLOOKUP($C85,Inscription!$A$6:$G$205,3,FALSE))," ",(VLOOKUP($C85,Inscription!$A$6:$G$205,4,FALSE)))," ") ->  | F85: =IF(C85>0,(VLOOKUP($C85,Inscription!$A$6:$G$205,5,FALSE))," ") ->  | G85: =IF(C85>0,(VLOOKUP($C85,Inscription!$A$6:$G$205,7,FALSE))," ") ->  | H85: =LEFT(IF(C85>0,(VLOOKUP($C85,Inscription!$A$6:$G$205,6,FALSE))," "),8) ->  | I85: 0 | J85: =IF(COUNTIF($F$4:$F85,$F85)<2,$F85," ") ->  | K85: 82 | L85: 0 | M85: =IF(COUNTIF($F$4:$F85,$F85)<3,$F85," ") ->  | N85: 82 | O85: 0 | Q85: 1000 | R85: 1000 | S85: =IF(COUNTIF($F$4:$F85,J85)<4,$F85," ") ->  | T85: 82 | U85: 0 | AA85: 82
A86: 83 | B86: 83 | D86: =IF(C86>0,CONCATENATE((VLOOKUP($C86,Inscription!$A$6:$G$205,3,FALSE))," ",(VLOOKUP($C86,Inscription!$A$6:$G$205,4,FALSE)))," ") ->  | F86: =IF(C86>0,(VLOOKUP($C86,Inscription!$A$6:$G$205,5,FALSE))," ") ->  | G86: =IF(C86>0,(VLOOKUP($C86,Inscription!$A$6:$G$205,7,FALSE))," ") ->  | H86: =LEFT(IF(C86>0,(VLOOKUP($C86,Inscription!$A$6:$G$205,6,FALSE))," "),8) ->  | I86: 0 | J86: =IF(COUNTIF($F$4:$F86,$F86)<2,$F86," ") ->  | K86: 83 | L86: 0 | M86: =IF(COUNTIF($F$4:$F86,$F86)<3,$F86," ") ->  | N86: 83 | O86: 0 | Q86: 1000 | R86: 1000 | S86: =IF(COUNTIF($F$4:$F86,J86)<4,$F86," ") ->  | T86: 83 | U86: 0 | AA86: 83
A87: 84 | B87: 84 | D87: =IF(C87>0,CONCATENATE((VLOOKUP($C87,Inscription!$A$6:$G$205,3,FALSE))," ",(VLOOKUP($C87,Inscription!$A$6:$G$205,4,FALSE)))," ") ->  | F87: =IF(C87>0,(VLOOKUP($C87,Inscription!$A$6:$G$205,5,FALSE))," ") ->  | G87: =IF(C87>0,(VLOOKUP($C87,Inscription!$A$6:$G$205,7,FALSE))," ") ->  | H87: =LEFT(IF(C87>0,(VLOOKUP($C87,Inscription!$A$6:$G$205,6,FALSE))," "),8) ->  | I87: 0 | J87: =IF(COUNTIF($F$4:$F87,$F87)<2,$F87," ") ->  | K87: 84 | L87: 0 | M87: =IF(COUNTIF($F$4:$F87,$F87)<3,$F87," ") ->  | N87: 84 | O87: 0 | Q87: 1000 | R87: 1000 | S87: =IF(COUNTIF($F$4:$F87,J87)<4,$F87," ") ->  | T87: 84 | U87: 0 | AA87: 84
A88: 85 | B88: 85 | D88: =IF(C88>0,CONCATENATE((VLOOKUP($C88,Inscription!$A$6:$G$205,3,FALSE))," ",(VLOOKUP($C88,Inscription!$A$6:$G$205,4,FALSE)))," ") ->  | F88: =IF(C88>0,(VLOOKUP($C88,Inscription!$A$6:$G$205,5,FALSE))," ") ->  | G88: =IF(C88>0,(VLOOKUP($C88,Inscription!$A$6:$G$205,7,FALSE))," ") ->  | H88: =LEFT(IF(C88>0,(VLOOKUP($C88,Inscription!$A$6:$G$205,6,FALSE))," "),8) ->  | I88: 0 | J88: =IF(COUNTIF($F$4:$F88,$F88)<2,$F88," ") ->  | K88: 85 | L88: 0 | M88: =IF(COUNTIF($F$4:$F88,$F88)<3,$F88," ") ->  | N88: 85 | O88: 0 | Q88: 1000 | R88: 1000 | S88: =IF(COUNTIF($F$4:$F88,J88)<4,$F88," ") ->  | T88: 85 | U88: 0 | AA88: 85
A89: 86 | B89: 86 | D89: =IF(C89>0,CONCATENATE((VLOOKUP($C89,Inscription!$A$6:$G$205,3,FALSE))," ",(VLOOKUP($C89,Inscription!$A$6:$G$205,4,FALSE)))," ") ->  | F89: =IF(C89>0,(VLOOKUP($C89,Inscription!$A$6:$G$205,5,FALSE))," ") ->  | G89: =IF(C89>0,(VLOOKUP($C89,Inscription!$A$6:$G$205,7,FALSE))," ") ->  | H89: =LEFT(IF(C89>0,(VLOOKUP($C89,Inscription!$A$6:$G$205,6,FALSE))," "),8) ->  | I89: 0 | J89: =IF(COUNTIF($F$4:$F89,$F89)<2,$F89," ") ->  | K89: 86 | L89: 0 | M89: =IF(COUNTIF($F$4:$F89,$F89)<3,$F89," ") ->  | N89: 86 | O89: 0 | Q89: 1000 | R89: 1000 | S89: =IF(COUNTIF($F$4:$F89,J89)<4,$F89," ") ->  | T89: 86 | U89: 0 | AA89: 86
A90: 87 | B90: 87 | D90: =IF(C90>0,CONCATENATE((VLOOKUP($C90,Inscription!$A$6:$G$205,3,FALSE))," ",(VLOOKUP($C90,Inscription!$A$6:$G$205,4,FALSE)))," ") ->  | F90: =IF(C90>0,(VLOOKUP($C90,Inscription!$A$6:$G$205,5,FALSE))," ") ->  | G90: =IF(C90>0,(VLOOKUP($C90,Inscription!$A$6:$G$205,7,FALSE))," ") ->  | H90: =LEFT(IF(C90>0,(VLOOKUP($C90,Inscription!$A$6:$G$205,6,FALSE))," "),8) ->  | I90: 0 | J90: =IF(COUNTIF($F$4:$F90,$F90)<2,$F90," ") ->  | K90: 87 | L90: 0 | M90: =IF(COUNTIF($F$4:$F90,$F90)<3,$F90," ") ->  | N90: 87 | O90: 0 | Q90: 1000 | R90: 1000 | S90: =IF(COUNTIF($F$4:$F90,J90)<4,$F90," ") ->  | T90: 87 | U90: 0 | AA90: 87
A91: 88 | B91: 88 | D91: =IF(C91>0,CONCATENATE((VLOOKUP($C91,Inscription!$A$6:$G$205,3,FALSE))," ",(VLOOKUP($C91,Inscription!$A$6:$G$205,4,FALSE)))," ") ->  | F91: =IF(C91>0,(VLOOKUP($C91,Inscription!$A$6:$G$205,5,FALSE))," ") ->  | G91: =IF(C91>0,(VLOOKUP($C91,Inscription!$A$6:$G$205,7,FALSE))," ") ->  | H91: =LEFT(IF(C91>0,(VLOOKUP($C91,Inscription!$A$6:$G$205,6,FALSE))," "),8) ->  | I91: 0 | J91: =IF(COUNTIF($F$4:$F91,$F91)<2,$F91," ") ->  | K91: 88 | L91: 0 | M91: =IF(COUNTIF($F$4:$F91,$F91)<3,$F91," ") ->  | N91: 88 | O91: 0 | Q91: 1000 | R91: 1000 | S91: =IF(COUNTIF($F$4:$F91,J91)<4,$F91," ") ->  | T91: 88 | U91: 0 | AA91: 88
A92: 89 | B92: 89 | D92: =IF(C92>0,CONCATENATE((VLOOKUP($C92,Inscription!$A$6:$G$205,3,FALSE))," ",(VLOOKUP($C92,Inscription!$A$6:$G$205,4,FALSE)))," ") ->  | F92: =IF(C92>0,(VLOOKUP($C92,Inscription!$A$6:$G$205,5,FALSE))," ") ->  | G92: =IF(C92>0,(VLOOKUP($C92,Inscription!$A$6:$G$205,7,FALSE))," ") ->  | H92: =LEFT(IF(C92>0,(VLOOKUP($C92,Inscription!$A$6:$G$205,6,FALSE))," "),8) ->  | I92: 0 | J92: =IF(COUNTIF($F$4:$F92,$F92)<2,$F92," ") ->  | K92: 89 | L92: 0 | M92: =IF(COUNTIF($F$4:$F92,$F92)<3,$F92," ") ->  | N92: 89 | O92: 0 | Q92: 1000 | R92: 1000 | S92: =IF(COUNTIF($F$4:$F92,J92)<4,$F92," ") ->  | T92: 89 | U92: 0 | AA92: 89
A93: 90 | B93: 90 | D93: =IF(C93>0,CONCATENATE((VLOOKUP($C93,Inscription!$A$6:$G$205,3,FALSE))," ",(VLOOKUP($C93,Inscription!$A$6:$G$205,4,FALSE)))," ") ->  | F93: =IF(C93>0,(VLOOKUP($C93,Inscription!$A$6:$G$205,5,FALSE))," ") ->  | G93: =IF(C93>0,(VLOOKUP($C93,Inscription!$A$6:$G$205,7,FALSE))," ") ->  | H93: =LEFT(IF(C93>0,(VLOOKUP($C93,Inscription!$A$6:$G$205,6,FALSE))," "),8) ->  | I93: 0 | J93: =IF(COUNTIF($F$4:$F93,$F93)<2,$F93," ") ->  | K93: 90 | L93: 0 | M93: =IF(COUNTIF($F$4:$F93,$F93)<3,$F93," ") ->  | N93: 90 | O93: 0 | Q93: 1000 | R93: 1000 | S93: =IF(COUNTIF($F$4:$F93,J93)<4,$F93," ") ->  | T93: 90 | U93: 0 | AA93: 90
A94: 91 | B94: 91 | D94: =IF(C94>0,CONCATENATE((VLOOKUP($C94,Inscription!$A$6:$G$205,3,FALSE))," ",(VLOOKUP($C94,Inscription!$A$6:$G$205,4,FALSE)))," ") ->  | F94: =IF(C94>0,(VLOOKUP($C94,Inscription!$A$6:$G$205,5,FALSE))," ") ->  | G94: =IF(C94>0,(VLOOKUP($C94,Inscription!$A$6:$G$205,7,FALSE))," ") ->  | H94: =LEFT(IF(C94>0,(VLOOKUP($C94,Inscription!$A$6:$G$205,6,FALSE))," "),8) ->  | I94: 0 | J94: =IF(COUNTIF($F$4:$F94,$F94)<2,$F94," ") ->  | K94: 91 | L94: 0 | M94: =IF(COUNTIF($F$4:$F94,$F94)<3,$F94," ") ->  | N94: 91 | O94: 0 | Q94: 1000 | R94: 1000 | S94: =IF(COUNTIF($F$4:$F94,J94)<4,$F94," ") ->  | T94: 91 | U94: 0 | AA94: 91
A95: 92 | B95: 92 | D95: =IF(C95>0,CONCATENATE((VLOOKUP($C95,Inscription!$A$6:$G$205,3,FALSE))," ",(VLOOKUP($C95,Inscription!$A$6:$G$205,4,FALSE)))," ") ->  | F95: =IF(C95>0,(VLOOKUP($C95,Inscription!$A$6:$G$205,5,FALSE))," ") ->  | G95: =IF(C95>0,(VLOOKUP($C95,Inscription!$A$6:$G$205,7,FALSE))," ") ->  | H95: =LEFT(IF(C95>0,(VLOOKUP($C95,Inscription!$A$6:$G$205,6,FALSE))," "),8) ->  | I95: 0 | J95: =IF(COUNTIF($F$4:$F95,$F95)<2,$F95," ") ->  | K95: 92 | L95: 0 | M95: =IF(COUNTIF($F$4:$F95,$F95)<3,$F95," ") ->  | N95: 92 | O95: 0 | Q95: 1000 | R95: 1000 | S95: =IF(COUNTIF($F$4:$F95,J95)<4,$F95," ") ->  | T95: 92 | U95: 0 | AA95: 92
A96: 93 | B96: 93 | D96: =IF(C96>0,CONCATENATE((VLOOKUP($C96,Inscription!$A$6:$G$205,3,FALSE))," ",(VLOOKUP($C96,Inscription!$A$6:$G$205,4,FALSE)))," ") ->  | F96: =IF(C96>0,(VLOOKUP($C96,Inscription!$A$6:$G$205,5,FALSE))," ") ->  | G96: =IF(C96>0,(VLOOKUP($C96,Inscription!$A$6:$G$205,7,FALSE))," ") ->  | H96: =LEFT(IF(C96>0,(VLOOKUP($C96,Inscription!$A$6:$G$205,6,FALSE))," "),8) ->  | I96: 0 | J96: =IF(COUNTIF($F$4:$F96,$F96)<2,$F96," ") ->  | K96: 93 | L96: 0 | M96: =IF(COUNTIF($F$4:$F96,$F96)<3,$F96," ") ->  | N96: 93 | O96: 0 | Q96: 1000 | R96: 1000 | S96: =IF(COUNTIF($F$4:$F96,J96)<4,$F96," ") ->  | T96: 93 | U96: 0 | AA96: 93
A97: 94 | B97: 94 | D97: =IF(C97>0,CONCATENATE((VLOOKUP($C97,Inscription!$A$6:$G$205,3,FALSE))," ",(VLOOKUP($C97,Inscription!$A$6:$G$205,4,FALSE)))," ") ->  | F97: =IF(C97>0,(VLOOKUP($C97,Inscription!$A$6:$G$205,5,FALSE))," ") ->  | G97: =IF(C97>0,(VLOOKUP($C97,Inscription!$A$6:$G$205,7,FALSE))," ") ->  | H97: =LEFT(IF(C97>0,(VLOOKUP($C97,Inscription!$A$6:$G$205,6,FALSE))," "),8) ->  | I97: 0 | J97: =IF(COUNTIF($F$4:$F97,$F97)<2,$F97," ") ->  | K97: 94 | L97: 0 | M97: =IF(COUNTIF($F$4:$F97,$F97)<3,$F97," ") ->  | N97: 94 | O97: 0 | Q97: 1000 | R97: 1000 | S97: =IF(COUNTIF($F$4:$F97,J97)<4,$F97," ") ->  | T97: 94 | U97: 0 | AA97: 94
A98: 95 | B98: 95 | D98: =IF(C98>0,CONCATENATE((VLOOKUP($C98,Inscription!$A$6:$G$205,3,FALSE))," ",(VLOOKUP($C98,Inscription!$A$6:$G$205,4,FALSE)))," ") ->  | F98: =IF(C98>0,(VLOOKUP($C98,Inscription!$A$6:$G$205,5,FALSE))," ") ->  | G98: =IF(C98>0,(VLOOKUP($C98,Inscription!$A$6:$G$205,7,FALSE))," ") ->  | H98: =LEFT(IF(C98>0,(VLOOKUP($C98,Inscription!$A$6:$G$205,6,FALSE))," "),8) ->  | I98: 0 | J98: =IF(COUNTIF($F$4:$F98,$F98)<2,$F98," ") ->  | K98: 95 | L98: 0 | M98: =IF(COUNTIF($F$4:$F98,$F98)<3,$F98," ") ->  | N98: 95 | O98: 0 | Q98: 1000 | R98: 1000 | S98: =IF(COUNTIF($F$4:$F98,J98)<4,$F98," ") ->  | T98: 95 | U98: 0 | AA98: 95
A99: 96 | B99: 96 | D99: =IF(C99>0,CONCATENATE((VLOOKUP($C99,Inscription!$A$6:$G$205,3,FALSE))," ",(VLOOKUP($C99,Inscription!$A$6:$G$205,4,FALSE)))," ") ->  | F99: =IF(C99>0,(VLOOKUP($C99,Inscription!$A$6:$G$205,5,FALSE))," ") ->  | G99: =IF(C99>0,(VLOOKUP($C99,Inscription!$A$6:$G$205,7,FALSE))," ") ->  | H99: =LEFT(IF(C99>0,(VLOOKUP($C99,Inscription!$A$6:$G$205,6,FALSE))," "),8) ->  | I99: 0 | J99: =IF(COUNTIF($F$4:$F99,$F99)<2,$F99," ") ->  | K99: 96 | L99: 0 | M99: =IF(COUNTIF($F$4:$F99,$F99)<3,$F99," ") ->  | N99: 96 | O99: 0 | Q99: 1000 | R99: 1000 | S99: =IF(COUNTIF($F$4:$F99,J99)<4,$F99," ") ->  | T99: 96 | U99: 0 | AA99: 96
A100: 97 | B100: 97 | D100: =IF(C100>0,CONCATENATE((VLOOKUP($C100,Inscription!$A$6:$G$205,3,FALSE))," ",(VLOOKUP($C100,Inscription!$A$6:$G$205,4,FALSE)))," ") ->  | F100: =IF(C100>0,(VLOOKUP($C100,Inscription!$A$6:$G$205,5,FALSE))," ") ->  | G100: =IF(C100>0,(VLOOKUP($C100,Inscription!$A$6:$G$205,7,FALSE))," ") ->  | H100: =LEFT(IF(C100>0,(VLOOKUP($C100,Inscription!$A$6:$G$205,6,FALSE))," "),8) ->  | I100: 0 | J100: =IF(COUNTIF($F$4:$F100,$F100)<2,$F100," ") ->  | K100: 97 | L100: 0 | M100: =IF(COUNTIF($F$4:$F100,$F100)<3,$F100," ") ->  | N100: 97 | O100: 0 | Q100: 1000 | R100: 1000 | S100: =IF(COUNTIF($F$4:$F100,J100)<4,$F100," ") ->  | T100: 97 | U100: 0 | AA100: 97
A101: 98 | B101: 98 | D101: =IF(C101>0,CONCATENATE((VLOOKUP($C101,Inscription!$A$6:$G$205,3,FALSE))," ",(VLOOKUP($C101,Inscription!$A$6:$G$205,4,FALSE)))," ") ->  | F101: =IF(C101>0,(VLOOKUP($C101,Inscription!$A$6:$G$205,5,FALSE))," ") ->  | G101: =IF(C101>0,(VLOOKUP($C101,Inscription!$A$6:$G$205,7,FALSE))," ") ->  | H101: =LEFT(IF(C101>0,(VLOOKUP($C101,Inscription!$A$6:$G$205,6,FALSE))," "),8) ->  | I101: 0 | J101: =IF(COUNTIF($F$4:$F101,$F101)<2,$F101," ") ->  | K101: 98 | L101: 0 | M101: =IF(COUNTIF($F$4:$F101,$F101)<3,$F101," ") ->  | N101: 98 | O101: 0 | Q101: 1000 | R101: 1000 | S101: =IF(COUNTIF($F$4:$F101,J101)<4,$F101," ") ->  | T101: 98 | U101: 0 | AA101: 98
A102: 99 | B102: 99 | D102: =IF(C102>0,CONCATENATE((VLOOKUP($C102,Inscription!$A$6:$G$205,3,FALSE))," ",(VLOOKUP($C102,Inscription!$A$6:$G$205,4,FALSE)))," ") ->  | F102: =IF(C102>0,(VLOOKUP($C102,Inscription!$A$6:$G$205,5,FALSE))," ") ->  | G102: =IF(C102>0,(VLOOKUP($C102,Inscription!$A$6:$G$205,7,FALSE))," ") ->  | H102: =LEFT(IF(C102>0,(VLOOKUP($C102,Inscription!$A$6:$G$205,6,FALSE))," "),8) ->  | I102: 0 | J102: =IF(COUNTIF($F$4:$F102,$F102)<2,$F102," ") ->  | K102: 99 | L102: 0 | M102: =IF(COUNTIF($F$4:$F102,$F102)<3,$F102," ") ->  | N102: 99 | O102: 0 | Q102: 1000 | R102: 1000 | S102: =IF(COUNTIF($F$4:$F102,J102)<4,$F102," ") ->  | T102: 99 | U102: 0 | AA102: 99
A103: 100 | B103: 100 | D103: =IF(C103>0,CONCATENATE((VLOOKUP($C103,Inscription!$A$6:$G$205,3,FALSE))," ",(VLOOKUP($C103,Inscription!$A$6:$G$205,4,FALSE)))," ") ->  | F103: =IF(C103>0,(VLOOKUP($C103,Inscription!$A$6:$G$205,5,FALSE))," ") ->  | G103: =IF(C103>0,(VLOOKUP($C103,Inscription!$A$6:$G$205,7,FALSE))," ") ->  | H103: =LEFT(IF(C103>0,(VLOOKUP($C103,Inscription!$A$6:$G$205,6,FALSE))," "),8) ->  | I103: 0 | J103: =IF(COUNTIF($F$4:$F103,$F103)<2,$F103," ") ->  | K103: 100 | L103: 0 | M103: =IF(COUNTIF($F$4:$F103,$F103)<3,$F103," ") ->  | N103: 100 | O103: 0 | Q103: 1000 | R103: 1000 | S103: =IF(COUNTIF($F$4:$F103,J103)<4,$F103," ") ->  | T103: 100 | U103: 0 | AA103: 100
A104: 101 | B104: 101 | D104: =IF(C104>0,CONCATENATE((VLOOKUP($C104,Inscription!$A$6:$G$205,3,FALSE))," ",(VLOOKUP($C104,Inscription!$A$6:$G$205,4,FALSE)))," ") ->  | F104: =IF(C104>0,(VLOOKUP($C104,Inscription!$A$6:$G$205,5,FALSE))," ") ->  | G104: =IF(C104>0,(VLOOKUP($C104,Inscription!$A$6:$G$205,7,FALSE))," ") ->  | H104: =LEFT(IF(C104>0,(VLOOKUP($C104,Inscription!$A$6:$G$205,6,FALSE))," "),8) ->  | I104: 0 | J104: =IF(COUNTIF($F$4:$F104,$F104)<2,$F104," ") ->  | K104: 101 | L104: 0 | M104: =IF(COUNTIF($F$4:$F104,$F104)<3,$F104," ") ->  | N104: 101 | O104: 0 | Q104: 1000 | R104: 1000 | S104: =IF(COUNTIF($F$4:$F104,J104)<4,$F104," ") ->  | T104: 101 | U104: 0 | AA104: 101
A105: 102 | B105: 102 | D105: =IF(C105>0,CONCATENATE((VLOOKUP($C105,Inscription!$A$6:$G$205,3,FALSE))," ",(VLOOKUP($C105,Inscription!$A$6:$G$205,4,FALSE)))," ") ->  | F105: =IF(C105>0,(VLOOKUP($C105,Inscription!$A$6:$G$205,5,FALSE))," ") ->  | G105: =IF(C105>0,(VLOOKUP($C105,Inscription!$A$6:$G$205,7,FALSE))," ") ->  | H105: =LEFT(IF(C105>0,(VLOOKUP($C105,Inscription!$A$6:$G$205,6,FALSE))," "),8) ->  | I105: 0 | J105: =IF(COUNTIF($F$4:$F105,$F105)<2,$F105," ") ->  | K105: 102 | L105: 0 | M105: =IF(COUNTIF($F$4:$F105,$F105)<3,$F105," ") ->  | N105: 102 | O105: 0 | Q105: 1000 | R105: 1000 | S105: =IF(COUNTIF($F$4:$F105,J105)<4,$F105," ") ->  | T105: 102 | U105: 0 | AA105: 102
A106: 103 | B106: 103 | D106: =IF(C106>0,CONCATENATE((VLOOKUP($C106,Inscription!$A$6:$G$205,3,FALSE))," ",(VLOOKUP($C106,Inscription!$A$6:$G$205,4,FALSE)))," ") ->  | F106: =IF(C106>0,(VLOOKUP($C106,Inscription!$A$6:$G$205,5,FALSE))," ") ->  | G106: =IF(C106>0,(VLOOKUP($C106,Inscription!$A$6:$G$205,7,FALSE))," ") ->  | H106: =LEFT(IF(C106>0,(VLOOKUP($C106,Inscription!$A$6:$G$205,6,FALSE))," "),8) ->  | I106: 0 | J106: =IF(COUNTIF($F$4:$F106,$F106)<2,$F106," ") ->  | K106: 103 | L106: 0 | M106: =IF(COUNTIF($F$4:$F106,$F106)<3,$F106," ") ->  | N106: 103 | O106: 0 | Q106: 1000 | R106: 1000 | S106: =IF(COUNTIF($F$4:$F106,J106)<4,$F106," ") ->  | T106: 103 | U106: 0 | AA106: 103
A107: 104 | B107: 104 | D107: =IF(C107>0,CONCATENATE((VLOOKUP($C107,Inscription!$A$6:$G$205,3,FALSE))," ",(VLOOKUP($C107,Inscription!$A$6:$G$205,4,FALSE)))," ") ->  | F107: =IF(C107>0,(VLOOKUP($C107,Inscription!$A$6:$G$205,5,FALSE))," ") ->  | G107: =IF(C107>0,(VLOOKUP($C107,Inscription!$A$6:$G$205,7,FALSE))," ") ->  | H107: =LEFT(IF(C107>0,(VLOOKUP($C107,Inscription!$A$6:$G$205,6,FALSE))," "),8) ->  | I107: 0 | J107: =IF(COUNTIF($F$4:$F107,$F107)<2,$F107," ") ->  | K107: 104 | L107: 0 | M107: =IF(COUNTIF($F$4:$F107,$F107)<3,$F107," ") ->  | N107: 104 | O107: 0 | Q107: 1000 | R107: 1000 | S107: =IF(COUNTIF($F$4:$F107,J107)<4,$F107," ") ->  | T107: 104 | U107: 0 | AA107: 104
A108: 105 | B108: 105 | D108: =IF(C108>0,CONCATENATE((VLOOKUP($C108,Inscription!$A$6:$G$205,3,FALSE))," ",(VLOOKUP($C108,Inscription!$A$6:$G$205,4,FALSE)))," ") ->  | F108: =IF(C108>0,(VLOOKUP($C108,Inscription!$A$6:$G$205,5,FALSE))," ") ->  | G108: =IF(C108>0,(VLOOKUP($C108,Inscription!$A$6:$G$205,7,FALSE))," ") ->  | H108: =LEFT(IF(C108>0,(VLOOKUP($C108,Inscription!$A$6:$G$205,6,FALSE))," "),8) ->  | I108: 0 | J108: =IF(COUNTIF($F$4:$F108,$F108)<2,$F108," ") ->  | K108: 105 | L108: 0 | M108: =IF(COUNTIF($F$4:$F108,$F108)<3,$F108," ") ->  | N108: 105 | O108: 0 | Q108: 1000 | R108: 1000 | S108: =IF(COUNTIF($F$4:$F108,J108)<4,$F108," ") ->  | T108: 105 | U108: 0 | AA108: 105
A109: 106 | B109: 106 | D109: =IF(C109>0,CONCATENATE((VLOOKUP($C109,Inscription!$A$6:$G$205,3,FALSE))," ",(VLOOKUP($C109,Inscription!$A$6:$G$205,4,FALSE)))," ") ->  | F109: =IF(C109>0,(VLOOKUP($C109,Inscription!$A$6:$G$205,5,FALSE))," ") ->  | G109: =IF(C109>0,(VLOOKUP($C109,Inscription!$A$6:$G$205,7,FALSE))," ") ->  | H109: =LEFT(IF(C109>0,(VLOOKUP($C109,Inscription!$A$6:$G$205,6,FALSE))," "),8) ->  | I109: 0 | J109: =IF(COUNTIF($F$4:$F109,$F109)<2,$F109," ") ->  | K109: 106 | L109: 0 | M109: =IF(COUNTIF($F$4:$F109,$F109)<3,$F109," ") ->  | N109: 106 | O109: 0 | Q109: 1000 | R109: 1000 | S109: =IF(COUNTIF($F$4:$F109,J109)<4,$F109," ") ->  | T109: 106 | U109: 0 | AA109: 106
A110: 107 | B110: 107 | D110: =IF(C110>0,CONCATENATE((VLOOKUP($C110,Inscription!$A$6:$G$205,3,FALSE))," ",(VLOOKUP($C110,Inscription!$A$6:$G$205,4,FALSE)))," ") ->  | F110: =IF(C110>0,(VLOOKUP($C110,Inscription!$A$6:$G$205,5,FALSE))," ") ->  | G110: =IF(C110>0,(VLOOKUP($C110,Inscription!$A$6:$G$205,7,FALSE))," ") ->  | H110: =LEFT(IF(C110>0,(VLOOKUP($C110,Inscription!$A$6:$G$205,6,FALSE))," "),8) ->  | I110: 0 | J110: =IF(COUNTIF($F$4:$F110,$F110)<2,$F110," ") ->  | K110: 107 | L110: 0 | M110: =IF(COUNTIF($F$4:$F110,$F110)<3,$F110," ") ->  | N110: 107 | O110: 0 | Q110: 1000 | R110: 1000 | S110: =IF(COUNTIF($F$4:$F110,J110)<4,$F110," ") ->  | T110: 107 | U110: 0 | AA110: 107
A111: 108 | B111: 108 | D111: =IF(C111>0,CONCATENATE((VLOOKUP($C111,Inscription!$A$6:$G$205,3,FALSE))," ",(VLOOKUP($C111,Inscription!$A$6:$G$205,4,FALSE)))," ") ->  | F111: =IF(C111>0,(VLOOKUP($C111,Inscription!$A$6:$G$205,5,FALSE))," ") ->  | G111: =IF(C111>0,(VLOOKUP($C111,Inscription!$A$6:$G$205,7,FALSE))," ") ->  | H111: =LEFT(IF(C111>0,(VLOOKUP($C111,Inscription!$A$6:$G$205,6,FALSE))," "),8) ->  | I111: 0 | J111: =IF(COUNTIF($F$4:$F111,$F111)<2,$F111," ") ->  | K111: 108 | L111: 0 | M111: =IF(COUNTIF($F$4:$F111,$F111)<3,$F111," ") ->  | N111: 108 | O111: 0 | Q111: 1000 | R111: 1000 | S111: =IF(COUNTIF($F$4:$F111,J111)<4,$F111," ") ->  | T111: 108 | U111: 0 | AA111: 108
A112: 109 | B112: 109 | D112: =IF(C112>0,CONCATENATE((VLOOKUP($C112,Inscription!$A$6:$G$205,3,FALSE))," ",(VLOOKUP($C112,Inscription!$A$6:$G$205,4,FALSE)))," ") ->  | F112: =IF(C112>0,(VLOOKUP($C112,Inscription!$A$6:$G$205,5,FALSE))," ") ->  | G112: =IF(C112>0,(VLOOKUP($C112,Inscription!$A$6:$G$205,7,FALSE))," ") ->  | H112: =LEFT(IF(C112>0,(VLOOKUP($C112,Inscription!$A$6:$G$205,6,FALSE))," "),8) ->  | I112: 0 | J112: =IF(COUNTIF($F$4:$F112,$F112)<2,$F112," ") ->  | K112: 109 | L112: 0 | M112: =IF(COUNTIF($F$4:$F112,$F112)<3,$F112," ") ->  | N112: 109 | O112: 0 | Q112: 1000 | R112: 1000 | S112: =IF(COUNTIF($F$4:$F112,J112)<4,$F112," ") ->  | T112: 109 | U112: 0 | AA112: 109
A113: 110 | B113: 110 | D113: =IF(C113>0,CONCATENATE((VLOOKUP($C113,Inscription!$A$6:$G$205,3,FALSE))," ",(VLOOKUP($C113,Inscription!$A$6:$G$205,4,FALSE)))," ") ->  | F113: =IF(C113>0,(VLOOKUP($C113,Inscription!$A$6:$G$205,5,FALSE))," ") ->  | G113: =IF(C113>0,(VLOOKUP($C113,Inscription!$A$6:$G$205,7,FALSE))," ") ->  | H113: =LEFT(IF(C113>0,(VLOOKUP($C113,Inscription!$A$6:$G$205,6,FALSE))," "),8) ->  | I113: 0 | J113: =IF(COUNTIF($F$4:$F113,$F113)<2,$F113," ") ->  | K113: 110 | L113: 0 | M113: =IF(COUNTIF($F$4:$F113,$F113)<3,$F113," ") ->  | N113: 110 | O113: 0 | Q113: 1000 | R113: 1000 | S113: =IF(COUNTIF($F$4:$F113,J113)<4,$F113," ") ->  | T113: 110 | U113: 0 | AA113: 110
A114: 111 | B114: 111 | D114: =IF(C114>0,CONCATENATE((VLOOKUP($C114,Inscription!$A$6:$G$205,3,FALSE))," ",(VLOOKUP($C114,Inscription!$A$6:$G$205,4,FALSE)))," ") ->  | F114: =IF(C114>0,(VLOOKUP($C114,Inscription!$A$6:$G$205,5,FALSE))," ") ->  | G114: =IF(C114>0,(VLOOKUP($C114,Inscription!$A$6:$G$205,7,FALSE))," ") ->  | H114: =LEFT(IF(C114>0,(VLOOKUP($C114,Inscription!$A$6:$G$205,6,FALSE))," "),8) ->  | I114: 0 | J114: =IF(COUNTIF($F$4:$F114,$F114)<2,$F114," ") ->  | K114: 111 | L114: 0 | M114: =IF(COUNTIF($F$4:$F114,$F114)<3,$F114," ") ->  | N114: 111 | O114: 0 | Q114: 1000 | R114: 1000 | S114: =IF(COUNTIF($F$4:$F114,J114)<4,$F114," ") ->  | T114: 111 | U114: 0 | AA114: 111
A115: 112 | B115: 112 | D115: =IF(C115>0,CONCATENATE((VLOOKUP($C115,Inscription!$A$6:$G$205,3,FALSE))," ",(VLOOKUP($C115,Inscription!$A$6:$G$205,4,FALSE)))," ") ->  | F115: =IF(C115>0,(VLOOKUP($C115,Inscription!$A$6:$G$205,5,FALSE))," ") ->  | G115: =IF(C115>0,(VLOOKUP($C115,Inscription!$A$6:$G$205,7,FALSE))," ") ->  | H115: =LEFT(IF(C115>0,(VLOOKUP($C115,Inscription!$A$6:$G$205,6,FALSE))," "),8) ->  | I115: 0 | J115: =IF(COUNTIF($F$4:$F115,$F115)<2,$F115," ") ->  | K115: 112 | L115: 0 | M115: =IF(COUNTIF($F$4:$F115,$F115)<3,$F115," ") ->  | N115: 112 | O115: 0 | Q115: 1000 | R115: 1000 | S115: =IF(COUNTIF($F$4:$F115,J115)<4,$F115," ") ->  | T115: 112 | U115: 0 | AA115: 112
A116: 113 | B116: 113 | D116: =IF(C116>0,CONCATENATE((VLOOKUP($C116,Inscription!$A$6:$G$205,3,FALSE))," ",(VLOOKUP($C116,Inscription!$A$6:$G$205,4,FALSE)))," ") ->  | F116: =IF(C116>0,(VLOOKUP($C116,Inscription!$A$6:$G$205,5,FALSE))," ") ->  | G116: =IF(C116>0,(VLOOKUP($C116,Inscription!$A$6:$G$205,7,FALSE))," ") ->  | H116: =LEFT(IF(C116>0,(VLOOKUP($C116,Inscription!$A$6:$G$205,6,FALSE))," "),8) ->  | I116: 0 | J116: =IF(COUNTIF($F$4:$F116,$F116)<2,$F116," ") ->  | K116: 113 | L116: 0 | M116: =IF(COUNTIF($F$4:$F116,$F116)<3,$F116," ") ->  | N116: 113 | O116: 0 | Q116: 1000 | R116: 1000 | S116: =IF(COUNTIF($F$4:$F116,J116)<4,$F116," ") ->  | T116: 113 | U116: 0 | AA116: 113
A117: 114 | B117: 114 | D117: =IF(C117>0,CONCATENATE((VLOOKUP($C117,Inscription!$A$6:$G$205,3,FALSE))," ",(VLOOKUP($C117,Inscription!$A$6:$G$205,4,FALSE)))," ") ->  | F117: =IF(C117>0,(VLOOKUP($C117,Inscription!$A$6:$G$205,5,FALSE))," ") ->  | G117: =IF(C117>0,(VLOOKUP($C117,Inscription!$A$6:$G$205,7,FALSE))," ") ->  | H117: =LEFT(IF(C117>0,(VLOOKUP($C117,Inscription!$A$6:$G$205,6,FALSE))," "),8) ->  | I117: 0 | J117: =IF(COUNTIF($F$4:$F117,$F117)<2,$F117," ") ->  | K117: 114 | L117: 0 | M117: =IF(COUNTIF($F$4:$F117,$F117)<3,$F117," ") ->  | N117: 114 | O117: 0 | Q117: 1000 | R117: 1000 | S117: =IF(COUNTIF($F$4:$F117,J117)<4,$F117," ") ->  | T117: 114 | U117: 0 | AA117: 114
A118: 115 | B118: 115 | D118: =IF(C118>0,CONCATENATE((VLOOKUP($C118,Inscription!$A$6:$G$205,3,FALSE))," ",(VLOOKUP($C118,Inscription!$A$6:$G$205,4,FALSE)))," ") ->  | F118: =IF(C118>0,(VLOOKUP($C118,Inscription!$A$6:$G$205,5,FALSE))," ") ->  | G118: =IF(C118>0,(VLOOKUP($C118,Inscription!$A$6:$G$205,7,FALSE))," ") ->  | H118: =LEFT(IF(C118>0,(VLOOKUP($C118,Inscription!$A$6:$G$205,6,FALSE))," "),8) ->  | I118: 0 | J118: =IF(COUNTIF($F$4:$F118,$F118)<2,$F118," ") ->  | K118: 115 | L118: 0 | M118: =IF(COUNTIF($F$4:$F118,$F118)<3,$F118," ") ->  | N118: 115 | O118: 0 | Q118: 1000 | R118: 1000 | S118: =IF(COUNTIF($F$4:$F118,J118)<4,$F118," ") ->  | T118: 115 | U118: 0 | AA118: 115
A119: 116 | B119: 116 | D119: =IF(C119>0,CONCATENATE((VLOOKUP($C119,Inscription!$A$6:$G$205,3,FALSE))," ",(VLOOKUP($C119,Inscription!$A$6:$G$205,4,FALSE)))," ") ->  | F119: =IF(C119>0,(VLOOKUP($C119,Inscription!$A$6:$G$205,5,FALSE))," ") ->  | G119: =IF(C119>0,(VLOOKUP($C119,Inscription!$A$6:$G$205,7,FALSE))," ") ->  | H119: =LEFT(IF(C119>0,(VLOOKUP($C119,Inscription!$A$6:$G$205,6,FALSE))," "),8) ->  | I119: 0 | J119: =IF(COUNTIF($F$4:$F119,$F119)<2,$F119," ") ->  | K119: 116 | L119: 0 | M119: =IF(COUNTIF($F$4:$F119,$F119)<3,$F119," ") ->  | N119: 116 | O119: 0 | Q119: 1000 | R119: 1000 | S119: =IF(COUNTIF($F$4:$F119,J119)<4,$F119," ") ->  | T119: 116 | U119: 0 | AA119: 116
A120: 117 | B120: 117 | D120: =IF(C120>0,CONCATENATE((VLOOKUP($C120,Inscription!$A$6:$G$205,3,FALSE))," ",(VLOOKUP($C120,Inscription!$A$6:$G$205,4,FALSE)))," ") ->  | F120: =IF(C120>0,(VLOOKUP($C120,Inscription!$A$6:$G$205,5,FALSE))," ") ->  | G120: =IF(C120>0,(VLOOKUP($C120,Inscription!$A$6:$G$205,7,FALSE))," ") ->  | H120: =LEFT(IF(C120>0,(VLOOKUP($C120,Inscription!$A$6:$G$205,6,FALSE))," "),8) ->  | I120: 0 | J120: =IF(COUNTIF($F$4:$F120,$F120)<2,$F120," ") ->  | K120: 117 | L120: 0 | M120: =IF(COUNTIF($F$4:$F120,$F120)<3,$F120," ") ->  | N120: 117 | O120: 0 | Q120: 1000 | R120: 1000 | S120: =IF(COUNTIF($F$4:$F120,J120)<4,$F120," ") ->  | T120: 117 | U120: 0 | AA120: 117
A121: 118 | B121: 118 | D121: =IF(C121>0,CONCATENATE((VLOOKUP($C121,Inscription!$A$6:$G$205,3,FALSE))," ",(VLOOKUP($C121,Inscription!$A$6:$G$205,4,FALSE)))," ") ->  | F121: =IF(C121>0,(VLOOKUP($C121,Inscription!$A$6:$G$205,5,FALSE))," ") ->  | G121: =IF(C121>0,(VLOOKUP($C121,Inscription!$A$6:$G$205,7,FALSE))," ") ->  | H121: =LEFT(IF(C121>0,(VLOOKUP($C121,Inscription!$A$6:$G$205,6,FALSE))," "),8) ->  | I121: 0 | J121: =IF(COUNTIF($F$4:$F121,$F121)<2,$F121," ") ->  | K121: 118 | L121: 0 | M121: =IF(COUNTIF($F$4:$F121,$F121)<3,$F121," ") ->  | N121: 118 | O121: 0 | Q121: 1000 | R121: 1000 | S121: =IF(COUNTIF($F$4:$F121,J121)<4,$F121," ") ->  | T121: 118 | U121: 0 | AA121: 118
A122: 119 | B122: 119 | D122: =IF(C122>0,CONCATENATE((VLOOKUP($C122,Inscription!$A$6:$G$205,3,FALSE))," ",(VLOOKUP($C122,Inscription!$A$6:$G$205,4,FALSE)))," ") ->  | F122: =IF(C122>0,(VLOOKUP($C122,Inscription!$A$6:$G$205,5,FALSE))," ") ->  | G122: =IF(C122>0,(VLOOKUP($C122,Inscription!$A$6:$G$205,7,FALSE))," ") ->  | H122: =LEFT(IF(C122>0,(VLOOKUP($C122,Inscription!$A$6:$G$205,6,FALSE))," "),8) ->  | I122: 0 | J122: =IF(COUNTIF($F$4:$F122,$F122)<2,$F122," ") ->  | K122: 119 | L122: 0 | M122: =IF(COUNTIF($F$4:$F122,$F122)<3,$F122," ") ->  | N122: 119 | O122: 0 | Q122: 1000 | R122: 1000 | S122: =IF(COUNTIF($F$4:$F122,J122)<4,$F122," ") ->  | T122: 119 | U122: 0 | AA122: 119
A123: 120 | B123: 120 | D123: =IF(C123>0,CONCATENATE((VLOOKUP($C123,Inscription!$A$6:$G$205,3,FALSE))," ",(VLOOKUP($C123,Inscription!$A$6:$G$205,4,FALSE)))," ") ->  | F123: =IF(C123>0,(VLOOKUP($C123,Inscription!$A$6:$G$205,5,FALSE))," ") ->  | G123: =IF(C123>0,(VLOOKUP($C123,Inscription!$A$6:$G$205,7,FALSE))," ") ->  | H123: =LEFT(IF(C123>0,(VLOOKUP($C123,Inscription!$A$6:$G$205,6,FALSE))," "),8) ->  | I123: 0 | J123: =IF(COUNTIF($F$4:$F123,$F123)<2,$F123," ") ->  | K123: 120 | L123: 0 | M123: =IF(COUNTIF($F$4:$F123,$F123)<3,$F123," ") ->  | N123: 120 | O123: 0 | Q123: 1000 | R123: 1000 | S123: =IF(COUNTIF($F$4:$F123,J123)<4,$F123," ") ->  | T123: 120 | U123: 0 | AA123: 120
A124: 121 | B124: 121 | D124: =IF(C124>0,CONCATENATE((VLOOKUP($C124,Inscription!$A$6:$G$205,3,FALSE))," ",(VLOOKUP($C124,Inscription!$A$6:$G$205,4,FALSE)))," ") ->  | F124: =IF(C124>0,(VLOOKUP($C124,Inscription!$A$6:$G$205,5,FALSE))," ") ->  | G124: =IF(C124>0,(VLOOKUP($C124,Inscription!$A$6:$G$205,7,FALSE))," ") ->  | H124: =LEFT(IF(C124>0,(VLOOKUP($C124,Inscription!$A$6:$G$205,6,FALSE))," "),8) ->  | I124: 0 | J124: =IF(COUNTIF($F$4:$F124,$F124)<2,$F124," ") ->  | K124: 121 | L124: 0 | M124: =IF(COUNTIF($F$4:$F124,$F124)<3,$F124," ") ->  | N124: 121 | O124: 0 | Q124: 1000 | R124: 1000 | S124: =IF(COUNTIF($F$4:$F124,J124)<4,$F124," ") ->  | T124: 121 | U124: 0 | AA124: 121
A125: 122 | B125: 122 | D125: =IF(C125>0,CONCATENATE((VLOOKUP($C125,Inscription!$A$6:$G$205,3,FALSE))," ",(VLOOKUP($C125,Inscription!$A$6:$G$205,4,FALSE)))," ") ->  | F125: =IF(C125>0,(VLOOKUP($C125,Inscription!$A$6:$G$205,5,FALSE))," ") ->  | G125: =IF(C125>0,(VLOOKUP($C125,Inscription!$A$6:$G$205,7,FALSE))," ") ->  | H125: =LEFT(IF(C125>0,(VLOOKUP($C125,Inscription!$A$6:$G$205,6,FALSE))," "),8) ->  | I125: 0 | J125: =IF(COUNTIF($F$4:$F125,$F125)<2,$F125," ") ->  | K125: 122 | L125: 0 | M125: =IF(COUNTIF($F$4:$F125,$F125)<3,$F125," ") ->  | N125: 122 | O125: 0 | Q125: 1000 | R125: 1000 | S125: =IF(COUNTIF($F$4:$F125,J125)<4,$F125," ") ->  | T125: 122 | U125: 0 | AA125: 122
A126: 123 | B126: 123 | D126: =IF(C126>0,CONCATENATE((VLOOKUP($C126,Inscription!$A$6:$G$205,3,FALSE))," ",(VLOOKUP($C126,Inscription!$A$6:$G$205,4,FALSE)))," ") ->  | F126: =IF(C126>0,(VLOOKUP($C126,Inscription!$A$6:$G$205,5,FALSE))," ") ->  | G126: =IF(C126>0,(VLOOKUP($C126,Inscription!$A$6:$G$205,7,FALSE))," ") ->  | H126: =LEFT(IF(C126>0,(VLOOKUP($C126,Inscription!$A$6:$G$205,6,FALSE))," "),8) ->  | I126: 0 | J126: =IF(COUNTIF($F$4:$F126,$F126)<2,$F126," ") ->  | K126: 123 | L126: 0 | M126: =IF(COUNTIF($F$4:$F126,$F126)<3,$F126," ") ->  | N126: 123 | O126: 0 | Q126: 1000 | R126: 1000 | S126: =IF(COUNTIF($F$4:$F126,J126)<4,$F126," ") ->  | T126: 123 | U126: 0 | AA126: 123
A127: 124 | B127: 124 | D127: =IF(C127>0,CONCATENATE((VLOOKUP($C127,Inscription!$A$6:$G$205,3,FALSE))," ",(VLOOKUP($C127,Inscription!$A$6:$G$205,4,FALSE)))," ") ->  | F127: =IF(C127>0,(VLOOKUP($C127,Inscription!$A$6:$G$205,5,FALSE))," ") ->  | G127: =IF(C127>0,(VLOOKUP($C127,Inscription!$A$6:$G$205,7,FALSE))," ") ->  | H127: =LEFT(IF(C127>0,(VLOOKUP($C127,Inscription!$A$6:$G$205,6,FALSE))," "),8) ->  | I127: 0 | J127: =IF(COUNTIF($F$4:$F127,$F127)<2,$F127," ") ->  | K127: 124 | L127: 0 | M127: =IF(COUNTIF($F$4:$F127,$F127)<3,$F127," ") ->  | N127: 124 | O127: 0 | Q127: 1000 | R127: 1000 | S127: =IF(COUNTIF($F$4:$F127,J127)<4,$F127," ") ->  | T127: 124 | U127: 0 | AA127: 124
A128: 125 | B128: 125 | D128: =IF(C128>0,CONCATENATE((VLOOKUP($C128,Inscription!$A$6:$G$205,3,FALSE))," ",(VLOOKUP($C128,Inscription!$A$6:$G$205,4,FALSE)))," ") ->  | F128: =IF(C128>0,(VLOOKUP($C128,Inscription!$A$6:$G$205,5,FALSE))," ") ->  | G128: =IF(C128>0,(VLOOKUP($C128,Inscription!$A$6:$G$205,7,FALSE))," ") ->  | H128: =LEFT(IF(C128>0,(VLOOKUP($C128,Inscription!$A$6:$G$205,6,FALSE))," "),8) ->  | I128: 0 | J128: =IF(COUNTIF($F$4:$F128,$F128)<2,$F128," ") ->  | K128: 125 | L128: 0 | M128: =IF(COUNTIF($F$4:$F128,$F128)<3,$F128," ") ->  | N128: 125 | O128: 0 | Q128: 1000 | R128: 1000 | S128: =IF(COUNTIF($F$4:$F128,J128)<4,$F128," ") ->  | T128: 125 | U128: 0 | AA128: 125
A129: 126 | B129: 126 | D129: =IF(C129>0,CONCATENATE((VLOOKUP($C129,Inscription!$A$6:$G$205,3,FALSE))," ",(VLOOKUP($C129,Inscription!$A$6:$G$205,4,FALSE)))," ") ->  | F129: =IF(C129>0,(VLOOKUP($C129,Inscription!$A$6:$G$205,5,FALSE))," ") ->  | G129: =IF(C129>0,(VLOOKUP($C129,Inscription!$A$6:$G$205,7,FALSE))," ") ->  | H129: =LEFT(IF(C129>0,(VLOOKUP($C129,Inscription!$A$6:$G$205,6,FALSE))," "),8) ->  | I129: 0 | J129: =IF(COUNTIF($F$4:$F129,$F129)<2,$F129," ") ->  | K129: 126 | L129: 0 | M129: =IF(COUNTIF($F$4:$F129,$F129)<3,$F129," ") ->  | N129: 126 | O129: 0 | Q129: 1000 | R129: 1000 | S129: =IF(COUNTIF($F$4:$F129,J129)<4,$F129," ") ->  | T129: 126 | U129: 0 | AA129: 126
A130: 127 | B130: 127 | D130: =IF(C130>0,CONCATENATE((VLOOKUP($C130,Inscription!$A$6:$G$205,3,FALSE))," ",(VLOOKUP($C130,Inscription!$A$6:$G$205,4,FALSE)))," ") ->  | F130: =IF(C130>0,(VLOOKUP($C130,Inscription!$A$6:$G$205,5,FALSE))," ") ->  | G130: =IF(C130>0,(VLOOKUP($C130,Inscription!$A$6:$G$205,7,FALSE))," ") ->  | H130: =LEFT(IF(C130>0,(VLOOKUP($C130,Inscription!$A$6:$G$205,6,FALSE))," "),8) ->  | I130: 0 | J130: =IF(COUNTIF($F$4:$F130,$F130)<2,$F130," ") ->  | K130: 127 | L130: 0 | M130: =IF(COUNTIF($F$4:$F130,$F130)<3,$F130," ") ->  | N130: 127 | O130: 0 | Q130: 1000 | R130: 1000 | S130: =IF(COUNTIF($F$4:$F130,J130)<4,$F130," ") ->  | T130: 127 | U130: 0 | AA130: 127
A131: 128 | B131: 128 | D131: =IF(C131>0,CONCATENATE((VLOOKUP($C131,Inscription!$A$6:$G$205,3,FALSE))," ",(VLOOKUP($C131,Inscription!$A$6:$G$205,4,FALSE)))," ") ->  | F131: =IF(C131>0,(VLOOKUP($C131,Inscription!$A$6:$G$205,5,FALSE))," ") ->  | G131: =IF(C131>0,(VLOOKUP($C131,Inscription!$A$6:$G$205,7,FALSE))," ") ->  | H131: =LEFT(IF(C131>0,(VLOOKUP($C131,Inscription!$A$6:$G$205,6,FALSE))," "),8) ->  | I131: 0 | J131: =IF(COUNTIF($F$4:$F131,$F131)<2,$F131," ") ->  | K131: 128 | L131: 0 | M131: =IF(COUNTIF($F$4:$F131,$F131)<3,$F131," ") ->  | N131: 128 | O131: 0 | Q131: 1000 | R131: 1000 | S131: =IF(COUNTIF($F$4:$F131,J131)<4,$F131," ") ->  | T131: 128 | U131: 0 | AA131: 128
A132: =IF(B132<1,1000,(IF(AA132=B132,B132,(20100-SUM($AA$4:$AA$203))/(COUNTIF($AA$4:$AA$203,"T"))))) -> 129 | B132: 129 | D132: =IF(C132>0,CONCATENATE((VLOOKUP($C132,Inscription!$A$6:$G$205,3,FALSE))," ",(VLOOKUP($C132,Inscription!$A$6:$G$205,4,FALSE)))," ") ->  | F132: =IF(C132>0,(VLOOKUP($C132,Inscription!$A$6:$G$205,5,FALSE))," ") ->  | G132: =IF(C132>0,(VLOOKUP($C132,Inscription!$A$6:$G$205,7,FALSE))," ") ->  | H132: =LEFT(IF(C132>0,(VLOOKUP($C132,Inscription!$A$6:$G$205,6,FALSE))," "),8) ->  | I132: 0 | J132: =IF(COUNTIF($F$4:$F132,$F132)<2,$F132," ") ->  | K132: 129 | L132: 0 | M132: =IF(COUNTIF($F$4:$F132,$F132)<3,$F132," ") ->  | N132: 129 | O132: 0 | Q132: 1000 | R132: 1000 | S132: =IF(COUNTIF($F$4:$F132,J132)<4,$F132," ") ->  | T132: 129 | U132: 0 | AA132: 129
A133: 130 | B133: 130 | D133: =IF(C133>0,CONCATENATE((VLOOKUP($C133,Inscription!$A$6:$G$205,3,FALSE))," ",(VLOOKUP($C133,Inscription!$A$6:$G$205,4,FALSE)))," ") ->  | F133: =IF(C133>0,(VLOOKUP($C133,Inscription!$A$6:$G$205,5,FALSE))," ") ->  | G133: =IF(C133>0,(VLOOKUP($C133,Inscription!$A$6:$G$205,7,FALSE))," ") ->  | H133: =LEFT(IF(C133>0,(VLOOKUP($C133,Inscription!$A$6:$G$205,6,FALSE))," "),8) ->  | I133: 0 | J133: =IF(COUNTIF($F$4:$F133,$F133)<2,$F133," ") ->  | K133: =IF(J133=F133,A133,"") -> 130 | L133: =IF(J133=F133,I133,"") -> 0 | M133: =IF(COUNTIF($F$4:$F133,$F133)<3,$F133," ") ->  | N133: =IF(M133=$F133,$A133,"") -> 130 | O133: =IF(M133=$F133,$I133,"") -> 0 | P133: =IF(M133=J133,"",M133) ->  | Q133: =IF(P133=$F133,$A133,1000) -> 1000 | R133: =IF(P133=$F133,$I133,1000) -> 1000 | S133: =IF(COUNTIF($F$4:$F133,J133)<4,$F133," ") ->  | T133: =IF(S133=$F133,$A133,"") -> 130 | U133: =IF(S133=$F133,$I133,"") -> 0 | V133: =IF(S133=J133,"",S133) ->  | W133: =IF(V133=P133,"",S133) ->  | X133: =IF(W133=$F133,$A133,"") ->  | Y133: =IF(W133=$F133,$I133,"") ->  | AA133: 130
A134: 131 | B134: 131 | D134: =IF(C134>0,CONCATENATE((VLOOKUP($C134,Inscription!$A$6:$G$205,3,FALSE))," ",(VLOOKUP($C134,Inscription!$A$6:$G$205,4,FALSE)))," ") ->  | F134: =IF(C134>0,(VLOOKUP($C134,Inscription!$A$6:$G$205,5,FALSE))," ") ->  | G134: =IF(C134>0,(VLOOKUP($C134,Inscription!$A$6:$G$205,7,FALSE))," ") ->  | H134: =LEFT(IF(C134>0,(VLOOKUP($C134,Inscription!$A$6:$G$205,6,FALSE))," "),8) ->  | I134: =I133 -> 0 | J134: =IF(COUNTIF($F$4:$F134,$F134)<2,$F134," ") ->  | K134: 131 | L134: 0 | M134: =IF(COUNTIF($F$4:$F134,$F134)<3,$F134," ") ->  | N134: 131 | O134: 0 | Q134: 1000 | R134: 1000 | S134: =IF(COUNTIF($F$4:$F134,J134)<4,$F134," ") ->  | T134: 131 | U134: 0 | AA134: 131
A135: 132 | B135: 132 | D135: =IF(C135>0,CONCATENATE((VLOOKUP($C135,Inscription!$A$6:$G$205,3,FALSE))," ",(VLOOKUP($C135,Inscription!$A$6:$G$205,4,FALSE)))," ") ->  | F135: =IF(C135>0,(VLOOKUP($C135,Inscription!$A$6:$G$205,5,FALSE))," ") ->  | G135: =IF(C135>0,(VLOOKUP($C135,Inscription!$A$6:$G$205,7,FALSE))," ") ->  | H135: =LEFT(IF(C135>0,(VLOOKUP($C135,Inscription!$A$6:$G$205,6,FALSE))," "),8) ->  | I135: 0 | J135: =IF(COUNTIF($F$4:$F135,$F135)<2,$F135," ") ->  | K135: 132 | L135: 0 | M135: =IF(COUNTIF($F$4:$F135,$F135)<3,$F135," ") ->  | N135: 132 | O135: 0 | Q135: 1000 | R135: 1000 | S135: =IF(COUNTIF($F$4:$F135,J135)<4,$F135," ") ->  | T135: 132 | U135: 0 | AA135: 132
A136: 133 | B136: 133 | D136: =IF(C136>0,CONCATENATE((VLOOKUP($C136,Inscription!$A$6:$G$205,3,FALSE))," ",(VLOOKUP($C136,Inscription!$A$6:$G$205,4,FALSE)))," ") ->  | F136: =IF(C136>0,(VLOOKUP($C136,Inscription!$A$6:$G$205,5,FALSE))," ") ->  | G136: =IF(C136>0,(VLOOKUP($C136,Inscription!$A$6:$G$205,7,FALSE))," ") ->  | H136: =LEFT(IF(C136>0,(VLOOKUP($C136,Inscription!$A$6:$G$205,6,FALSE))," "),8) ->  | I136: 0 | J136: =IF(COUNTIF($F$4:$F136,$F136)<2,$F136," ") ->  | K136: 133 | L136: 0 | M136: =IF(COUNTIF($F$4:$F136,$F136)<3,$F136," ") ->  | N136: 133 | O136: 0 | Q136: 1000 | R136: 1000 | S136: =IF(COUNTIF($F$4:$F136,J136)<4,$F136," ") ->  | T136: 133 | U136: 0 | AA136: 133
A137: 134 | B137: 134 | D137: =IF(C137>0,CONCATENATE((VLOOKUP($C137,Inscription!$A$6:$G$205,3,FALSE))," ",(VLOOKUP($C137,Inscription!$A$6:$G$205,4,FALSE)))," ") ->  | F137: =IF(C137>0,(VLOOKUP($C137,Inscription!$A$6:$G$205,5,FALSE))," ") ->  | G137: =IF(C137>0,(VLOOKUP($C137,Inscription!$A$6:$G$205,7,FALSE))," ") ->  | H137: =LEFT(IF(C137>0,(VLOOKUP($C137,Inscription!$A$6:$G$205,6,FALSE))," "),8) ->  | I137: 0 | J137: =IF(COUNTIF($F$4:$F137,$F137)<2,$F137," ") ->  | K137: 134 | L137: 0 | M137: =IF(COUNTIF($F$4:$F137,$F137)<3,$F137," ") ->  | N137: 134 | O137: 0 | Q137: 1000 | R137: 1000 | S137: =IF(COUNTIF($F$4:$F137,J137)<4,$F137," ") ->  | T137: 134 | U137: 0 | AA137: 134
A138: 135 | B138: 135 | D138: =IF(C138>0,CONCATENATE((VLOOKUP($C138,Inscription!$A$6:$G$205,3,FALSE))," ",(VLOOKUP($C138,Inscription!$A$6:$G$205,4,FALSE)))," ") ->  | F138: =IF(C138>0,(VLOOKUP($C138,Inscription!$A$6:$G$205,5,FALSE))," ") ->  | G138: =IF(C138>0,(VLOOKUP($C138,Inscription!$A$6:$G$205,7,FALSE))," ") ->  | H138: =LEFT(IF(C138>0,(VLOOKUP($C138,Inscription!$A$6:$G$205,6,FALSE))," "),8) ->  | I138: 0 | J138: =IF(COUNTIF($F$4:$F138,$F138)<2,$F138," ") ->  | K138: 135 | L138: 0 | M138: =IF(COUNTIF($F$4:$F138,$F138)<3,$F138," ") ->  | N138: 135 | O138: 0 | Q138: 1000 | R138: 1000 | S138: =IF(COUNTIF($F$4:$F138,J138)<4,$F138," ") ->  | T138: 135 | U138: 0 | AA138: 135
A139: 136 | B139: 136 | D139: =IF(C139>0,CONCATENATE((VLOOKUP($C139,Inscription!$A$6:$G$205,3,FALSE))," ",(VLOOKUP($C139,Inscription!$A$6:$G$205,4,FALSE)))," ") ->  | F139: =IF(C139>0,(VLOOKUP($C139,Inscription!$A$6:$G$205,5,FALSE))," ") ->  | G139: =IF(C139>0,(VLOOKUP($C139,Inscription!$A$6:$G$205,7,FALSE))," ") ->  | H139: =LEFT(IF(C139>0,(VLOOKUP($C139,Inscription!$A$6:$G$205,6,FALSE))," "),8) ->  | I139: 0 | J139: =IF(COUNTIF($F$4:$F139,$F139)<2,$F139," ") ->  | K139: 136 | L139: 0 | M139: =IF(COUNTIF($F$4:$F139,$F139)<3,$F139," ") ->  | N139: 136 | O139: 0 | Q139: 1000 | R139: 1000 | S139: =IF(COUNTIF($F$4:$F139,J139)<4,$F139," ") ->  | T139: 136 | U139: 0 | AA139: 136
A140: 137 | B140: 137 | D140: =IF(C140>0,CONCATENATE((VLOOKUP($C140,Inscription!$A$6:$G$205,3,FALSE))," ",(VLOOKUP($C140,Inscription!$A$6:$G$205,4,FALSE)))," ") ->  | F140: =IF(C140>0,(VLOOKUP($C140,Inscription!$A$6:$G$205,5,FALSE))," ") ->  | G140: =IF(C140>0,(VLOOKUP($C140,Inscription!$A$6:$G$205,7,FALSE))," ") ->  | H140: =LEFT(IF(C140>0,(VLOOKUP($C140,Inscription!$A$6:$G$205,6,FALSE))," "),8) ->  | I140: 0 | J140: =IF(COUNTIF($F$4:$F140,$F140)<2,$F140," ") ->  | K140: 137 | L140: 0 | M140: =IF(COUNTIF($F$4:$F140,$F140)<3,$F140," ") ->  | N140: 137 | O140: 0 | Q140: 1000 | R140: 1000 | S140: =IF(COUNTIF($F$4:$F140,J140)<4,$F140," ") ->  | T140: 137 | U140: 0 | AA140: 137
A141: 138 | B141: 138 | D141: =IF(C141>0,CONCATENATE((VLOOKUP($C141,Inscription!$A$6:$G$205,3,FALSE))," ",(VLOOKUP($C141,Inscription!$A$6:$G$205,4,FALSE)))," ") ->  | F141: =IF(C141>0,(VLOOKUP($C141,Inscription!$A$6:$G$205,5,FALSE))," ") ->  | G141: =IF(C141>0,(VLOOKUP($C141,Inscription!$A$6:$G$205,7,FALSE))," ") ->  | H141: =LEFT(IF(C141>0,(VLOOKUP($C141,Inscription!$A$6:$G$205,6,FALSE))," "),8) ->  | I141: 0 | J141: =IF(COUNTIF($F$4:$F141,$F141)<2,$F141," ") ->  | K141: 138 | L141: 0 | M141: =IF(COUNTIF($F$4:$F141,$F141)<3,$F141," ") ->  | N141: 138 | O141: 0 | Q141: 1000 | R141: 1000 | S141: =IF(COUNTIF($F$4:$F141,J141)<4,$F141," ") ->  | T141: 138 | U141: 0 | AA141: 138
A142: 139 | B142: 139 | D142: =IF(C142>0,CONCATENATE((VLOOKUP($C142,Inscription!$A$6:$G$205,3,FALSE))," ",(VLOOKUP($C142,Inscription!$A$6:$G$205,4,FALSE)))," ") ->  | F142: =IF(C142>0,(VLOOKUP($C142,Inscription!$A$6:$G$205,5,FALSE))," ") ->  | G142: =IF(C142>0,(VLOOKUP($C142,Inscription!$A$6:$G$205,7,FALSE))," ") ->  | H142: =LEFT(IF(C142>0,(VLOOKUP($C142,Inscription!$A$6:$G$205,6,FALSE))," "),8) ->  | I142: 0 | J142: =IF(COUNTIF($F$4:$F142,$F142)<2,$F142," ") ->  | K142: 139 | L142: 0 | M142: =IF(COUNTIF($F$4:$F142,$F142)<3,$F142," ") ->  | N142: 139 | O142: 0 | Q142: 1000 | R142: 1000 | S142: =IF(COUNTIF($F$4:$F142,J142)<4,$F142," ") ->  | T142: 139 | U142: 0 | AA142: 139
A143: 140 | B143: 140 | D143: =IF(C143>0,CONCATENATE((VLOOKUP($C143,Inscription!$A$6:$G$205,3,FALSE))," ",(VLOOKUP($C143,Inscription!$A$6:$G$205,4,FALSE)))," ") ->  | F143: =IF(C143>0,(VLOOKUP($C143,Inscription!$A$6:$G$205,5,FALSE))," ") ->  | G143: =IF(C143>0,(VLOOKUP($C143,Inscription!$A$6:$G$205,7,FALSE))," ") ->  | H143: =LEFT(IF(C143>0,(VLOOKUP($C143,Inscription!$A$6:$G$205,6,FALSE))," "),8) ->  | I143: 0 | J143: =IF(COUNTIF($F$4:$F143,$F143)<2,$F143," ") ->  | K143: 140 | L143: 0 | M143: =IF(COUNTIF($F$4:$F143,$F143)<3,$F143," ") ->  | N143: 140 | O143: 0 | Q143: 1000 | R143: 1000 | S143: =IF(COUNTIF($F$4:$F143,J143)<4,$F143," ") ->  | T143: 140 | U143: 0 | AA143: 140
A144: 141 | B144: 141 | D144: =IF(C144>0,CONCATENATE((VLOOKUP($C144,Inscription!$A$6:$G$205,3,FALSE))," ",(VLOOKUP($C144,Inscription!$A$6:$G$205,4,FALSE)))," ") ->  | F144: =IF(C144>0,(VLOOKUP($C144,Inscription!$A$6:$G$205,5,FALSE))," ") ->  | G144: =IF(C144>0,(VLOOKUP($C144,Inscription!$A$6:$G$205,7,FALSE))," ") ->  | H144: =LEFT(IF(C144>0,(VLOOKUP($C144,Inscription!$A$6:$G$205,6,FALSE))," "),8) ->  | I144: 0 | J144: =IF(COUNTIF($F$4:$F144,$F144)<2,$F144," ") ->  | K144: 141 | L144: 0 | M144: =IF(COUNTIF($F$4:$F144,$F144)<3,$F144," ") ->  | N144: 141 | O144: 0 | Q144: 1000 | R144: 1000 | S144: =IF(COUNTIF($F$4:$F144,J144)<4,$F144," ") ->  | T144: 141 | U144: 0 | Z144: =IF(COUNTIF($C$4:$C$203,C144)>1,"X"," ") ->  | AA144: =IF(COUNTIF($B$4:$B$203,B144)>1,"T",B144) -> 141
A145: 142 | B145: 142 | D145: =IF(C145>0,CONCATENATE((VLOOKUP($C145,Inscription!$A$6:$G$205,3,FALSE))," ",(VLOOKUP($C145,Inscription!$A$6:$G$205,4,FALSE)))," ") ->  | F145: =IF(C145>0,(VLOOKUP($C145,Inscription!$A$6:$G$205,5,FALSE))," ") ->  | G145: =IF(C145>0,(VLOOKUP($C145,Inscription!$A$6:$G$205,7,FALSE))," ") ->  | H145: =LEFT(IF(C145>0,(VLOOKUP($C145,Inscription!$A$6:$G$205,6,FALSE))," "),8) ->  | I145: 0 | J145: =IF(COUNTIF($F$4:$F145,$F145)<2,$F145," ") ->  | K145: 142 | L145: 0 | M145: =IF(COUNTIF($F$4:$F145,$F145)<3,$F145," ") ->  | N145: 142 | O145: 0 | Q145: 1000 | R145: 1000 | S145: =IF(COUNTIF($F$4:$F145,J145)<4,$F145," ") ->  | T145: 142 | U145: 0 | AA145: 142
A146: 143 | B146: 143 | D146: =IF(C146>0,CONCATENATE((VLOOKUP($C146,Inscription!$A$6:$G$205,3,FALSE))," ",(VLOOKUP($C146,Inscription!$A$6:$G$205,4,FALSE)))," ") ->  | F146: =IF(C146>0,(VLOOKUP($C146,Inscription!$A$6:$G$205,5,FALSE))," ") ->  | G146: =IF(C146>0,(VLOOKUP($C146,Inscription!$A$6:$G$205,7,FALSE))," ") ->  | H146: =LEFT(IF(C146>0,(VLOOKUP($C146,Inscription!$A$6:$G$205,6,FALSE))," "),8) ->  | I146: 0 | J146: =IF(COUNTIF($F$4:$F146,$F146)<2,$F146," ") ->  | K146: 143 | L146: 0 | M146: =IF(COUNTIF($F$4:$F146,$F146)<3,$F146," ") ->  | N146: 143 | O146: 0 | Q146: 1000 | R146: 1000 | S146: =IF(COUNTIF($F$4:$F146,J146)<4,$F146," ") ->  | T146: 143 | U146: 0 | AA146: 143
A147: 144 | B147: 144 | D147: =IF(C147>0,CONCATENATE((VLOOKUP($C147,Inscription!$A$6:$G$205,3,FALSE))," ",(VLOOKUP($C147,Inscription!$A$6:$G$205,4,FALSE)))," ") ->  | F147: =IF(C147>0,(VLOOKUP($C147,Inscription!$A$6:$G$205,5,FALSE))," ") ->  | G147: =IF(C147>0,(VLOOKUP($C147,Inscription!$A$6:$G$205,7,FALSE))," ") ->  | H147: =LEFT(IF(C147>0,(VLOOKUP($C147,Inscription!$A$6:$G$205,6,FALSE))," "),8) ->  | I147: 0 | J147: =IF(COUNTIF($F$4:$F147,$F147)<2,$F147," ") ->  | K147: 144 | L147: 0 | M147: =IF(COUNTIF($F$4:$F147,$F147)<3,$F147," ") ->  | N147: 144 | O147: 0 | Q147: 1000 | R147: 1000 | S147: =IF(COUNTIF($F$4:$F147,J147)<4,$F147," ") ->  | T147: 144 | U147: 0 | AA147: 144
A148: 145 | B148: 145 | D148: =IF(C148>0,CONCATENATE((VLOOKUP($C148,Inscription!$A$6:$G$205,3,FALSE))," ",(VLOOKUP($C148,Inscription!$A$6:$G$205,4,FALSE)))," ") ->  | F148: =IF(C148>0,(VLOOKUP($C148,Inscription!$A$6:$G$205,5,FALSE))," ") ->  | G148: =IF(C148>0,(VLOOKUP($C148,Inscription!$A$6:$G$205,7,FALSE))," ") ->  | H148: =LEFT(IF(C148>0,(VLOOKUP($C148,Inscription!$A$6:$G$205,6,FALSE))," "),8) ->  | I148: 0 | J148: =IF(COUNTIF($F$4:$F148,$F148)<2,$F148," ") ->  | K148: 145 | L148: 0 | M148: =IF(COUNTIF($F$4:$F148,$F148)<3,$F148," ") ->  | N148: 145 | O148: 0 | Q148: 1000 | R148: 1000 | S148: =IF(COUNTIF($F$4:$F148,J148)<4,$F148," ") ->  | T148: 145 | U148: 0 | AA148: 145
A149: 146 | B149: 146 | D149: =IF(C149>0,CONCATENATE((VLOOKUP($C149,Inscription!$A$6:$G$205,3,FALSE))," ",(VLOOKUP($C149,Inscription!$A$6:$G$205,4,FALSE)))," ") ->  | F149: =IF(C149>0,(VLOOKUP($C149,Inscription!$A$6:$G$205,5,FALSE))," ") ->  | G149: =IF(C149>0,(VLOOKUP($C149,Inscription!$A$6:$G$205,7,FALSE))," ") ->  | H149: =LEFT(IF(C149>0,(VLOOKUP($C149,Inscription!$A$6:$G$205,6,FALSE))," "),8) ->  | I149: 0 | J149: =IF(COUNTIF($F$4:$F149,$F149)<2,$F149," ") ->  | K149: 146 | L149: 0 | M149: =IF(COUNTIF($F$4:$F149,$F149)<3,$F149," ") ->  | N149: 146 | O149: 0 | Q149: 1000 | R149: 1000 | S149: =IF(COUNTIF($F$4:$F149,J149)<4,$F149," ") ->  | T149: 146 | U149: 0 | AA149: 146
A150: 147 | B150: 147 | D150: =IF(C150>0,CONCATENATE((VLOOKUP($C150,Inscription!$A$6:$G$205,3,FALSE))," ",(VLOOKUP($C150,Inscription!$A$6:$G$205,4,FALSE)))," ") ->  | F150: =IF(C150>0,(VLOOKUP($C150,Inscription!$A$6:$G$205,5,FALSE))," ") ->  | G150: =IF(C150>0,(VLOOKUP($C150,Inscription!$A$6:$G$205,7,FALSE))," ") ->  | H150: =LEFT(IF(C150>0,(VLOOKUP($C150,Inscription!$A$6:$G$205,6,FALSE))," "),8) ->  | I150: 0 | J150: =IF(COUNTIF($F$4:$F150,$F150)<2,$F150," ") ->  | K150: 147 | L150: 0 | M150: =IF(COUNTIF($F$4:$F150,$F150)<3,$F150," ") ->  | N150: 147 | O150: 0 | Q150: 1000 | R150: 1000 | S150: =IF(COUNTIF($F$4:$F150,J150)<4,$F150," ") ->  | T150: 147 | U150: 0 | AA150: 147
A151: 148 | B151: 148 | D151: =IF(C151>0,CONCATENATE((VLOOKUP($C151,Inscription!$A$6:$G$205,3,FALSE))," ",(VLOOKUP($C151,Inscription!$A$6:$G$205,4,FALSE)))," ") ->  | F151: =IF(C151>0,(VLOOKUP($C151,Inscription!$A$6:$G$205,5,FALSE))," ") ->  | G151: =IF(C151>0,(VLOOKUP($C151,Inscription!$A$6:$G$205,7,FALSE))," ") ->  | H151: =LEFT(IF(C151>0,(VLOOKUP($C151,Inscription!$A$6:$G$205,6,FALSE))," "),8) ->  | I151: 0 | J151: =IF(COUNTIF($F$4:$F151,$F151)<2,$F151," ") ->  | K151: 148 | L151: 0 | M151: =IF(COUNTIF($F$4:$F151,$F151)<3,$F151," ") ->  | N151: 148 | O151: 0 | Q151: 1000 | R151: 1000 | S151: =IF(COUNTIF($F$4:$F151,J151)<4,$F151," ") ->  | T151: 148 | U151: 0 | AA151: 148
A152: 149 | B152: 149 | D152: =IF(C152>0,CONCATENATE((VLOOKUP($C152,Inscription!$A$6:$G$205,3,FALSE))," ",(VLOOKUP($C152,Inscription!$A$6:$G$205,4,FALSE)))," ") ->  | F152: =IF(C152>0,(VLOOKUP($C152,Inscription!$A$6:$G$205,5,FALSE))," ") ->  | G152: =IF(C152>0,(VLOOKUP($C152,Inscription!$A$6:$G$205,7,FALSE))," ") ->  | H152: =LEFT(IF(C152>0,(VLOOKUP($C152,Inscription!$A$6:$G$205,6,FALSE))," "),8) ->  | I152: 0 | J152: =IF(COUNTIF($F$4:$F152,$F152)<2,$F152," ") ->  | K152: 149 | L152: 0 | M152: =IF(COUNTIF($F$4:$F152,$F152)<3,$F152," ") ->  | N152: 149 | O152: 0 | Q152: 1000 | R152: 1000 | S152: =IF(COUNTIF($F$4:$F152,J152)<4,$F152," ") ->  | T152: 149 | U152: 0 | AA152: 149
A153: 150 | B153: 150 | D153: =IF(C153>0,CONCATENATE((VLOOKUP($C153,Inscription!$A$6:$G$205,3,FALSE))," ",(VLOOKUP($C153,Inscription!$A$6:$G$205,4,FALSE)))," ") ->  | F153: =IF(C153>0,(VLOOKUP($C153,Inscription!$A$6:$G$205,5,FALSE))," ") ->  | G153: =IF(C153>0,(VLOOKUP($C153,Inscription!$A$6:$G$205,7,FALSE))," ") ->  | H153: =LEFT(IF(C153>0,(VLOOKUP($C153,Inscription!$A$6:$G$205,6,FALSE))," "),8) ->  | I153: 0 | J153: =IF(COUNTIF($F$4:$F153,$F153)<2,$F153," ") ->  | K153: 150 | L153: 0 | M153: =IF(COUNTIF($F$4:$F153,$F153)<3,$F153," ") ->  | N153: 150 | O153: 0 | Q153: 1000 | R153: 1000 | S153: =IF(COUNTIF($F$4:$F153,J153)<4,$F153," ") ->  | T153: 150 | U153: 0 | AA153: 150
A154: 151 | B154: 151 | D154: =IF(C154>0,CONCATENATE((VLOOKUP($C154,Inscription!$A$6:$G$205,3,FALSE))," ",(VLOOKUP($C154,Inscription!$A$6:$G$205,4,FALSE)))," ") ->  | F154: =IF(C154>0,(VLOOKUP($C154,Inscription!$A$6:$G$205,5,FALSE))," ") ->  | G154: =IF(C154>0,(VLOOKUP($C154,Inscription!$A$6:$G$205,7,FALSE))," ") ->  | H154: =LEFT(IF(C154>0,(VLOOKUP($C154,Inscription!$A$6:$G$205,6,FALSE))," "),8) ->  | I154: 0 | J154: =IF(COUNTIF($F$4:$F154,$F154)<2,$F154," ") ->  | K154: 151 | L154: 0 | M154: =IF(COUNTIF($F$4:$F154,$F154)<3,$F154," ") ->  | N154: 151 | O154: 0 | Q154: 1000 | R154: 1000 | S154: =IF(COUNTIF($F$4:$F154,J154)<4,$F154," ") ->  | T154: 151 | U154: 0 | AA154: 151
A155: 152 | B155: 152 | D155: =IF(C155>0,CONCATENATE((VLOOKUP($C155,Inscription!$A$6:$G$205,3,FALSE))," ",(VLOOKUP($C155,Inscription!$A$6:$G$205,4,FALSE)))," ") ->  | F155: =IF(C155>0,(VLOOKUP($C155,Inscription!$A$6:$G$205,5,FALSE))," ") ->  | G155: =IF(C155>0,(VLOOKUP($C155,Inscription!$A$6:$G$205,7,FALSE))," ") ->  | H155: =LEFT(IF(C155>0,(VLOOKUP($C155,Inscription!$A$6:$G$205,6,FALSE))," "),8) ->  | I155: 0 | J155: =IF(COUNTIF($F$4:$F155,$F155)<2,$F155," ") ->  | K155: 152 | L155: 0 | M155: =IF(COUNTIF($F$4:$F155,$F155)<3,$F155," ") ->  | N155: 152 | O155: 0 | Q155: 1000 | R155: 1000 | S155: =IF(COUNTIF($F$4:$F155,J155)<4,$F155," ") ->  | T155: 152 | U155: 0 | AA155: 152
A156: 153 | B156: 153 | D156: =IF(C156>0,CONCATENATE((VLOOKUP($C156,Inscription!$A$6:$G$205,3,FALSE))," ",(VLOOKUP($C156,Inscription!$A$6:$G$205,4,FALSE)))," ") ->  | F156: =IF(C156>0,(VLOOKUP($C156,Inscription!$A$6:$G$205,5,FALSE))," ") ->  | G156: =IF(C156>0,(VLOOKUP($C156,Inscription!$A$6:$G$205,7,FALSE))," ") ->  | H156: =LEFT(IF(C156>0,(VLOOKUP($C156,Inscription!$A$6:$G$205,6,FALSE))," "),8) ->  | I156: 0 | J156: =IF(COUNTIF($F$4:$F156,$F156)<2,$F156," ") ->  | K156: 153 | L156: 0 | M156: =IF(COUNTIF($F$4:$F156,$F156)<3,$F156," ") ->  | N156: 153 | O156: 0 | Q156: 1000 | R156: 1000 | S156: =IF(COUNTIF($F$4:$F156,J156)<4,$F156," ") ->  | T156: 153 | U156: 0 | AA156: 153
A157: 154 | B157: 154 | D157: =IF(C157>0,CONCATENATE((VLOOKUP($C157,Inscription!$A$6:$G$205,3,FALSE))," ",(VLOOKUP($C157,Inscription!$A$6:$G$205,4,FALSE)))," ") ->  | F157: =IF(C157>0,(VLOOKUP($C157,Inscription!$A$6:$G$205,5,FALSE))," ") ->  | G157: =IF(C157>0,(VLOOKUP($C157,Inscription!$A$6:$G$205,7,FALSE))," ") ->  | H157: =LEFT(IF(C157>0,(VLOOKUP($C157,Inscription!$A$6:$G$205,6,FALSE))," "),8) ->  | I157: 0 | J157: =IF(COUNTIF($F$4:$F157,$F157)<2,$F157," ") ->  | K157: 154 | L157: 0 | M157: =IF(COUNTIF($F$4:$F157,$F157)<3,$F157," ") ->  | N157: 154 | O157: 0 | Q157: 1000 | R157: 1000 | S157: =IF(COUNTIF($F$4:$F157,J157)<4,$F157," ") ->  | T157: 154 | U157: 0 | AA157: 154
A158: 155 | B158: 155 | D158: =IF(C158>0,CONCATENATE((VLOOKUP($C158,Inscription!$A$6:$G$205,3,FALSE))," ",(VLOOKUP($C158,Inscription!$A$6:$G$205,4,FALSE)))," ") ->  | F158: =IF(C158>0,(VLOOKUP($C158,Inscription!$A$6:$G$205,5,FALSE))," ") ->  | G158: =IF(C158>0,(VLOOKUP($C158,Inscription!$A$6:$G$205,7,FALSE))," ") ->  | H158: =LEFT(IF(C158>0,(VLOOKUP($C158,Inscription!$A$6:$G$205,6,FALSE))," "),8) ->  | I158: 0 | J158: =IF(COUNTIF($F$4:$F158,$F158)<2,$F158," ") ->  | K158: 155 | L158: 0 | M158: =IF(COUNTIF($F$4:$F158,$F158)<3,$F158," ") ->  | N158: 155 | O158: 0 | Q158: 1000 | R158: 1000 | S158: =IF(COUNTIF($F$4:$F158,J158)<4,$F158," ") ->  | T158: 155 | U158: 0 | AA158: 155
A159: 156 | B159: 156 | D159: =IF(C159>0,CONCATENATE((VLOOKUP($C159,Inscription!$A$6:$G$205,3,FALSE))," ",(VLOOKUP($C159,Inscription!$A$6:$G$205,4,FALSE)))," ") ->  | F159: =IF(C159>0,(VLOOKUP($C159,Inscription!$A$6:$G$205,5,FALSE))," ") ->  | G159: =IF(C159>0,(VLOOKUP($C159,Inscription!$A$6:$G$205,7,FALSE))," ") ->  | H159: =LEFT(IF(C159>0,(VLOOKUP($C159,Inscription!$A$6:$G$205,6,FALSE))," "),8) ->  | I159: 0 | J159: =IF(COUNTIF($F$4:$F159,$F159)<2,$F159," ") ->  | K159: 156 | L159: 0 | M159: =IF(COUNTIF($F$4:$F159,$F159)<3,$F159," ") ->  | N159: 156 | O159: 0 | Q159: 1000 | R159: 1000 | S159: =IF(COUNTIF($F$4:$F159,J159)<4,$F159," ") ->  | T159: 156 | U159: 0 | AA159: 156
A160: 157 | B160: 157 | D160: =IF(C160>0,CONCATENATE((VLOOKUP($C160,Inscription!$A$6:$G$205,3,FALSE))," ",(VLOOKUP($C160,Inscription!$A$6:$G$205,4,FALSE)))," ") ->  | F160: =IF(C160>0,(VLOOKUP($C160,Inscription!$A$6:$G$205,5,FALSE))," ") ->  | G160: =IF(C160>0,(VLOOKUP($C160,Inscription!$A$6:$G$205,7,FALSE))," ") ->  | H160: =LEFT(IF(C160>0,(VLOOKUP($C160,Inscription!$A$6:$G$205,6,FALSE))," "),8) ->  | I160: 0 | J160: =IF(COUNTIF($F$4:$F160,$F160)<2,$F160," ") ->  | K160: 157 | L160: 0 | M160: =IF(COUNTIF($F$4:$F160,$F160)<3,$F160," ") ->  | N160: 157 | O160: 0 | Q160: 1000 | R160: 1000 | S160: =IF(COUNTIF($F$4:$F160,J160)<4,$F160," ") ->  | T160: 157 | U160: 0 | AA160: 157
A161: 158 | B161: 158 | D161: =IF(C161>0,CONCATENATE((VLOOKUP($C161,Inscription!$A$6:$G$205,3,FALSE))," ",(VLOOKUP($C161,Inscription!$A$6:$G$205,4,FALSE)))," ") ->  | F161: =IF(C161>0,(VLOOKUP($C161,Inscription!$A$6:$G$205,5,FALSE))," ") ->  | G161: =IF(C161>0,(VLOOKUP($C161,Inscription!$A$6:$G$205,7,FALSE))," ") ->  | H161: =LEFT(IF(C161>0,(VLOOKUP($C161,Inscription!$A$6:$G$205,6,FALSE))," "),8) ->  | I161: 0 | J161: =IF(COUNTIF($F$4:$F161,$F161)<2,$F161," ") ->  | K161: 158 | L161: 0 | M161: =IF(COUNTIF($F$4:$F161,$F161)<3,$F161," ") ->  | N161: 158 | O161: 0 | Q161: 1000 | R161: 1000 | S161: =IF(COUNTIF($F$4:$F161,J161)<4,$F161," ") ->  | T161: 158 | U161: 0 | AA161: 158
A162: 159 | B162: 159 | D162: =IF(C162>0,CONCATENATE((VLOOKUP($C162,Inscription!$A$6:$G$205,3,FALSE))," ",(VLOOKUP($C162,Inscription!$A$6:$G$205,4,FALSE)))," ") ->  | F162: =IF(C162>0,(VLOOKUP($C162,Inscription!$A$6:$G$205,5,FALSE))," ") ->  | G162: =IF(C162>0,(VLOOKUP($C162,Inscription!$A$6:$G$205,7,FALSE))," ") ->  | H162: =LEFT(IF(C162>0,(VLOOKUP($C162,Inscription!$A$6:$G$205,6,FALSE))," "),8) ->  | I162: 0 | J162: =IF(COUNTIF($F$4:$F162,$F162)<2,$F162," ") ->  | K162: 159 | L162: 0 | M162: =IF(COUNTIF($F$4:$F162,$F162)<3,$F162," ") ->  | N162: 159 | O162: 0 | Q162: 1000 | R162: 1000 | S162: =IF(COUNTIF($F$4:$F162,J162)<4,$F162," ") ->  | T162: 159 | U162: 0 | AA162: 159
A163: 160 | B163: 160 | D163: =IF(C163>0,CONCATENATE((VLOOKUP($C163,Inscription!$A$6:$G$205,3,FALSE))," ",(VLOOKUP($C163,Inscription!$A$6:$G$205,4,FALSE)))," ") ->  | F163: =IF(C163>0,(VLOOKUP($C163,Inscription!$A$6:$G$205,5,FALSE))," ") ->  | G163: =IF(C163>0,(VLOOKUP($C163,Inscription!$A$6:$G$205,7,FALSE))," ") ->  | H163: =LEFT(IF(C163>0,(VLOOKUP($C163,Inscription!$A$6:$G$205,6,FALSE))," "),8) ->  | I163: 0 | J163: =IF(COUNTIF($F$4:$F163,$F163)<2,$F163," ") ->  | K163: 160 | L163: 0 | M163: =IF(COUNTIF($F$4:$F163,$F163)<3,$F163," ") ->  | N163: 160 | O163: 0 | Q163: 1000 | R163: 1000 | S163: =IF(COUNTIF($F$4:$F163,J163)<4,$F163," ") ->  | T163: 160 | U163: 0 | AA163: 160
A164: 161 | B164: 161 | D164: =IF(C164>0,CONCATENATE((VLOOKUP($C164,Inscription!$A$6:$G$205,3,FALSE))," ",(VLOOKUP($C164,Inscription!$A$6:$G$205,4,FALSE)))," ") ->  | F164: =IF(C164>0,(VLOOKUP($C164,Inscription!$A$6:$G$205,5,FALSE))," ") ->  | G164: =IF(C164>0,(VLOOKUP($C164,Inscription!$A$6:$G$205,7,FALSE))," ") ->  | H164: =LEFT(IF(C164>0,(VLOOKUP($C164,Inscription!$A$6:$G$205,6,FALSE))," "),8) ->  | I164: 0 | J164: =IF(COUNTIF($F$4:$F164,$F164)<2,$F164," ") ->  | K164: 161 | L164: 0 | M164: =IF(COUNTIF($F$4:$F164,$F164)<3,$F164," ") ->  | N164: 161 | O164: 0 | Q164: 1000 | R164: 1000 | S164: =IF(COUNTIF($F$4:$F164,J164)<4,$F164," ") ->  | T164: 161 | U164: 0 | AA164: 161
A165: 162 | B165: 162 | D165: =IF(C165>0,CONCATENATE((VLOOKUP($C165,Inscription!$A$6:$G$205,3,FALSE))," ",(VLOOKUP($C165,Inscription!$A$6:$G$205,4,FALSE)))," ") ->  | F165: =IF(C165>0,(VLOOKUP($C165,Inscription!$A$6:$G$205,5,FALSE))," ") ->  | G165: =IF(C165>0,(VLOOKUP($C165,Inscription!$A$6:$G$205,7,FALSE))," ") ->  | H165: =LEFT(IF(C165>0,(VLOOKUP($C165,Inscription!$A$6:$G$205,6,FALSE))," "),8) ->  | I165: 0 | J165: =IF(COUNTIF($F$4:$F165,$F165)<2,$F165," ") ->  | K165: 162 | L165: 0 | M165: =IF(COUNTIF($F$4:$F165,$F165)<3,$F165," ") ->  | N165: 162 | O165: 0 | Q165: 1000 | R165: 1000 | S165: =IF(COUNTIF($F$4:$F165,J165)<4,$F165," ") ->  | T165: 162 | U165: 0 | AA165: 162
A166: 163 | B166: 163 | D166: =IF(C166>0,CONCATENATE((VLOOKUP($C166,Inscription!$A$6:$G$205,3,FALSE))," ",(VLOOKUP($C166,Inscription!$A$6:$G$205,4,FALSE)))," ") ->  | F166: =IF(C166>0,(VLOOKUP($C166,Inscription!$A$6:$G$205,5,FALSE))," ") ->  | G166: =IF(C166>0,(VLOOKUP($C166,Inscription!$A$6:$G$205,7,FALSE))," ") ->  | H166: =LEFT(IF(C166>0,(VLOOKUP($C166,Inscription!$A$6:$G$205,6,FALSE))," "),8) ->  | I166: 0 | J166: =IF(COUNTIF($F$4:$F166,$F166)<2,$F166," ") ->  | K166: 163 | L166: 0 | M166: =IF(COUNTIF($F$4:$F166,$F166)<3,$F166," ") ->  | N166: 163 | O166: 0 | Q166: 1000 | R166: 1000 | S166: =IF(COUNTIF($F$4:$F166,J166)<4,$F166," ") ->  | T166: 163 | U166: 0 | AA166: 163
A167: 164 | B167: 164 | D167: =IF(C167>0,CONCATENATE((VLOOKUP($C167,Inscription!$A$6:$G$205,3,FALSE))," ",(VLOOKUP($C167,Inscription!$A$6:$G$205,4,FALSE)))," ") ->  | F167: =IF(C167>0,(VLOOKUP($C167,Inscription!$A$6:$G$205,5,FALSE))," ") ->  | G167: =IF(C167>0,(VLOOKUP($C167,Inscription!$A$6:$G$205,7,FALSE))," ") ->  | H167: =LEFT(IF(C167>0,(VLOOKUP($C167,Inscription!$A$6:$G$205,6,FALSE))," "),8) ->  | I167: 0 | J167: =IF(COUNTIF($F$4:$F167,$F167)<2,$F167," ") ->  | K167: 164 | L167: 0 | M167: =IF(COUNTIF($F$4:$F167,$F167)<3,$F167," ") ->  | N167: 164 | O167: 0 | Q167: 1000 | R167: 1000 | S167: =IF(COUNTIF($F$4:$F167,J167)<4,$F167," ") ->  | T167: 164 | U167: 0 | AA167: 164
A168: 165 | B168: 165 | D168: =IF(C168>0,CONCATENATE((VLOOKUP($C168,Inscription!$A$6:$G$205,3,FALSE))," ",(VLOOKUP($C168,Inscription!$A$6:$G$205,4,FALSE)))," ") ->  | F168: =IF(C168>0,(VLOOKUP($C168,Inscription!$A$6:$G$205,5,FALSE))," ") ->  | G168: =IF(C168>0,(VLOOKUP($C168,Inscription!$A$6:$G$205,7,FALSE))," ") ->  | H168: =LEFT(IF(C168>0,(VLOOKUP($C168,Inscription!$A$6:$G$205,6,FALSE))," "),8) ->  | I168: 0 | J168: =IF(COUNTIF($F$4:$F168,$F168)<2,$F168," ") ->  | K168: 165 | L168: 0 | M168: =IF(COUNTIF($F$4:$F168,$F168)<3,$F168," ") ->  | N168: 165 | O168: 0 | Q168: 1000 | R168: 1000 | S168: =IF(COUNTIF($F$4:$F168,J168)<4,$F168," ") ->  | T168: 165 | U168: 0 | AA168: 165
A169: 166 | B169: 166 | D169: =IF(C169>0,CONCATENATE((VLOOKUP($C169,Inscription!$A$6:$G$205,3,FALSE))," ",(VLOOKUP($C169,Inscription!$A$6:$G$205,4,FALSE)))," ") ->  | F169: =IF(C169>0,(VLOOKUP($C169,Inscription!$A$6:$G$205,5,FALSE))," ") ->  | G169: =IF(C169>0,(VLOOKUP($C169,Inscription!$A$6:$G$205,7,FALSE))," ") ->  | H169: =LEFT(IF(C169>0,(VLOOKUP($C169,Inscription!$A$6:$G$205,6,FALSE))," "),8) ->  | I169: 0 | J169: =IF(COUNTIF($F$4:$F169,$F169)<2,$F169," ") ->  | K169: 166 | L169: 0 | M169: =IF(COUNTIF($F$4:$F169,$F169)<3,$F169," ") ->  | N169: 166 | O169: 0 | Q169: 1000 | R169: 1000 | S169: =IF(COUNTIF($F$4:$F169,J169)<4,$F169," ") ->  | T169: 166 | U169: 0 | AA169: 166
A170: 167 | B170: 167 | D170: =IF(C170>0,CONCATENATE((VLOOKUP($C170,Inscription!$A$6:$G$205,3,FALSE))," ",(VLOOKUP($C170,Inscription!$A$6:$G$205,4,FALSE)))," ") ->  | F170: =IF(C170>0,(VLOOKUP($C170,Inscription!$A$6:$G$205,5,FALSE))," ") ->  | G170: =IF(C170>0,(VLOOKUP($C170,Inscription!$A$6:$G$205,7,FALSE))," ") ->  | H170: =LEFT(IF(C170>0,(VLOOKUP($C170,Inscription!$A$6:$G$205,6,FALSE))," "),8) ->  | I170: 0 | J170: =IF(COUNTIF($F$4:$F170,$F170)<2,$F170," ") ->  | K170: 167 | L170: 0 | M170: =IF(COUNTIF($F$4:$F170,$F170)<3,$F170," ") ->  | N170: 167 | O170: 0 | Q170: 1000 | R170: 1000 | S170: =IF(COUNTIF($F$4:$F170,J170)<4,$F170," ") ->  | T170: 167 | U170: 0 | AA170: 167
A171: 168 | B171: 168 | D171: =IF(C171>0,CONCATENATE((VLOOKUP($C171,Inscription!$A$6:$G$205,3,FALSE))," ",(VLOOKUP($C171,Inscription!$A$6:$G$205,4,FALSE)))," ") ->  | F171: =IF(C171>0,(VLOOKUP($C171,Inscription!$A$6:$G$205,5,FALSE))," ") ->  | G171: =IF(C171>0,(VLOOKUP($C171,Inscription!$A$6:$G$205,7,FALSE))," ") ->  | H171: =LEFT(IF(C171>0,(VLOOKUP($C171,Inscription!$A$6:$G$205,6,FALSE))," "),8) ->  | I171: 0 | J171: =IF(COUNTIF($F$4:$F171,$F171)<2,$F171," ") ->  | K171: 168 | L171: 0 | M171: =IF(COUNTIF($F$4:$F171,$F171)<3,$F171," ") ->  | N171: 168 | O171: 0 | Q171: 1000 | R171: 1000 | S171: =IF(COUNTIF($F$4:$F171,J171)<4,$F171," ") ->  | T171: 168 | U171: 0 | AA171: 168
A172: 169 | B172: 169 | D172: =IF(C172>0,CONCATENATE((VLOOKUP($C172,Inscription!$A$6:$G$205,3,FALSE))," ",(VLOOKUP($C172,Inscription!$A$6:$G$205,4,FALSE)))," ") ->  | F172: =IF(C172>0,(VLOOKUP($C172,Inscription!$A$6:$G$205,5,FALSE))," ") ->  | G172: =IF(C172>0,(VLOOKUP($C172,Inscription!$A$6:$G$205,7,FALSE))," ") ->  | H172: =LEFT(IF(C172>0,(VLOOKUP($C172,Inscription!$A$6:$G$205,6,FALSE))," "),8) ->  | I172: 0 | J172: =IF(COUNTIF($F$4:$F172,$F172)<2,$F172," ") ->  | K172: 169 | L172: 0 | M172: =IF(COUNTIF($F$4:$F172,$F172)<3,$F172," ") ->  | N172: 169 | O172: 0 | Q172: 1000 | R172: 1000 | S172: =IF(COUNTIF($F$4:$F172,J172)<4,$F172," ") ->  | T172: 169 | U172: 0 | AA172: 169
A173: 170 | B173: 170 | D173: =IF(C173>0,CONCATENATE((VLOOKUP($C173,Inscription!$A$6:$G$205,3,FALSE))," ",(VLOOKUP($C173,Inscription!$A$6:$G$205,4,FALSE)))," ") ->  | F173: =IF(C173>0,(VLOOKUP($C173,Inscription!$A$6:$G$205,5,FALSE))," ") ->  | G173: =IF(C173>0,(VLOOKUP($C173,Inscription!$A$6:$G$205,7,FALSE))," ") ->  | H173: =LEFT(IF(C173>0,(VLOOKUP($C173,Inscription!$A$6:$G$205,6,FALSE))," "),8) ->  | I173: 0 | J173: =IF(COUNTIF($F$4:$F173,$F173)<2,$F173," ") ->  | K173: 170 | L173: 0 | M173: =IF(COUNTIF($F$4:$F173,$F173)<3,$F173," ") ->  | N173: 170 | O173: 0 | Q173: 1000 | R173: 1000 | S173: =IF(COUNTIF($F$4:$F173,J173)<4,$F173," ") ->  | T173: 170 | U173: 0 | AA173: 170
A174: 171 | B174: 171 | D174: =IF(C174>0,CONCATENATE((VLOOKUP($C174,Inscription!$A$6:$G$205,3,FALSE))," ",(VLOOKUP($C174,Inscription!$A$6:$G$205,4,FALSE)))," ") ->  | F174: =IF(C174>0,(VLOOKUP($C174,Inscription!$A$6:$G$205,5,FALSE))," ") ->  | G174: =IF(C174>0,(VLOOKUP($C174,Inscription!$A$6:$G$205,7,FALSE))," ") ->  | H174: =LEFT(IF(C174>0,(VLOOKUP($C174,Inscription!$A$6:$G$205,6,FALSE))," "),8) ->  | I174: 0 | J174: =IF(COUNTIF($F$4:$F174,$F174)<2,$F174," ") ->  | K174: 171 | L174: 0 | M174: =IF(COUNTIF($F$4:$F174,$F174)<3,$F174," ") ->  | N174: 171 | O174: 0 | Q174: 1000 | R174: 1000 | S174: =IF(COUNTIF($F$4:$F174,J174)<4,$F174," ") ->  | T174: 171 | U174: 0 | AA174: 171
A175: 172 | B175: 172 | D175: =IF(C175>0,CONCATENATE((VLOOKUP($C175,Inscription!$A$6:$G$205,3,FALSE))," ",(VLOOKUP($C175,Inscription!$A$6:$G$205,4,FALSE)))," ") ->  | F175: =IF(C175>0,(VLOOKUP($C175,Inscription!$A$6:$G$205,5,FALSE))," ") ->  | G175: =IF(C175>0,(VLOOKUP($C175,Inscription!$A$6:$G$205,7,FALSE))," ") ->  | H175: =LEFT(IF(C175>0,(VLOOKUP($C175,Inscription!$A$6:$G$205,6,FALSE))," "),8) ->  | I175: 0 | J175: =IF(COUNTIF($F$4:$F175,$F175)<2,$F175," ") ->  | K175: 172 | L175: 0 | M175: =IF(COUNTIF($F$4:$F175,$F175)<3,$F175," ") ->  | N175: 172 | O175: 0 | Q175: 1000 | R175: 1000 | S175: =IF(COUNTIF($F$4:$F175,J175)<4,$F175," ") ->  | T175: 172 | U175: 0 | AA175: 172
A176: 173 | B176: 173 | D176: =IF(C176>0,CONCATENATE((VLOOKUP($C176,Inscription!$A$6:$G$205,3,FALSE))," ",(VLOOKUP($C176,Inscription!$A$6:$G$205,4,FALSE)))," ") ->  | F176: =IF(C176>0,(VLOOKUP($C176,Inscription!$A$6:$G$205,5,FALSE))," ") ->  | G176: =IF(C176>0,(VLOOKUP($C176,Inscription!$A$6:$G$205,7,FALSE))," ") ->  | H176: =LEFT(IF(C176>0,(VLOOKUP($C176,Inscription!$A$6:$G$205,6,FALSE))," "),8) ->  | I176: 0 | J176: =IF(COUNTIF($F$4:$F176,$F176)<2,$F176," ") ->  | K176: 173 | L176: 0 | M176: =IF(COUNTIF($F$4:$F176,$F176)<3,$F176," ") ->  | N176: 173 | O176: 0 | Q176: 1000 | R176: 1000 | S176: =IF(COUNTIF($F$4:$F176,J176)<4,$F176," ") ->  | T176: 173 | U176: 0 | AA176: 173
A177: 174 | B177: 174 | D177: =IF(C177>0,CONCATENATE((VLOOKUP($C177,Inscription!$A$6:$G$205,3,FALSE))," ",(VLOOKUP($C177,Inscription!$A$6:$G$205,4,FALSE)))," ") ->  | F177: =IF(C177>0,(VLOOKUP($C177,Inscription!$A$6:$G$205,5,FALSE))," ") ->  | G177: =IF(C177>0,(VLOOKUP($C177,Inscription!$A$6:$G$205,7,FALSE))," ") ->  | H177: =LEFT(IF(C177>0,(VLOOKUP($C177,Inscription!$A$6:$G$205,6,FALSE))," "),8) ->  | I177: 0 | J177: =IF(COUNTIF($F$4:$F177,$F177)<2,$F177," ") ->  | K177: 174 | L177: 0 | M177: =IF(COUNTIF($F$4:$F177,$F177)<3,$F177," ") ->  | N177: 174 | O177: 0 | Q177: 1000 | R177: 1000 | S177: =IF(COUNTIF($F$4:$F177,J177)<4,$F177," ") ->  | T177: 174 | U177: 0 | AA177: 174
A178: 175 | B178: 175 | D178: =IF(C178>0,CONCATENATE((VLOOKUP($C178,Inscription!$A$6:$G$205,3,FALSE))," ",(VLOOKUP($C178,Inscription!$A$6:$G$205,4,FALSE)))," ") ->  | F178: =IF(C178>0,(VLOOKUP($C178,Inscription!$A$6:$G$205,5,FALSE))," ") ->  | G178: =IF(C178>0,(VLOOKUP($C178,Inscription!$A$6:$G$205,7,FALSE))," ") ->  | H178: =LEFT(IF(C178>0,(VLOOKUP($C178,Inscription!$A$6:$G$205,6,FALSE))," "),8) ->  | I178: 0 | J178: =IF(COUNTIF($F$4:$F178,$F178)<2,$F178," ") ->  | K178: 175 | L178: 0 | M178: =IF(COUNTIF($F$4:$F178,$F178)<3,$F178," ") ->  | N178: 175 | O178: 0 | Q178: 1000 | R178: 1000 | S178: =IF(COUNTIF($F$4:$F178,J178)<4,$F178," ") ->  | T178: 175 | U178: 0 | AA178: 175
A179: 176 | B179: 176 | D179: =IF(C179>0,CONCATENATE((VLOOKUP($C179,Inscription!$A$6:$G$205,3,FALSE))," ",(VLOOKUP($C179,Inscription!$A$6:$G$205,4,FALSE)))," ") ->  | F179: =IF(C179>0,(VLOOKUP($C179,Inscription!$A$6:$G$205,5,FALSE))," ") ->  | G179: =IF(C179>0,(VLOOKUP($C179,Inscription!$A$6:$G$205,7,FALSE))," ") ->  | H179: =LEFT(IF(C179>0,(VLOOKUP($C179,Inscription!$A$6:$G$205,6,FALSE))," "),8) ->  | I179: 0 | J179: =IF(COUNTIF($F$4:$F179,$F179)<2,$F179," ") ->  | K179: 176 | L179: 0 | M179: =IF(COUNTIF($F$4:$F179,$F179)<3,$F179," ") ->  | N179: 176 | O179: 0 | Q179: 1000 | R179: 1000 | S179: =IF(COUNTIF($F$4:$F179,J179)<4,$F179," ") ->  | T179: 176 | U179: 0 | AA179: 176
A180: 177 | B180: 177 | D180: =IF(C180>0,CONCATENATE((VLOOKUP($C180,Inscription!$A$6:$G$205,3,FALSE))," ",(VLOOKUP($C180,Inscription!$A$6:$G$205,4,FALSE)))," ") ->  | F180: =IF(C180>0,(VLOOKUP($C180,Inscription!$A$6:$G$205,5,FALSE))," ") ->  | G180: =IF(C180>0,(VLOOKUP($C180,Inscription!$A$6:$G$205,7,FALSE))," ") ->  | H180: =LEFT(IF(C180>0,(VLOOKUP($C180,Inscription!$A$6:$G$205,6,FALSE))," "),8) ->  | I180: 0 | J180: =IF(COUNTIF($F$4:$F180,$F180)<2,$F180," ") ->  | K180: 177 | L180: 0 | M180: =IF(COUNTIF($F$4:$F180,$F180)<3,$F180," ") ->  | N180: 177 | O180: 0 | Q180: 1000 | R180: 1000 | S180: =IF(COUNTIF($F$4:$F180,J180)<4,$F180," ") ->  | T180: 177 | U180: 0 | AA180: 177
A181: 178 | B181: 178 | D181: =IF(C181>0,CONCATENATE((VLOOKUP($C181,Inscription!$A$6:$G$205,3,FALSE))," ",(VLOOKUP($C181,Inscription!$A$6:$G$205,4,FALSE)))," ") ->  | F181: =IF(C181>0,(VLOOKUP($C181,Inscription!$A$6:$G$205,5,FALSE))," ") ->  | G181: =IF(C181>0,(VLOOKUP($C181,Inscription!$A$6:$G$205,7,FALSE))," ") ->  | H181: =LEFT(IF(C181>0,(VLOOKUP($C181,Inscription!$A$6:$G$205,6,FALSE))," "),8) ->  | I181: 0 | J181: =IF(COUNTIF($F$4:$F181,$F181)<2,$F181," ") ->  | K181: 178 | L181: 0 | M181: =IF(COUNTIF($F$4:$F181,$F181)<3,$F181," ") ->  | N181: 178 | O181: 0 | Q181: 1000 | R181: 1000 | S181: =IF(COUNTIF($F$4:$F181,J181)<4,$F181," ") ->  | T181: 178 | U181: 0 | AA181: 178
A182: 179 | B182: 179 | D182: =IF(C182>0,CONCATENATE((VLOOKUP($C182,Inscription!$A$6:$G$205,3,FALSE))," ",(VLOOKUP($C182,Inscription!$A$6:$G$205,4,FALSE)))," ") ->  | F182: =IF(C182>0,(VLOOKUP($C182,Inscription!$A$6:$G$205,5,FALSE))," ") ->  | G182: =IF(C182>0,(VLOOKUP($C182,Inscription!$A$6:$G$205,7,FALSE))," ") ->  | H182: =LEFT(IF(C182>0,(VLOOKUP($C182,Inscription!$A$6:$G$205,6,FALSE))," "),8) ->  | I182: 0 | J182: =IF(COUNTIF($F$4:$F182,$F182)<2,$F182," ") ->  | K182: 179 | L182: 0 | M182: =IF(COUNTIF($F$4:$F182,$F182)<3,$F182," ") ->  | N182: 179 | O182: 0 | Q182: 1000 | R182: 1000 | S182: =IF(COUNTIF($F$4:$F182,J182)<4,$F182," ") ->  | T182: 179 | U182: 0 | AA182: 179
A183: 180 | B183: 180 | D183: =IF(C183>0,CONCATENATE((VLOOKUP($C183,Inscription!$A$6:$G$205,3,FALSE))," ",(VLOOKUP($C183,Inscription!$A$6:$G$205,4,FALSE)))," ") ->  | F183: =IF(C183>0,(VLOOKUP($C183,Inscription!$A$6:$G$205,5,FALSE))," ") ->  | G183: =IF(C183>0,(VLOOKUP($C183,Inscription!$A$6:$G$205,7,FALSE))," ") ->  | H183: =LEFT(IF(C183>0,(VLOOKUP($C183,Inscription!$A$6:$G$205,6,FALSE))," "),8) ->  | I183: 0 | J183: =IF(COUNTIF($F$4:$F183,$F183)<2,$F183," ") ->  | K183: 180 | L183: 0 | M183: =IF(COUNTIF($F$4:$F183,$F183)<3,$F183," ") ->  | N183: 180 | O183: 0 | Q183: 1000 | R183: 1000 | S183: =IF(COUNTIF($F$4:$F183,J183)<4,$F183," ") ->  | T183: 180 | U183: 0 | AA183: 180
A184: 181 | B184: 181 | D184: =IF(C184>0,CONCATENATE((VLOOKUP($C184,Inscription!$A$6:$G$205,3,FALSE))," ",(VLOOKUP($C184,Inscription!$A$6:$G$205,4,FALSE)))," ") ->  | F184: =IF(C184>0,(VLOOKUP($C184,Inscription!$A$6:$G$205,5,FALSE))," ") ->  | G184: =IF(C184>0,(VLOOKUP($C184,Inscription!$A$6:$G$205,7,FALSE))," ") ->  | H184: =LEFT(IF(C184>0,(VLOOKUP($C184,Inscription!$A$6:$G$205,6,FALSE))," "),8) ->  | I184: 0 | J184: =IF(COUNTIF($F$4:$F184,$F184)<2,$F184," ") ->  | K184: 181 | L184: 0 | M184: =IF(COUNTIF($F$4:$F184,$F184)<3,$F184," ") ->  | N184: 181 | O184: 0 | Q184: 1000 | R184: 1000 | S184: =IF(COUNTIF($F$4:$F184,J184)<4,$F184," ") ->  | T184: 181 | U184: 0 | AA184: 181
A185: 182 | B185: 182 | D185: =IF(C185>0,CONCATENATE((VLOOKUP($C185,Inscription!$A$6:$G$205,3,FALSE))," ",(VLOOKUP($C185,Inscription!$A$6:$G$205,4,FALSE)))," ") ->  | F185: =IF(C185>0,(VLOOKUP($C185,Inscription!$A$6:$G$205,5,FALSE))," ") ->  | G185: =IF(C185>0,(VLOOKUP($C185,Inscription!$A$6:$G$205,7,FALSE))," ") ->  | H185: =LEFT(IF(C185>0,(VLOOKUP($C185,Inscription!$A$6:$G$205,6,FALSE))," "),8) ->  | I185: 0 | J185: =IF(COUNTIF($F$4:$F185,$F185)<2,$F185," ") ->  | K185: 182 | L185: 0 | M185: =IF(COUNTIF($F$4:$F185,$F185)<3,$F185," ") ->  | N185: 182 | O185: 0 | Q185: 1000 | R185: 1000 | S185: =IF(COUNTIF($F$4:$F185,J185)<4,$F185," ") ->  | T185: 182 | U185: 0 | AA185: 182
A186: 183 | B186: 183 | D186: =IF(C186>0,CONCATENATE((VLOOKUP($C186,Inscription!$A$6:$G$205,3,FALSE))," ",(VLOOKUP($C186,Inscription!$A$6:$G$205,4,FALSE)))," ") ->  | F186: =IF(C186>0,(VLOOKUP($C186,Inscription!$A$6:$G$205,5,FALSE))," ") ->  | G186: =IF(C186>0,(VLOOKUP($C186,Inscription!$A$6:$G$205,7,FALSE))," ") ->  | H186: =LEFT(IF(C186>0,(VLOOKUP($C186,Inscription!$A$6:$G$205,6,FALSE))," "),8) ->  | I186: 0 | J186: =IF(COUNTIF($F$4:$F186,$F186)<2,$F186," ") ->  | K186: 183 | L186: 0 | M186: =IF(COUNTIF($F$4:$F186,$F186)<3,$F186," ") ->  | N186: 183 | O186: 0 | Q186: 1000 | R186: 1000 | S186: =IF(COUNTIF($F$4:$F186,J186)<4,$F186," ") ->  | T186: 183 | U186: 0 | AA186: 183
A187: 184 | B187: 184 | D187: =IF(C187>0,CONCATENATE((VLOOKUP($C187,Inscription!$A$6:$G$205,3,FALSE))," ",(VLOOKUP($C187,Inscription!$A$6:$G$205,4,FALSE)))," ") ->  | F187: =IF(C187>0,(VLOOKUP($C187,Inscription!$A$6:$G$205,5,FALSE))," ") ->  | G187: =IF(C187>0,(VLOOKUP($C187,Inscription!$A$6:$G$205,7,FALSE))," ") ->  | H187: =LEFT(IF(C187>0,(VLOOKUP($C187,Inscription!$A$6:$G$205,6,FALSE))," "),8) ->  | I187: 0 | J187: =IF(COUNTIF($F$4:$F187,$F187)<2,$F187," ") ->  | K187: 184 | L187: 0 | M187: =IF(COUNTIF($F$4:$F187,$F187)<3,$F187," ") ->  | N187: 184 | O187: 0 | Q187: 1000 | R187: 1000 | S187: =IF(COUNTIF($F$4:$F187,J187)<4,$F187," ") ->  | T187: 184 | U187: 0 | AA187: 184
A188: 185 | B188: 185 | D188: =IF(C188>0,CONCATENATE((VLOOKUP($C188,Inscription!$A$6:$G$205,3,FALSE))," ",(VLOOKUP($C188,Inscription!$A$6:$G$205,4,FALSE)))," ") ->  | F188: =IF(C188>0,(VLOOKUP($C188,Inscription!$A$6:$G$205,5,FALSE))," ") ->  | G188: =IF(C188>0,(VLOOKUP($C188,Inscription!$A$6:$G$205,7,FALSE))," ") ->  | H188: =LEFT(IF(C188>0,(VLOOKUP($C188,Inscription!$A$6:$G$205,6,FALSE))," "),8) ->  | I188: 0 | J188: =IF(COUNTIF($F$4:$F188,$F188)<2,$F188," ") ->  | K188: 185 | L188: 0 | M188: =IF(COUNTIF($F$4:$F188,$F188)<3,$F188," ") ->  | N188: 185 | O188: 0 | Q188: 1000 | R188: 1000 | S188: =IF(COUNTIF($F$4:$F188,J188)<4,$F188," ") ->  | T188: 185 | U188: 0 | AA188: 185
A189: 186 | B189: 186 | D189: =IF(C189>0,CONCATENATE((VLOOKUP($C189,Inscription!$A$6:$G$205,3,FALSE))," ",(VLOOKUP($C189,Inscription!$A$6:$G$205,4,FALSE)))," ") ->  | F189: =IF(C189>0,(VLOOKUP($C189,Inscription!$A$6:$G$205,5,FALSE))," ") ->  | G189: =IF(C189>0,(VLOOKUP($C189,Inscription!$A$6:$G$205,7,FALSE))," ") ->  | H189: =LEFT(IF(C189>0,(VLOOKUP($C189,Inscription!$A$6:$G$205,6,FALSE))," "),8) ->  | I189: 0 | J189: =IF(COUNTIF($F$4:$F189,$F189)<2,$F189," ") ->  | K189: 186 | L189: 0 | M189: =IF(COUNTIF($F$4:$F189,$F189)<3,$F189," ") ->  | N189: 186 | O189: 0 | Q189: 1000 | R189: 1000 | S189: =IF(COUNTIF($F$4:$F189,J189)<4,$F189," ") ->  | T189: 186 | U189: 0 | AA189: 186
A190: 187 | B190: 187 | D190: =IF(C190>0,CONCATENATE((VLOOKUP($C190,Inscription!$A$6:$G$205,3,FALSE))," ",(VLOOKUP($C190,Inscription!$A$6:$G$205,4,FALSE)))," ") ->  | F190: =IF(C190>0,(VLOOKUP($C190,Inscription!$A$6:$G$205,5,FALSE))," ") ->  | G190: =IF(C190>0,(VLOOKUP($C190,Inscription!$A$6:$G$205,7,FALSE))," ") ->  | H190: =LEFT(IF(C190>0,(VLOOKUP($C190,Inscription!$A$6:$G$205,6,FALSE))," "),8) ->  | I190: 0 | J190: =IF(COUNTIF($F$4:$F190,$F190)<2,$F190," ") ->  | K190: 187 | L190: 0 | M190: =IF(COUNTIF($F$4:$F190,$F190)<3,$F190," ") ->  | N190: 187 | O190: 0 | Q190: 1000 | R190: 1000 | S190: =IF(COUNTIF($F$4:$F190,J190)<4,$F190," ") ->  | T190: 187 | U190: 0 | AA190: 187
A191: 188 | B191: 188 | D191: =IF(C191>0,CONCATENATE((VLOOKUP($C191,Inscription!$A$6:$G$205,3,FALSE))," ",(VLOOKUP($C191,Inscription!$A$6:$G$205,4,FALSE)))," ") ->  | F191: =IF(C191>0,(VLOOKUP($C191,Inscription!$A$6:$G$205,5,FALSE))," ") ->  | G191: =IF(C191>0,(VLOOKUP($C191,Inscription!$A$6:$G$205,7,FALSE))," ") ->  | H191: =LEFT(IF(C191>0,(VLOOKUP($C191,Inscription!$A$6:$G$205,6,FALSE))," "),8) ->  | I191: 0 | J191: =IF(COUNTIF($F$4:$F191,$F191)<2,$F191," ") ->  | K191: 188 | L191: 0 | M191: =IF(COUNTIF($F$4:$F191,$F191)<3,$F191," ") ->  | N191: 188 | O191: 0 | Q191: 1000 | R191: 1000 | S191: =IF(COUNTIF($F$4:$F191,J191)<4,$F191," ") ->  | T191: 188 | U191: 0 | AA191: 188
A192: 189 | B192: 189 | D192: =IF(C192>0,CONCATENATE((VLOOKUP($C192,Inscription!$A$6:$G$205,3,FALSE))," ",(VLOOKUP($C192,Inscription!$A$6:$G$205,4,FALSE)))," ") ->  | F192: =IF(C192>0,(VLOOKUP($C192,Inscription!$A$6:$G$205,5,FALSE))," ") ->  | G192: =IF(C192>0,(VLOOKUP($C192,Inscription!$A$6:$G$205,7,FALSE))," ") ->  | H192: =LEFT(IF(C192>0,(VLOOKUP($C192,Inscription!$A$6:$G$205,6,FALSE))," "),8) ->  | I192: 0 | J192: =IF(COUNTIF($F$4:$F192,$F192)<2,$F192," ") ->  | K192: 189 | L192: 0 | M192: =IF(COUNTIF($F$4:$F192,$F192)<3,$F192," ") ->  | N192: 189 | O192: 0 | Q192: 1000 | R192: 1000 | S192: =IF(COUNTIF($F$4:$F192,J192)<4,$F192," ") ->  | T192: 189 | U192: 0 | AA192: 189
A193: 190 | B193: 190 | D193: =IF(C193>0,CONCATENATE((VLOOKUP($C193,Inscription!$A$6:$G$205,3,FALSE))," ",(VLOOKUP($C193,Inscription!$A$6:$G$205,4,FALSE)))," ") ->  | F193: =IF(C193>0,(VLOOKUP($C193,Inscription!$A$6:$G$205,5,FALSE))," ") ->  | G193: =IF(C193>0,(VLOOKUP($C193,Inscription!$A$6:$G$205,7,FALSE))," ") ->  | H193: =LEFT(IF(C193>0,(VLOOKUP($C193,Inscription!$A$6:$G$205,6,FALSE))," "),8) ->  | I193: =I192 -> 0 | J193: =IF(COUNTIF($F$4:$F193,$F193)<2,$F193," ") ->  | K193: 190 | L193: 0 | M193: =IF(COUNTIF($F$4:$F193,$F193)<3,$F193," ") ->  | N193: 190 | O193: 0 | Q193: 1000 | R193: 1000 | S193: =IF(COUNTIF($F$4:$F193,J193)<4,$F193," ") ->  | T193: 190 | U193: 0 | AA193: 190
A194: 191 | B194: 191 | D194: =IF(C194>0,CONCATENATE((VLOOKUP($C194,Inscription!$A$6:$G$205,3,FALSE))," ",(VLOOKUP($C194,Inscription!$A$6:$G$205,4,FALSE)))," ") ->  | F194: =IF(C194>0,(VLOOKUP($C194,Inscription!$A$6:$G$205,5,FALSE))," ") ->  | G194: =IF(C194>0,(VLOOKUP($C194,Inscription!$A$6:$G$205,7,FALSE))," ") ->  | H194: =LEFT(IF(C194>0,(VLOOKUP($C194,Inscription!$A$6:$G$205,6,FALSE))," "),8) ->  | I194: 0 | J194: =IF(COUNTIF($F$4:$F194,$F194)<2,$F194," ") ->  | K194: 191 | L194: 0 | M194: =IF(COUNTIF($F$4:$F194,$F194)<3,$F194," ") ->  | N194: 191 | O194: 0 | Q194: 1000 | R194: 1000 | S194: =IF(COUNTIF($F$4:$F194,J194)<4,$F194," ") ->  | T194: 191 | U194: 0 | AA194: 191
A195: 192 | B195: 192 | D195: =IF(C195>0,CONCATENATE((VLOOKUP($C195,Inscription!$A$6:$G$205,3,FALSE))," ",(VLOOKUP($C195,Inscription!$A$6:$G$205,4,FALSE)))," ") ->  | F195: =IF(C195>0,(VLOOKUP($C195,Inscription!$A$6:$G$205,5,FALSE))," ") ->  | G195: =IF(C195>0,(VLOOKUP($C195,Inscription!$A$6:$G$205,7,FALSE))," ") ->  | H195: =LEFT(IF(C195>0,(VLOOKUP($C195,Inscription!$A$6:$G$205,6,FALSE))," "),8) ->  | I195: 0 | J195: =IF(COUNTIF($F$4:$F195,$F195)<2,$F195," ") ->  | K195: 192 | L195: 0 | M195: =IF(COUNTIF($F$4:$F195,$F195)<3,$F195," ") ->  | N195: 192 | O195: 0 | Q195: 1000 | R195: 1000 | S195: =IF(COUNTIF($F$4:$F195,J195)<4,$F195," ") ->  | T195: 192 | U195: 0 | AA195: 192
A196: =IF(B196<1,1000,(IF(AA196=B196,B196,(20100-SUM($AA$4:$AA$203))/(COUNTIF($AA$4:$AA$203,"T"))))) -> 193 | B196: 193 | D196: =IF(C196>0,CONCATENATE((VLOOKUP($C196,Inscription!$A$6:$G$205,3,FALSE))," ",(VLOOKUP($C196,Inscription!$A$6:$G$205,4,FALSE)))," ") ->  | F196: =IF(C196>0,(VLOOKUP($C196,Inscription!$A$6:$G$205,5,FALSE))," ") ->  | G196: =IF(C196>0,(VLOOKUP($C196,Inscription!$A$6:$G$205,7,FALSE))," ") ->  | H196: =LEFT(IF(C196>0,(VLOOKUP($C196,Inscription!$A$6:$G$205,6,FALSE))," "),8) ->  | I196: 0 | J196: =IF(COUNTIF($F$4:$F196,$F196)<2,$F196," ") ->  | K196: 193 | L196: 0 | M196: =IF(COUNTIF($F$4:$F196,$F196)<3,$F196," ") ->  | N196: 193 | O196: 0 | Q196: 1000 | R196: 1000 | S196: =IF(COUNTIF($F$4:$F196,J196)<4,$F196," ") ->  | T196: 193 | U196: 0 | AA196: 193
A197: 194 | B197: 194 | D197: =IF(C197>0,CONCATENATE((VLOOKUP($C197,Inscription!$A$6:$G$205,3,FALSE))," ",(VLOOKUP($C197,Inscription!$A$6:$G$205,4,FALSE)))," ") ->  | F197: =IF(C197>0,(VLOOKUP($C197,Inscription!$A$6:$G$205,5,FALSE))," ") ->  | G197: =IF(C197>0,(VLOOKUP($C197,Inscription!$A$6:$G$205,7,FALSE))," ") ->  | H197: =LEFT(IF(C197>0,(VLOOKUP($C197,Inscription!$A$6:$G$205,6,FALSE))," "),8) ->  | I197: 0 | J197: =IF(COUNTIF($F$4:$F197,$F197)<2,$F197," ") ->  | K197: =IF(J197=F197,A197,"") -> 194 | L197: =IF(J197=F197,I197,"") -> 0 | M197: =IF(COUNTIF($F$4:$F197,$F197)<3,$F197," ") ->  | N197: =IF(M197=$F197,$A197,"") -> 194 | O197: =IF(M197=$F197,$I197,"") -> 0 | P197: =IF(M197=J197,"",M197) ->  | Q197: =IF(P197=$F197,$A197,1000) -> 1000 | R197: =IF(P197=$F197,$I197,1000) -> 1000 | S197: =IF(COUNTIF($F$4:$F197,J197)<4,$F197," ") ->  | T197: =IF(S197=$F197,$A197,"") -> 194 | U197: =IF(S197=$F197,$I197,"") -> 0 | V197: =IF(S197=J197,"",S197) ->  | W197: =IF(V197=P197,"",S197) ->  | X197: =IF(W197=$F197,$A197,"") ->  | Y197: =IF(W197=$F197,$I197,"") ->  | AA197: 194
A198: 195 | B198: 195 | D198: =IF(C198>0,CONCATENATE((VLOOKUP($C198,Inscription!$A$6:$G$205,3,FALSE))," ",(VLOOKUP($C198,Inscription!$A$6:$G$205,4,FALSE)))," ") ->  | F198: =IF(C198>0,(VLOOKUP($C198,Inscription!$A$6:$G$205,5,FALSE))," ") ->  | G198: =IF(C198>0,(VLOOKUP($C198,Inscription!$A$6:$G$205,7,FALSE))," ") ->  | H198: =LEFT(IF(C198>0,(VLOOKUP($C198,Inscription!$A$6:$G$205,6,FALSE))," "),8) ->  | I198: 0 | J198: =IF(COUNTIF($F$4:$F198,$F198)<2,$F198," ") ->  | K198: 195 | L198: 0 | M198: =IF(COUNTIF($F$4:$F198,$F198)<3,$F198," ") ->  | N198: 195 | O198: 0 | Q198: 1000 | R198: 1000 | S198: =IF(COUNTIF($F$4:$F198,J198)<4,$F198," ") ->  | T198: 195 | U198: 0 | AA198: 195
A199: 196 | B199: 196 | D199: =IF(C199>0,CONCATENATE((VLOOKUP($C199,Inscription!$A$6:$G$205,3,FALSE))," ",(VLOOKUP($C199,Inscription!$A$6:$G$205,4,FALSE)))," ") ->  | F199: =IF(C199>0,(VLOOKUP($C199,Inscription!$A$6:$G$205,5,FALSE))," ") ->  | G199: =IF(C199>0,(VLOOKUP($C199,Inscription!$A$6:$G$205,7,FALSE))," ") ->  | H199: =LEFT(IF(C199>0,(VLOOKUP($C199,Inscription!$A$6:$G$205,6,FALSE))," "),8) ->  | I199: 0 | J199: =IF(COUNTIF($F$4:$F199,$F199)<2,$F199," ") ->  | K199: 196 | L199: 0 | M199: =IF(COUNTIF($F$4:$F199,$F199)<3,$F199," ") ->  | N199: 196 | O199: 0 | Q199: 1000 | R199: 1000 | S199: =IF(COUNTIF($F$4:$F199,J199)<4,$F199," ") ->  | T199: 196 | U199: 0 | AA199: 196
A200: 197 | B200: 197 | D200: =IF(C200>0,CONCATENATE((VLOOKUP($C200,Inscription!$A$6:$G$205,3,FALSE))," ",(VLOOKUP($C200,Inscription!$A$6:$G$205,4,FALSE)))," ") ->  | F200: =IF(C200>0,(VLOOKUP($C200,Inscription!$A$6:$G$205,5,FALSE))," ") ->  | G200: =IF(C200>0,(VLOOKUP($C200,Inscription!$A$6:$G$205,7,FALSE))," ") ->  | H200: =LEFT(IF(C200>0,(VLOOKUP($C200,Inscription!$A$6:$G$205,6,FALSE))," "),8) ->  | I200: 0 | J200: =IF(COUNTIF($F$4:$F200,$F200)<2,$F200," ") ->  | K200: 197 | L200: 0 | M200: =IF(COUNTIF($F$4:$F200,$F200)<3,$F200," ") ->  | N200: 197 | O200: 0 | Q200: 1000 | R200: 1000 | S200: =IF(COUNTIF($F$4:$F200,J200)<4,$F200," ") ->  | T200: 197 | U200: 0 | AA200: 197
... 3 more rows

Sheet CLASS INTERNET
A1: COURSE HENANSAL | F1: =IF(Inscription!$D$4>0,"DATE : "&TEXT(Inscription!D$4,"jj mmmm aaaa"),"") -> DATE : 01 octobre 2023
A2: CAT | B2: =Inscription!#REF! ->  | E2: PARTANTS | F2: =CLASSEMENT!G2 ->  | G2: CLASSES | H2: =CLASSEMENT!I2 -> 55
A3: Place | B3: Doss | C3: NOM et PRENOM | E3: ASSOCIATION | F3: LICENCE | G3: CAT. | H3: TEMPS
A4: =CLASSEMENT!$B4 -> 1 | B4: =CLASSEMENT!C4 -> 3 | C4: =CLASSEMENT!D4 -> BASSET Evan | E4: =CLASSEMENT!F4 -> vc evron | F4: =CLASSEMENT!G4 -> 0 | G4: =CLASSEMENT!H4 -> poussin | H4: =CLASSEMENT!I4 -> 0
A5: =CLASSEMENT!$B5 -> 2 | B5: =CLASSEMENT!C5 -> 4 | C5: =CLASSEMENT!D5 -> BANNER Livia | E5: =CLASSEMENT!F5 -> vtt du lié | F5: =CLASSEMENT!G5 -> 0 | G5: =CLASSEMENT!H5 -> poussin | H5: =IF(CLASSEMENT!I5=CLASSEMENT!I4,0,CLASSEMENT!I5-CLASSEMENT!$I$4) -> 00:00:00
A6: =CLASSEMENT!$B6 -> 3 | B6: =CLASSEMENT!C6 -> 2 | C6: =CLASSEMENT!D6 -> BARS Gabin | E6: =CLASSEMENT!F6 -> begard vtt gwerun | F6: =CLASSEMENT!G6 -> 407364 | G6: =CLASSEMENT!H6 -> poussin | H6: =IF(CLASSEMENT!I6=CLASSEMENT!I5,0,CLASSEMENT!I6-CLASSEMENT!$I$4) -> 00:00:00
A7: =CLASSEMENT!$B7 -> 4 | B7: =CLASSEMENT!C7 -> 5 | C7: =CLASSEMENT!D7 -> MACE Loukas | E7: =CLASSEMENT!F7 -> vc evron | F7: =CLASSEMENT!G7 -> 996776 | G7: =CLASSEMENT!H7 -> poussin | H7: =IF(CLASSEMENT!I7=CLASSEMENT!I6,0,CLASSEMENT!I7-CLASSEMENT!$I$4) -> 00:00:00
A8: =CLASSEMENT!$B8 -> 5 | B8: =CLASSEMENT!C8 -> 1 | C8: =CLASSEMENT!D8 -> LEVEQUE Nathan | E8: =CLASSEMENT!F8 -> district loudéac | F8: =CLASSEMENT!G8 -> 0 | G8: =CLASSEMENT!H8 -> poussin | H8: =IF(CLASSEMENT!I8=CLASSEMENT!I7,0,CLASSEMENT!I8-CLASSEMENT!$I$4) -> 00:00:00
A9: =CLASSEMENT!$B9 -> 0 | B9: =CLASSEMENT!C9 -> 0 | C9: =CLASSEMENT!D9 ->  | E9: =CLASSEMENT!F9 ->  | F9: =CLASSEMENT!G9 ->  | G9: =CLASSEMENT!H9 ->  | H9: =IF(CLASSEMENT!I9=CLASSEMENT!I8,0,CLASSEMENT!I9-CLASSEMENT!$I$4) -> 00:00:00
A10: =CLASSEMENT!$B10 -> 1 | B10: =CLASSEMENT!C10 -> 6 | C10: =CLASSEMENT!D10 -> BARS Yvann | E10: =CLASSEMENT!F10 -> begard vtt gwerun | F10: =CLASSEMENT!G10 -> 310008 | G10: =CLASSEMENT!H10 -> pupille | H10: =IF(CLASSEMENT!I10=CLASSEMENT!I9,0,CLASSEMENT!I10-CLASSEMENT!$I$4) -> 00:00:00
A11: =CLASSEMENT!$B11 -> 2 | B11: =CLASSEMENT!C11 -> 8 | C11: =CLASSEMENT!D11 -> LEPERCQ Batiste | E11: =CLASSEMENT!F11 -> uc plaudren | F11: =CLASSEMENT!G11 -> 391433 | G11: =CLASSEMENT!H11 -> pupille | H11: =IF(CLASSEMENT!I11=CLASSEMENT!I10,0,CLASSEMENT!I11-CLASSEMENT!$I$4) -> 00:00:00
A12: =CLASSEMENT!$B12 -> 3 | B12: =CLASSEMENT!C12 -> 7 | C12: =CLASSEMENT!D12 -> COLAS Thibaut | E12: =CLASSEMENT!F12 -> begard vtt gwerun | F12: =CLASSEMENT!G12 -> 330206 | G12: =CLASSEMENT!H12 -> pupille | H12: =IF(CLASSEMENT!I12=CLASSEMENT!I11,0,CLASSEMENT!I12-CLASSEMENT!$I$4) -> 00:00:00
A13: =CLASSEMENT!$B13 -> 4 | B13: =CLASSEMENT!C13 -> 9 | C13: =CLASSEMENT!D13 -> CLERET MARECHAL Loeiz | E13: =CLASSEMENT!F13 -> vtt cotes d'armor hillion | F13: =CLASSEMENT!G13 -> 0 | G13: =CLASSEMENT!H13 -> pupille | H13: =IF(CLASSEMENT!I13=CLASSEMENT!I12,0,CLASSEMENT!I13-CLASSEMENT!$I$4) -> 00:00:00
A14: =CLASSEMENT!$B14 -> 0 | B14: =CLASSEMENT!C14 -> 0 | C14: =CLASSEMENT!D14 ->  | E14: =CLASSEMENT!F14 ->  | F14: =CLASSEMENT!G14 ->  | G14: =CLASSEMENT!H14 ->  | H14: =IF(CLASSEMENT!I14=CLASSEMENT!I13,0,CLASSEMENT!I14-CLASSEMENT!$I$4) -> 00:00:00
A15: =CLASSEMENT!$B15 -> 1 | B15: =CLASSEMENT!C15 -> 11 | C15: =CLASSEMENT!D15 -> POILVET Jules | E15: =CLASSEMENT!F15 -> vc evron | F15: =CLASSEMENT!G15 -> 382431 | G15: =CLASSEMENT!H15 -> benjamin | H15: =IF(CLASSEMENT!I15=CLASSEMENT!I14,0,CLASSEMENT!I15-CLASSEMENT!$I$4) -> 00:00:00
A16: =CLASSEMENT!$B16 -> 2 | B16: =CLASSEMENT!C16 -> 14 | C16: =CLASSEMENT!D16 -> BANNER Rafael | E16: =CLASSEMENT!F16 -> vtt du lié | F16: =CLASSEMENT!G16 -> 0 | G16: =CLASSEMENT!H16 -> benjamin | H16: =IF(CLASSEMENT!I16=CLASSEMENT!I15,0,CLASSEMENT!I16-CLASSEMENT!$I$4) -> 00:00:00
A17: =CLASSEMENT!$B17 -> 3 | B17: =CLASSEMENT!C17 -> 16 | C17: =CLASSEMENT!D17 -> BOUGEARD HORNAIS Aymeris | E17: =CLASSEMENT!F17 -> team bikers | F17: =CLASSEMENT!G17 -> 431285 | G17: =CLASSEMENT!H17 -> benjamin | H17: =IF(CLASSEMENT!I17=CLASSEMENT!I16,0,CLASSEMENT!I17-CLASSEMENT!$I$4) -> 00:00:00
A18: =CLASSEMENT!$B18 -> 4 | B18: =CLASSEMENT!C18 -> 15 | C18: =CLASSEMENT!D18 -> BRIAND Axel | E18: =CLASSEMENT!F18 -> team bikers | F18: =CLASSEMENT!G18 -> 429219 | G18: =CLASSEMENT!H18 -> benjamin | H18: =IF(CLASSEMENT!I18=CLASSEMENT!I17,0,CLASSEMENT!I18-CLASSEMENT!$I$4) -> 00:00:00
A19: =CLASSEMENT!$B19 -> 5 | B19: =CLASSEMENT!C19 -> 10 | C19: =CLASSEMENT!D19 -> POILVET Paul | E19: =CLASSEMENT!F19 -> vc evron | F19: =CLASSEMENT!G19 -> 382428 | G19: =CLASSEMENT!H19 -> benjamin | H19: =IF(CLASSEMENT!I19=CLASSEMENT!I18,0,CLASSEMENT!I19-CLASSEMENT!$I$4) -> 00:00:00
A20: =CLASSEMENT!$B20 -> 6 | B20: =CLASSEMENT!C20 -> 13 | C20: =CLASSEMENT!D20 -> BOLORE Loevan | E20: =CLASSEMENT!F20 -> team bikers | F20: =CLASSEMENT!G20 -> 376265 | G20: =CLASSEMENT!H20 -> benjamin | H20: =IF(CLASSEMENT!I20=CLASSEMENT!I19,0,CLASSEMENT!I20-CLASSEMENT!$I$4) -> 00:00:00
A21: =CLASSEMENT!$B21 -> 7 | B21: =CLASSEMENT!C21 -> 12 | C21: =CLASSEMENT!D21 -> LEPERCQ Clara | E21: =CLASSEMENT!F21 -> uc plaudren | F21: =CLASSEMENT!G21 -> 467480 | G21: =CLASSEMENT!H21 -> benjamin | H21: =IF(CLASSEMENT!I21=CLASSEMENT!I20,0,CLASSEMENT!I21-CLASSEMENT!$I$4) -> 00:00:00
A22: =CLASSEMENT!$B22 -> 0 | B22: =CLASSEMENT!C22 -> 0 | C22: =CLASSEMENT!D22 ->  | E22: =CLASSEMENT!F22 ->  | F22: =CLASSEMENT!G22 ->  | G22: =CLASSEMENT!H22 ->  | H22: =IF(CLASSEMENT!I22=CLASSEMENT!I21,0,CLASSEMENT!I22-CLASSEMENT!$I$4) -> 00:00:00
A23: =CLASSEMENT!$B23 -> 1 | B23: =CLASSEMENT!C23 -> 27 | C23: =CLASSEMENT!D23 -> GUILMIN Léo | E23: =CLASSEMENT!F23 -> vc evron | F23: =CLASSEMENT!G23 -> 344464 | G23: =CLASSEMENT!H23 -> minimes | H23: =IF(CLASSEMENT!I23=CLASSEMENT!I22,0,CLASSEMENT!I23-CLASSEMENT!$I$4) -> 00:00:00
A24: =CLASSEMENT!$B24 -> 2 | B24: =CLASSEMENT!C24 -> 24 | C24: =CLASSEMENT!D24 -> BASSET Loris | E24: =CLASSEMENT!F24 -> vc evron | F24: =CLASSEMENT!G24 -> 0 | G24: =CLASSEMENT!H24 -> minimes | H24: =IF(CLASSEMENT!I24=CLASSEMENT!I23,0,CLASSEMENT!I24-CLASSEMENT!$I$4) -> 00:00:00
A25: =CLASSEMENT!$B25 -> 3 | B25: =CLASSEMENT!C25 -> 20 | C25: =CLASSEMENT!D25 -> BRIEND Ilhan | E25: =CLASSEMENT!F25 -> accro cycles cotes d'émeraude | F25: =CLASSEMENT!G25 -> 919871 | G25: =CLASSEMENT!H25 -> minimes | H25: =IF(CLASSEMENT!I25=CLASSEMENT!I24,0,CLASSEMENT!I25-CLASSEMENT!$I$4) -> 00:00:00
A26: =CLASSEMENT!$B26 -> 4 | B26: =CLASSEMENT!C26 -> 21 | C26: =CLASSEMENT!D26 -> LE BIHAN Clément | E26: =CLASSEMENT!F26 -> uc plaudren | F26: =CLASSEMENT!G26 -> 968158 | G26: =CLASSEMENT!H26 -> minimes | H26: =IF(CLASSEMENT!I26=CLASSEMENT!I25,0,CLASSEMENT!I26-CLASSEMENT!$I$4) -> 00:00:00
A27: =CLASSEMENT!$B27 -> 5 | B27: =CLASSEMENT!C27 -> 26 | C27: =CLASSEMENT!D27 -> BOUGEARD Margot | E27: =CLASSEMENT!F27 -> team bikers | F27: =CLASSEMENT!G27 -> 431290 | G27: =CLASSEMENT!H27 -> minimes | H27: =IF(CLASSEMENT!I27=CLASSEMENT!I26,0,CLASSEMENT!I27-CLASSEMENT!$I$4) -> 00:00:00
A28: =CLASSEMENT!$B28 -> 6 | B28: =CLASSEMENT!C28 -> 23 | C28: =CLASSEMENT!D28 -> ROUILLE Robin | E28: =CLASSEMENT!F28 -> team bikers | F28: =CLASSEMENT!G28 -> 390947 | G28: =CLASSEMENT!H28 -> minimes | H28: =IF(CLASSEMENT!I28=CLASSEMENT!I27,0,CLASSEMENT!I28-CLASSEMENT!$I$4) -> 00:00:00
A29: =CLASSEMENT!$B29 -> 7 | B29: =CLASSEMENT!C29 -> 25 | C29: =CLASSEMENT!D29 -> BRIAND Mathis | E29: =CLASSEMENT!F29 -> team bikers | F29: =CLASSEMENT!G29 -> 431995 | G29: =CLASSEMENT!H29 -> minimes | H29: =IF(CLASSEMENT!I29=CLASSEMENT!I28,0,CLASSEMENT!I29-CLASSEMENT!$I$4) -> 00:00:00
A30: =CLASSEMENT!$B30 -> 8 | B30: =CLASSEMENT!C30 -> 22 | C30: =CLASSEMENT!D30 -> BOLORE Ewen | E30: =CLASSEMENT!F30 -> team bikers | F30: =CLASSEMENT!G30 -> 376263 | G30: =CLASSEMENT!H30 -> minimes | H30: =IF(CLASSEMENT!I30=CLASSEMENT!I29,0,CLASSEMENT!I30-CLASSEMENT!$I$4) -> 00:00:00
A31: =CLASSEMENT!$B31 -> 0 | B31: =CLASSEMENT!C31 -> 0 | C31: =CLASSEMENT!D31 ->  | E31: =CLASSEMENT!F31 ->  | F31: =CLASSEMENT!G31 ->  | G31: =CLASSEMENT!H31 ->  | H31: =IF(CLASSEMENT!I31=CLASSEMENT!I30,0,CLASSEMENT!I31-CLASSEMENT!$I$4) -> 00:00:00
A32: =CLASSEMENT!$B32 -> 1 | B32: =CLASSEMENT!C32 -> 30 | C32: =CLASSEMENT!D32 -> FERTE Brandon | E32: =CLASSEMENT!F32 -> distric loudéac | F32: =CLASSEMENT!G32 -> 297227 | G32: =CLASSEMENT!H32 -> cadet | H32: =IF(CLASSEMENT!I32=CLASSEMENT!I31,0,CLASSEMENT!I32-CLASSEMENT!$I$4) -> 00:00:00
A33: =CLASSEMENT!$B33 -> 2 | B33: =CLASSEMENT!C33 -> 31 | C33: =CLASSEMENT!D33 -> LEPERCQ Nathan | E33: =CLASSEMENT!F33 -> uc plaudren | F33: =CLASSEMENT!G33 -> 389000 | G33: =CLASSEMENT!H33 -> cadet | H33: =IF(CLASSEMENT!I33=CLASSEMENT!I32,0,CLASSEMENT!I33-CLASSEMENT!$I$4) -> 00:00:00
A34: =CLASSEMENT!$B34 -> 0 | B34: =CLASSEMENT!C34 -> 0 | C34: =CLASSEMENT!D34 ->  | E34: =CLASSEMENT!F34 ->  | F34: =CLASSEMENT!G34 ->  | G34: =CLASSEMENT!H34 ->  | H34: =IF(CLASSEMENT!I34=CLASSEMENT!I33,0,CLASSEMENT!I34-CLASSEMENT!$I$4) -> 00:00:00
A35: =CLASSEMENT!$B35 -> 1 | B35: =CLASSEMENT!C35 -> 35 | C35: =CLASSEMENT!D35 -> HALLET Baptiste | E35: =CLASSEMENT!F35 -> vc plurien | F35: =CLASSEMENT!G35 -> 136613 | G35: =CLASSEMENT!H35 -> espoir | H35: =IF(CLASSEMENT!I35=CLASSEMENT!I34,0,CLASSEMENT!I35-CLASSEMENT!$I$4) -> 00:00:00
A36: =CLASSEMENT!$B36 -> 0 | B36: =CLASSEMENT!C36 -> 0 | C36: =CLASSEMENT!D36 ->  | E36: =CLASSEMENT!F36 ->  | F36: =CLASSEMENT!G36 ->  | G36: =CLASSEMENT!H36 ->  | H36: =IF(CLASSEMENT!I36=CLASSEMENT!I35,0,CLASSEMENT!I36-CLASSEMENT!$I$4) -> 00:00:00
A37: =CLASSEMENT!$B37 -> 1 | B37: =CLASSEMENT!C37 -> 42 | C37: =CLASSEMENT!D37 -> BOUGEARD Pierre-Yves | E37: =CLASSEMENT!F37 -> team bickers | F37: =CLASSEMENT!G37 -> 376257 | G37: =CLASSEMENT!H37 -> 1ère cat | H37: =IF(CLASSEMENT!I37=CLASSEMENT!I36,0,CLASSEMENT!I37-CLASSEMENT!$I$4) -> 00:00:00
A38: =CLASSEMENT!$B38 -> 2 | B38: =CLASSEMENT!C38 -> 43 | C38: =CLASSEMENT!D38 -> BASSET Emerick | E38: =CLASSEMENT!F38 -> vc evron | F38: =CLASSEMENT!G38 -> 371872 | G38: =CLASSEMENT!H38 -> 1ère cat | H38: =IF(CLASSEMENT!I38=CLASSEMENT!I37,0,CLASSEMENT!I38-CLASSEMENT!$I$4) -> 00:00:00
A39: =CLASSEMENT!$B39 -> 3 | B39: =CLASSEMENT!C39 -> 40 | C39: =CLASSEMENT!D39 -> KEURMEUR Romain | E39: =CLASSEMENT!F39 -> team mégrit | F39: =CLASSEMENT!G39 -> 363251 | G39: =CLASSEMENT!H39 -> 1ère cat | H39: =IF(CLASSEMENT!I39=CLASSEMENT!I38,0,CLASSEMENT!I39-CLASSEMENT!$I$4) -> 00:00:00
A40: =CLASSEMENT!$B40 -> 4 | B40: =CLASSEMENT!C40 -> 41 | C40: =CLASSEMENT!D40 -> BANNER Mickael | E40: =CLASSEMENT!F40 -> vtt du lié | F40: =CLASSEMENT!G40 -> 950036 | G40: =CLASSEMENT!H40 -> 1ère cat | H40: =IF(CLASSEMENT!I40=CLASSEMENT!I39,0,CLASSEMENT!I40-CLASSEMENT!$I$4) -> 00:00:00
A41: =CLASSEMENT!$B41 -> 0 | B41: =CLASSEMENT!C41 -> 0 | C41: =CLASSEMENT!D41 ->  | E41: =CLASSEMENT!F41 ->  | F41: =CLASSEMENT!G41 ->  | G41: =CLASSEMENT!H41 ->  | H41: =IF(CLASSEMENT!I41=CLASSEMENT!I40,0,CLASSEMENT!I41-CLASSEMENT!$I$4) -> 00:00:00
A42: =CLASSEMENT!$B42 -> 1 | B42: =CLASSEMENT!C42 -> 48 | C42: =CLASSEMENT!D42 -> COLAS Emmanuel | E42: =CLASSEMENT!F42 -> begard vtt gwerun | F42: =CLASSEMENT!G42 -> 386450 | G42: =CLASSEMENT!H42 -> 2ème cat | H42: =IF(CLASSEMENT!I42=CLASSEMENT!I41,0,CLASSEMENT!I42-CLASSEMENT!$I$4) -> 00:00:00
A43: =CLASSEMENT!$B43 -> 2 | B43: =CLASSEMENT!C43 -> 54 | C43: =CLASSEMENT!D43 -> LECOMTE Guillaume | E43: =CLASSEMENT!F43 -> team xc du léguer | F43: =CLASSEMENT!G43 -> 998834 | G43: =CLASSEMENT!H43 -> 2ème cat | H43: =IF(CLASSEMENT!I43=CLASSEMENT!I42,0,CLASSEMENT!I43-CLASSEMENT!$I$4) -> 00:00:00
A44: =CLASSEMENT!$B44 -> 3 | B44: =CLASSEMENT!C44 -> 53 | C44: =CLASSEMENT!D44 -> MARIVINT Alexis | E44: =CLASSEMENT!F44 -> vc evron | F44: =CLASSEMENT!G44 -> 294510 | G44: =CLASSEMENT!H44 -> 2ème cat | H44: =IF(CLASSEMENT!I44=CLASSEMENT!I43,0,CLASSEMENT!I44-CLASSEMENT!$I$4) -> 00:00:00
A45: =CLASSEMENT!$B45 -> 4 | B45: =CLASSEMENT!C45 -> 50 | C45: =CLASSEMENT!D45 -> MACE Jérome | E45: =CLASSEMENT!F45 -> vc evron | F45: =CLASSEMENT!G45 -> 434904 | G45: =CLASSEMENT!H45 -> 2ème cat | H45: =IF(CLASSEMENT!I45=CLASSEMENT!I44,0,CLASSEMENT!I45-CLASSEMENT!$I$4) -> 00:00:00
A46: =CLASSEMENT!$B46 -> 5 | B46: =CLASSEMENT!C46 -> 49 | C46: =CLASSEMENT!D46 -> COLLEU Pascal | E46: =CLASSEMENT!F46 -> ccvb | F46: =CLASSEMENT!G46 -> 511956 | G46: =CLASSEMENT!H46 -> 2ème cat | H46: =IF(CLASSEMENT!I46=CLASSEMENT!I45,0,CLASSEMENT!I46-CLASSEMENT!$I$4) -> 00:00:00
A47: =CLASSEMENT!$B47 -> 6 | B47: =CLASSEMENT!C47 -> 51 | C47: =CLASSEMENT!D47 -> BRIAND Régis | E47: =CLASSEMENT!F47 -> team bickers | F47: =CLASSEMENT!G47 -> 429231 | G47: =CLASSEMENT!H47 -> 2ème cat | H47: =IF(CLASSEMENT!I47=CLASSEMENT!I46,0,CLASSEMENT!I47-CLASSEMENT!$I$4) -> 00:00:00
A48: =CLASSEMENT!$B48 -> 7 | B48: =CLASSEMENT!C48 -> 45 | C48: =CLASSEMENT!D48 -> JEUNEU Gilles | E48: =CLASSEMENT!F48 -> accro cycles cotes d'émeraude | F48: =CLASSEMENT!G48 -> 137390 | G48: =CLASSEMENT!H48 -> 2ème cat | H48: =IF(CLASSEMENT!I48=CLASSEMENT!I47,0,CLASSEMENT!I48-CLASSEMENT!$I$4) -> 00:00:00
A49: =CLASSEMENT!$B49 -> 8 | B49: =CLASSEMENT!C49 -> 46 | C49: =CLASSEMENT!D49 -> LESNE Régis | E49: =CLASSEMENT!F49 -> district loudéac | F49: =CLASSEMENT!G49 -> 227933 | G49: =CLASSEMENT!H49 -> 2ème cat | H49: =IF(CLASSEMENT!I49=CLASSEMENT!I48,0,CLASSEMENT!I49-CLASSEMENT!$I$4) -> 00:00:00
A50: =CLASSEMENT!$B50 -> 9 | B50: =CLASSEMENT!C50 -> 47 | C50: =CLASSEMENT!D50 -> BEDEL Bapiste | E50: =CLASSEMENT!F50 -> district loudéac | F50: =CLASSEMENT!G50 -> 13637 | G50: =CLASSEMENT!H50 -> 2ème cat | H50: =IF(CLASSEMENT!I50=CLASSEMENT!I49,0,CLASSEMENT!I50-CLASSEMENT!$I$4) -> 00:00:00
A51: =CLASSEMENT!$B51 -> DNF | B51: =CLASSEMENT!C51 -> 52 | C51: =CLASSEMENT!D51 -> MOUTTE Alexis | E51: =CLASSEMENT!F51 -> team du pays de dinan guinefort | F51: =CLASSEMENT!G51 -> 0 | G51: =CLASSEMENT!H51 -> 2ème cat | H51: =IF(CLASSEMENT!I51=CLASSEMENT!I50,0,CLASSEMENT!I51-CLASSEMENT!$I$4) -> 00:00:00
A52: =CLASSEMENT!$B52 -> 0 | B52: =CLASSEMENT!C52 -> 0 | C52: =CLASSEMENT!D52 ->  | E52: =CLASSEMENT!F52 ->  | F52: =CLASSEMENT!G52 ->  | G52: =CLASSEMENT!H52 ->  | H52: =IF(CLASSEMENT!I52=CLASSEMENT!I51,0,CLASSEMENT!I52-CLASSEMENT!$I$4) -> 00:00:00
A53: =CLASSEMENT!$B53 -> 1 | B53: =CLASSEMENT!C53 -> 72 | C53: =CLASSEMENT!D53 -> LECELLIER Raymond | E53: =CLASSEMENT!F53 -> team mégrit | F53: =CLASSEMENT!G53 -> 55656150 | G53: =CLASSEMENT!H53 -> 3ème cat | H53: =IF(CLASSEMENT!I53=CLASSEMENT!I52,0,CLASSEMENT!I53-CLASSEMENT!$I$4) -> 00:00:00
A54: =CLASSEMENT!$B54 -> 2 | B54: =CLASSEMENT!C54 -> 65 | C54: =CLASSEMENT!D54 -> NICOLAS Jean Charles | E54: =CLASSEMENT!F54 -> ac vildé guingalan | F54: =CLASSEMENT!G54 -> 514101 | G54: =CLASSEMENT!H54 -> 3ème cat | H54: =IF(CLASSEMENT!I54=CLASSEMENT!I53,0,CLASSEMENT!I54-CLASSEMENT!$I$4) -> 00:00:00
A55: =CLASSEMENT!$B55 -> 3 | B55: =CLASSEMENT!C55 -> 64 | C55: =CLASSEMENT!D55 -> LEMAITRE Alain | E55: =CLASSEMENT!F55 -> ac vildé guingalan | F55: =CLASSEMENT!G55 -> 225454 | G55: =CLASSEMENT!H55 -> 3ème cat | H55: =IF(CLASSEMENT!I55=CLASSEMENT!I54,0,CLASSEMENT!I55-CLASSEMENT!$I$4) -> 00:00:00
A56: =CLASSEMENT!$B56 -> 4 | B56: =CLASSEMENT!C56 -> 73 | C56: =CLASSEMENT!D56 -> ROPERCH Bruno | E56: =CLASSEMENT!F56 -> uc plaudren | F56: =CLASSEMENT!G56 -> 875266 | G56: =CLASSEMENT!H56 -> 3ème cat | H56: =IF(CLASSEMENT!I56=CLASSEMENT!I55,0,CLASSEMENT!I56-CLASSEMENT!$I$4) -> 00:00:00
A57: =CLASSEMENT!$B57 -> 5 | B57: =CLASSEMENT!C57 -> 68 | C57: =CLASSEMENT!D57 -> GOUYA Alain | E57: =CLASSEMENT!F57 -> district loudéac | F57: =CLASSEMENT!G57 -> 136125 | G57: =CLASSEMENT!H57 -> 3ème cat | H57: =IF(CLASSEMENT!I57=CLASSEMENT!I56,0,CLASSEMENT!I57-CLASSEMENT!$I$4) -> 00:00:00
A58: =CLASSEMENT!$B58 -> 6 | B58: =CLASSEMENT!C58 -> 61 | C58: =CLASSEMENT!D58 -> GUILLOT Denis | E58: =CLASSEMENT!F58 -> team du pays de dinan guinefort | F58: =CLASSEMENT!G58 -> 844159 | G58: =CLASSEMENT!H58 -> 3ème cat | H58: =IF(CLASSEMENT!I58=CLASSEMENT!I57,0,CLASSEMENT!I58-CLASSEMENT!$I$4) -> 00:00:00
A59: =CLASSEMENT!$B59 -> 7 | B59: =CLASSEMENT!C59 -> 60 | C59: =CLASSEMENT!D59 -> GOUYA Noel | E59: =CLASSEMENT!F59 -> team du pays de dinan guinefort | F59: =CLASSEMENT!G59 -> 226768 | G59: =CLASSEMENT!H59 -> 3ème cat | H59: =IF(CLASSEMENT!I59=CLASSEMENT!I58,0,CLASSEMENT!I59-CLASSEMENT!$I$4) -> 00:00:00
A60: =CLASSEMENT!$B60 -> 8 | B60: =CLASSEMENT!C60 -> 63 | C60: =CLASSEMENT!D60 -> COUALAN Dominique | E60: =CLASSEMENT!F60 -> cc pleven | F60: =CLASSEMENT!G60 -> 153631 | G60: =CLASSEMENT!H60 -> 3ème cat | H60: =IF(CLASSEMENT!I60=CLASSEMENT!I59,0,CLASSEMENT!I60-CLASSEMENT!$I$4) -> 00:00:00
A61: =CLASSEMENT!$B61 -> 9 | B61: =CLASSEMENT!C61 -> 71 | C61: =CLASSEMENT!D61 -> GOUPIL Michel | E61: =CLASSEMENT!F61 -> team mégrit | F61: =CLASSEMENT!G61 -> 55779611 | G61: =CLASSEMENT!H61 -> 3ème cat | H61: =IF(CLASSEMENT!I61=CLASSEMENT!I60,0,CLASSEMENT!I61-CLASSEMENT!$I$4) -> 00:00:00
A62: =CLASSEMENT!$B62 -> 10 | B62: =CLASSEMENT!C62 -> 70 | C62: =CLASSEMENT!D62 -> COLAS Roger | E62: =CLASSEMENT!F62 -> vc crehen | F62: =CLASSEMENT!G62 -> 227437 | G62: =CLASSEMENT!H62 -> 3ème cat | H62: =IF(CLASSEMENT!I62=CLASSEMENT!I61,0,CLASSEMENT!I62-CLASSEMENT!$I$4) -> 00:00:00
A63: =CLASSEMENT!$B63 -> 11 | B63: =CLASSEMENT!C63 -> 66 | C63: =CLASSEMENT!D63 -> GEORGET Charles | E63: =CLASSEMENT!F63 -> district loudéac | F63: =CLASSEMENT!G63 -> 227931 | G63: =CLASSEMENT!H63 -> 3ème cat | H63: =IF(CLASSEMENT!I63=CLASSEMENT!I62,0,CLASSEMENT!I63-CLASSEMENT!$I$4) -> 00:00:00
A64: =CLASSEMENT!$B64 -> 12 | B64: =CLASSEMENT!C64 -> 67 | C64: =CLASSEMENT!D64 -> BEDEL Michel | E64: =CLASSEMENT!F64 -> district loudéac | F64: =CLASSEMENT!G64 -> 267277 | G64: =CLASSEMENT!H64 -> 3ème cat | H64: =IF(CLASSEMENT!I64=CLASSEMENT!I63,0,CLASSEMENT!I64-CLASSEMENT!$I$4) -> 00:00:00
A65: =CLASSEMENT!$B65 -> 13 | B65: =CLASSEMENT!C65 -> 69 | C65: =CLASSEMENT!D65 -> GAILLARD Marcel | E65: =CLASSEMENT!F65 -> cos kerentrech | F65: =CLASSEMENT!G65 -> 57243 | G65: =CLASSEMENT!H65 -> 3ème cat | H65: =IF(CLASSEMENT!I65=CLASSEMENT!I64,0,CLASSEMENT!I65-CLASSEMENT!$I$4) -> 00:00:00
A66: =CLASSEMENT!$B66 -> DNF | B66: =CLASSEMENT!C66 -> 62 | C66: =CLASSEMENT!D66 -> DURAND Jacques | E66: =CLASSEMENT!F66 -> team du pays de dinan guinefort | F66: =CLASSEMENT!G66 -> 144227 | G66: =CLASSEMENT!H66 -> 3ème cat | H66: =IF(CLASSEMENT!I66=CLASSEMENT!I65,0,CLASSEMENT!I66-CLASSEMENT!$I$4) -> 00:00:00
A67: =CLASSEMENT!$B67 -> 0 | B67: =CLASSEMENT!C67 -> 0 | C67: =CLASSEMENT!D67 ->  | E67: =CLASSEMENT!F67 ->  | F67: =CLASSEMENT!G67 ->  | G67: =CLASSEMENT!H67 ->  | H67: =IF(CLASSEMENT!I67=CLASSEMENT!I66,0,CLASSEMENT!I67-CLASSEMENT!$I$4) -> 00:00:00
A68: =CLASSEMENT!$B68 -> 0 | B68: =CLASSEMENT!C68 -> 0 | C68: =CLASSEMENT!D68 ->  | E68: =CLASSEMENT!F68 ->  | F68: =CLASSEMENT!G68 ->  | G68: =CLASSEMENT!H68 ->  | H68: =IF(CLASSEMENT!I68=CLASSEMENT!I67,0,CLASSEMENT!I68-CLASSEMENT!$I$4) -> 00:00:00
A69: =CLASSEMENT!$B69 -> 0 | B69: =CLASSEMENT!C69 -> 0 | C69: =CLASSEMENT!D69 ->  | E69: =CLASSEMENT!F69 ->  | F69: =CLASSEMENT!G69 ->  | G69: =CLASSEMENT!H69 ->  | H69: =IF(CLASSEMENT!I69=CLASSEMENT!I68,0,CLASSEMENT!I69-CLASSEMENT!$I$4) -> 00:00:00
A70: =CLASSEMENT!$B70 -> 0 | B70: =CLASSEMENT!C70 -> 0 | C70: =CLASSEMENT!D70 ->  | E70: =CLASSEMENT!F70 ->  | F70: =CLASSEMENT!G70 ->  | G70: =CLASSEMENT!H70 ->  | H70: =IF(CLASSEMENT!I70=CLASSEMENT!I69,0,CLASSEMENT!I70-CLASSEMENT!$I$4) -> 00:00:00
A71: =CLASSEMENT!$B71 -> 0 | B71: =CLASSEMENT!C71 -> 0 | C71: =CLASSEMENT!D71 ->  | E71: =CLASSEMENT!F71 ->  | F71: =CLASSEMENT!G71 ->  | G71: =CLASSEMENT!H71 ->  | H71: =IF(CLASSEMENT!I71=CLASSEMENT!I70,0,CLASSEMENT!I71-CLASSEMENT!$I$4) -> 00:00:00
A72: =CLASSEMENT!$B72 -> 0 | B72: =CLASSEMENT!C72 -> 0 | C72: =CLASSEMENT!D72 ->  | E72: =CLASSEMENT!F72 ->  | F72: =CLASSEMENT!G72 ->  | G72: =CLASSEMENT!H72 ->  | H72: =IF(CLASSEMENT!I72=CLASSEMENT!I71,0,CLASSEMENT!I72-CLASSEMENT!$I$4) -> 00:00:00
A73: =CLASSEMENT!$B73 -> 0 | B73: =CLASSEMENT!C73 -> 0 | C73: =CLASSEMENT!D73 ->  | E73: =CLASSEMENT!F73 ->  | F73: =CLASSEMENT!G73 ->  | G73: =CLASSEMENT!H73 ->  | H73: =IF(CLASSEMENT!I73=CLASSEMENT!I72,0,CLASSEMENT!I73-CLASSEMENT!$I$4) -> 00:00:00
A74: =CLASSEMENT!$B74 -> 0 | B74: =CLASSEMENT!C74 -> 0 | C74: =CLASSEMENT!D74 ->  | E74: =CLASSEMENT!F74 ->  | F74: =CLASSEMENT!G74 ->  | G74: =CLASSEMENT!H74 ->  | H74: =IF(CLASSEMENT!I74=CLASSEMENT!I73,0,CLASSEMENT!I74-CLASSEMENT!$I$4) -> 00:00:00
A75: =CLASSEMENT!$B75 -> 0 | B75: =CLASSEMENT!C75 -> 0 | C75: =CLASSEMENT!D75 ->  | E75: =CLASSEMENT!F75 ->  | F75: =CLASSEMENT!G75 ->  | G75: =CLASSEMENT!H75 ->  | H75: =IF(CLASSEMENT!I75=CLASSEMENT!I74,0,CLASSEMENT!I75-CLASSEMENT!$I$4) -> 00:00:00
A76: =CLASSEMENT!$B76 -> 0 | B76: =CLASSEMENT!C76 -> 0 | C76: =CLASSEMENT!D76 ->  | E76: =CLASSEMENT!F76 ->  | F76: =CLASSEMENT!G76 ->  | G76: =CLASSEMENT!H76 ->  | H76: =IF(CLASSEMENT!I76=CLASSEMENT!I75,0,CLASSEMENT!I76-CLASSEMENT!$I$4) -> 00:00:00
A77: =CLASSEMENT!$B77 -> 0 | B77: =CLASSEMENT!C77 -> 0 | C77: =CLASSEMENT!D77 ->  | E77: =CLASSEMENT!F77 ->  | F77: =CLASSEMENT!G77 ->  | G77: =CLASSEMENT!H77 ->  | H77: =IF(CLASSEMENT!I77=CLASSEMENT!I76,0,CLASSEMENT!I77-CLASSEMENT!$I$4) -> 00:00:00
A78: =CLASSEMENT!$B78 -> 0 | B78: =CLASSEMENT!C78 -> 0 | C78: =CLASSEMENT!D78 ->  | E78: =CLASSEMENT!F78 ->  | F78: =CLASSEMENT!G78 ->  | G78: =CLASSEMENT!H78 ->  | H78: =IF(CLASSEMENT!I78=CLASSEMENT!I77,0,CLASSEMENT!I78-CLASSEMENT!$I$4) -> 00:00:00
A79: =CLASSEMENT!$B79 -> 0 | B79: =CLASSEMENT!C79 -> 0 | C79: =CLASSEMENT!D79 ->  | E79: =CLASSEMENT!F79 ->  | F79: =CLASSEMENT!G79 ->  | G79: =CLASSEMENT!H79 ->  | H79: =IF(CLASSEMENT!I79=CLASSEMENT!I78,0,CLASSEMENT!I79-CLASSEMENT!$I$4) -> 00:00:00
A80: =CLASSEMENT!$B80 -> 0 | B80: =CLASSEMENT!C80 -> 0 | C80: =CLASSEMENT!D80 ->  | E80: =CLASSEMENT!F80 ->  | F80: =CLASSEMENT!G80 ->  | G80: =CLASSEMENT!H80 ->  | H80: =IF(CLASSEMENT!I80=CLASSEMENT!I79,0,CLASSEMENT!I80-CLASSEMENT!$I$4) -> 00:00:00
A81: =CLASSEMENT!$B81 -> 0 | B81: =CLASSEMENT!C81 -> 0 | C81: =CLASSEMENT!D81 ->  | E81: =CLASSEMENT!F81 ->  | F81: =CLASSEMENT!G81 ->  | G81: =CLASSEMENT!H81 ->  | H81: =IF(CLASSEMENT!I81=CLASSEMENT!I80,0,CLASSEMENT!I81-CLASSEMENT!$I$4) -> 00:00:00
A82: =CLASSEMENT!$B82 -> 79 | B82: =CLASSEMENT!C82 -> 0 | C82: =CLASSEMENT!D82 ->  | E82: =CLASSEMENT!F82 ->  | F82: =CLASSEMENT!G82 ->  | G82: =CLASSEMENT!H82 ->  | H82: =IF(CLASSEMENT!I82=CLASSEMENT!I81,0,CLASSEMENT!I82-CLASSEMENT!$I$4) -> 00:00:00
A83: =CLASSEMENT!$B83 -> 80 | B83: =CLASSEMENT!C83 -> 0 | C83: =CLASSEMENT!D83 ->  | E83: =CLASSEMENT!F83 ->  | F83: =CLASSEMENT!G83 ->  | G83: =CLASSEMENT!H83 ->  | H83: =IF(CLASSEMENT!I83=CLASSEMENT!I82,0,CLASSEMENT!I83-CLASSEMENT!$I$4) -> 00:00:00
A84: =CLASSEMENT!$B84 -> 81 | B84: =CLASSEMENT!C84 -> 0 | C84: =CLASSEMENT!D84 ->  | E84: =CLASSEMENT!F84 ->  | F84: =CLASSEMENT!G84 ->  | G84: =CLASSEMENT!H84 ->  | H84: =IF(CLASSEMENT!I84=CLASSEMENT!I83,0,CLASSEMENT!I84-CLASSEMENT!$I$4) -> 00:00:00
A85: =CLASSEMENT!$B85 -> 82 | B85: =CLASSEMENT!C85 -> 0 | C85: =CLASSEMENT!D85 ->  | E85: =CLASSEMENT!F85 ->  | F85: =CLASSEMENT!G85 ->  | G85: =CLASSEMENT!H85 ->  | H85: =IF(CLASSEMENT!I85=CLASSEMENT!I84,0,CLASSEMENT!I85-CLASSEMENT!$I$4) -> 00:00:00
A86: =CLASSEMENT!$B86 -> 83 | B86: =CLASSEMENT!C86 -> 0 | C86: =CLASSEMENT!D86 ->  | E86: =CLASSEMENT!F86 ->  | F86: =CLASSEMENT!G86 ->  | G86: =CLASSEMENT!H86 ->  | H86: =IF(CLASSEMENT!I86=CLASSEMENT!I85,0,CLASSEMENT!I86-CLASSEMENT!$I$4) -> 00:00:00
A87: =CLASSEMENT!$B87 -> 84 | B87: =CLASSEMENT!C87 -> 0 | C87: =CLASSEMENT!D87 ->  | E87: =CLASSEMENT!F87 ->  | F87: =CLASSEMENT!G87 ->  | G87: =CLASSEMENT!H87 ->  | H87: =IF(CLASSEMENT!I87=CLASSEMENT!I86,0,CLASSEMENT!I87-CLASSEMENT!$I$4) -> 00:00:00
A88: =CLASSEMENT!$B88 -> 85 | B88: =CLASSEMENT!C88 -> 0 | C88: =CLASSEMENT!D88 ->  | E88: =CLASSEMENT!F88 ->  | F88: =CLASSEMENT!G88 ->  | G88: =CLASSEMENT!H88 ->  | H88: =IF(CLASSEMENT!I88=CLASSEMENT!I87,0,CLASSEMENT!I88-CLASSEMENT!$I$4) -> 00:00:00
A89: =CLASSEMENT!$B89 -> 86 | B89: =CLASSEMENT!C89 -> 0 | C89: =CLASSEMENT!D89 ->  | E89: =CLASSEMENT!F89 ->  | F89: =CLASSEMENT!G89 ->  | G89: =CLASSEMENT!H89 ->  | H89: =IF(CLASSEMENT!I89=CLASSEMENT!I88,0,CLASSEMENT!I89-CLASSEMENT!$I$4) -> 00:00:00
A90: =CLASSEMENT!$B90 -> 87 | B90: =CLASSEMENT!C90 -> 0 | C90: =CLASSEMENT!D90 ->  | E90: =CLASSEMENT!F90 ->  | F90: =CLASSEMENT!G90 ->  | G90: =CLASSEMENT!H90 ->  | H90: =IF(CLASSEMENT!I90=CLASSEMENT!I89,0,CLASSEMENT!I90-CLASSEMENT!$I$4) -> 00:00:00
A91: =CLASSEMENT!$B91 -> 88 | B91: =CLASSEMENT!C91 -> 0 | C91: =CLASSEMENT!D91 ->  | E91: =CLASSEMENT!F91 ->  | F91: =CLASSEMENT!G91 ->  | G91: =CLASSEMENT!H91 ->  | H91: =IF(CLASSEMENT!I91=CLASSEMENT!I90,0,CLASSEMENT!I91-CLASSEMENT!$I$4) -> 00:00:00
A92: =CLASSEMENT!$B92 -> 89 | B92: =CLASSEMENT!C92 -> 0 | C92: =CLASSEMENT!D92 ->  | E92: =CLASSEMENT!F92 ->  | F92: =CLASSEMENT!G92 ->  | G92: =CLASSEMENT!H92 ->  | H92: =IF(CLASSEMENT!I92=CLASSEMENT!I91,0,CLASSEMENT!I92-CLASSEMENT!$I$4) -> 00:00:00
A93: =CLASSEMENT!$B93 -> 90 | B93: =CLASSEMENT!C93 -> 0 | C93: =CLASSEMENT!D93 ->  | E93: =CLASSEMENT!F93 ->  | F93: =CLASSEMENT!G93 ->  | G93: =CLASSEMENT!H93 ->  | H93: =IF(CLASSEMENT!I93=CLASSEMENT!I92,0,CLASSEMENT!I93-CLASSEMENT!$I$4) -> 00:00:00
A94: =CLASSEMENT!$B94 -> 91 | B94: =CLASSEMENT!C94 -> 0 | C94: =CLASSEMENT!D94 ->  | E94: =CLASSEMENT!F94 ->  | F94: =CLASSEMENT!G94 ->  | G94: =CLASSEMENT!H94 ->  | H94: =IF(CLASSEMENT!I94=CLASSEMENT!I93,0,CLASSEMENT!I94-CLASSEMENT!$I$4) -> 00:00:00
A95: =CLASSEMENT!$B95 -> 92 | B95: =CLASSEMENT!C95 -> 0 | C95: =CLASSEMENT!D95 ->  | E95: =CLASSEMENT!F95 ->  | F95: =CLASSEMENT!G95 ->  | G95: =CLASSEMENT!H95 ->  | H95: =IF(CLASSEMENT!I95=CLASSEMENT!I94,0,CLASSEMENT!I95-CLASSEMENT!$I$4) -> 00:00:00
A96: =CLASSEMENT!$B96 -> 93 | B96: =CLASSEMENT!C96 -> 0 | C96: =CLASSEMENT!D96 ->  | E96: =CLASSEMENT!F96 ->  | F96: =CLASSEMENT!G96 ->  | G96: =CLASSEMENT!H96 ->  | H96: =IF(CLASSEMENT!I96=CLASSEMENT!I95,0,CLASSEMENT!I96-CLASSEMENT!$I$4) -> 00:00:00
A97: =CLASSEMENT!$B97 -> 94 | B97: =CLASSEMENT!C97 -> 0 | C97: =CLASSEMENT!D97 ->  | E97: =CLASSEMENT!F97 ->  | F97: =CLASSEMENT!G97 ->  | G97: =CLASSEMENT!H97 ->  | H97: =IF(CLASSEMENT!I97=CLASSEMENT!I96,0,CLASSEMENT!I97-CLASSEMENT!$I$4) -> 00:00:00
A98: =CLASSEMENT!$B98 -> 95 | B98: =CLASSEMENT!C98 -> 0 | C98: =CLASSEMENT!D98 ->  | E98: =CLASSEMENT!F98 ->  | F98: =CLASSEMENT!G98 ->  | G98: =CLASSEMENT!H98 ->  | H98: =IF(CLASSEMENT!I98=CLASSEMENT!I97,0,CLASSEMENT!I98-CLASSEMENT!$I$4) -> 00:00:00
A99: =CLASSEMENT!$B99 -> 96 | B99: =CLASSEMENT!C99 -> 0 | C99: =CLASSEMENT!D99 ->  | E99: =CLASSEMENT!F99 ->  | F99: =CLASSEMENT!G99 ->  | G99: =CLASSEMENT!H99 ->  | H99: =IF(CLASSEMENT!I99=CLASSEMENT!I98,0,CLASSEMENT!I99-CLASSEMENT!$I$4) -> 00:00:00
A100: =CLASSEMENT!$B100 -> 97 | B100: =CLASSEMENT!C100 -> 0 | C100: =CLASSEMENT!D100 ->  | E100: =CLASSEMENT!F100 ->  | F100: =CLASSEMENT!G100 ->  | G100: =CLASSEMENT!H100 ->  | H100: =IF(CLASSEMENT!I100=CLASSEMENT!I99,0,CLASSEMENT!I100-CLASSEMENT!$I$4) -> 00:00:00
A101: =CLASSEMENT!$B101 -> 98 | B101: =CLASSEMENT!C101 -> 0 | C101: =CLASSEMENT!D101 ->  | E101: =CLASSEMENT!F101 ->  | F101: =CLASSEMENT!G101 ->  | G101: =CLASSEMENT!H101 ->  | H101: =IF(CLASSEMENT!I101=CLASSEMENT!I100,0,CLASSEMENT!I101-CLASSEMENT!$I$4) -> 00:00:00
A102: =CLASSEMENT!$B102 -> 99 | B102: =CLASSEMENT!C102 -> 0 | C102: =CLASSEMENT!D102 ->  | E102: =CLASSEMENT!F102 ->  | F102: =CLASSEMENT!G102 ->  | G102: =CLASSEMENT!H102 ->  | H102: =IF(CLASSEMENT!I102=CLASSEMENT!I101,0,CLASSEMENT!I102-CLASSEMENT!$I$4) -> 00:00:00
A103: =CLASSEMENT!$B103 -> 100 | B103: =CLASSEMENT!C103 -> 0 | C103: =CLASSEMENT!D103 ->  | E103: =CLASSEMENT!F103 ->  | F103: =CLASSEMENT!G103 ->  | G103: =CLASSEMENT!H103 ->  | H103: =IF(CLASSEMENT!I103=CLASSEMENT!I102,0,CLASSEMENT!I103-CLASSEMENT!$I$4) -> 00:00:00
A104: =CLASSEMENT!$B104 -> 101 | B104: =CLASSEMENT!C104 -> 0 | C104: =CLASSEMENT!D104 ->  | E104: =CLASSEMENT!F104 ->  | F104: =CLASSEMENT!G104 ->  | G104: =CLASSEMENT!H104 ->  | H104: =IF(CLASSEMENT!I104=CLASSEMENT!I103,0,CLASSEMENT!I104-CLASSEMENT!$I$4) -> 00:00:00
A105: =CLASSEMENT!$B105 -> 102 | B105: =CLASSEMENT!C105 -> 0 | C105: =CLASSEMENT!D105 ->  | E105: =CLASSEMENT!F105 ->  | F105: =CLASSEMENT!G105 ->  | G105: =CLASSEMENT!H105 ->  | H105: =IF(CLASSEMENT!I105=CLASSEMENT!I104,0,CLASSEMENT!I105-CLASSEMENT!$I$4) -> 00:00:00
A106: =CLASSEMENT!$B106 -> 103 | B106: =CLASSEMENT!C106 -> 0 | C106: =CLASSEMENT!D106 ->  | E106: =CLASSEMENT!F106 ->  | F106: =CLASSEMENT!G106 ->  | G106: =CLASSEMENT!H106 ->  | H106: =IF(CLASSEMENT!I106=CLASSEMENT!I105,0,CLASSEMENT!I106-CLASSEMENT!$I$4) -> 00:00:00
A107: =CLASSEMENT!$B107 -> 104 | B107: =CLASSEMENT!C107 -> 0 | C107: =CLASSEMENT!D107 ->  | E107: =CLASSEMENT!F107 ->  | F107: =CLASSEMENT!G107 ->  | G107: =CLASSEMENT!H107 ->  | H107: =IF(CLASSEMENT!I107=CLASSEMENT!I106,0,CLASSEMENT!I107-CLASSEMENT!$I$4) -> 00:00:00
A108: =CLASSEMENT!$B108 -> 105 | B108: =CLASSEMENT!C108 -> 0 | C108: =CLASSEMENT!D108 ->  | E108: =CLASSEMENT!F108 ->  | F108: =CLASSEMENT!G108 ->  | G108: =CLASSEMENT!H108 ->  | H108: =IF(CLASSEMENT!I108=CLASSEMENT!I107,0,CLASSEMENT!I108-CLASSEMENT!$I$4) -> 00:00:00
A109: =CLASSEMENT!$B109 -> 106 | B109: =CLASSEMENT!C109 -> 0 | C109: =CLASSEMENT!D109 ->  | E109: =CLASSEMENT!F109 ->  | F109: =CLASSEMENT!G109 ->  | G109: =CLASSEMENT!H109 ->  | H109: =IF(CLASSEMENT!I109=CLASSEMENT!I108,0,CLASSEMENT!I109-CLASSEMENT!$I$4) -> 00:00:00
A110: =CLASSEMENT!$B110 -> 107 | B110: =CLASSEMENT!C110 -> 0 | C110: =CLASSEMENT!D110 ->  | E110: =CLASSEMENT!F110 ->  | F110: =CLASSEMENT!G110 ->  | G110: =CLASSEMENT!H110 ->  | H110: =IF(CLASSEMENT!I110=CLASSEMENT!I109,0,CLASSEMENT!I110-CLASSEMENT!$I$4) -> 00:00:00
A111: =CLASSEMENT!$B111 -> 108 | B111: =CLASSEMENT!C111 -> 0 | C111: =CLASSEMENT!D111 ->  | E111: =CLASSEMENT!F111 ->  | F111: =CLASSEMENT!G111 ->  | G111: =CLASSEMENT!H111 ->  | H111: =IF(CLASSEMENT!I111=CLASSEMENT!I110,0,CLASSEMENT!I111-CLASSEMENT!$I$4) -> 00:00:00
A112: =CLASSEMENT!$B112 -> 109 | B112: =CLASSEMENT!C112 -> 0 | C112: =CLASSEMENT!D112 ->  | E112: =CLASSEMENT!F112 ->  | F112: =CLASSEMENT!G112 ->  | G112: =CLASSEMENT!H112 ->  | H112: =IF(CLASSEMENT!I112=CLASSEMENT!I111,0,CLASSEMENT!I112-CLASSEMENT!$I$4) -> 00:00:00
A113: =CLASSEMENT!$B113 -> 110 | B113: =CLASSEMENT!C113 -> 0 | C113: =CLASSEMENT!D113 ->  | E113: =CLASSEMENT!F113 ->  | F113: =CLASSEMENT!G113 ->  | G113: =CLASSEMENT!H113 ->  | H113: =IF(CLASSEMENT!I113=CLASSEMENT!I112,0,CLASSEMENT!I113-CLASSEMENT!$I$4) -> 00:00:00
A114: =CLASSEMENT!$B114 -> 111 | B114: =CLASSEMENT!C114 -> 0 | C114: =CLASSEMENT!D114 ->  | E114: =CLASSEMENT!F114 ->  | F114: =CLASSEMENT!G114 ->  | G114: =CLASSEMENT!H114 ->  | H114: =IF(CLASSEMENT!I114=CLASSEMENT!I113,0,CLASSEMENT!I114-CLASSEMENT!$I$4) -> 00:00:00
A115: =CLASSEMENT!$B115 -> 112 | B115: =CLASSEMENT!C115 -> 0 | C115: =CLASSEMENT!D115 ->  | E115: =CLASSEMENT!F115 ->  | F115: =CLASSEMENT!G115 ->  | G115: =CLASSEMENT!H115 ->  | H115: =IF(CLASSEMENT!I115=CLASSEMENT!I114,0,CLASSEMENT!I115-CLASSEMENT!$I$4) -> 00:00:00
A116: =CLASSEMENT!$B116 -> 113 | B116: =CLASSEMENT!C116 -> 0 | C116: =CLASSEMENT!D116 ->  | E116: =CLASSEMENT!F116 ->  | F116: =CLASSEMENT!G116 ->  | G116: =CLASSEMENT!H116 ->  | H116: =IF(CLASSEMENT!I116=CLASSEMENT!I115,0,CLASSEMENT!I116-CLASSEMENT!$I$4) -> 00:00:00
A117: =CLASSEMENT!$B117 -> 114 | B117: =CLASSEMENT!C117 -> 0 | C117: =CLASSEMENT!D117 ->  | E117: =CLASSEMENT!F117 ->  | F117: =CLASSEMENT!G117 ->  | G117: =CLASSEMENT!H117 ->  | H117: =IF(CLASSEMENT!I117=CLASSEMENT!I116,0,CLASSEMENT!I117-CLASSEMENT!$I$4) -> 00:00:00
A118: =CLASSEMENT!$B118 -> 115 | B118: =CLASSEMENT!C118 -> 0 | C118: =CLASSEMENT!D118 ->  | E118: =CLASSEMENT!F118 ->  | F118: =CLASSEMENT!G118 ->  | G118: =CLASSEMENT!H118 ->  | H118: =IF(CLASSEMENT!I118=CLASSEMENT!I117,0,CLASSEMENT!I118-CLASSEMENT!$I$4) -> 00:00:00
B120: =IF(Inscription!#REF!="oui","CHALLENGE","Meilleurs Animateurs") ->  | F120: Nbre de clubs engagés | H120: =COUNTA('PRIX D EQUIPE'!B5:B39) -> 0
A122: 1 | B122: =CLASSEMENT!AC45 -> 0 | D122: =CLASSEMENT!AD45 -> 1000 | E122: =CLASSEMENT!AF45 -> 1000 | F122: =CLASSEMENT!AH45 -> 1000 | G122: =IF(B122=" "," ",IF(E122>200,D122,IF(F122>200,SUM(D122+E122),IF($B122>0,SUM(D122+E122+F122)," ")))) -> 1000 | H122: =IF(B122=" "," ",IF(D122>200," ",IF(E122>200,"(1H.)",IF(F122>200,"(2 H.)"," ")))) -> 
A123: 2 | B123: =CLASSEMENT!AC46 -> 0 | D123: =CLASSEMENT!AD46 -> 1000 | E123: =CLASSEMENT!AF46 -> 1000 | F123: =CLASSEMENT!AH46 -> 1000 | G123: 1000
A124: 3 | B124: =CLASSEMENT!AC47 -> 0 | D124: =CLASSEMENT!AD47 -> 1000 | E124: =CLASSEMENT!AF47 -> 1000 | F124: =CLASSEMENT!AH47 -> 1000 | G124: 1000
A125: 4 | B125: =CLASSEMENT!AC48 -> 0 | D125: =CLASSEMENT!AD48 -> 1000 | E125: =CLASSEMENT!AF48 -> 1000 | F125: =CLASSEMENT!AH48 -> 1000 | G125: 1000
A126: 5 | B126: =CLASSEMENT!AC49 -> 0 | D126: =CLASSEMENT!AD49 -> 1000 | E126: =CLASSEMENT!AF49 -> 1000 | F126: =CLASSEMENT!AH49 -> 1000 | G126: 1000
A127: 6 | B127: =CLASSEMENT!AC50 -> 0 | D127: =CLASSEMENT!AD50 -> 1000 | E127: =CLASSEMENT!AF50 -> 1000 | F127: =CLASSEMENT!AH50 -> 1000 | G127: 1000
A128: 7 | B128: =CLASSEMENT!AC51 -> 0 | D128: =CLASSEMENT!AD51 -> 1000 | E128: =CLASSEMENT!AF51 -> 1000 | F128: =CLASSEMENT!AH51 -> 1000 | G128: 1000
A129: 8 | B129: =CLASSEMENT!AC52 -> 0 | D129: =CLASSEMENT!AD52 -> 1000 | E129: =CLASSEMENT!AF52 -> 1000 | F129: =CLASSEMENT!AH52 -> 1000 | G129: 1000
A130: 9 | B130: =CLASSEMENT!AC53 -> 0 | D130: =CLASSEMENT!AD53 -> 1000 | E130: =CLASSEMENT!AF53 -> 1000 | F130: =CLASSEMENT!AH53 -> 1000 | G130: 1000
A131: 10 | B131: =CLASSEMENT!AC54 -> 0 | D131: =CLASSEMENT!AD54 -> 1000 | E131: =CLASSEMENT!AF54 -> 1000 | F131: =CLASSEMENT!AH54 -> 1000 | G131: 1000
A132: 11 | B132: =CLASSEMENT!AC55 -> 0 | D132: =CLASSEMENT!AD55 -> 1000 | E132: =CLASSEMENT!AF55 -> 1000 | F132: =CLASSEMENT!AH55 -> 1000 | G132: 1000
A133: 12 | B133: =CLASSEMENT!AC56 -> 0 | D133: =CLASSEMENT!AD56 -> 1000 | E133: =CLASSEMENT!AF56 -> 1000 | F133: =CLASSEMENT!AH56 -> 1000 | G133: 1000
A134: 13 | B134: =CLASSEMENT!AC57 -> 0 | D134: =CLASSEMENT!AD57 -> 1000 | E134: =CLASSEMENT!AF57 -> 1000 | F134: =CLASSEMENT!AH57 -> 1000 | G134: 1000
A135: 14 | B135: =CLASSEMENT!AC58 -> 0 | D135: =CLASSEMENT!AD58 -> 1000 | E135: =CLASSEMENT!AF58 -> 1000 | F135: =CLASSEMENT!AH58 -> 1000 | G135: 1000
A136: 15 | B136: =CLASSEMENT!AC59 -> 0 | D136: =CLASSEMENT!AD59 -> 1000 | E136: =CLASSEMENT!AF59 -> 1000 | F136: =CLASSEMENT!AH59 -> 1000 | G136: 1000

Sheet FEUILLE RESULTATS (hidden)
Q1: 01:00:00
A2: NOM DE L'EPREUVE : | D2: =Inscription!D1 -> CYCLO CROSS | K2: =IF(Inscription!$D$4>0,"DATE : "&TEXT(Inscription!D$4,"jj mmmm aaaa"),"") -> DATE : 01 octobre 2023
A3: ORGANISATEUR : | D3: =Inscription!D3 -> 0
A4: SERIES / CATEGORIES : | D4: =Inscription!#REF! -> 
A5: VILLE DE DEPART : | D5: =Inscription!D2 -> HENANSAL | I5: DEPARTEMENT : | L5: =Inscription!G2 -> 0
A6: ENGAGES : | C6: =Inscription!#REF! ->  | F6: PARTANTS : | H6: =Inscription!#REF! ->  | K6: CLASSES : | M6: =COUNTIF(A10:A39,">0")+COUNTIF(C40:N40,">0")+COUNTIF(A41:N47,">0") -> 55
A7: TABLEAU DE CLASSEMENT
G8: MOYENNE | I8: =IF(N10>0,$M$8/$N$10*$Q$1,"") ->  | K8: DISTANCE : | M8: =Inscription!#REF! -> 
A9: DOSS | B9: Place | C9: NOM et PRENOM | H9: ASSOCIATION | K9: N° LICENCE | M9: CAT. | N9: TEMPS
A10: =CLASSEMENT!C4 -> 3 | B10: =CLASSEMENT!$B4 -> 1 | C10: =IF(A10>0,CONCATENATE((VLOOKUP($A10,Inscription!$A$6:$G$205,3,FALSE))," ",(VLOOKUP($A10,Inscription!$A$6:$G$205,4,FALSE)))," ") -> BASSET Evan | H10: =IF(A10>0,(VLOOKUP($A10,Inscription!$A$6:$G$205,5,FALSE))," ") -> vc evron | K10: =IF(A10>0,(VLOOKUP($A10,Inscription!$A$6:$G$205,7,FALSE))," ") -> 0 | M10: =IF(A10>0,(VLOOKUP($A10,Inscription!$A$6:$G$205,6,FALSE))," ") -> poussin | N10: =CLASSEMENT!I4 -> 0 | P10: =CLASSEMENT!C4 -> 3
A11: =CLASSEMENT!C5 -> 4 | B11: =CLASSEMENT!$B5 -> 2 | C11: =IF(A11>0,CONCATENATE((VLOOKUP($A11,Inscription!$A$6:$G$205,3,FALSE))," ",(VLOOKUP($A11,Inscription!$A$6:$G$205,4,FALSE)))," ") -> BANNER Livia | H11: =IF(A11>0,(VLOOKUP($A11,Inscription!$A$6:$G$205,5,FALSE))," ") -> vtt du lié | K11: =IF(A11>0,(VLOOKUP($A11,Inscription!$A$6:$G$205,7,FALSE))," ") -> 0 | M11: =IF(A11>0,(VLOOKUP($A11,Inscription!$A$6:$G$205,6,FALSE))," ") -> poussin | N11: =IF(CLASSEMENT!I5=CLASSEMENT!I4,0,CLASSEMENT!I5-CLASSEMENT!$I$4) -> 00:00:00 | P11: =CLASSEMENT!C5 -> 4
A12: =CLASSEMENT!C6 -> 2 | B12: =CLASSEMENT!$B6 -> 3 | C12: =IF(A12>0,CONCATENATE((VLOOKUP($A12,Inscription!$A$6:$G$205,3,FALSE))," ",(VLOOKUP($A12,Inscription!$A$6:$G$205,4,FALSE)))," ") -> BARS Gabin | H12: =IF(A12>0,(VLOOKUP($A12,Inscription!$A$6:$G$205,5,FALSE))," ") -> begard vtt gwerun | K12: =IF(A12>0,(VLOOKUP($A12,Inscription!$A$6:$G$205,7,FALSE))," ") -> 407364 | M12: =IF(A12>0,(VLOOKUP($A12,Inscription!$A$6:$G$205,6,FALSE))," ") -> poussin | N12: =IF(CLASSEMENT!I6=CLASSEMENT!I5,0,CLASSEMENT!I6-CLASSEMENT!$I$4) -> 00:00:00 | P12: =CLASSEMENT!C6 -> 2
A13: =CLASSEMENT!C7 -> 5 | B13: =CLASSEMENT!$B7 -> 4 | C13: =IF(A13>0,CONCATENATE((VLOOKUP($A13,Inscription!$A$6:$G$205,3,FALSE))," ",(VLOOKUP($A13,Inscription!$A$6:$G$205,4,FALSE)))," ") -> MACE Loukas | H13: =IF(A13>0,(VLOOKUP($A13,Inscription!$A$6:$G$205,5,FALSE))," ") -> vc evron | K13: =IF(A13>0,(VLOOKUP($A13,Inscription!$A$6:$G$205,7,FALSE))," ") -> 996776 | M13: =IF(A13>0,(VLOOKUP($A13,Inscription!$A$6:$G$205,6,FALSE))," ") -> poussin | N13: =IF(CLASSEMENT!I7=CLASSEMENT!I6,0,CLASSEMENT!I7-CLASSEMENT!$I$4) -> 00:00:00 | P13: =CLASSEMENT!C7 -> 5
A14: =CLASSEMENT!C8 -> 1 | B14: =CLASSEMENT!$B8 -> 5 | C14: =IF(A14>0,CONCATENATE((VLOOKUP($A14,Inscription!$A$6:$G$205,3,FALSE))," ",(VLOOKUP($A14,Inscription!$A$6:$G$205,4,FALSE)))," ") -> LEVEQUE Nathan | H14: =IF(A14>0,(VLOOKUP($A14,Inscription!$A$6:$G$205,5,FALSE))," ") -> district loudéac | K14: =IF(A14>0,(VLOOKUP($A14,Inscription!$A$6:$G$205,7,FALSE))," ") -> 0 | M14: =IF(A14>0,(VLOOKUP($A14,Inscription!$A$6:$G$205,6,FALSE))," ") -> poussin | N14: =IF(CLASSEMENT!I8=CLASSEMENT!I7,0,CLASSEMENT!I8-CLASSEMENT!$I$4) -> 00:00:00 | P14: =CLASSEMENT!C8 -> 1
A15: =CLASSEMENT!C9 -> 0 | B15: =CLASSEMENT!$B9 -> 0 | C15: =IF(A15>0,CONCATENATE((VLOOKUP($A15,Inscription!$A$6:$G$205,3,FALSE))," ",(VLOOKUP($A15,Inscription!$A$6:$G$205,4,FALSE)))," ") ->  | H15: =IF(A15>0,(VLOOKUP($A15,Inscription!$A$6:$G$205,5,FALSE))," ") ->  | K15: =IF(A15>0,(VLOOKUP($A15,Inscription!$A$6:$G$205,7,FALSE))," ") ->  | M15: =IF(A15>0,(VLOOKUP($A15,Inscription!$A$6:$G$205,6,FALSE))," ") ->  | N15: =IF(CLASSEMENT!I9=CLASSEMENT!I8,0,CLASSEMENT!I9-CLASSEMENT!$I$4) -> 00:00:00 | P15: =CLASSEMENT!C9 -> 0
A16: =CLASSEMENT!C10 -> 6 | B16: =CLASSEMENT!$B10 -> 1 | C16: =IF(A16>0,CONCATENATE((VLOOKUP($A16,Inscription!$A$6:$G$205,3,FALSE))," ",(VLOOKUP($A16,Inscription!$A$6:$G$205,4,FALSE)))," ") -> BARS Yvann | H16: =IF(A16>0,(VLOOKUP($A16,Inscription!$A$6:$G$205,5,FALSE))," ") -> begard vtt gwerun | K16: =IF(A16>0,(VLOOKUP($A16,Inscription!$A$6:$G$205,7,FALSE))," ") -> 310008 | M16: =IF(A16>0,(VLOOKUP($A16,Inscription!$A$6:$G$205,6,FALSE))," ") -> pupille | N16: =IF(CLASSEMENT!I10=CLASSEMENT!I9,0,CLASSEMENT!I10-CLASSEMENT!$I$4) -> 00:00:00 | P16: =CLASSEMENT!C10 -> 6
A17: =CLASSEMENT!C11 -> 8 | B17: =CLASSEMENT!$B11 -> 2 | C17: =IF(A17>0,CONCATENATE((VLOOKUP($A17,Inscription!$A$6:$G$205,3,FALSE))," ",(VLOOKUP($A17,Inscription!$A$6:$G$205,4,FALSE)))," ") -> LEPERCQ Batiste | H17: =IF(A17>0,(VLOOKUP($A17,Inscription!$A$6:$G$205,5,FALSE))," ") -> uc plaudren | K17: =IF(A17>0,(VLOOKUP($A17,Inscription!$A$6:$G$205,7,FALSE))," ") -> 391433 | M17: =IF(A17>0,(VLOOKUP($A17,Inscription!$A$6:$G$205,6,FALSE))," ") -> pupille | N17: =IF(CLASSEMENT!I11=CLASSEMENT!I10,0,CLASSEMENT!I11-CLASSEMENT!$I$4) -> 00:00:00 | P17: =CLASSEMENT!C11 -> 8
A18: =CLASSEMENT!C12 -> 7 | B18: =CLASSEMENT!$B12 -> 3 | C18: =IF(A18>0,CONCATENATE((VLOOKUP($A18,Inscription!$A$6:$G$205,3,FALSE))," ",(VLOOKUP($A18,Inscription!$A$6:$G$205,4,FALSE)))," ") -> COLAS Thibaut | H18: =IF(A18>0,(VLOOKUP($A18,Inscription!$A$6:$G$205,5,FALSE))," ") -> begard vtt gwerun | K18: =IF(A18>0,(VLOOKUP($A18,Inscription!$A$6:$G$205,7,FALSE))," ") -> 330206 | M18: =IF(A18>0,(VLOOKUP($A18,Inscription!$A$6:$G$205,6,FALSE))," ") -> pupille | N18: =IF(CLASSEMENT!I12=CLASSEMENT!I11,0,CLASSEMENT!I12-CLASSEMENT!$I$4) -> 00:00:00 | P18: =CLASSEMENT!C12 -> 7
A19: =CLASSEMENT!C13 -> 9 | B19: =CLASSEMENT!$B13 -> 4 | C19: =IF(A19>0,CONCATENATE((VLOOKUP($A19,Inscription!$A$6:$G$205,3,FALSE))," ",(VLOOKUP($A19,Inscription!$A$6:$G$205,4,FALSE)))," ") -> CLERET MARECHAL Loeiz | H19: =IF(A19>0,(VLOOKUP($A19,Inscription!$A$6:$G$205,5,FALSE))," ") -> vtt cotes d'armor hillion | K19: =IF(A19>0,(VLOOKUP($A19,Inscription!$A$6:$G$205,7,FALSE))," ") -> 0 | M19: =IF(A19>0,(VLOOKUP($A19,Inscription!$A$6:$G$205,6,FALSE))," ") -> pupille | N19: =IF(CLASSEMENT!I13=CLASSEMENT!I12,0,CLASSEMENT!I13-CLASSEMENT!$I$4) -> 00:00:00 | P19: =CLASSEMENT!C13 -> 9
A20: =CLASSEMENT!C14 -> 0 | B20: =CLASSEMENT!$B14 -> 0 | C20: =IF(A20>0,CONCATENATE((VLOOKUP($A20,Inscription!$A$6:$G$205,3,FALSE))," ",(VLOOKUP($A20,Inscription!$A$6:$G$205,4,FALSE)))," ") ->  | H20: =IF(A20>0,(VLOOKUP($A20,Inscription!$A$6:$G$205,5,FALSE))," ") ->  | K20: =IF(A20>0,(VLOOKUP($A20,Inscription!$A$6:$G$205,7,FALSE))," ") ->  | M20: =IF(A20>0,(VLOOKUP($A20,Inscription!$A$6:$G$205,6,FALSE))," ") ->  | N20: =IF(CLASSEMENT!I14=CLASSEMENT!I13,0,CLASSEMENT!I14-CLASSEMENT!$I$4) -> 00:00:00 | P20: =CLASSEMENT!C14 -> 0
A21: =CLASSEMENT!C15 -> 11 | B21: =CLASSEMENT!$B15 -> 1 | C21: =IF(A21>0,CONCATENATE((VLOOKUP($A21,Inscription!$A$6:$G$205,3,FALSE))," ",(VLOOKUP($A21,Inscription!$A$6:$G$205,4,FALSE)))," ") -> POILVET Jules | H21: =IF(A21>0,(VLOOKUP($A21,Inscription!$A$6:$G$205,5,FALSE))," ") -> vc evron | K21: =IF(A21>0,(VLOOKUP($A21,Inscription!$A$6:$G$205,7,FALSE))," ") -> 382431 | M21: =IF(A21>0,(VLOOKUP($A21,Inscription!$A$6:$G$205,6,FALSE))," ") -> benjamin | N21: =IF(CLASSEMENT!I15=CLASSEMENT!I14,0,CLASSEMENT!I15-CLASSEMENT!$I$4) -> 00:00:00 | P21: =CLASSEMENT!C15 -> 11
A22: =CLASSEMENT!C16 -> 14 | B22: =CLASSEMENT!$B16 -> 2 | C22: =IF(A22>0,CONCATENATE((VLOOKUP($A22,Inscription!$A$6:$G$205,3,FALSE))," ",(VLOOKUP($A22,Inscription!$A$6:$G$205,4,FALSE)))," ") -> BANNER Rafael | H22: =IF(A22>0,(VLOOKUP($A22,Inscription!$A$6:$G$205,5,FALSE))," ") -> vtt du lié | K22: =IF(A22>0,(VLOOKUP($A22,Inscription!$A$6:$G$205,7,FALSE))," ") -> 0 | M22: =IF(A22>0,(VLOOKUP($A22,Inscription!$A$6:$G$205,6,FALSE))," ") -> benjamin | N22: =IF(CLASSEMENT!I16=CLASSEMENT!I15,0,CLASSEMENT!I16-CLASSEMENT!$I$4) -> 00:00:00 | P22: =CLASSEMENT!C16 -> 14
A23: =CLASSEMENT!C17 -> 16 | B23: =CLASSEMENT!$B17 -> 3 | C23: =IF(A23>0,CONCATENATE((VLOOKUP($A23,Inscription!$A$6:$G$205,3,FALSE))," ",(VLOOKUP($A23,Inscription!$A$6:$G$205,4,FALSE)))," ") -> BOUGEARD HORNAIS Aymeris | H23: =IF(A23>0,(VLOOKUP($A23,Inscription!$A$6:$G$205,5,FALSE))," ") -> team bikers | K23: =IF(A23>0,(VLOOKUP($A23,Inscription!$A$6:$G$205,7,FALSE))," ") -> 431285 | M23: =IF(A23>0,(VLOOKUP($A23,Inscription!$A$6:$G$205,6,FALSE))," ") -> benjamin | N23: =IF(CLASSEMENT!I17=CLASSEMENT!I16,0,CLASSEMENT!I17-CLASSEMENT!$I$4) -> 00:00:00 | P23: =CLASSEMENT!C17 -> 16
A24: =CLASSEMENT!C18 -> 15 | B24: =CLASSEMENT!$B18 -> 4 | C24: =IF(A24>0,CONCATENATE((VLOOKUP($A24,Inscription!$A$6:$G$205,3,FALSE))," ",(VLOOKUP($A24,Inscription!$A$6:$G$205,4,FALSE)))," ") -> BRIAND Axel | H24: =IF(A24>0,(VLOOKUP($A24,Inscription!$A$6:$G$205,5,FALSE))," ") -> team bikers | K24: =IF(A24>0,(VLOOKUP($A24,Inscription!$A$6:$G$205,7,FALSE))," ") -> 429219 | M24: =IF(A24>0,(VLOOKUP($A24,Inscription!$A$6:$G$205,6,FALSE))," ") -> benjamin | N24: =IF(CLASSEMENT!I18=CLASSEMENT!I17,0,CLASSEMENT!I18-CLASSEMENT!$I$4) -> 00:00:00 | P24: =CLASSEMENT!C18 -> 15
A25: =CLASSEMENT!C19 -> 10 | B25: =CLASSEMENT!$B19 -> 5 | C25: =IF(A25>0,CONCATENATE((VLOOKUP($A25,Inscription!$A$6:$G$205,3,FALSE))," ",(VLOOKUP($A25,Inscription!$A$6:$G$205,4,FALSE)))," ") -> POILVET Paul | H25: =IF(A25>0,(VLOOKUP($A25,Inscription!$A$6:$G$205,5,FALSE))," ") -> vc evron | K25: =IF(A25>0,(VLOOKUP($A25,Inscription!$A$6:$G$205,7,FALSE))," ") -> 382428 | M25: =IF(A25>0,(VLOOKUP($A25,Inscription!$A$6:$G$205,6,FALSE))," ") -> benjamin | N25: =IF(CLASSEMENT!I19=CLASSEMENT!I18,0,CLASSEMENT!I19-CLASSEMENT!$I$4) -> 00:00:00 | P25: =CLASSEMENT!C19 -> 10
A26: =CLASSEMENT!C20 -> 13 | B26: =CLASSEMENT!$B20 -> 6 | C26: =IF(A26>0,CONCATENATE((VLOOKUP($A26,Inscription!$A$6:$G$205,3,FALSE))," ",(VLOOKUP($A26,Inscription!$A$6:$G$205,4,FALSE)))," ") -> BOLORE Loevan | H26: =IF(A26>0,(VLOOKUP($A26,Inscription!$A$6:$G$205,5,FALSE))," ") -> team bikers | K26: =IF(A26>0,(VLOOKUP($A26,Inscription!$A$6:$G$205,7,FALSE))," ") -> 376265 | M26: =IF(A26>0,(VLOOKUP($A26,Inscription!$A$6:$G$205,6,FALSE))," ") -> benjamin | N26: =IF(CLASSEMENT!I20=CLASSEMENT!I19,0,CLASSEMENT!I20-CLASSEMENT!$I$4) -> 00:00:00 | P26: =CLASSEMENT!C20 -> 13
A27: =CLASSEMENT!C21 -> 12 | B27: =CLASSEMENT!$B21 -> 7 | C27: =IF(A27>0,CONCATENATE((VLOOKUP($A27,Inscription!$A$6:$G$205,3,FALSE))," ",(VLOOKUP($A27,Inscription!$A$6:$G$205,4,FALSE)))," ") -> LEPERCQ Clara | H27: =IF(A27>0,(VLOOKUP($A27,Inscription!$A$6:$G$205,5,FALSE))," ") -> uc plaudren | K27: =IF(A27>0,(VLOOKUP($A27,Inscription!$A$6:$G$205,7,FALSE))," ") -> 467480 | M27: =IF(A27>0,(VLOOKUP($A27,Inscription!$A$6:$G$205,6,FALSE))," ") -> benjamin | N27: =IF(CLASSEMENT!I21=CLASSEMENT!I20,0,CLASSEMENT!I21-CLASSEMENT!$I$4) -> 00:00:00 | P27: =CLASSEMENT!C21 -> 12
A28: =CLASSEMENT!C22 -> 0 | B28: =CLASSEMENT!$B22 -> 0 | C28: =IF(A28>0,CONCATENATE((VLOOKUP($A28,Inscription!$A$6:$G$205,3,FALSE))," ",(VLOOKUP($A28,Inscription!$A$6:$G$205,4,FALSE)))," ") ->  | H28: =IF(A28>0,(VLOOKUP($A28,Inscription!$A$6:$G$205,5,FALSE))," ") ->  | K28: =IF(A28>0,(VLOOKUP($A28,Inscription!$A$6:$G$205,7,FALSE))," ") ->  | M28: =IF(A28>0,(VLOOKUP($A28,Inscription!$A$6:$G$205,6,FALSE))," ") ->  | N28: =IF(CLASSEMENT!I22=CLASSEMENT!I21,0,CLASSEMENT!I22-CLASSEMENT!$I$4) -> 00:00:00 | P28: =CLASSEMENT!C22 -> 0
A29: =CLASSEMENT!C23 -> 27 | B29: =CLASSEMENT!$B23 -> 1 | C29: =IF(A29>0,CONCATENATE((VLOOKUP($A29,Inscription!$A$6:$G$205,3,FALSE))," ",(VLOOKUP($A29,Inscription!$A$6:$G$205,4,FALSE)))," ") -> GUILMIN Léo | H29: =IF(A29>0,(VLOOKUP($A29,Inscription!$A$6:$G$205,5,FALSE))," ") -> vc evron | K29: =IF(A29>0,(VLOOKUP($A29,Inscription!$A$6:$G$205,7,FALSE))," ") -> 344464 | M29: =IF(A29>0,(VLOOKUP($A29,Inscription!$A$6:$G$205,6,FALSE))," ") -> minimes | N29: =IF(CLASSEMENT!I23=CLASSEMENT!I22,0,CLASSEMENT!I23-CLASSEMENT!$I$4) -> 00:00:00 | P29: =CLASSEMENT!C23 -> 27
A30: =CLASSEMENT!C24 -> 24 | B30: =CLASSEMENT!$B24 -> 2 | C30: =IF(A30>0,CONCATENATE((VLOOKUP($A30,Inscription!$A$6:$G$205,3,FALSE))," ",(VLOOKUP($A30,Inscription!$A$6:$G$205,4,FALSE)))," ") -> BASSET Loris | H30: =IF(A30>0,(VLOOKUP($A30,Inscription!$A$6:$G$205,5,FALSE))," ") -> vc evron | K30: =IF(A30>0,(VLOOKUP($A30,Inscription!$A$6:$G$205,7,FALSE))," ") -> 0 | M30: =IF(A30>0,(VLOOKUP($A30,Inscription!$A$6:$G$205,6,FALSE))," ") -> minimes | N30: =IF(CLASSEMENT!I24=CLASSEMENT!I23,0,CLASSEMENT!I24-CLASSEMENT!$I$4) -> 00:00:00 | P30: =CLASSEMENT!C24 -> 24
A31: =CLASSEMENT!C25 -> 20 | B31: =CLASSEMENT!$B25 -> 3 | C31: =IF(A31>0,CONCATENATE((VLOOKUP($A31,Inscription!$A$6:$G$205,3,FALSE))," ",(VLOOKUP($A31,Inscription!$A$6:$G$205,4,FALSE)))," ") -> BRIEND Ilhan | H31: =IF(A31>0,(VLOOKUP($A31,Inscription!$A$6:$G$205,5,FALSE))," ") -> accro cycles cotes d'émeraude | K31: =IF(A31>0,(VLOOKUP($A31,Inscription!$A$6:$G$205,7,FALSE))," ") -> 919871 | M31: =IF(A31>0,(VLOOKUP($A31,Inscription!$A$6:$G$205,6,FALSE))," ") -> minimes | N31: =IF(CLASSEMENT!I25=CLASSEMENT!I24,0,CLASSEMENT!I25-CLASSEMENT!$I$4) -> 00:00:00 | P31: =CLASSEMENT!C25 -> 20
A32: =CLASSEMENT!C26 -> 21 | B32: =CLASSEMENT!$B26 -> 4 | C32: =IF(A32>0,CONCATENATE((VLOOKUP($A32,Inscription!$A$6:$G$205,3,FALSE))," ",(VLOOKUP($A32,Inscription!$A$6:$G$205,4,FALSE)))," ") -> LE BIHAN Clément | H32: =IF(A32>0,(VLOOKUP($A32,Inscription!$A$6:$G$205,5,FALSE))," ") -> uc plaudren | K32: =IF(A32>0,(VLOOKUP($A32,Inscription!$A$6:$G$205,7,FALSE))," ") -> 968158 | M32: =IF(A32>0,(VLOOKUP($A32,Inscription!$A$6:$G$205,6,FALSE))," ") -> minimes | N32: =IF(CLASSEMENT!I26=CLASSEMENT!I25,0,CLASSEMENT!I26-CLASSEMENT!$I$4) -> 00:00:00 | P32: =CLASSEMENT!C26 -> 21
A33: =CLASSEMENT!C27 -> 26 | B33: =CLASSEMENT!$B27 -> 5 | C33: =IF(A33>0,CONCATENATE((VLOOKUP($A33,Inscription!$A$6:$G$205,3,FALSE))," ",(VLOOKUP($A33,Inscription!$A$6:$G$205,4,FALSE)))," ") -> BOUGEARD Margot | H33: =IF(A33>0,(VLOOKUP($A33,Inscription!$A$6:$G$205,5,FALSE))," ") -> team bikers | K33: =IF(A33>0,(VLOOKUP($A33,Inscription!$A$6:$G$205,7,FALSE))," ") -> 431290 | M33: =IF(A33>0,(VLOOKUP($A33,Inscription!$A$6:$G$205,6,FALSE))," ") -> minimes | N33: =IF(CLASSEMENT!I27=CLASSEMENT!I26,0,CLASSEMENT!I27-CLASSEMENT!$I$4) -> 00:00:00 | P33: =CLASSEMENT!C27 -> 26
A34: =CLASSEMENT!C28 -> 23 | B34: =CLASSEMENT!$B28 -> 6 | C34: =IF(A34>0,CONCATENATE((VLOOKUP($A34,Inscription!$A$6:$G$205,3,FALSE))," ",(VLOOKUP($A34,Inscription!$A$6:$G$205,4,FALSE)))," ") -> ROUILLE Robin | H34: =IF(A34>0,(VLOOKUP($A34,Inscription!$A$6:$G$205,5,FALSE))," ") -> team bikers | K34: =IF(A34>0,(VLOOKUP($A34,Inscription!$A$6:$G$205,7,FALSE))," ") -> 390947 | M34: =IF(A34>0,(VLOOKUP($A34,Inscription!$A$6:$G$205,6,FALSE))," ") -> minimes | N34: =IF(CLASSEMENT!I28=CLASSEMENT!I27,0,CLASSEMENT!I28-CLASSEMENT!$I$4) -> 00:00:00 | P34: =CLASSEMENT!C28 -> 23
A35: =CLASSEMENT!C29 -> 25 | B35: =CLASSEMENT!$B29 -> 7 | C35: =IF(A35>0,CONCATENATE((VLOOKUP($A35,Inscription!$A$6:$G$205,3,FALSE))," ",(VLOOKUP($A35,Inscription!$A$6:$G$205,4,FALSE)))," ") -> BRIAND Mathis | H35: =IF(A35>0,(VLOOKUP($A35,Inscription!$A$6:$G$205,5,FALSE))," ") -> team bikers | K35: =IF(A35>0,(VLOOKUP($A35,Inscription!$A$6:$G$205,7,FALSE))," ") -> 431995 | M35: =IF(A35>0,(VLOOKUP($A35,Inscription!$A$6:$G$205,6,FALSE))," ") -> minimes | N35: =IF(CLASSEMENT!I29=CLASSEMENT!I28,0,CLASSEMENT!I29-CLASSEMENT!$I$4) -> 00:00:00 | P35: =CLASSEMENT!C29 -> 25
A36: =CLASSEMENT!C30 -> 22 | B36: =CLASSEMENT!$B30 -> 8 | C36: =IF(A36>0,CONCATENATE((VLOOKUP($A36,Inscription!$A$6:$G$205,3,FALSE))," ",(VLOOKUP($A36,Inscription!$A$6:$G$205,4,FALSE)))," ") -> BOLORE Ewen | H36: =IF(A36>0,(VLOOKUP($A36,Inscription!$A$6:$G$205,5,FALSE))," ") -> team bikers | K36: =IF(A36>0,(VLOOKUP($A36,Inscription!$A$6:$G$205,7,FALSE))," ") -> 376263 | M36: =IF(A36>0,(VLOOKUP($A36,Inscription!$A$6:$G$205,6,FALSE))," ") -> minimes | N36: =IF(CLASSEMENT!I30=CLASSEMENT!I29,0,CLASSEMENT!I30-CLASSEMENT!$I$4) -> 00:00:00 | P36: =CLASSEMENT!C30 -> 22
A37: =CLASSEMENT!C31 -> 0 | B37: =CLASSEMENT!$B31 -> 0 | C37: =IF(A37>0,CONCATENATE((VLOOKUP($A37,Inscription!$A$6:$G$205,3,FALSE))," ",(VLOOKUP($A37,Inscription!$A$6:$G$205,4,FALSE)))," ") ->  | H37: =IF(A37>0,(VLOOKUP($A37,Inscription!$A$6:$G$205,5,FALSE))," ") ->  | K37: =IF(A37>0,(VLOOKUP($A37,Inscription!$A$6:$G$205,7,FALSE))," ") ->  | M37: =IF(A37>0,(VLOOKUP($A37,Inscription!$A$6:$G$205,6,FALSE))," ") ->  | N37: =IF(CLASSEMENT!I31=CLASSEMENT!I30,0,CLASSEMENT!I31-CLASSEMENT!$I$4) -> 00:00:00 | P37: =CLASSEMENT!C31 -> 0
A38: =CLASSEMENT!C32 -> 30 | B38: =CLASSEMENT!$B32 -> 1 | C38: =IF(A38>0,CONCATENATE((VLOOKUP($A38,Inscription!$A$6:$G$205,3,FALSE))," ",(VLOOKUP($A38,Inscription!$A$6:$G$205,4,FALSE)))," ") -> FERTE Brandon | H38: =IF(A38>0,(VLOOKUP($A38,Inscription!$A$6:$G$205,5,FALSE))," ") -> distric loudéac | K38: =IF(A38>0,(VLOOKUP($A38,Inscription!$A$6:$G$205,7,FALSE))," ") -> 297227 | M38: =IF(A38>0,(VLOOKUP($A38,Inscription!$A$6:$G$205,6,FALSE))," ") -> cadet | N38: =IF(CLASSEMENT!I32=CLASSEMENT!I31,0,CLASSEMENT!I32-CLASSEMENT!$I$4) -> 00:00:00 | P38: =CLASSEMENT!C32 -> 30
A39: =CLASSEMENT!C33 -> 31 | B39: =CLASSEMENT!$B33 -> 2 | C39: =IF(A39>0,CONCATENATE((VLOOKUP($A39,Inscription!$A$6:$G$205,3,FALSE))," ",(VLOOKUP($A39,Inscription!$A$6:$G$205,4,FALSE)))," ") -> LEPERCQ Nathan | H39: =IF(A39>0,(VLOOKUP($A39,Inscription!$A$6:$G$205,5,FALSE))," ") -> uc plaudren | K39: =IF(A39>0,(VLOOKUP($A39,Inscription!$A$6:$G$205,7,FALSE))," ") -> 389000 | M39: =IF(A39>0,(VLOOKUP($A39,Inscription!$A$6:$G$205,6,FALSE))," ") -> cadet | N39: =IF(CLASSEMENT!I33=CLASSEMENT!I32,0,CLASSEMENT!I33-CLASSEMENT!$I$4) -> 00:00:00 | P39: =CLASSEMENT!C33 -> 31
A40: SUITE : | C40: =$P40 -> 0 | D40: =$P41 -> 35 | E40: =P42 -> 0 | F40: =P43 -> 42 | G40: =P44 -> 43 | H40: =P45 -> 40 | I40: =P46 -> 41 | J40: =P47 -> 0 | K40: =P48 -> 48 | L40: =P49 -> 54 | M40: =P50 -> 53 | N40: =P51 -> 50 | P40: =CLASSEMENT!C34 -> 0
A41: =P52 -> 49 | B41: =P53 -> 51 | C41: =$P54 -> 45 | D41: =P55 -> 46 | E41: =P56 -> 47 | F41: =P57 -> 52 | G41: =P58 -> 0 | H41: =P59 -> 72 | I41: =P60 -> 65 | J41: =$P$61 -> 64 | K41: =$P$62 -> 73 | L41: =$P$63 -> 68 | M41: =$P$64 -> 61 | N41: =$P$65 -> 60 | P41: =CLASSEMENT!C35 -> 35
A42: =$P$66 -> 63 | B42: =$P$67 -> 71 | C42: =$P68 -> 70 | D42: =$P$69 -> 66 | E42: =$P$70 -> 67 | F42: =$P$71 -> 69 | G42: =$P$72 -> 62 | H42: =$P$73 -> 0 | I42: =$P$74 -> 0 | J42: =$P$75 -> 0 | K42: =$P$76 -> 0 | L42: =$P$77 -> 0 | M42: =$P$78 -> 0 | N42: =$P$79 -> 0 | P42: =CLASSEMENT!C36 -> 0
A43: =$P$80 -> 0 | B43: =$P$81 -> 0 | C43: =$P82 -> 0 | D43: =$P$83 -> 0 | E43: =$P$84 -> 0 | F43: =$P$85 -> 0 | G43: =$P$86 -> 0 | H43: =$P$87 -> 0 | I43: =$P$88 -> 0 | J43: =$P$89 -> 0 | K43: =$P$90 -> 0 | L43: =$P$91 -> 0 | M43: =$P$92 -> 0 | N43: =$P$93 -> 0 | P43: =CLASSEMENT!C37 -> 42
A44: =$P$94 -> 0 | B44: =$P$95 -> 0 | C44: =$P96 -> 0 | D44: =$P$97 -> 0 | E44: =$P$98 -> 0 | F44: =$P$99 -> 0 | G44: =$P$100 -> 0 | H44: =$P$101 -> 0 | I44: =$P$102 -> 0 | J44: =$P$103 -> 0 | K44: =$P$104 -> 0 | L44: =$P$105 -> 0 | M44: =$P$106 -> 0 | N44: =$P$107 -> 0 | P44: =CLASSEMENT!C38 -> 43
A45: =$P$108 -> 0 | B45: =$P$109 -> 0 | C45: =$P110 -> 0 | D45: =$P$111 -> 0 | E45: =$P$112 -> 0 | F45: =$P$113 -> 0 | G45: =$P$114 -> 0 | H45: =$P$115 -> 0 | I45: =$P$116 -> 0 | J45: =$P$117 -> 0 | K45: =$P$118 -> 0 | L45: =$P$119 -> 0 | M45: =$P$120 -> 0 | N45: =$P$121 -> 0 | P45: =CLASSEMENT!C39 -> 40
A46: =$P$122 -> 0 | B46: =$P$123 -> 0 | C46: =$P124 -> 0 | D46: =$P$125 -> 0 | E46: =$P$126 -> 0 | F46: =$P$127 -> 0 | G46: =$P$128 -> 0 | H46: =$P$129 -> 0 | I46: =$P$130 -> 0 | J46: =$P$131 -> 0 | K46: =$P$132 -> 0 | L46: =$P$133 -> 0 | M46: =$P$134 -> 0 | N46: =$P$135 -> 0 | P46: =CLASSEMENT!C40 -> 41
A47: =$P$136 -> 0 | B47: =$P$137 -> 0 | C47: =$P138 -> 0 | D47: =$P$139 -> 0 | E47: =$P$140 -> 0 | F47: =$P$141 -> 0 | G47: =$P$142 -> 0 | H47: =$P$143 -> 0 | I47: =$P$144 -> 0 | J47: =$P$145 -> 0 | K47: =$P$146 -> 0 | L47: =$P$147 -> 0 | M47: =$P$148 -> 0 | N47: =$P$149 -> 0 | P47: =CLASSEMENT!C41 -> 0
A48: =IF(Inscription!#REF!="oui","CHALLENGE","Meilleurs Animateurs") ->  | B48: =IF(Inscription!G4="oui","CHALLENGE","PRIX D EQUIPE") -> PRIX D EQUIPE | C48: =IF(Inscription!#REF!="oui","CHALLENGE","PRIX D EQUIPE") ->  | D48: =IF(Inscription!#REF!="oui","CHALLENGE","PRIX D EQUIPE") ->  | E48: =IF(Inscription!H4="oui","CHALLENGE","PRIX D EQUIPE") -> PRIX D EQUIPE | F48: =IF(Inscription!I4="oui","CHALLENGE","PRIX D EQUIPE") -> PRIX D EQUIPE | G48: =IF(Inscription!J4="oui","CHALLENGE","PRIX D EQUIPE") -> PRIX D EQUIPE | J48: Nombre de clubs engagés | N48: =COUNTA('PRIX D EQUIPE'!B5:B39) -> 0 | P48: =CLASSEMENT!C42 -> 48
B49: 1er | C49: =IF(CLASSEMENT!AC45>0,CLASSEMENT!AC45," ") ->  | G49: =CLASSEMENT!AE45 -> 1000 | H49: + | I49: =CLASSEMENT!AG45 -> 1000 | J49: + | K49: =CLASSEMENT!AI45 -> 1000 | L49: = | M49: =IF(C49=" "," ",IF(I49>200,G49,IF(K49>200,SUM(G49+I49),IF($C49>0,SUM(G49+I49+K49)," ")))) ->  | N49: =IF(C49=" "," ",IF(I49>200,"(1H.)",IF(K49>200,"(2 H.)"," "))) ->  | P49: =CLASSEMENT!C43 -> 54
B50: 2e | C50: =IF(CLASSEMENT!AC46>0,CLASSEMENT!AC46," ") ->  | G50: =CLASSEMENT!AE46 -> 1000 | H50: + | I50: =CLASSEMENT!AG46 -> 1000 | J50: + | K50: =CLASSEMENT!AI46 -> 1000 | L50: = | M50: =IF(C50=" "," ",IF(I50>200,G50,IF(K50>200,SUM(G50+I50),IF($C50>0,SUM(G50+I50+K50)," ")))) ->  | N50: =IF(C50=" "," ",IF(I50>200,"(1H.)",IF(K50>200,"(2 H.)"," "))) ->  | P50: =CLASSEMENT!C44 -> 53
B51: 3e | C51: =IF(CLASSEMENT!AC47>0,CLASSEMENT!AC47," ") ->  | G51: =CLASSEMENT!AE47 -> 1000 | H51: + | I51: =CLASSEMENT!AG47 -> 1000 | J51: + | K51: =CLASSEMENT!AI47 -> 1000 | L51: = | M51: =IF(C51=" "," ",IF(I51>200,G51,IF(K51>200,SUM(G51+I51),IF($C51>0,SUM(G51+I51+K51)," ")))) ->  | N51: =IF(C51=" "," ",IF(I51>200,"(1H.)",IF(K51>200,"(2 H.)"," "))) ->  | P51: =CLASSEMENT!C45 -> 50
B52: 4e | C52: =IF(CLASSEMENT!AC48>0,CLASSEMENT!AC48," ") ->  | G52: =CLASSEMENT!AE48 -> 1000 | H52: + | I52: =CLASSEMENT!AG48 -> 1000 | J52: + | K52: =CLASSEMENT!AI48 -> 1000 | L52: = | M52: =IF(C52=" "," ",IF(I52>200,G52,IF(K52>200,SUM(G52+I52),IF($C52>0,SUM(G52+I52+K52)," ")))) ->  | N52: =IF(C52=" "," ",IF(I52>200,"(1H.)",IF(K52>200,"(2 H.)"," "))) ->  | P52: =CLASSEMENT!C46 -> 49
B53: 5e | C53: =IF(CLASSEMENT!AC49>0,CLASSEMENT!AC49," ") ->  | G53: =CLASSEMENT!AE49 -> 1000 | H53: + | I53: =CLASSEMENT!AG49 -> 1000 | J53: + | K53: =CLASSEMENT!AI49 -> 1000 | L53: = | M53: =IF(C53=" "," ",IF(I53>200,G53,IF(K53>200,SUM(G53+I53),IF($C53>0,SUM(G53+I53+K53)," ")))) ->  | N53: =IF(C53=" "," ",IF(I53>200,"(1H.)",IF(K53>200,"(2 H.)"," "))) ->  | P53: =CLASSEMENT!C47 -> 51
P54: =CLASSEMENT!C48 -> 45
P55: =CLASSEMENT!C49 -> 46
P56: =CLASSEMENT!C50 -> 47
P57: =CLASSEMENT!C51 -> 52
P58: =CLASSEMENT!C52 -> 0
P59: =CLASSEMENT!C53 -> 72
P60: =CLASSEMENT!C54 -> 65
P61: =CLASSEMENT!C55 -> 64
P62: =CLASSEMENT!C56 -> 73
P63: =CLASSEMENT!C57 -> 68
P64: =CLASSEMENT!C58 -> 61
P65: =CLASSEMENT!C59 -> 60
P66: =CLASSEMENT!C60 -> 63
P67: =CLASSEMENT!C61 -> 71
P68: =CLASSEMENT!C62 -> 70
P69: =CLASSEMENT!C63 -> 66
P70: =CLASSEMENT!C64 -> 67
P71: =CLASSEMENT!C65 -> 69
P72: =CLASSEMENT!C66 -> 62
P73: =CLASSEMENT!C67 -> 0
P74: =CLASSEMENT!C68 -> 0
P75: =CLASSEMENT!C69 -> 0
P76: =CLASSEMENT!C70 -> 0
P77: =CLASSEMENT!C71 -> 0
P78: =CLASSEMENT!C72 -> 0
P79: =CLASSEMENT!C73 -> 0
P80: =CLASSEMENT!C74 -> 0
P81: =CLASSEMENT!C75 -> 0
P82: =CLASSEMENT!C76 -> 0
P83: =CLASSEMENT!C77 -> 0
P84: =CLASSEMENT!C78 -> 0
P85: =CLASSEMENT!C79 -> 0
P86: =CLASSEMENT!C80 -> 0
P87: =CLASSEMENT!C81 -> 0
P88: =CLASSEMENT!C82 -> 0
P89: =CLASSEMENT!C83 -> 0
P90: =CLASSEMENT!C84 -> 0
P91: =CLASSEMENT!C85 -> 0
P92: =CLASSEMENT!C86 -> 0
P93: =CLASSEMENT!C87 -> 0
P94: =CLASSEMENT!C88 -> 0
P95: =CLASSEMENT!C89 -> 0
P96: =CLASSEMENT!C90 -> 0
P97: =CLASSEMENT!C91 -> 0
P98: =CLASSEMENT!C92 -> 0
P99: =CLASSEMENT!C93 -> 0
P100: =CLASSEMENT!C94 -> 0
P101: =CLASSEMENT!C95 -> 0
P102: =CLASSEMENT!C96 -> 0
P103: =CLASSEMENT!C97 -> 0
P104: =CLASSEMENT!C98 -> 0
P105: =CLASSEMENT!C99 -> 0
P106: =CLASSEMENT!C100 -> 0
P107: =CLASSEMENT!C101 -> 0
P108: =CLASSEMENT!C102 -> 0
P109: =CLASSEMENT!C103 -> 0
P110: =CLASSEMENT!C104 -> 0
P111: =CLASSEMENT!C105 -> 0
P112: =CLASSEMENT!C106 -> 0
P113: =CLASSEMENT!C107 -> 0
P114: =CLASSEMENT!C108 -> 0
P115: =CLASSEMENT!C109 -> 0
P116: =CLASSEMENT!C110 -> 0
P117: =CLASSEMENT!C111 -> 0
P118: =CLASSEMENT!C112 -> 0
P119: =CLASSEMENT!C113 -> 0
P120: =CLASSEMENT!C114 -> 0
P121: =CLASSEMENT!C115 -> 0
P122: =CLASSEMENT!C116 -> 0
P123: =CLASSEMENT!C117 -> 0
P124: =CLASSEMENT!C118 -> 0
P125: =CLASSEMENT!C119 -> 0
P126: =CLASSEMENT!C120 -> 0
P127: =CLASSEMENT!C121 -> 0
P128: =CLASSEMENT!C122 -> 0
P129: =CLASSEMENT!C123 -> 0
P130: =CLASSEMENT!C124 -> 0
P131: =CLASSEMENT!C125 -> 0
P132: =CLASSEMENT!C126 -> 0
P133: =CLASSEMENT!C127 -> 0
P134: =CLASSEMENT!C128 -> 0
P135: =CLASSEMENT!C129 -> 0
P136: =CLASSEMENT!C130 -> 0
P137: =CLASSEMENT!C131 -> 0
P138: =CLASSEMENT!C132 -> 0
P139: =CLASSEMENT!C133 -> 0
P140: =CLASSEMENT!C134 -> 0
P141: =CLASSEMENT!C135 -> 0
P142: =CLASSEMENT!C136 -> 0
P143: =CLASSEMENT!C137 -> 0
P144: =CLASSEMENT!C138 -> 0
P145: =CLASSEMENT!C139 -> 0
P146: =CLASSEMENT!C140 -> 0
P147: =CLASSEMENT!C141 -> 0
P148: =CLASSEMENT!C142 -> 0
P149: =CLASSEMENT!C143 -> 0
P150: =CLASSEMENT!C144 -> 0
P151: =CLASSEMENT!C145 -> 0
P152: =CLASSEMENT!C146 -> 0
P153: =CLASSEMENT!C147 -> 0
P154: =CLASSEMENT!C148 -> 0
P155: =CLASSEMENT!C149 -> 0
P156: =CLASSEMENT!C150 -> 0
P157: =CLASSEMENT!C151 -> 0
P158: =CLASSEMENT!C152 -> 0
P159: =CLASSEMENT!C153 -> 0
P160: =CLASSEMENT!C154 -> 0
P161: =CLASSEMENT!C155 -> 0
P162: =CLASSEMENT!C156 -> 0
P163: =CLASSEMENT!C157 -> 0
P164: =CLASSEMENT!C158 -> 0
P165: =CLASSEMENT!C159 -> 0
P166: =CLASSEMENT!C160 -> 0
P167: =CLASSEMENT!C161 -> 0
P168: =CLASSEMENT!C162 -> 0
P169: =CLASSEMENT!C163 -> 0
P170: =CLASSEMENT!C164 -> 0
P171: =CLASSEMENT!C165 -> 0
P172: =CLASSEMENT!C166 -> 0
P173: =CLASSEMENT!C167 -> 0
P174: =CLASSEMENT!C168 -> 0
P175: =CLASSEMENT!C169 -> 0
P176: =CLASSEMENT!C170 -> 0
P177: =CLASSEMENT!C171 -> 0
P178: =CLASSEMENT!C172 -> 0
P179: =CLASSEMENT!C173 -> 0
P180: =CLASSEMENT!C174 -> 0
P181: =CLASSEMENT!C175 -> 0
P182: =CLASSEMENT!C176 -> 0
P183: =CLASSEMENT!C177 -> 0
P184: =CLASSEMENT!C178 -> 0
P185: =CLASSEMENT!C179 -> 0
P186: =CLASSEMENT!C180 -> 0
P187: =CLASSEMENT!C181 -> 0
P188: =CLASSEMENT!C182 -> 0
P189: =CLASSEMENT!C183 -> 0
P190: =CLASSEMENT!C184 -> 0
P191: =CLASSEMENT!C185 -> 0
P192: =CLASSEMENT!C186 -> 0
P193: =CLASSEMENT!C187 -> 0
P194: =CLASSEMENT!C188 -> 0
P195: =CLASSEMENT!C189 -> 0
P196: =CLASSEMENT!C190 -> 0
P197: =CLASSEMENT!C191 -> 0
P198: =CLASSEMENT!C192 -> 0
P199: =CLASSEMENT!C203 -> 0

Sheet ETAT RESULT (hidden)
A1: FEDERATION SPORTIVE ET GYMNIQUE DU TRAVAIL
A2: F.S.G.T 29
A7: Etat de Résultats
A9: à transmettre dans les 48 heures qui suivent l'épreuve,
A10: pour HOMOLOGATION à la Commission Cyclisme 29
A12: CONTRÔLE ANTIDOPAGE | E12: OUI | G12: NON
E13: (Rayer la mention inutile)
D14: DATE :
A16: Titre de l'épreuve :
A17: Lieu de l'épreuve :
A18: Association organisatrice :
A19: Séries ou Catégories :
A20: Distance : | D20: kms | E20: TEMPS : | F20: =CLASSEMENT!I4 -> 00:00:00
D22: COMMISSAIRES
D23: NOMS | F23: ASSOCIATIONS
C24: Prés. Du Jury
A25: 1. | B25: }
A26: 2. | C26: Commissaires
A27: 3.
C28: Juge à l'arrivée
B29: Commissaire moto
C30: Chronométreur
A33: ENGAGES : | C33: =Inscription!#REF! ->  | D33: PARTANTS : | E33: =Inscription!#REF! ->  | G33: =CLASSEMENT!$I$2 -> 55
A35: AVIS IMPORTANT :
A36: - Cet ETAT DE RESULTATS doit être rempli intégralement, le nom, le prénom usuel, le n°de licence et le nom de l'association du coureur doivent être indiqués en entier.
A38: - Ne pas omettre de signer au verso (Commissaires, chrono, etc…).
A39: - Joindre obligatoirement la liste des engagés

Sheet ETAT RES VERSO (hidden)
A1: LIEU : | B1: =Inscription!D2 -> HENANSAL | C1: DATE | E1: =Inscription!D4 -> 2023-10-01 | K1: CAT.: | M1: =Inscription!#REF! ->  | O1: AVIS SUR LES DECISIONS CI-CONTRE
A2: PENALITES : (s'il y a lieu), par décision des trois Commissaires de Course, qui doivent apposer leur signature sous le(s) motif(s).
A3: N° | C3: ASSOCIATION
A4: DE | B4: NOM ET PRENOM | C4: N° DE LICENCE | M4: Pénalités | N4: MOTIF(S) | O4: Commission 29 | P4: F.S.G.T
A5: DOSSARD
B6: =IF(A6>0,CONCATENATE((VLOOKUP($A6,Inscription!$A$6:$G$205,3,FALSE))," ",(VLOOKUP($A6,Inscription!$A$6:$G$205,4,FALSE)))," ") ->  | C6: =IF(A6>0,(VLOOKUP($A6,Inscription!$A$6:$G$205,5,FALSE))," ") -> 
B7: =IF(A7>0,(VLOOKUP($C7,Inscription!$A$6:$G$205,3,FALSE))," ") ->  | C7: =IF(A6>0,(VLOOKUP($A6,Inscription!$A$6:$G$205,7,FALSE))," ") -> 
B8: =IF(A8>0,(VLOOKUP($A8,Inscription!$A$6:$G$205,3,FALSE))," ") ->  | C8: =IF(A8>0,(VLOOKUP($A8,Inscription!$A$6:$G$205,5,FALSE))," ") -> 
B9: =IF(A9>0,(VLOOKUP($C9,Inscription!$A$6:$G$205,3,FALSE))," ") ->  | C9: =IF(A8>0,(VLOOKUP($A8,Inscription!$A$6:$G$205,7,FALSE))," ") -> 
B10: =IF(A10>0,(VLOOKUP($A10,Inscription!$A$6:$G$205,3,FALSE))," ") ->  | C10: =IF(A10>0,(VLOOKUP($A10,Inscription!$A$6:$G$205,5,FALSE))," ") -> 
B11: =IF(A11>0,(VLOOKUP($C11,Inscription!$A$6:$G$205,3,FALSE))," ") ->  | C11: =IF(A10>0,(VLOOKUP($A10,Inscription!$A$6:$G$205,7,FALSE))," ") -> 
B12: =IF(A12>0,(VLOOKUP($A12,Inscription!$A$6:$G$205,3,FALSE))," ") ->  | C12: =IF(A12>0,(VLOOKUP($A12,Inscription!$A$6:$G$205,5,FALSE))," ") -> 
B13: =IF(A13>0,(VLOOKUP($C13,Inscription!$A$6:$G$205,3,FALSE))," ") ->  | C13: =IF(A12>0,(VLOOKUP($A12,Inscription!$A$6:$G$205,7,FALSE))," ") -> 
B14: =IF(A14>0,(VLOOKUP($A14,Inscription!$A$6:$G$205,3,FALSE))," ") ->  | C14: =IF(A14>0,(VLOOKUP($A14,Inscription!$A$6:$G$205,5,FALSE))," ") -> 
B15: =IF(A15>0,(VLOOKUP($C15,Inscription!$A$6:$G$205,3,FALSE))," ") ->  | C15: =IF(A14>0,(VLOOKUP($A14,Inscription!$A$6:$G$205,7,FALSE))," ") -> 
A16: CHUTES – ACCIDENTS : | M16: SUITE DONNEE
B17: =IF(A17>0,CONCATENATE((VLOOKUP($A17,Inscription!$A$6:$G$205,3,FALSE))," ",(VLOOKUP($A17,Inscription!$A$6:$G$205,4,FALSE)))," ") ->  | C17: =IF(A17>0,(VLOOKUP($A17,Inscription!$A$6:$G$205,5,FALSE))," ") -> 
B18: =IF(A18>0,(VLOOKUP($C18,Inscription!$A$6:$G$205,3,FALSE))," ") ->  | C18: =IF(A17>0,(VLOOKUP($A17,Inscription!$A$6:$G$205,7,FALSE))," ") -> 
B19: =IF(A19>0,CONCATENATE((VLOOKUP($A19,Inscription!$A$6:$G$205,3,FALSE))," ",(VLOOKUP($A19,Inscription!$A$6:$G$205,4,FALSE)))," ") ->  | C19: =IF(A19>0,(VLOOKUP($A19,Inscription!$A$6:$G$205,5,FALSE))," ") -> 
B20: =IF(A20>0,(VLOOKUP($C20,Inscription!$A$6:$G$205,3,FALSE))," ") ->  | C20: =IF(A19>0,(VLOOKUP($A19,Inscription!$A$6:$G$205,7,FALSE))," ") -> 
B21: =IF(A21>0,CONCATENATE((VLOOKUP($A21,Inscription!$A$6:$G$205,3,FALSE))," ",(VLOOKUP($A21,Inscription!$A$6:$G$205,4,FALSE)))," ") ->  | C21: =IF(A21>0,(VLOOKUP($A21,Inscription!$A$6:$G$205,5,FALSE))," ") -> 
B22: =IF(A22>0,(VLOOKUP($C22,Inscription!$A$6:$G$205,3,FALSE))," ") ->  | C22: =IF(A21>0,(VLOOKUP($A21,Inscription!$A$6:$G$205,7,FALSE))," ") -> 
B23: =IF(A23>0,CONCATENATE((VLOOKUP($A23,Inscription!$A$6:$G$205,3,FALSE))," ",(VLOOKUP($A23,Inscription!$A$6:$G$205,4,FALSE)))," ") ->  | C23: =IF(A23>0,(VLOOKUP($A23,Inscription!$A$6:$G$205,5,FALSE))," ") -> 
B24: =IF(A24>0,(VLOOKUP($C24,Inscription!$A$6:$G$205,3,FALSE))," ") ->  | C24: =IF(A23>0,(VLOOKUP($A23,Inscription!$A$6:$G$205,7,FALSE))," ") -> 
B25: =IF(A25>0,CONCATENATE((VLOOKUP($A25,Inscription!$A$6:$G$205,3,FALSE))," ",(VLOOKUP($A25,Inscription!$A$6:$G$205,4,FALSE)))," ") ->  | C25: =IF(A25>0,(VLOOKUP($A25,Inscription!$A$6:$G$205,5,FALSE))," ") -> 
B26: =IF(A26>0,(VLOOKUP($C26,Inscription!$A$6:$G$205,3,FALSE))," ") ->  | C26: =IF(A25>0,(VLOOKUP($A25,Inscription!$A$6:$G$205,7,FALSE))," ") -> 
B27: =IF(A27>0,CONCATENATE((VLOOKUP($A27,Inscription!$A$6:$G$205,3,FALSE))," ",(VLOOKUP($A27,Inscription!$A$6:$G$205,4,FALSE)))," ") ->  | C27: =IF(A27>0,(VLOOKUP($A27,Inscription!$A$6:$G$205,5,FALSE))," ") -> 
B28: =IF(A28>0,(VLOOKUP($C28,Inscription!$A$6:$G$205,3,FALSE))," ") ->  | C28: =IF(A27>0,(VLOOKUP($A27,Inscription!$A$6:$G$205,7,FALSE))," ") -> 
B29: =IF(A29>0,CONCATENATE((VLOOKUP($A29,Inscription!$A$6:$G$205,3,FALSE))," ",(VLOOKUP($A29,Inscription!$A$6:$G$205,4,FALSE)))," ") ->  | C29: =IF(A29>0,(VLOOKUP($A29,Inscription!$A$6:$G$205,5,FALSE))," ") -> 
B30: =IF(A30>0,(VLOOKUP($C30,Inscription!$A$6:$G$205,3,FALSE))," ") ->  | C30: =IF(A29>0,(VLOOKUP($A29,Inscription!$A$6:$G$205,7,FALSE))," ") -> 
B31: =IF(A31>0,CONCATENATE((VLOOKUP($A31,Inscription!$A$6:$G$205,3,FALSE))," ",(VLOOKUP($A31,Inscription!$A$6:$G$205,4,FALSE)))," ") ->  | C31: =IF(A31>0,(VLOOKUP($A31,Inscription!$A$6:$G$205,5,FALSE))," ") -> 
B32: =IF(A32>0,(VLOOKUP($C32,Inscription!$A$6:$G$205,3,FALSE))," ") ->  | C32: =IF(A31>0,(VLOOKUP($A31,Inscription!$A$6:$G$205,7,FALSE))," ") -> 
B33: =IF(A33>0,CONCATENATE((VLOOKUP($A33,Inscription!$A$6:$G$205,3,FALSE))," ",(VLOOKUP($A33,Inscription!$A$6:$G$205,4,FALSE)))," ") ->  | C33: =IF(A33>0,(VLOOKUP($A33,Inscription!$A$6:$G$205,5,FALSE))," ") -> 
B34: =IF(A34>0,(VLOOKUP($C34,Inscription!$A$6:$G$205,3,FALSE))," ") ->  | C34: =IF(A33>0,(VLOOKUP($A33,Inscription!$A$6:$G$205,7,FALSE))," ") -> 
B35: =IF(A35>0,CONCATENATE((VLOOKUP($A35,Inscription!$A$6:$G$205,3,FALSE))," ",(VLOOKUP($A35,Inscription!$A$6:$G$205,4,FALSE)))," ") ->  | C35: =IF(A35>0,(VLOOKUP($A35,Inscription!$A$6:$G$205,5,FALSE))," ") -> 
B36: =IF(A36>0,(VLOOKUP($C36,Inscription!$A$6:$G$205,3,FALSE))," ") ->  | C36: =IF(A35>0,(VLOOKUP($A35,Inscription!$A$6:$G$205,7,FALSE))," ") -> 
A38: Les soussignés, Commissaires de Course, Juge à l'arrivée et Chronométreur, certifient la sincérité des résultats mentionnés au tableau ci-contre.
A39: A | B39: , | C39: le | M39: 20…
A40: Le Président du Jury: | C40: Les Commissaires: | N40: Le Juge à l'arrivée: | O40: Le Chronométreur:

Sheet rapport jury (hidden)
A1: FEDERATION SPORTIVE ET GYMNIQUE DU TRAVAIL
A2: COMITE DEPARTEMENTAL 29
A3: -------------------------
A4: RAPPORT DU PRESIDENT DU JURY
A5: -------------------------
A6: Renseignements sur la course :
A8: Dénomination de la course : | D8: =Inscription!$D$1 -> CYCLO CROSS
A10: Date : | B10: =Inscription!$D$4 -> 2023-10-01 | D10: Ville : | E10: =Inscription!$D$2 -> HENANSAL | L10: Dépt : | M10: =Inscription!$G$2 -> 0
A12: Club organisateur : | D12: =Inscription!$D$3 -> 0
A14: Catégorie de la course : | D14: =Inscription!#REF! -> 
B16: Engagés : | D16: =Inscription!#REF! ->  | E16: Partants : | G16: =Inscription!#REF! ->  | I16: Classés : | L16: =CLASSEMENT!$I$2 -> 55
B18: Kilométrage parcouru : | E18: ='FEUILLE RESULTATS'!$M$8 ->  | G18: Temps : | J18: ='FEUILLE RESULTATS'!$N$10 -> 00:00:00
A20: Epreuve en circuit | F20: oui | I20: non
B21: Longueur du circuit | D21: =Inscription!#REF! ->  | E21: km
A23: Epreuve en ligne | F23: oui | I23: non
A25: Collège des arbitres :
B26: Nom - prénom | F26: Club | L26: Qualification
A27: Président du jury | B27: ='ETAT RESULT'!$D24 -> 0 | F27: ='ETAT RESULT'!$F24 -> 0 | L27: ='ETAT RESULT'!$H24 -> 0
A28: Commissaire 1 | B28: ='ETAT RESULT'!$D25 -> 0 | F28: ='ETAT RESULT'!$F25 -> 0 | L28: ='ETAT RESULT'!$H25 -> 0
A29: Commissaire 2 | B29: ='ETAT RESULT'!$D26 -> 0 | F29: ='ETAT RESULT'!$F26 -> 0 | L29: ='ETAT RESULT'!$H26 -> 0
A30: Juge à l'arrivée | B30: ='ETAT RESULT'!$D28 -> 0 | F30: ='ETAT RESULT'!$F28 -> 0 | L30: ='ETAT RESULT'!$H28 -> 0
A31: Moto 1 | B31: ='ETAT RESULT'!$D29 -> 0 | F31: ='ETAT RESULT'!$F29 -> 0 | L31: ='ETAT RESULT'!$H29 -> 0
A32: Moto 2
A33: Chronométreur | B33: ='ETAT RESULT'!$D30 -> 0 | F33: ='ETAT RESULT'!$F30 -> 0 | L33: ='ETAT RESULT'!$H30 -> 0
A35: Les Commissaires étaient-ils identifiables ? | F35: oui | I35: non
A37: Organisation : | J37: (mettre un x dans la case)
A38: Présentation de l'autorisation préfectorale | F38: oui | I38: non
A40: Secrétariat | F40: médiocre | I40: moyen | L40: bon
A42: Local réservé pour les Commissaires | F42: oui | I42: non
A44: Structure de la course :
A45: WC prévus au départ | F45: oui | I45: non
A47: Barrières au départ | F47: oui | I47: non
A49: Parking suffisant au départ | F49: oui | I49: non
A51: Barrières à l'arrivée | F51: oui | I51: non
A53: Podium couvert indépendant pour les Commissaires à l'arrivée | F53: oui | I53: non
A55: Podium protocolaire situé conformément après la ligne | F55: oui | I55: non
A57: Local du contrôle anti-dopage : est-il prévu ? | F57: oui | I57: non
A59: est-il conforme ? | F59: oui | I59: non
A61: Médecin dans la course | F61: oui | I61: non
A63: Secours présent au départ de l'épreuve | F63: oui | I63: non
A65: Véhicule balai | F65: oui | I65: non
A67: Véhicules neutres de dépannage | F67: zéro | I67: 1 | L67: 2
A69: Radio course | F69: oui | I69: non
A71: Efficacité | F71: médiocre | I71: moyen | L71: bon
A73: Photo finish ou numérique | F73: médiocre | I73: moyen | L73: bon
A75: ou autre moyen vidéo d'arrivée | F75: médiocre | I75: moyen | L75: bon
A77: Sécurité de la course :
A78: Importance des moyens mis en œuvre | F78: médiocre | I78: moyen | L78: bon
A80: Nature des moyens
A81: escorte motos (nombre)
A83: signaleurs (nombre)
A85: Efficacité des moyens | F85: médiocre | I85: moyen | L85: bon
A87: Signalisation course :
A88: Fléchage du parcours (au sol ou sur panneau) | F88: médiocre | I88: moyen | L88: bon
A90: Banderole au départ | F90: oui | I90: non
A92: Banderole à l'arrivée | F92: oui | I92: non
A95: Observations complémentaires sur l'organisation et éventuellement suggestions d'améliorations dont vous aurez parlé avec l'organisateur
A98: Appréciation du président du jury
I101: Date : | J101: =Inscription!D4 -> 2023-10-01
I103: Signature :
A107: Annexes à joindre : | B107: Etat de résultats.
B108: Liste pointée des partants.
B109: Le récapitulatif des décisions des Commissaires (feuille de pénalité).
B110: Les lettres de réclamation (éventuellement, avec décision notifiée).
A112: Ce rapport doit être adressé dans les 48 heures après la course à la FSGT 29

Sheet Feuil1 (hidden)
